Workbook

Sheet Setup Page
J1: x | Q1: =SUM(Q3:Q116) -> 0
B2: MFTransparency Product Pricing Tool | F2: =IF(DevMode,"WARNING! This is an UNPROTECTED file. Do not distribute","Be sure to enable MACROS for this tool to work properly") -> Be sure to enable MACROS for this tool to work properly | M2: =DevMode -> FALSE | Q2: hiderow | R2: Prev | S2: Hiderows | T2: Crippled | U2: Spacers | V2: TallRow | W2: Input1 | X2: Input2 | Y2: Input3 | Z2: DropList | AB2: =COUNTIF(H24:H38,NotComp) -> 0
U3: =TRUE -> TRUE
D4: This tool may be used by an institution or an analyst to develop a pricing map for the main micro-credit products of that institution. Optionally, the user can also use the Balanced Pricing features of this tool to evaluate the overall pricing of the institution. | H4: ="Version: "&TEXT(VersionNum,"0.00")&" ("&TEXT(References!C32,"dd-mmm-yy")&")" -> Version: 1.00 (15-Jul-15)
H5: =References!E34&" Build:"&ExcelBuild -> Excel 2010 Build:7153
C7: Country and Institution
C9: Insitution Name | E9: =IF(LEN(D9)>12,"Enter a name shorter than 13 characaters",DevOk) ->  | F9: View TRAINING VIDEO for Setup Page
C10: Total Microfinance Clients: | D10: =H38 -> 1e-06 | E10: =IF(D10=0,"Note: These will be filled in from information you enter below in the list of products",DevOk) -> 
C11: Total Microfinance Portfolio: | D11: =F38 -> 1e-06 | E11: (in national currency) | F11: Analyst Name:
D12: =IF(H20,D11/H20,0) -> 0 | E12: (in USD)
B13: =IF(CountryName="<choose from list>","Note! Be sure to choose a country. If country not listed, choose option at bottom of list.",DevOk) -> Note! Be sure to choose a country. If country not listed, choose option at bottom of list. | F13: Lending Currencies | G13: Overide | H13: Used
C14: Country | D14: <choose from list> | E14: National Currency symbol: | F14: =INDEX(References!$D$98:$D$136,$D$126) -> 0 | H14: =IF(ISBLANK(G14),F14,G14) -> 0
C15: GNI/Capita (USD) | D15: =INDEX(References!$J$98:$J$136,$D$126) -> 0 | E15: Second currency used for loans: | F15: =INDEX(References!$E$98:$E$136,$D$126) -> 0 | H15: =IF(ISBLANK(G15),F15,G15) -> 0
C16: Optional override: | E16: Third currency used for loans: | F16: =INDEX(References!$F$98:$F$136,$D$126) -> 0 | H16: =IF(ISBLANK(G16),F16,G16) -> 0
C17: GNI/Capita (USD) used: | D17: =IF(D16>0,D16,D15) -> 0
F18: Exchange Rates to USD
D19: GNI/Capita | F19: Exchange Rate | G19: Overide | H19: Rate Used | P19: Exch to Natl
C20: =H14 -> 0 | D20: =$D$17*H20 -> 0 | E20: =C20 -> 0 | F20: =INDEX(References!$G$98:$G$136,$D$126) -> 0 | H20: =IF(G20>0,G20,F20) -> 0 | P20: 1
C21: =IF(H15<>0,H15,DevOk) ->  | D21: =$D$17*H21 -> 0 | E21: =C21 ->  | F21: =INDEX(References!$H$98:$H$136,$D$126) -> 0 | H21: =IF(G21>0,G21,F21) -> 0 | P21: =H20 -> 0
C22: =IF(H16<>0,H16,DevOk) ->  | D22: =$D$17*H22 -> 0 | E22: =C22 ->  | F22: =INDEX(References!$I$98:$I$136,$D$126) -> 0 | H22: =IF(G22>0,G22,F22) -> 0 | P22: =IF(H22<>0,1/H22*H20,1) -> 1
C24: List of Products | Q24: =IF(R24<>S24,1,0) -> 0
Q25: =IF(R25<>S25,1,0) -> 0 | U25: =TRUE -> TRUE
C26: Product Input | D26: Note: List each micro credit product, with current portfolio and clients (use ESTIMATES if no real numbers available). Then indicate RANK in Column H, using client figures. | AE26: =MAX(AE28:AE37) -> 0
D27: Currency | E27: Product Name | F27: ="Portfolio ("&D128&")" -> Portfolio (-) | G27: Portfolio (USD) | H27: Clients | I27: Avg Bal (USD) | J27: Rank | AE27: Dup Ck
C28: 1 | D28: - | G28: =IF(F28>0,F28/$H$20,"") ->  | I28: =IF(AND(ISNUMBER(G28),H28>0),G28/H28,".") -> . | K28: =IF(ISBLANK(E28),DevOk,IF(ISNA(MATCH(D28,$D$128:$D$130,0)),"ERROR! Choose a currency from the list for this country",IF(AND(H28>0,J28=0),"Enter a rank when you have completed entry of all products.",DevOk))) ->  | AE28: =IF(ISNUMBER(AD28),COUNTIF($AD$28:$AD$37,AD28),0) -> 0
C29: 2 | D29: - | G29: =IF(F29>0,F29/$H$20,"") ->  | I29: =IF(AND(ISNUMBER(G29),H29>0),G29/H29,".") -> . | AE29: 0
C30: 3 | D30: - | I30: . | AE30: 0
C31: 4 | D31: - | I31: . | AE31: 0
C32: 5 | D32: - | I32: . | AE32: 0
C33: 6 | D33: - | I33: . | AE33: 0
C34: 7 | D34: - | I34: . | AE34: 0
C35: 8 | D35: - | I35: . | AE35: 0
C36: 9 | D36: - | I36: . | AE36: 0
C37: 10 | D37: - | I37: . | AE37: 0
E38: Totals for microfinance products: | F38: =SUM(F28:F37)+0.000001 -> 1e-06 | G38: =SUM(G28:G37) -> 0 | H38: =SUM(H28:H37)+0.000001 -> 1e-06
I39: =IF(COUNTIF(I42:I52,"Cross-check")>0,"Note: Cross-check feature will be completed in version 1.1 of this software. For now, use Auto-calc instead.",DevOk) -> Note: Cross-check feature will be completed in version 1.1 of this software. For now, use Auto-calc instead.
C40: Ranked Products | D40: Note: Use the dropdowns in Column I to change the pricing approach to use for each product. | J40: =TEXT(SUM(J42:J52)/60,"#0.0")&" Hrs" -> 0.0 Hrs
D41: =D27 -> Currency | E41: =E27 -> Product Name | F41: =F27 -> Portfolio (-) | G41: =H27 -> Clients | H41: =J27 -> Rank | I41: Pricing | J41: Time
C42: 1 | D42: =IF(ISNA(MATCH($C42,$J$28:$J$37,0)),".",INDEX($D$28:$J$37,MATCH($C42,$J$28:$J$37,0),D$120)) -> . | E42: . | F42: . | G42: =IF(ISNA(MATCH($C42,$J$28:$J$37,0)),0,INDEX($D$28:$J$37,MATCH($C42,$J$28:$J$37,0),G$120)) -> 0 | H42: =IF(ISNA(MATCH($C42,$J$28:$J$37,0)),".",INDEX($D$28:$J$37,MATCH($C42,$J$28:$J$37,0),H$120)) -> . | I42: Cross-check | J42: =IF(ISNUMBER(H42),IF(I42="Cross-check",$F$136,IF(I42="Auto-calc",$F$135,0)),0) -> 0
C43: 2 | D43: . | E43: . | F43: . | G43: 0 | H43: . | I43: Auto-calc | J43: 0
C44: 3 | D44: . | E44: . | F44: . | G44: 0 | H44: . | I44: Auto-calc | J44: 0
C45: 4 | D45: . | E45: . | F45: . | G45: 0 | H45: . | I45: Auto-calc | J45: 0
C46: 5 | D46: . | E46: . | F46: . | G46: 0 | H46: . | I46: Auto-calc | J46: 0
C47: 6 | D47: . | E47: . | F47: . | G47: 0 | H47: . | I47: Auto-calc | J47: 0
C48: 7 | D48: . | E48: . | F48: . | G48: 0 | H48: . | I48: Not priced | J48: 0
C49: 8 | D49: . | E49: . | F49: . | G49: 0 | H49: . | I49: Not priced | J49: 0
C50: 9 | D50: . | E50: . | F50: . | G50: 0 | H50: . | I50: Not priced | J50: 0
C51: 10 | D51: . | E51: . | F51: . | G51: 0 | H51: . | I51: Not priced | J51: 0
D52: . | E52: . | F52: . | G52: 0 | H52: . | I52: Not priced | J52: 0
D54: You may now proceed to the PROD sheets to enter information and calculate prices for each of these products.
C56: Balanced Pricing Setup
C58: Turn on Balanced Pricing Features | D58: Yes | E58: APR comparison figure | F58: APR (int + fee) | G58: Choose the APR that represents the MFI's income (generally int+fee or Int+fee+Ins)
B62: © MicroFinance Transparency, 2015 | D62: This tool was developed by MicroFinance Transparency. The software may be used by others, but not sold and not modified. If you find errors or would like to request new features, send an email to: chuck@mftransparency.org. This software is for general analytical use only. MicroFinance Transparency is not responsible for any errors made in the calculations of this tool, nor errors made by users of this tool.
R117: TRUE | S117: =TRUE -> TRUE
C118: HideCols | E118: x | F118: x | G118: x | H118: x | K118: x | L118: x | M118: =IF(DevMode=TRUE,"x",TRUE) -> TRUE | N118: =M118 -> TRUE | O118: TRUE | P118: TRUE | Q118: TRUE | R118: =TRUE -> TRUE | S118: TRUE | T118: TRUE | U118: TRUE | V118: TRUE | W118: TRUE | X118: TRUE | Y118: TRUE | Z118: =X118 -> TRUE | AA118: TRUE | AB118: =TRUE -> TRUE | AC118: =IF(DevMode,"x",TRUE) -> TRUE | AD118: =$AC$118 -> TRUE | AE118: =$AC$118 -> TRUE | AF118: =$AC$118 -> TRUE | AG118: TRUE | AH118: TRUE | AI118: TRUE | AJ118: TRUE | AK118: TRUE | AL118: TRUE | AM118: TRUE | AN118: =$AC$118 -> TRUE
D120: 1 | E120: 2 | F120: 3 | G120: 5 | H120: 7
D126: =MATCH(D14,References!C98:C136,0) -> 1 | E126: row
C128: currency list for dropdowns | D128: =IF(LEN(H14)>1,H14,"-") -> -
D129: =IF(LEN(H15)>1,H15,H14) -> 0
D130: =IF(LEN(H16)>1,H16,H14) -> 0
C132: num x-check | D132: =COUNTIF(I42:I52,"Cross-check") -> 1
D134: 1 | E134: Not priced | F134: 2 | G134: Basic
D135: 2 | E135: Auto-calc | F135: 15 | G135: Auto
D136: 3 | E136: Cross-check | F136: 30 | G136: X-Chk
C138: number of prods | D138: =MAX(H42:H52) -> 0
C141: curr country | D141: =CountryName -> <choose from list>
C142: prev | D142: <choose from list>
C143: changed? | D143: =IF(D141<>D142,TRUE,FALSE) -> FALSE
C144: Row selected | D144: =MATCH(F58,E145:E149,0) -> 2
D145: Int | E145: APR (int)
D146: Int+Fee | E146: APR (int + fee)
D147: Int+Fee+Ins | E147: APR (int + fee + ins)
D148: Int-Tax | E148: APR (int + fee + ins + tax)
D149: Full APR | E149: Full APR (int + fee + ins + tax + dep)
D151: =INDEX(D145:D149,D144) -> Int+Fee
B165: =TRUE -> TRUE

Sheet Prod1
A1: Scatterplot Pricing Sheet | H1: Product Number: | I1: 1 | J1: =IF(SmpProdInput>NumProducts,J551,INDEX(ProdTable,$B$503,ProdTable!B4)) -> Not an Active Product Number | P1: Type: | Q1: =INDEX('Setup Page'!I42:I52,SmpProdInput) -> Cross-check | AO1: =AO287 -> 0 | AP1: TRUE | AQ1: TRUE | AR1: TRUE | AS1: TRUE | AT1: TRUE | AU1: TRUE | AV1: TRUE | AW1: TRUE | AX1: TRUE | AY1: TRUE | AZ1: TRUE | BA1: TRUE | BB1: TRUE | BC1: TRUE | BD1: TRUE | BE1: TRUE | BF1: TRUE | BG1: TRUE | BH1: TRUE | BI1: TRUE | BJ1: TRUE | BK1: TRUE | BL1: TRUE | BM1: TRUE | BN1: TRUE | BO1: TRUE | BP1: TRUE | BQ1: TRUE | BR1: TRUE | BS1: TRUE | BT1: TRUE | CC1: HIDEROWS
B3: Next Step: | C3: =IF(EditShotgun=TRUE,"You are REVIEWING data previously generated. You cannot change data without starting over. To exit REVIEW mode, enter a different Product Number",IF(F552=0,"All Done!",INDEX($E$553:$E$600,MATCH(1,$B$553:$B$600,0)))) -> NOTE! This is not an loan product needing pricing calculation according to the information on the SETUP sheet. Do NOT enter any information on this worksheet. | CC3: =IF(ScatterPrint,TRUE,"x") -> x
CC4: =$CC$3 -> x
B5: Step 1: Input Product Design Information | I5: Click for STEP 1 Video | K5: Erase Sheet? | M5: =IF(EraseSheet="YES Erase Sheet","Click in any cell on the worksheet to begin running the routine to open up the next section","<-Use this cell to ERASE all the data input on this Product Sheet and start over - be careful!") -> <-Use this cell to ERASE all the data input on this Product Sheet and start over - be careful! | CC5: x
CC6: x
D7: Clients | E7: =INDEX('Setup Page'!G42:G51,SmpProdInput) -> 0 | G7: Avg/Clnt | H7: % GNI | K7: Loan Product Currency | L7: =INDEX('Setup Page'!D42:D52,SmpProdInput) -> . | N7: =IF(ISNA(MATCH(L7,'Setup Page'!D128:D130,0)),"ERROR: An incorrect currency was chosen on SETUP for this product. Go correct this.",DevOk) -> ERROR: An incorrect currency was chosen on SETUP for this product. Go correct this. | CC7: x
D8: ="Portfolio ("&L7&")" -> Portfolio (.) | E8: =INDEX('Setup Page'!F42:F51,SmpProdInput) -> . | G8: =IF(AND(ISNUMBER(E$7),E$7<>0),E8/$E$7,".") -> . | H8: =G8/L9 ->  | K8: Exchange Rate to USD | L8: =INDEX('Setup Page'!H20:H22,MATCH(L7,'Setup Page'!D128:D130,0)) ->  | CC8: x
D9: Portfolio (USD) | E9: =IF(ISNUMBER(L8),IF(L8<>0,E8/L8,),".") -> . | G9: =IF(AND(ISNUMBER(E$7),E$7<>0),E9/$E$7,".") -> . | K9: ="GNI/Capita ("&L7&")" -> GNI/Capita (.) | L9: =L8*'Setup Page'!D17 ->  | CC9: x
E10: Min | F10: Max | CC10: x
D11: ="Loan Amount ("&L7&")" -> Loan Amount (.) | G11: =E558 -> Start by entering Min and Max loan amount and loan term in rows 11 and row 14. Use ranges of last year if product does not have defined min/max. | CC11: x
D12: (USD) | E12: =IF($L$8>0,E11/$L$8) ->  | F12: =IF($L$8>0,F11/$L$8) ->  | CC12: x
D13: % GNI/Capita | E13: =E11/L9 ->  | F13: =F11/L9 ->  | CC13: x
D14: Loan Term (months) | CC14: x
CC15: x
D16: Repayment Frequencies | E16: Range | G16: Proposed | H16: Override | I16: Used | J16: =E559 ->  | AO16: Rep Freqs: | AP16: =IF(E17<>"<choose>",1,0)+IF(E18<>"<choose>",1,0) -> 0 | CC16: x
D17: Most Common: | E17: <choose> | G17: =INDEX($D$656:$D$661,MATCH(E17,$E$656:$E$661,0)) -> N/A | I17: =IF(G17="N/A","N/A",IF(H17=0,G17,H17)) -> N/A | J17: =IF(AP18>=1,"Note: Lean toward using at least one loan term longer than monthly",IF(AP17>=1,"Note: Frequencies less than monthly do not have a large impact on price, so running multiple variations isn't as important.",DevOk)) ->  | AO17: Monthly or less: | AP17: =IF(I17<30,1,0)+IF(G18<>"N/A",IF(I18<30,1,0)) -> 0 | CC17: x
D18: Next most common: | E18: <choose> | G18: =INDEX($D$656:$D$661,MATCH(E18,$E$656:$E$661,0)) -> N/A | I18: =IF(G18="N/A","N/A",IF(H18=0,G18,H18)) -> N/A | AO18: > Monthly: | AP18: =COUNTIF(G17:G18,">30") -> 0 | CC18: x
CC19: x
B20: Grace Period Info | H20: =IF(J16=DevOk,IF(E560=DevOk,E561,E560),DevOk) -> Enter GRACE PERIOD info in row 21 of STEP 1. | CC20: =IF(E21=0,TRUE,"x") -> x
B21: % loans with Grace Periods: | E21: <choose> | CC21: =$CC$20 -> x
B22: Avg grace (mon): | E22: Avg | F22: Opt 1 | G22: Opt 2 | AZ22: Grace | CC22: =$CC$20 -> x
D23: Grace period (months) | H23: =IF(I17<30,"Note: when payments are less than a month, grace may be < 1 month, e.g., enter 0.25 for one week of grace",DevOk) ->  | AZ23: =INDEX(D647:D654,MATCH(E21,E647:E654,0)) -> N/A | CC23: x
D24: When grace occurs: | E24: <choose> | CC24: x
E25: =E562 -> Enter pricing information below for every section starting in row 27. For the line marked with question marks -???- In Col A, fill in all necessary white cells, including a Min AND Max value and the Name/Descrip section | AS25: Complete1 | AT25: Complete2 | CC25: x
B26: Pricing Info | D26: Variation | E26: Min | F26: Max | G26: Type | I26: Principal Payments | M26: Interest Payments | Q26: Explanation for Variations | Y26: Pricing Summary | AW26: =COUNTIF(AV31:AV34,"Conditional percent") -> 0 | AX26: =COUNTIF(AV38:AV41,"Conditional percent") -> 0 | AZ26: Variation Analysis | CC26: x
A27: =IF(AS27,IF(SUM(E27:F27)>0,MAX($A$26:A26)+1,0),"???") -> 0 | B27: Annual Interest Rate | D27: =IF(OR(AZ27=0,AZ27=""),"-",IF(AZ27<BB27,"Some","A Lot")) -> - | G27: <choose> | I27: <choose> | M27: <choose> | Y27: =TEXT(E27,"#0.0%")&IF(AND(E27<>F27,F27<>0),"-"&TEXT(F27,"#0.0%"),"")&" annual, "&G27 -> 0.0% annual, <choose> | AS27: =IF(SUM(E27:F27)>0,IF(OR(E27=0,F27=0,G27="<choose>",I27="<choose>",M27="<choose>"),FALSE,TRUE),TRUE) -> TRUE | AZ27: =IF(E27<>F27,IF(E27<>0,F27/E27-1,1),"") ->  | BB27: 0.5 | CC27: x
E28: =IF(AND(E27>0,E27<0.1),"Is that ANNUAL interest rate?",DevOk) ->  | I28: =IF(G27="Flat","NOTE: With flat, generally chose EQUAL IN EACH INSTALLMENT for principal, and PERIOD INSTALLMENTS for Interest",DevOk) ->  | CC28: x
E29: Percent | I29: Fixed | M29: =IF(AW26>0,"Note! There is a fee calculated as a % with a minimum amount. For smaller loans, enter a % that yields the minimum fixed amount.",DevOk) ->  | CC29: x
B30: Fees | D30: Variation | E30: Min | F30: Max | G30: Based On | I30: Min | J30: Max | K30: Based On | M30: Name / Descrip | Q30: Explanation for Variations | Y30: Pricing Summary | AW30: In Use | AX30: Type | CC30: x
A31: =IF(AND(AS31,AT31),IF(SUM(E31:J31)>0,MAX($A$26:A30)+1,0),"???") -> 0 | B31: Disbursement Fee #1 | D31: =IF(BC31<>"-",BC31,IF(BD31<>"-",BD31,"-")) -> - | L31: =IF(AND(A31="???",ISBLANK(M31)),"Remember this!->",DevOk) ->  | Y31: =IF(AW31="x",IF(F31>0,TEXT(E31,"0.00%")&IF(AND(ISNUMBER(F31),F31<>E31),"-"&TEXT(F31,"0.00%"),""),"")&IF(J31>0," "&IF(I31>0,TEXT(I31,"#,##0.00"),"")&IF(AND(ISNUMBER(I31),J31<>I31),"-"&TEXT(J31,"#,##0.00"),""),IF(I31>0,", "&TEXT(I31,"#,##0.00")&" min",""))&IF(SUM(E31,F31,I31,J31)>0," "&AX31,""),"") ->  | AS31: =IF(SUM(E31:F31)>0,IF(OR(ISBLANK(E31),F31=0,ISBLANK(M31)),FALSE,TRUE),TRUE) -> TRUE | AT31: =IF(SUM(I31:J31)>0,IF(OR(I31=0,J31=0,ISBLANK(M31)),FALSE,TRUE),TRUE) -> TRUE | AV31: =IF(E31>F31,"Conditional percent",DevOk) ->  | AW31: =IF(SUM(E31,F31,I31,J31)>0,"x",".") -> . | AX31: Up-Front | AZ31: =IF(E31<>F31,IF(E31<>0,F31/E31-1,1),"") ->  | BA31: =IF(I31<>J31,IF(I31<>0,J31/I31-1,1),"") ->  | BB31: 0.6 | BC31: =IF(OR(AZ31=0,AZ31=""),"-",IF(AZ31<BB31,"Some","A Lot")) -> - | BD31: =IF(OR(BA31=0,BA31=""),"-",IF(BA31<BB31,"Some","A Lot")) -> - | CC31: x
A32: =IF(AND(AS32,AT32),IF(SUM(E32:J32)>0,MAX($A$26:A31)+1,0),"???") -> 0 | B32: Disbursement Fee #2 | D32: =IF(BC32<>"-",BC32,IF(BD32<>"-",BD32,"-")) -> - | L32: =IF(AND(A32="???",ISBLANK(M32)),"Remember this!->",DevOk) ->  | Y32: =IF(AW32="x",IF(F32>0,TEXT(E32,"0.00%")&IF(AND(ISNUMBER(F32),F32<>E32),"-"&TEXT(F32,"0.00%"),""),"")&IF(J32>0," "&IF(I32>0,TEXT(I32,"#,##0.00"),"")&IF(AND(ISNUMBER(I32),J32<>I32),"-"&TEXT(J32,"#,##0.00"),""),IF(I32>0,", "&TEXT(I32,"#,##0.00")&" min",""))&IF(SUM(E32,F32,I32,J32)>0," "&AX32,""),"") ->  | AS32: =IF(SUM(E32:F32)>0,IF(OR(ISBLANK(E32),F32=0,ISBLANK(M32)),FALSE,TRUE),TRUE) -> TRUE | AT32: =IF(SUM(I32:J32)>0,IF(OR(I32=0,J32=0,ISBLANK(M32)),FALSE,TRUE),TRUE) -> TRUE | AV32: =IF(E32>F32,"Conditional percent",DevOk) ->  | AW32: =IF(SUM(E32,F32,I32,J32)>0,"x",".") -> . | AX32: Up-Front | AZ32: =IF(E32<>F32,IF(E32<>0,F32/E32-1,1),"") ->  | BA32: =IF(I32<>J32,IF(I32<>0,J32/I32-1,1),"") ->  | BB32: 0.6 | BC32: =IF(OR(AZ32=0,AZ32=""),"-",IF(AZ32<BB32,"Some","A Lot")) -> - | BD32: =IF(OR(BA32=0,BA32=""),"-",IF(BA32<BB32,"Some","A Lot")) -> - | CC32: x
A33: =IF(AND(AS33,AT33),IF(SUM(E33:J33)>0,MAX($A$26:A32)+1,0),"???") -> 0 | B33: Continuing Fee #1 | D33: =IF(BC33<>"-",BC33,IF(BD33<>"-",BD33,"-")) -> - | G33: <choose> | K33: <choose> | Y33: =IF(AW33="x",IF(F33>0,TEXT(E33,"0.00%")&IF(AND(ISNUMBER(F33),F33<>E33),"-"&TEXT(F33,"0.00%"),""),"")&IF(J33>0," "&IF(I33>0,TEXT(I33,"#,##0.00"),"")&IF(AND(ISNUMBER(I33),J33<>I33),"-"&TEXT(J33,"#,##0.00"),""),IF(I33>0,", "&TEXT(I33,"#,##0.00")&" min",""))&IF(SUM(E33,F33,I33,J33)>0," "&AX33,""),"")&IF(AY33<>"<choose>",", "&AY33,"") ->  | AS33: =IF(SUM(E33:F33)>0,IF(OR(ISBLANK(E33),F33=0,G33="<choose>",ISBLANK(M33)),FALSE,TRUE),TRUE) -> TRUE | AT33: =IF(SUM(I33:J33)>0,IF(OR(I33=0,J33=0,K33="<choose>",ISBLANK(M33)),FALSE,TRUE),TRUE) -> TRUE | AV33: =IF(E33>F33,"Conditional percent",DevOk) ->  | AW33: =IF(SUM(E33,F33,I33,J33)>0,"x",".") -> . | AX33: Ongoing | AY33: =IF(PDrop16<>"<choose>",PDrop16,PDrop5) -> <choose> | AZ33: =IF(E33<>F33,IF(E33<>0,F33/E33-1,1),"") ->  | BB33: 0.6 | BC33: =IF(OR(AZ33=0,AZ33=""),"-",IF(AZ33<BB33,"Some","A Lot")) -> - | BD33: =IF(OR(BA33=0,BA33=""),"-",IF(BA33<BB33,"Some","A Lot")) -> - | CC33: x
A34: =IF(AND(AS34,AT34),IF(SUM(E34:J34)>0,MAX($A$26:A33)+1,0),"???") -> 0 | B34: Continuing Fee #2 | D34: =IF(BC34<>"-",BC34,IF(BD34<>"-",BD34,"-")) -> - | G34: <choose> | K34: <choose> | Y34: =IF(AW34="x",IF(F34>0,TEXT(E34,"0.00%")&IF(AND(ISNUMBER(F34),F34<>E34),"-"&TEXT(F34,"0.00%"),""),"")&IF(J34>0," "&IF(I34>0,TEXT(I34,"#,##0.00"),"")&IF(AND(ISNUMBER(I34),J34<>I34),"-"&TEXT(J34,"#,##0.00"),""),IF(I34>0,", "&TEXT(I34,"#,##0.00")&" min",""))&IF(SUM(E34,F34,I34,J34)>0," "&AX34,""),"")&IF(AY34<>"<choose>",", "&AY34,"") ->  | AS34: =IF(SUM(E34:F34)>0,IF(OR(ISBLANK(E34),F34=0,G34="<choose>",ISBLANK(M34)),FALSE,TRUE),TRUE) -> TRUE | AT34: =IF(SUM(I34:J34)>0,IF(OR(I34=0,J34=0,K34="<choose>",ISBLANK(M34)),FALSE,TRUE),TRUE) -> TRUE | AV34: =IF(E34>F34,"Conditional percent",DevOk) ->  | AW34: =IF(SUM(E34,F34,I34,J34)>0,"x",".") -> . | AX34: Ongoing | AY34: =IF(PDrop2<>"<choose>",PDrop2,PDrop6) -> <choose> | AZ34: =IF(E34<>F34,IF(E34<>0,F34/E34-1,1),"") ->  | BB34: 0.6 | BC34: =IF(OR(AZ34=0,AZ34=""),"-",IF(AZ34<BB34,"Some","A Lot")) -> - | BD34: =IF(OR(BA34=0,BA34=""),"-",IF(BA34<BB34,"Some","A Lot")) -> - | CC34: x
G35: =IF($K$124,IF(OR(ISNUMBER(FIND("pmt",PDrop16)),ISNUMBER(FIND("pmt",PDrop2))),"Be careful - payment frequencies vary for this product, so fees based per payment will have large impact on price",DevOk),DevOk) ->  | CC35: x
E36: Percent | I36: Fixed | M36: =IF(AX26>0,"Note! There is an INSURANCE FEE calculated as a % with minimum fixed amount. For smaller loans, enter a % that yields the minimum fixed amount.",DevOk) ->  | CC36: x
B37: Insurance | D37: Variation | E37: Min | F37: Max | G37: Based On | I37: Min | J37: Max | K37: Based On | M37: Name / Descrip | Q37: Explanation for Variations | Y37: Pricing Summary | CC37: x
A38: =IF(AND(AS38,AT38),IF(SUM(E38:J38)>0,MAX($A$26:A37)+1,0),"???") -> 0 | B38: Disbursement Ins. Fee #1 | D38: =IF(BC38<>"-",BC38,IF(BD38<>"-",BD38,"-")) -> - | L38: =IF(AND(A38="???",ISBLANK(M38)),"Remember this!->",DevOk) ->  | Y38: =IF(AW38="x",IF(F38>0,TEXT(E38,"0.00%")&IF(AND(ISNUMBER(F38),F38<>E38),"-"&TEXT(F38,"0.00%"),""),"")&IF(J38>0," "&IF(I38>0,TEXT(I38,"#,##0.00"),"")&IF(AND(ISNUMBER(I38),J38<>I38),"-"&TEXT(J38,"#,##0.00"),""),IF(I38>0,", "&TEXT(I38,"#,##0.00")&" min",""))&IF(SUM(E38,F38,I38,J38)>0," "&AX38,""),"") ->  | AS38: =IF(SUM(E38:F38)>0,IF(OR(ISBLANK(E38),F38=0,ISBLANK(M38)),FALSE,TRUE),TRUE) -> TRUE | AT38: =IF(SUM(I38:J38)>0,IF(OR(I38=0,J38=0,ISBLANK(M38)),FALSE,TRUE),TRUE) -> TRUE | AV38: =IF(E38>F38,"Conditional percent",DevOk) ->  | AW38: =IF(SUM(E38,F38,I38,J38)>0,"x",".") -> . | AX38: Up-Front | AZ38: =IF(E38<>F38,IF(E38<>0,F38/E38-1,1),"") ->  | BA38: =IF(I38<>J38,IF(I38<>0,J38/I38-1,1),"") ->  | BB38: 0.6 | BC38: =IF(OR(AZ38=0,AZ38=""),"-",IF(AZ38<BB38,"Some","A Lot")) -> - | BD38: =IF(OR(BA38=0,BA38=""),"-",IF(BA38<BB38,"Some","A Lot")) -> - | CC38: x
A39: =IF(AND(AS39,AT39),IF(SUM(E39:J39)>0,MAX($A$26:A38)+1,0),"???") -> 0 | B39: Disbursement Ins. Fee #2 | D39: =IF(BC39<>"-",BC39,IF(BD39<>"-",BD39,"-")) -> - | L39: =IF(AND(A39="???",ISBLANK(M39)),"Remember this!->",DevOk) ->  | Y39: =IF(AW39="x",IF(F39>0,TEXT(E39,"0.00%")&IF(AND(ISNUMBER(F39),F39<>E39),"-"&TEXT(F39,"0.00%"),""),"")&IF(J39>0," "&IF(I39>0,TEXT(I39,"#,##0.00"),"")&IF(AND(ISNUMBER(I39),J39<>I39),"-"&TEXT(J39,"#,##0.00"),""),IF(I39>0,", "&TEXT(I39,"#,##0.00")&" min",""))&IF(SUM(E39,F39,I39,J39)>0," "&AX39,""),"") ->  | AS39: =IF(SUM(E39:F39)>0,IF(OR(ISBLANK(E39),F39=0,ISBLANK(M39)),FALSE,TRUE),TRUE) -> TRUE | AT39: =IF(SUM(I39:J39)>0,IF(OR(I39=0,J39=0,ISBLANK(M39)),FALSE,TRUE),TRUE) -> TRUE | AV39: =IF(E39>F39,"Conditional percent",DevOk) ->  | AW39: =IF(SUM(E39,F39,I39,J39)>0,"x",".") -> . | AX39: Up-Front | AZ39: =IF(E39<>F39,IF(E39<>0,F39/E39-1,1),"") ->  | BB39: 0.6 | BC39: - | BD39: - | CC39: x
A40: =IF(AND(AS40,AT40),IF(SUM(E40:J40)>0,MAX($A$26:A39)+1,0),"???") -> 0 | B40: Continuing Ins. Fee #1 | D40: =IF(BC40<>"-",BC40,IF(BD40<>"-",BD40,"-")) -> - | G40: <choose> | K40: <choose> | Y40: =IF(AW40="x",IF(F40>0,TEXT(E40,"0.00%")&IF(AND(ISNUMBER(F40),F40<>E40),"-"&TEXT(F40,"0.00%"),""),"")&IF(J40>0," "&IF(I40>0,TEXT(I40,"#,##0.00"),"")&IF(AND(ISNUMBER(I40),J40<>I40),"-"&TEXT(J40,"#,##0.00"),""),IF(I40>0,", "&TEXT(I40,"#,##0.00")&" min",""))&IF(SUM(E40,F40,I40,J40)>0," "&AX40,""),"")&IF(AY40<>"<choose>",", "&AY40,"") ->  | AS40: =IF(SUM(E40:F40)>0,IF(OR(ISBLANK(E40),F40=0,G40="<choose>",ISBLANK(M40)),FALSE,TRUE),TRUE) -> TRUE | AT40: =IF(SUM(I40:J40)>0,IF(OR(I40=0,J40=0,K40="<choose>",ISBLANK(M40)),FALSE,TRUE),TRUE) -> TRUE | AV40: =IF(E40>F40,"Conditional percent",DevOk) ->  | AW40: =IF(SUM(E40,F40,I40,J40)>0,"x",".") -> . | AX40: Ongoing | AY40: =IF(PDrop3<>"<choose>",PDrop3,PDrop7) -> <choose> | AZ40: =IF(E40<>F40,IF(E40<>0,F40/E40-1,1),"") ->  | BB40: 0.6 | BC40: - | BD40: - | CC40: x
A41: =IF(AND(AS41,AT41),IF(SUM(E41:J41)>0,MAX($A$26:A40)+1,0),"???") -> 0 | B41: Continuing Ins. Fee #2 | D41: =IF(BC41<>"-",BC41,IF(BD41<>"-",BD41,"-")) -> - | G41: <choose> | K41: <choose> | Y41: =IF(AW41="x",IF(F41>0,TEXT(E41,"0.00%")&IF(AND(ISNUMBER(F41),F41<>E41),"-"&TEXT(F41,"0.00%"),""),"")&IF(J41>0," "&IF(I41>0,TEXT(I41,"#,##0.00"),"")&IF(AND(ISNUMBER(I41),J41<>I41),"-"&TEXT(J41,"#,##0.00"),""),IF(I41>0,", "&TEXT(I41,"#,##0.00")&" min",""))&IF(SUM(E41,F41,I41,J41)>0," "&AX41,""),"")&IF(AY41<>"<choose>",", "&AY41,"") ->  | AS41: =IF(SUM(E41:F41)>0,IF(OR(ISBLANK(E41),F41=0,G41="<choose>",ISBLANK(M41)),FALSE,TRUE),TRUE) -> TRUE | AT41: =IF(SUM(I41:J41)>0,IF(OR(I41=0,J41=0,K41="<choose>",ISBLANK(M41)),FALSE,TRUE),TRUE) -> TRUE | AV41: =IF(E41>F41,"Conditional percent",DevOk) ->  | AW41: =IF(SUM(E41,F41,I41,J41)>0,"x",".") -> . | AX41: Ongoing | AY41: =IF(PDrop4<>"<choose>",PDrop4,PDrop8) -> <choose> | AZ41: =IF(E41<>F41,IF(E41<>0,F41/E41-1,1),"") ->  | BB41: 0.6 | BC41: - | BD41: - | CC41: x
G42: =IF($K$124,IF(OR(ISNUMBER(FIND("pmt",PDrop3)),ISNUMBER(FIND("pmt",PDrop4))),"Be careful - payment frequencies vary for this product, so fees based per payment will have large impact on price",DevOk),DevOk) ->  | CC42: x
B43: Taxes | E43: % Ln Amt | F43: % Fees | I43: Fixed Amt | J43: Note: Only use this section if there financial taxes or VAT taxes that apply to loan products. | Y43: Pricing Summary | AQ43: taxes used? | CC43: x
A44: =IF(AS44,IF(SUM(E44:J44)>0,MAX($A$26:A43)+1,0),"???") -> 0 | B44: Taxes, Upfront | Y44: =IF(PPrice6>0,TEXT(PPrice6*100,"#.00")&"% loan amt upfront ","")&IF(PPrice7>0,TEXT(PPrice7*100,"#.00")&"% fees upfront ","")&IF(PPrice9>0,TEXT(PPrice9,"#.00")&" Fixed Upfront ","")&IF(E47>0,TEXT(E47*100,"#.00")&"% Prin ongoing ","")&IF(F47>0,TEXT(F47*100,"#.00")&"% Interest ongoing ","")&IF(G47>0,TEXT(G47*100,"#.00")&"% Fees ongoing","")&IF(PPrice10>0,TEXT(PPrice10,"#.00")&" Fixed Amount ongoing","") ->  | AQ44: =IF(SUM(PPrice6,PPrice7,E47,F47,G47,PPrice10,PPrice9)>0,TRUE,FALSE) -> FALSE | AS44: =IF(SUM(E44:I44)>0,FALSE,TRUE) -> TRUE | CC44: x
CC45: x
E46: % Prin | F46: % Int | G46: % Fees | I46: Fixed Amt | CC46: x
A47: =IF(SUM(E47:G47)>0,MAX($A$26:A46)+1,0) -> 0 | B47: Taxes, Ongoing | AS47: =IF(SUM(PPrice8,PPrice10)>0,FALSE,TRUE) -> TRUE | CC47: x
CC48: x
E49: Percent | I49: Fixed | CC49: x
B50: Compulsory Deposit | D50: Variation | E50: Min | F50: Max | G50: Based On | I50: Min | J50: Max | K50: Based On | Q50: Explanation for Variations | Y50: Pricing Summary | CC50: x
A51: =IF(AND(AS51,AT51),IF(SUM(E51:J51)>0,MAX($A$26:A50)+1,0),"???") -> 0 | B51: Comp.Dep, Prior | D51: =IF(BC51<>"-",BC51,IF(BD51<>"-",BD51,"-")) -> - | G51: =IF(E51>0,"of loan amount",DevOk) ->  | P51: =IF(D51="-",DevOk,"Explain variance here ->") ->  | Y51: =IF(F51>0,IF(E51=F51,TEXT(F51*100,"#.00")&"% "&G51&AQ51,TEXT(E51*100,"#.00")&"-"&TEXT(F51*100,"#.00")&"% "&G51&AQ51),IF(J51>0,IF(I51=J51,TEXT(J51,"#.00")&AQ51,TEXT(I51,"#.00")&"-"&TEXT(J51,"#.00")&AQ51),IF(J51>0,IF(J51=I51,TEXT(J51*100,"#.00")&" "&AQ51,TEXT(I51*100,"#.00")&"-"&TEXT(J51,"#.00")&AQ51),IF(J51>0,IF(I51=J51,TEXT(J51,"#.00"),TEXT(I51,"#.00")&"-"&TEXT(J51,"#.00")&AQ51),".")))) -> . | AQ51: Upfront | AS51: =IF(SUM(E51:F51)>0,IF(OR(ISBLANK(E51),F51=0),FALSE,TRUE),TRUE) -> TRUE | AT51: =IF(SUM(I51:J51)>0,IF(OR(I51=0,J51=0),FALSE,TRUE),TRUE) -> TRUE | AZ51: =IF(E51<>F51,IF(E51<>0,F51/E51-1,1),"") ->  | BA51: =IF(I51<>J51,IF(I51<>0,J51/I51-1,1),"") ->  | BB51: 0.6 | BC51: =IF(OR(AZ51=0,AZ51=""),"-",IF(AZ51<BB51,"Some","A Lot")) -> - | BD51: =IF(OR(BA51=0,BA51=""),"-",IF(BA51<BB51,"Some","A Lot")) -> - | CC51: x
A52: =IF(AND(AS52,AT52),IF(SUM(E52:J52)>0,MAX($A$26:A51)+1,0),"???") -> 0 | B52: Comp.Dep, During | D52: =IF(BC52<>"-",BC52,IF(BD52<>"-",BD52,"-")) -> - | G52: =IF(E52>0,"of loan amount",DevOk) ->  | K52: =IF(I52>0,"per installment",DevOk) ->  | P52: =IF(D52="-",DevOk,"Explain variance here ->") ->  | Y52: =IF(F52>0,IF(E52=F52,TEXT(F52*100,"#.00")&"% "&G52&AQ52,TEXT(E52*100,"#.00")&"-"&TEXT(F52*100,"#.00")&"% "&G52&AQ52),IF(J52>0,IF(I52=J52,TEXT(J52,"#.00")&AQ52,TEXT(I52,"#.00")&"-"&TEXT(J52,"#.00")&AQ52),IF(J52>0,IF(J52=I52,TEXT(J52*100,"#.00")&" "&AQ52,TEXT(I52*100,"#.00")&"-"&TEXT(J52,"#.00")&AQ52),IF(J52>0,IF(I52=J52,TEXT(J52,"#.00"),TEXT(I52,"#.00")&"-"&TEXT(J52,"#.00")&AQ52),".")))) -> . | AQ52: ongoing | AS52: =IF(SUM(E52:F52)>0,IF(OR(ISBLANK(E52),F52=0),FALSE,TRUE),TRUE) -> TRUE | AT52: =IF(SUM(I52:J52)>0,IF(OR(I52=0,J52=0),FALSE,TRUE),TRUE) -> TRUE | AZ52: =IF(E52<>F52,IF(E52<>0,F52/E52-1,1),"") ->  | BB52: 0.6 | BC52: - | BD52: - | CC52: x
A53: =IF(AS53,0,"???") -> 0 | B53: Annual Int on Comp.Dep | AS53: =IF(SUM(E53:F53)>0,IF(OR(ISBLANK(E53),F53=0),FALSE,TRUE),TRUE) -> TRUE | CC53: x
CC54: x
C55: Components: | D55: =MAX(A27:A53) -> 0 | CC55: x
C56: Ongoing: | D56: =IF(F33>0,1,0)+IF(F34>0,1,0)+IF(F40>0,1,0)+IF(F41>0,1,0)+IF(F52>0,1,0)+IF(J33>0,1,0)+IF(J34>0,1,0)+IF(J40>0,1,0)+IF(J41>0,1,0)+IF(J52>0,1,0) -> 0 | E56: =IF(AND(D56>0,Q70>1),"Note! Ongoing costs based on EACH PAYMENT require careful analysis of repayment frequencies",DevOk) ->  | Y56: =IF(J51>0,IF(J51=I51,TEXT(J51*100,"#.00")&" "&AQ51,TEXT(I51*100,"#.00")&"-"&TEXT(J51,"#.00")&AQ51),IF(J51>0,IF(I51=J51,TEXT(J51,"#.00"),TEXT(I51,"#.00")&"-"&TEXT(J51,"#.00")&" upfront"),".")) -> . | CC56: x
C57: w/Variation: | D57: =COUNT(AZ27:AZ52) -> 0 | E57: =IF(D57>2,"NOTE! This is a very complex product. Take great care in selecting the variations of each sample.",DevOk) ->  | Q57: =IF($H$6*C23<1000,50,IF($H$6*C23<10000,100,1000)) -> 50 | CC57: x
CC58: x
B59: No | C59: =IF(PStep1Done="Yes","Click in any cell on the worksheet to begin running the routine to open up the next section","Is the pricing information complete? Mark YES to continue to STEP 2") -> Is the pricing information complete? Mark YES to continue to STEP 2 | CC59: x
CC60: x
C61: Insurance mandatory? Percent? | I61: things to add: | K61: significant upfront fee/dep? | CC61: =TRUE -> TRUE
C62: Comp Dep - percent | K62: ask if "grace on int charged! | CC62: =TRUE -> TRUE
C63: Comp Dep - who manages? Use this? | CC63: =TRUE -> TRUE
CC64: =CC100 -> TRUE
CC65: x
B66: Step 2: Decide Sampling by Loan Amount and Term | L66: Click for STEP 2 Video | CC66: x
B67: =E591 ->  | AQ67: =IF(ISERROR(AT67),1,AT67) -> 1 | AR67: num samples | AT67: =IF(AND(O69=0,O70=0),0,INDEX(AS73:AV80,IF(O70*O69>8,8,O70*O69),IF(Q69+(IF(Q70>1,1,0))>3,3,Q69+IF(Q70>1,1,0))+1)) ->  | CC67: =$F$665 -> TRUE
F68: Loan Term | N68: =IF(AND(D82=1,L71=1),"Select Samples in the White Cells Below","Complete Percentages before working in this section") -> Complete Percentages before working in this section | AO68: 0 | AQ68: 0.11 | AR68: Bucket Threshold | BN68: Range | BO68: First | BP68: Last | BQ68: Mid | BV68: mid-x | BW68: 5 | BX68: mid-y | BY68: 4 | CC68: TRUE
B69: ="Term Min/Max: "&E14&"-"&F14 -> Term Min/Max: - | F69: <3 | G69: 4-6 | H69: 7-9 | I69: 10-12 | J69: 13-18 | K69: >18 | N69: Loan Amt: | O69: =IF(COUNTIF(D73:D81,">"&AQ68)=0,1,COUNTIF(D73:D81,">"&AQ68)) -> 1 | P69: Var Price | Q69: =D57 -> 0 | AO69: 0.05 | BM69: Amounts | BN69: =COUNTIF(D73:D80,">0") -> 0 | BO69: =MATCH(1,AK73:AK80,0) ->  | BP69: =BO69+BN69-1 ->  | BQ69: =TRUNC(BO69+BP69/2) ->  | BV69: Factor to redistribute across term for loans of a specific amount | CC69: TRUE
B70: ="Amt: "&TEXT(E11,"#,##0")&"-"&TEXT(F11,"#,##0") -> Amt: 0-0 | E70: Value to use | F70: 2 | G70: 6 | H70: 9 | I70: 12 | J70: 18 | K70: 24 | L70: =IF(F14>18,"Note: The longest loan term is "&F14&" months",DevOk) ->  | N70: Term: | O70: =COUNTIF(F71:K71,">"&AQ68) -> 0 | P70: RepFreq: | Q70: =AP16 -> 0 | AO70: 0.1 | BM70: Terms | BN70: =COUNTIF(PPrice14,">0") -> 0 | BO70: =MATCH(1,N87:S87,0) ->  | BP70: =BO70+BN70-1 ->  | BQ70: =TRUNC(BO70+BP70/2) ->  | BU70: 0.2 | BY70: 0.2 | CC70: TRUE
B71: Loan Amount | E71: Dist% | L71: =SUM(F71:K71) -> 0 | N71: =IF(AQ67<3,3,AQ67) -> 3 | O71: <-Optimal number of samples to choose below | AO71: 0.15 | AS71: Components that Vary | BF71: =E11 -> 0 | BG71: =F11 -> 0 | BV71: =BW71+$BY$70 -> 0.6 | BW71: =BX71+$BY$70 -> 0.4 | BX71: =BY71+$BY$70 -> 0.2 | BY71: 0 | BZ71: =BY71+$BY$70 -> 0.2 | CA71: =BZ71+$BY$70 -> 0.4 | CB71: =CA71+$BY$70 -> 0.6 | CC71: TRUE
A72: % GNI | B72: Min | C72: Max | D72: % Loans | E72: Ln Amt | L72: Clients | M72: Amt \ Term | N72: =IF(F71>0,F70,"-") -> - | O72: - | P72: - | Q72: - | R72: - | S72: - | AO72: 0.2 | AR72: Buckets | AS72: 0 | AT72: 1 | AU72: 2 | AV72: 3 | BC72: Gaps? | BD72: =COUNTIF(BD73:BD80,"Missing") -> 0 | BF72: below | BG72: above | BH72: shotgun | BJ72: upper limit | BN72: 1 | BO72: 2 | BP72: 3 | BQ72: 4 | BR72: 5 | BS72: 6 | BU72: =BU73+$BU$70 -> 0.8 | BV72: =BW72+($BU72*BV$71) -> 1.96 | BW72: 1.48 | BX72: 1.16 | BY72: 1 | BZ72: =BY72-($BU72*BZ$71) -> 0.84 | CA72: 0.52 | CB72: 0.04 | CC72: TRUE
A73: 0.05 | C73: =ROUND(AL73/AM73,0)*AM73 ->  | E73: =IF(C73<$E$11,"-",IF(B73>$F$11,"-",IF(AND($F$11>B73,$F$11<C73),$F$11,BH73))) ->  | F73: =IF(AND(COUNTA($D73),COUNTA(F$71)),$D73*F$71*$E$7*BN73,0) -> 0 | G73: 0 | H73: 0 | I73: 0 | J73: 0 | K73: 0 | L73: =D73*$E$7 -> 0 | M73: =IF(D73>0,E73,"-") -> - | AK73: =IF(D73>0,1,0) -> 0 | AL73: =$A73*$L$9 ->  | AM73: =IF(AL73<1000,50,IF(AL73<10000,100,1000)) ->  | AO73: 0.3 | AR73: 1 | AS73: 1 | AT73: 1 | AU73: 1 | AV73: 1 | BC73: =COUNTIF(N73:S73,">0") -> 0 | BD73: =COUNTIF(BE73:BE80,"Missing") -> 0 | BF73: FALSE | BG73: TRUE | BH73: =BJ73 ->  | BJ73: =C73 ->  | BM73: 1 | BN73: =IF(AND($BT73>0,BN$81>0,BN$81<=7,$BT73<=9),INDEX($BV$72:$CB$80,$BT73,BN$81),0) ->  | BT73: =BM73-$BQ$69+$BY$68+1 ->  | BU73: =BU74+$BU$70 -> 0.6 | BV73: 1.72 | BW73: 1.36 | BX73: 1.12 | BY73: 1 | BZ73: 0.88 | CA73: 0.64 | CB73: 0.28 | CC73: TRUE
A74: 0.1 | B74: =IF(C73=0,0,C73+1) ->  | F74: 0 | G74: 0 | H74: 0 | I74: 0 | J74: 0 | K74: 0 | L74: 0 | M74: =IF(D74>0,E74,"-") -> - | AK74: =IF(D74>0,AK73+1,0) -> 0 | AM74: =IF(AL74<1000,50,IF(AL74<10000,100,1000)) ->  | AO74: 0.4 | AQ74: =COUNTIF(E73:E75,">0") -> 0 | AR74: 2 | AS74: 2 | AT74: 2 | AU74: 2 | AV74: 2 | BC74: 0 | BD74: =IF(AND(BC73>0,BC74=0,BC75>0),"Missing",".") -> . | BF74: =IF(E$11<=$BJ74,TRUE,FALSE) ->  | BG74: =IF(F$11>=$BJ74,TRUE,FALSE) ->  | BH74: =ROUNDUP(BK74/BL74,0)*BL74 ->  | BI74: 1 | BK74: =(A74+A73)/2*$L$9 ->  | BL74: =IF(BK74>10000,500,IF(BK74>1000,100,25)) ->  | BM74: 2 | BU74: =BU75+$BU$70 -> 0.4 | BV74: 1.48 | BW74: 1.24 | BX74: 1.08 | BY74: 1 | BZ74: 0.92 | CA74: 0.76 | CB74: 0.52 | CC74: TRUE
A75: 0.25 | B75: =IF(C74=0,0,C74+1) ->  | F75: 0 | G75: 0 | H75: 0 | I75: 0 | J75: 0 | K75: 0 | L75: 0 | M75: - | AK75: 0 | AO75: 0.5 | AQ75: 0.3 | AR75: 3 | AS75: 3 | AT75: 3 | AU75: 3 | AV75: 3 | BC75: 0 | BD75: . | BE75: =IF(AND(BC73>0,BC74=0,BC76>0,BC75=0),"Missing",".") -> . | BI75: 2 | BL75: =IF(BK75>10000,500,IF(BK75>1000,100,25)) ->  | BM75: 3 | BU75: =BU76+$BU$70 -> 0.2 | BV75: 1.24 | BW75: 1.12 | BX75: 1.04 | BY75: 1 | BZ75: 0.96 | CA75: 0.88 | CB75: 0.76 | CC75: TRUE
A76: 0.5 | B76: =C75+1 ->  | F76: 0 | G76: 0 | H76: 0 | I76: 0 | J76: 0 | K76: 0 | L76: 0 | M76: - | AK76: 0 | AO76: 0.6 | AR76: 4 | AS76: 4 | AT76: 4 | AU76: 4 | AV76: 4 | BC76: 0 | BD76: . | BE76: =IF(AND(BC74>0,BC75=0,BC77>0,BC76=0),"Missing",".") -> . | BI76: 3 | BM76: 4 | BU76: 0 | BV76: 1 | BW76: 1 | BX76: 1 | BY76: 1 | BZ76: 1 | CA76: 1 | CB76: 1 | CC76: TRUE
A77: 0.75 | B77: =C76+1 ->  | F77: 0 | G77: 0 | H77: 0 | I77: 0 | J77: 0 | K77: 0 | L77: 0 | M77: - | AK77: 0 | AO77: 0.7 | AR77: 5 | AS77: 5 | AT77: 5 | AU77: 5 | AV77: 4 | BC77: 0 | BD77: . | BE77: =IF(AND(BC75>0,BC76=0,BC78>0,BC77=0),"Missing",".") -> . | BI77: 4 | BM77: 5 | BU77: =BU76+$BU$70 -> 0.2 | BV77: =BW77-($BU77*BV$71) -> 0.76 | BW77: 0.88 | BX77: 0.96 | BY77: 1 | BZ77: =BY77+($BU77*BZ$71) -> 1.04 | CA77: 1.12 | CB77: 1.24 | CC77: TRUE
A78: 1 | B78: =C77+1 ->  | F78: 0 | G78: 0 | H78: 0 | I78: 0 | J78: 0 | K78: 0 | L78: 0 | M78: - | AK78: 0 | AO78: 0.8 | AR78: 6 | AS78: 6 | AT78: 6 | AU78: 6 | AV78: 4 | BC78: 0 | BD78: . | BE78: =IF(AND(BC76>0,BC77=0,BC79>0,BC78=0),"Missing",".") -> . | BI78: 5 | BM78: 6 | BU78: =BU77+$BU$70 -> 0.4 | BV78: 0.52 | BW78: 0.76 | BX78: 0.92 | BY78: 1 | BZ78: 1.08 | CA78: 1.24 | CB78: 1.48 | CC78: TRUE
A79: 2 | B79: =C78+1 ->  | F79: 0 | G79: 0 | H79: 0 | I79: 0 | J79: 0 | K79: 0 | L79: 0 | M79: - | AK79: 0 | AO79: 0.9 | AR79: 7 | AS79: 7 | AT79: 7 | AU79: 6 | AV79: 4 | BC79: 0 | BD79: . | BE79: =IF(AND(BC77>0,BC78=0,BC80>0,BC79=0),"Missing",".") -> . | BI79: 6 | BM79: 7 | BU79: =BU78+$BU$70 -> 0.6 | BV79: 0.28 | BW79: 0.64 | BX79: 0.88 | BY79: 1 | BZ79: 1.12 | CA79: 1.36 | CB79: 1.72 | CC79: TRUE
A80: 5 | B80: =C79+1 ->  | F80: 0 | G80: 0 | H80: 0 | I80: 0 | J80: 0 | K80: 0 | L80: 0 | M80: - | AK80: 0 | AO80: 1 | AR80: 8 | AS80: 8 | AT80: 8 | AU80: 6 | AV80: 4 | BC80: 0 | BI80: 7 | BM80: 8 | BU80: =BU79+$BU$70 -> 0.8 | BV80: 0.04 | BW80: 0.52 | BX80: 0.84 | BY80: 1 | BZ80: 1.16 | CA80: 1.48 | CB80: 1.96 | CC80: TRUE
C81: ="> "&TEXT(C80,"#,##0") ->  | E81: N/A | F81: =IF(AND(COUNTA($D81),COUNTA(F$71)),$D81*F$71*$E$7,0) -> 0 | G81: 0 | H81: 0 | I81: 0 | J81: 0 | K81: 0 | L81: 0 | N81: =IF(F11>C80,"Note: Loan Amounts greater than 500% GNI/Capita are not evaluated in this tool",DevOk) ->  | AR81: variations | AS81: 1 | AT81: 2 | AU81: 4 | AV81: 8 | BI81: 8 | BK81: =C80 ->  | BN81: =BN72-$BQ$70+$BW$68 ->  | CC81: TRUE
C82: Total | D82: =SUM(D73:D81) -> 0 | E82: Clients: | F82: =F71*$E$7 -> 0 | G82: 0 | H82: 0 | I82: 0 | J82: 0 | K82: 0 | L82: =SUM(L73:L81) -> 0 | CC82: TRUE
CC83: TRUE
B84: Grace period sensitivity calculations | F84: =IF(ISNUMBER($E$23),$E$23/F70,"DK") -> DK | G84: DK | H84: DK | I84: DK | J84: DK | K84: DK | L84: 0.07 | M84: <Threshold | CC84: =IF(DevShowRows=TRUE,"x",TRUE) -> TRUE
E85: Cumulative % clients | F85: =IF(ISNUMBER($E$23),IF(F84>$L$84,F71,0),"DK") -> DK | G85: =IF(ISNUMBER($E$23),IF(G84>$L$84,G71)+F85,"DK") -> DK | H85: =IF(ISNUMBER($E$23),IF(H84>$L$84,H71)+G85,"DK") -> DK | I85: =IF(ISNUMBER($E$23),IF(I84>$L$84,I71)+H85,"DK") -> DK | J85: =IF(ISNUMBER($E$23),IF(J84>$L$84,J71)+I85,"DK") -> DK | K85: =IF(ISNUMBER($E$23),IF(K84>$L$84,K71)+J85,"DK") -> DK | L85: =IF(ISNUMBER($E$23),IF(F85=G85,ShotTerm1,IF(G85=H85,ShotTerm2,IF(H85=I85,ShotTerm3,IF(I85=J85,ShotTerm4,IF(J85=K85,ShotTerm5,ShotTerm6))))),"DK") -> DK | M85: loan term under threshold | CC85: =CC84 -> TRUE
E86: min | F86: 0 | G86: =F87+0.001 -> 3.501 | H86: =G87+0.001 -> 6.501 | I86: =H87+0.001 -> 9.501 | J86: =I87+0.001 -> 12.501 | K86: =J87+0.001 -> 18.501 | CC86: TRUE
E87: max | F87: 3.5 | G87: 6.5 | H87: 9.5 | I87: 12.5 | J87: 18.5 | K87: 999 | N87: =IF(F71>0,1,0) -> 0 | O87: =IF(G71>0,1+N87,0) -> 0 | P87: =IF(H71>0,1+O87,0) -> 0 | Q87: =IF(I71>0,1+P87,0) -> 0 | R87: =IF(J71>0,1+Q87,0) -> 0 | S87: =IF(K71>0,1+R87,0) -> 0 | CC87: TRUE
E88: valid value? | F88: =IF(OR(F70<F86,F70>F87),FALSE,TRUE) -> TRUE | G88: TRUE | H88: TRUE | I88: TRUE | J88: TRUE | K88: TRUE | L88: =COUNTIF(F88:K88,FALSE) -> 0 | N88: shading 1 | O88: 0.03 | P88: =O88*L82 -> 0 | CC88: TRUE
E89: Input cell? | F89: =IF(AND($E$14<F87,$F$14>F86),TRUE,FALSE) -> FALSE | G89: FALSE | H89: FALSE | I89: FALSE | J89: FALSE | K89: FALSE | L89: =COUNTIF(F89:K89,FALSE) -> 6 | N89: shading 2 | O89: 0.06 | P89: =O89*L82 -> 0 | CC89: TRUE
E90: Perc outside range? | F90: =IF(F89=FALSE,IF(F71>0,TRUE,FALSE)) -> FALSE | G90: FALSE | H90: FALSE | I90: FALSE | J90: FALSE | K90: FALSE | L90: =COUNTIF(F90:K90,TRUE) -> 0 | CC90: TRUE
C91: =C607 ->  | CC91: =$F$665 -> TRUE
B92: No | C92: =IF(PStep2Done="Yes","Click in any cell on the worksheet to begin running the routine to open up the next section","Is the sampling information complete? Mark YES to "&IF(AZ23>0,"review Grace Period Analysis and then ","")&"continue to STEP 3") -> Is the sampling information complete? Mark YES to review Grace Period Analysis and then continue to STEP 3 | CC92: =$F$665 -> TRUE
B93: Sensitivity Analysis of Grace Period | CC93: =IF(OR(AZ23=0,AZ23=1),TRUE,IF(PStep2Done="No",TRUE,"x")) -> TRUE
D94: Is Flat Interest charged? | E94: =IF(G27="Flat","Yes","No") -> No | F94: =IF(E94="Yes","High","Low") -> Low | G94: =IF(F94="High","As FLAT interest is charged on this product, the impact on price can be significant","Declining Balance interest has little to no variation when there are grace periods") -> Declining Balance interest has little to no variation when there are grace periods | AS94: High | AT94: Med | CC94: =CC93 -> TRUE
D95: grace / shortest term (a) | E95: =IF(ISNUMBER(E23),E23/E14,"DK") -> DK | F95: =IF(E95>AS95,"High",IF(E95>AT95,"Med","Low")) -> High | G95: =IF(F95="High","The grace period is significant at least for the shortest loans",IF(F95="Med","The grace period has only moderate significance, even on the shortest loans","The grace period has modest signifance even on the shortest loans")) -> The grace period is significant at least for the shortest loans | AR95: grace/shortest | AS95: 0.3 | AT95: 0.15 | AV95: Because of declining balance interest, it is likely that this product does not see prices vary significantly due to grace periods. You should include only one or two test variations in order to confirm. | CC95: TRUE
D96: Max term with sensitivity (b) | E96: =IF(E21=0,"N/A",L85&" mon") -> DK mon | G96: This calculation is made by comparing grace to loan terms. Loans UP TO this duration have moderate to high sensitivity to grace | AR96: % clients | AS96: 0.6 | AT96: 0.2 | AV96: This product uses flat interest and has a moderate portion of loans being affected by grace. You should include several variations to test for the impact of grace on price, applying grace to samples with SHORTER loan terms. | CC96: TRUE
D97: ="% loans up to "&E96&" term (c)" -> % loans up to DK mon term (c) | E97: =K85 -> DK | G97: This indicates what percent of the product's loans are shorter than the threshold term indicated in (b). Loan term DISTRIBUTION figures are used for calculation. | AR97: % signif | AS97: 0.4 | AT97: 0.2 | AV97: This product uses flat interest and has a large portion of loans being affected by grace. This is the 'worst case scenario' and you should test for the impact of grace on price, on several of the samples, especially samples with SHORTER loan terms. | CC97: TRUE
D98: % loans with grace (d) | E98: =AZ23 -> N/A | F98: =IF(E98>AS96,"High",IF(E98>AT96,"Med","Low")) -> High | G98: ="This was entered in row "&ROW(D24)&" above. "&IF(F98="High","Grace applies to a large percentage of loans",IF(F98="Med","Grace applies to only a moderate number of loans","Grace applies to a small portion of the loans")) -> This was entered in row 24 above. Grace applies to a large percentage of loans | AV98: Though this product uses flat interest, it looks like only a small number of loans would be affected. You do not need to include more than one sample that has grace as a variation variable. | CC98: TRUE
B99: % loans where grace is significant (e = c x d) | E99: =IF(ISNUMBER(E97),E97*E98,"DK") -> DK | F99: =IF(ISNUMBER(E99),IF(E99>AS97,"High",IF(E99>AT97,"Med","Low")),"Med") -> Med | G99: ="This calculates how many loans have a SIGNIFICANT impact from grace, by multiplying line c times line d. "&IF(ISNUMBER(E23),IF(F99="High","With this product, there are a large number of loans affected",IF(F99="Med","With this product, only a moderate number of loans are affected","With this product, a small number of loans are actually affected")),"As average grace is not known, much of this sensitivity analysis could not be done.") -> This calculates how many loans have a SIGNIFICANT impact from grace, by multiplying line c times line d. As average grace is not known, much of this sensitivity analysis could not be done. | CC99: TRUE
B100: Recommendation: | D100: =IF(CC100=TRUE,"This product has no grace period.",IF(E21=0,"This product has no loans with grace periods",IF(E21=1,"Enter grace period for ALL samples in Step 3. If the length of grace period varies, use Var1 and 2 to test different lengths",IF(F94="Low",AV95,IF(F99="Med",AV96,IF(F99="High",AV97,AV98)))))) -> This product has no grace period. | CC100: TRUE
CC101: x
CC102: x
B103: Step 3: Review the information in the table and generate the Scatterplot | O103: Click for STEP 3 Video | CC103: x
B104: ="Grace period recommendation: "&D100 -> Grace period recommendation: This product has no grace period. | O104: Video Link | CC104: =IF((F23+G23)>0,$F$666,TRUE) -> TRUE
B105: =IF(E24="Scattered","Note: Grace will be placed in the MIDDLE of the loan term. This is suitable for randomly scattered grace. If LUMPY grace, like a livestock loan, price will be less accurate.",DevOk) ->  | M105: RECOMMEND CLIENT NUMBER CHANGES WHEN BIG LOANS ARE BIASED TOWARD SHORT TERM | CC105: =IF(LEFT(E24,4)="Scat",$F$666,TRUE) -> TRUE
B106: =IF(COUNTIF(D27:D53,"A lot")>0,"Note: At least one price component varies A LOT. You should edit the Opt 1 and Opt 2 defaults to use an appropriate range of values",IF(MAX(K135:K136)=999,"Note: 999 means end-term payment frequency.",DevOk)) ->  | CC106: =IF(B106=DevOk,TRUE,$F$666) -> TRUE
B107: =IF(AND(K135<30,K136>=30,M139="Flat"),"Note: Flat interest will have a significant impact on pricing with loan terms ranging from less than a month to a month or more.",DevOk) ->  | CC107: =IF(B107=DevOk,TRUE,$F$666) -> TRUE
B108: =IF(E581=DevOk,E589,E581) -> This is a CROSS-CHECK product. Indicate at least one REAL sample in Col H of STEP 3. Adjust the loan amount and term to match the sample if necessary. | CC108: =$F$666 -> TRUE
B109: Num Samples: | C109: =COUNTIF(C115:C122,">0") -> 0 | E109: =COUNTIF(XChkCol,">0") -> 0 | F109: <- Real Samples | I109: =IF(MAX(I115:I122)>2,"More than 2 variations needs manual input below",DevOk) ->  | N109: =M29 ->  | V109: =M36 ->  | AB109: =IF(AQ44,"Note: Taxes are entered automatically for each sample. There are not inputs to be made.",DevOk) ->  | CC109: =$F$666 -> TRUE
E110: =IF(ISERROR(SUM(C137:AJ137)),TRUE,FALSE) -> FALSE | F110: <error check - TRUE means errors | M110: In Use? --> | N110: =COUNTIF($N$111:N111,">0") -> 0 | O110: =COUNTIF($N$111:O111,">0") -> 0 | P110: =COUNTIF($N$111:P111,">0") -> 0 | Q110: =COUNTIF($N$111:Q111,">0") -> 0 | R110: =COUNTIF($N$111:R111,">0") -> 0 | S110: =COUNTIF($N$111:S111,">0") -> 0 | T110: =COUNTIF($N$111:T111,">0") -> 0 | U110: =COUNTIF($N$111:U111,">0") -> 0 | V110: =COUNTIF($V$111:V111,">0") -> 0 | W110: =COUNTIF($V$111:W111,">0") -> 0 | X110: =COUNTIF($V$111:X111,">0") -> 0 | Y110: =COUNTIF($V$111:Y111,">0") -> 0 | Z110: =COUNTIF($V$111:Z111,">0") -> 0 | AA110: =COUNTIF($V$111:AA111,">0") -> 0 | AB110: =COUNTIF($V$111:AB111,">0") -> 0 | AC110: =COUNTIF($V$111:AC111,">0") -> 0 | AD110: =COUNTIF($AD$111:AD111,">0") -> 0 | AE110: =COUNTIF($AD$111:AE111,">0") -> 0 | AF110: =COUNTIF($AD$111:AF111,">0") -> 0 | AG110: =COUNTIF($AD$111:AG111,">0") -> 0 | AH110: =COUNTIF($AD$111:AH111,">0") -> 0 | CC110: =IF(HideExtra,TRUE,CC109) -> TRUE
N111: =IF(MAX(N139:N170)>0,N114,0) -> 0 | O111: 0 | P111: 0 | Q111: 0 | R111: 0 | S111: 0 | T111: 0 | U111: 0 | V111: 0 | W111: 0 | X111: 0 | Y111: 0 | Z111: 0 | AA111: 0 | AB111: 0 | AC111: 0 | AD111: 0 | AE111: 0 | AF111: 0 | AG111: 0 | AH111: 0 | CC111: =$CC$110 -> TRUE
B112: Loan Amount | D112: Loan Term | F112: Client Estimate | H112: Real | I112: Number | J112: Grace | K112: Repay | L112: Interest | N112: Fees | V112: Insurance | AD112: Security Deposit | CC112: =$F$666 -> TRUE
B113: Override | C113: Used | D113: =B113 -> Override | E113: =C113 -> Used | F113: =D113 -> Override | G113: =E113 -> Used | H113: Sample? | I113: Variations | J113: Period | K113: Freq | N113: Fee 1 | R113: Fee 2 | V113: Ins 1 | Z113: Ins 2 | AQ113: How to stagger variations - this section not used anywhere | BE113: FORMULAS | CC113: =$F$666 -> TRUE
C114: 1 | D114: =C114+1 -> 2 | E114: 3 | F114: 4 | G114: 5 | H114: 6 | I114: 7 | J114: 8 | K114: 9 | L114: 10 | M114: 11 | N114: 12 | O114: 13 | P114: 14 | Q114: 15 | R114: 16 | S114: 17 | T114: 18 | U114: 19 | V114: 20 | W114: 21 | X114: 22 | Y114: 23 | Z114: 24 | AA114: 25 | AB114: 26 | AC114: 27 | AD114: 28 | AE114: 29 | AF114: 30 | AG114: 31 | AH114: 32 | AO114: =PriceTable!S1 -> 19 | AP114: =PriceTable!AD1 -> 30 | AQ114: =PriceTable!AE1 -> 31 | AR114: =PriceTable!AF1 -> 32 | AS114: =PriceTable!AG1 -> 33 | AT114: =PriceTable!AH1 -> 34 | AU114: =PriceTable!AO1 -> 41 | AV114: =PriceTable!O1 -> 15 | CC114: =$CC$110 -> TRUE
A115: 1 | C115: =IF(B115>0,B115,E522) -> 0 | E115: =IF(D115>0,D115,IF(E512>0,E512,"")) ->  | G115: =IF(F115>0,F115,IF(E532>0,E532,"")) ->  | I115: =IF(H115>0,2,IF(COUNTIF(J115:AH115,3)>0,3,IF(C115>0,2^COUNTIF(J115:AH115,">1"),""))) ->  | J115: =J126 -> 0 | K115: 0 | L115: 0 | N115: =N126 -> 0 | O115: 0 | P115: 0 | Q115: 0 | R115: 0 | S115: 0 | T115: 0 | U115: 0 | V115: 0 | W115: 0 | X115: 0 | Y115: 0 | Z115: 0 | AA115: 0 | AB115: 0 | AC115: 0 | AD115: 0 | AE115: 0 | AF115: 0 | AG115: 0 | AH115: 0 | AP115: 1 | AQ115: 1a | AR115: 1a | AS115: 2a | AT115: 1a | AU115: 2a | AV115: 3a | AZ115: Real Samples | BB115: =IF(ISNUMBER(B137),IF(B137>0,B137,1),1) -> 1 | BC115: <Rownum | BE115: =BE126 -> 0 | BG115: =IF(C115>0,1,99) -> 99 | BH115: =IF(C115>0,BG115+I115-1,0) -> 0 | BM115: 1 | BN115: 0 | BO115: 0 | BP115: 0 | BQ115: 0 | BS115: =IF(AND(C115>0,F115=0),1,0) -> 0 | BT115: =IF(AND(C115=0,C116>0,A115>$G$503),1,0) -> 0 | BU115: =IF(AND(C115=0,E115>0,ISNUMBER(E115)),A115,0) -> 0 | BV115: =IF(AND(C115>0,OR(E115=0,E115=""),ISNUMBER(C115)),A115,0) -> 0 | BW115: =SUM(B115:AH115) -> 0 | BX115: 1 | BZ115: amt | CA115: term | CB115: clients | CC115: =$F$666 -> TRUE
A116: 2 | C116: 0 | I116: =IF(H116>0,2,IF(COUNTIF(J116:AH116,3)>0,3,IF(C116>0,2^COUNTIF(J116:AH116,">1"),""))) ->  | J116: 0 | K116: 0 | L116: 0 | N116: 0 | O116: 0 | P116: 0 | Q116: 0 | R116: 0 | S116: 0 | T116: 0 | U116: 0 | V116: 0 | W116: 0 | X116: 0 | Y116: 0 | Z116: 0 | AA116: 0 | AB116: 0 | AC116: 0 | AD116: 0 | AE116: 0 | AF116: 0 | AG116: 0 | AH116: 0 | AP116: 2 | AQ116: 1b | AR116: 1b | AS116: 2a | AT116: 1a | AU116: 2a | AV116: 3b | BA116: =IF(MAX(AZ117:AZ119)>1,TRUE,FALSE) -> FALSE | BE116: =IF(AND(BE$123,$B116<>"-"),IF(BE$125=2,IF($F116<3,BE$136,BE$135),IF(MOD($F116,2)=0,BE$135,BE$136)),0) -> 0 | BG116: =IF(C116>0,MAX($BH$115:BH115)+1,99) -> 99 | BH116: 0 | BM116: 2 | BN116: 0 | BO116: 1 | BP116: 0 | BQ116: 0 | BR116: =IF(AND(C116>0,C116<C115),1,0) -> 0 | BS116: 0 | BT116: 0 | BU116: 0 | BV116: 0 | BW116: 0 | BX116: =BX115*10 -> 10 | BZ116: =IF(ISNUMBER(#REF!),INDEX(PriceTable!$K$7:$K$181,#REF!),0) -> 0 | CA116: =IF(ISNUMBER(#REF!),IF(ISNUMBER(INDEX(PriceTable!$N$7:$N$181,#REF!)),INDEX(PriceTable!$N$7:$N$181,#REF!),0),0) -> 0 | CB116: =IF(ISNUMBER(#REF!),INDEX(PriceTable!$S$7:$S$181,#REF!),0) -> 0 | CC116: =$F$666 -> TRUE
A117: 3 | C117: 0 | J117: 0 | K117: 0 | L117: 0 | N117: 0 | O117: 0 | P117: 0 | Q117: 0 | R117: 0 | S117: 0 | T117: 0 | U117: 0 | V117: 0 | W117: 0 | X117: 0 | Y117: 0 | Z117: 0 | AA117: 0 | AB117: 0 | AC117: 0 | AD117: 0 | AE117: 0 | AF117: 0 | AG117: 0 | AH117: 0 | AP117: 3 | AR117: 1a | AS117: 2b | AT117: 1a | AU117: 2b | AV117: 3a | AZ117: =COUNTIF($H$115:$H$122,1) -> 0 | BA117: =IF(AZ117<>1,FALSE,TRUE) -> FALSE | BG117: =IF(C117>0,MAX($BH$115:BH116)+1,99) -> 99 | BH117: 0 | BM117: 3 | BN117: 0 | BO117: 0 | BP117: 1 | BQ117: 0 | BR117: 0 | BS117: 0 | BT117: 0 | BU117: 0 | BV117: 0 | BW117: 0 | BX117: 100 | BZ117: =IF(ISNUMBER(#REF!),INDEX(PriceTable!$K$7:$K$181,#REF!),0) -> 0 | CA117: =IF(ISNUMBER(#REF!),IF(ISNUMBER(INDEX(PriceTable!$N$7:$N$181,#REF!)),INDEX(PriceTable!$N$7:$N$181,#REF!),0),0) -> 0 | CB117: =IF(ISNUMBER(#REF!),INDEX(PriceTable!$S$7:$S$181,#REF!),0) -> 0 | CC117: =$F$666 -> TRUE
A118: 4 | C118: 0 | J118: 0 | K118: 0 | L118: 0 | N118: 0 | O118: 0 | P118: 0 | Q118: 0 | R118: 0 | S118: 0 | T118: 0 | U118: 0 | V118: 0 | W118: 0 | X118: 0 | Y118: 0 | Z118: 0 | AA118: 0 | AB118: 0 | AC118: 0 | AD118: 0 | AE118: 0 | AF118: 0 | AG118: 0 | AH118: 0 | AP118: 4 | AR118: 1b | AS118: 2b | AT118: 1a | AU118: 2b | AV118: 3b | AZ118: =COUNTIF($H$115:$H$122,2) -> 0 | BA118: =IF(AZ118>1,FALSE,TRUE) -> TRUE | BG118: =IF(C118>0,MAX($BH$115:BH117)+1,99) -> 99 | BH118: 0 | BM118: 4 | BN118: 0 | BO118: 1 | BP118: 1 | BQ118: 0 | BR118: 0 | BS118: 0 | BT118: 0 | BU118: 0 | BV118: 0 | BW118: 0 | BX118: 1000 | BZ118: =IF(ISNUMBER(#REF!),INDEX(PriceTable!$K$7:$K$181,#REF!),0) -> 0 | CA118: =IF(ISNUMBER(#REF!),IF(ISNUMBER(INDEX(PriceTable!$N$7:$N$181,#REF!)),INDEX(PriceTable!$N$7:$N$181,#REF!),0),0) -> 0 | CB118: =IF(ISNUMBER(#REF!),INDEX(PriceTable!$S$7:$S$181,#REF!),0) -> 0 | CC118: =IF(A118<=$C$109,CC117,TRUE) -> TRUE
A119: 5 | C119: 0 | J119: 0 | K119: 0 | L119: 0 | N119: 0 | O119: 0 | P119: 0 | Q119: 0 | R119: 0 | S119: 0 | T119: 0 | U119: 0 | V119: 0 | W119: 0 | X119: 0 | Y119: 0 | Z119: 0 | AA119: 0 | AB119: 0 | AC119: 0 | AD119: 0 | AE119: 0 | AF119: 0 | AG119: 0 | AH119: 0 | AP119: 5 | AT119: 1b | AU119: 2a | AV119: 3a | AZ119: =COUNTIF($H$115:$H$122,3) -> 0 | BA119: =IF(AZ119>1,FALSE,TRUE) -> TRUE | BG119: =IF(C119>0,MAX($BH$115:BH118)+1,99) -> 99 | BH119: 0 | BM119: 5 | BN119: 0 | BO119: 0 | BP119: 0 | BQ119: 1 | BR119: 0 | BS119: 0 | BT119: 0 | BU119: 0 | BV119: 0 | BW119: 0 | BX119: 10000 | CC119: =IF(A119<=$C$109,CC118,TRUE) -> TRUE
A120: 6 | C120: 0 | J120: 0 | K120: 0 | L120: 0 | N120: 0 | O120: 0 | P120: 0 | Q120: 0 | R120: 0 | S120: 0 | T120: 0 | U120: 0 | V120: 0 | W120: 0 | X120: 0 | Y120: 0 | Z120: 0 | AA120: 0 | AB120: 0 | AC120: 0 | AD120: 0 | AE120: 0 | AF120: 0 | AG120: 0 | AH120: 0 | AP120: 6 | AT120: 1b | AU120: 2a | AV120: 3b | BG120: =IF(C120>0,MAX($BH$115:BH119)+1,99) -> 99 | BH120: 0 | BM120: 6 | BN120: 0 | BO120: 1 | BP120: 0 | BQ120: 1 | BR120: 0 | BS120: 0 | BT120: 0 | BU120: 0 | BV120: 0 | BW120: 0 | BX120: 100000 | CC120: =IF(A120<=$C$109,CC119,TRUE) -> TRUE
A121: 7 | C121: 0 | J121: 0 | K121: 0 | L121: 0 | N121: 0 | O121: 0 | P121: 0 | Q121: 0 | R121: 0 | S121: 0 | T121: 0 | U121: 0 | V121: 0 | W121: 0 | X121: 0 | Y121: 0 | Z121: 0 | AA121: 0 | AB121: 0 | AC121: 0 | AD121: 0 | AE121: 0 | AF121: 0 | AG121: 0 | AH121: 0 | AP121: 7 | AT121: 1b | AU121: 2b | AV121: 3a | BG121: =IF(C121>0,MAX($BH$115:BH120)+1,99) -> 99 | BH121: 0 | BM121: 7 | BN121: 0 | BO121: 0 | BP121: 1 | BQ121: 1 | BR121: 0 | BS121: 0 | BT121: 0 | BU121: 0 | BV121: 0 | BW121: 0 | BX121: 1000000 | CC121: =IF(A121<=$C$109,CC120,TRUE) -> TRUE
A122: 8 | C122: 0 | I122: =IF(H122>0,2,IF(C122>0,2^COUNTIF(J122:AH122,2),"")) ->  | J122: 0 | K122: 0 | L122: 0 | N122: 0 | O122: 0 | P122: 0 | Q122: 0 | R122: 0 | S122: 0 | T122: 0 | U122: 0 | V122: 0 | W122: 0 | X122: 0 | Y122: 0 | Z122: 0 | AA122: 0 | AB122: 0 | AC122: 0 | AD122: 0 | AE122: 0 | AF122: 0 | AG122: 0 | AH122: 0 | AP122: 8 | AT122: 1b | AU122: 2b | AV122: 3b | BG122: =IF(C122>0,MAX($BH$115:BH121)+1,99) -> 99 | BH122: 0 | BM122: 8 | BN122: 0 | BO122: 1 | BP122: 1 | BQ122: 1 | BR122: 0 | BS122: 0 | BT122: =IF(AND(C122=0,C134>0,A122>$G$503),1,0) -> 0 | BU122: 0 | BV122: 0 | BW122: 0 | BX122: 10000000 | CC122: =IF(A122<=$C$109,CC121,TRUE) -> TRUE
I123: Used? | J123: =IF(AND(J135=0,J136=0),FALSE,TRUE) -> FALSE | K123: =IF(AND(K135=0,K136=0),FALSE,TRUE) -> FALSE | L123: =IF(AND(L135=0,L136=0),FALSE,TRUE) -> FALSE | N123: =IF(AND(N135=0,N136=0),FALSE,TRUE) -> FALSE | O123: FALSE | P123: FALSE | Q123: FALSE | R123: FALSE | S123: FALSE | T123: FALSE | U123: FALSE | V123: FALSE | W123: FALSE | X123: FALSE | Y123: FALSE | Z123: FALSE | AA123: FALSE | AB123: FALSE | AC123: FALSE | AD123: FALSE | AE123: FALSE | AF123: FALSE | AG123: FALSE | AH123: FALSE | CC123: =$CC$110 -> TRUE
I124: Varies? | J124: =IF(J123,IF(J136<>J135,TRUE,FALSE)) -> FALSE | K124: =IF(K123,IF(K136<>K135,TRUE,FALSE)) -> FALSE | L124: =IF(L123,IF(L136<>L135,TRUE,FALSE)) -> FALSE | N124: =IF(N123,IF(N136<>N135,TRUE,FALSE)) -> FALSE | O124: FALSE | P124: FALSE | Q124: FALSE | R124: FALSE | S124: FALSE | T124: FALSE | U124: FALSE | V124: FALSE | W124: FALSE | X124: FALSE | Y124: FALSE | Z124: FALSE | AA124: FALSE | AB124: FALSE | AC124: FALSE | AD124: FALSE | AE124: FALSE | AF124: FALSE | AG124: FALSE | AH124: FALSE | CC124: TRUE
D125: Rank of Variation | J125: =IF(J124,I125+1,I125) -> 0 | K125: =IF(K124,J125+1,J125) -> 0 | L125: 0 | M125: 0 | N125: 0 | O125: 0 | P125: 0 | Q125: 0 | R125: 0 | S125: 0 | T125: 0 | U125: 0 | V125: 0 | W125: 0 | X125: 0 | Y125: 0 | Z125: 0 | AA125: 0 | AB125: 0 | AC125: 0 | AD125: 0 | AE125: 0 | AF125: 0 | AG125: 0 | AH125: 0 | CC125: TRUE
D126: Sample 1 | J126: =IF(J$123,IF(J$124,2,1),0) -> 0 | K126: 0 | L126: 0 | N126: =IF(N$123,IF(N$124,2,1),0) -> 0 | O126: 0 | P126: 0 | Q126: 0 | R126: 0 | S126: 0 | T126: 0 | U126: 0 | V126: 0 | W126: 0 | X126: 0 | Y126: 0 | Z126: 0 | AA126: 0 | AB126: 0 | AC126: 0 | AD126: =IF(AD$123,IF(AD$124,2,1),0) -> 0 | AE126: 0 | AF126: 0 | AG126: 0 | AH126: 0 | CC126: TRUE
D127: Sample 2 | J127: 0 | K127: 0 | L127: 0 | N127: 0 | O127: 0 | P127: 0 | Q127: 0 | R127: 0 | S127: 0 | T127: 0 | U127: 0 | V127: 0 | W127: 0 | X127: 0 | Y127: 0 | Z127: 0 | AA127: 0 | AB127: 0 | AC127: 0 | AD127: 0 | AE127: 0 | AF127: 0 | AG127: 0 | AH127: 0 | CC127: TRUE
D128: Sample 3 | J128: 0 | K128: 0 | L128: 0 | N128: 0 | O128: 0 | P128: 0 | Q128: 0 | R128: 0 | S128: 0 | T128: 0 | U128: 0 | V128: 0 | W128: 0 | X128: 0 | Y128: 0 | Z128: 0 | AA128: 0 | AB128: 0 | AC128: 0 | AD128: 0 | AE128: 0 | AF128: 0 | AG128: 0 | AH128: 0 | CC128: TRUE
D129: Sample 4 | J129: 0 | K129: 0 | L129: 0 | N129: 0 | O129: 0 | P129: 0 | Q129: 0 | R129: 0 | S129: 0 | T129: 0 | U129: 0 | V129: 0 | W129: 0 | X129: 0 | Y129: 0 | Z129: 0 | AA129: 0 | AB129: 0 | AC129: 0 | AD129: 0 | AE129: 0 | AF129: 0 | AG129: 0 | AH129: 0 | CC129: TRUE
D130: Sample 5 | J130: 0 | K130: 0 | L130: 0 | N130: 0 | O130: 0 | P130: 0 | Q130: 0 | R130: 0 | S130: 0 | T130: 0 | U130: 0 | V130: 0 | W130: 0 | X130: 0 | Y130: 0 | Z130: 0 | AA130: 0 | AB130: 0 | AC130: 0 | AD130: 0 | AE130: 0 | AF130: 0 | AG130: 0 | AH130: 0 | CC130: TRUE
D131: Sample 6 | J131: 0 | K131: 0 | L131: 0 | N131: 0 | O131: 0 | P131: 0 | Q131: 0 | R131: 0 | S131: 0 | T131: 0 | U131: 0 | V131: 0 | W131: 0 | X131: 0 | Y131: 0 | Z131: 0 | AA131: 0 | AB131: 0 | AC131: 0 | AD131: 0 | AE131: 0 | AF131: 0 | AG131: 0 | AH131: 0 | CC131: TRUE
D132: Sample 7 | J132: 0 | K132: 0 | L132: 0 | N132: 0 | O132: 0 | P132: 0 | Q132: 0 | R132: 0 | S132: 0 | T132: 0 | U132: 0 | V132: 0 | W132: 0 | X132: 0 | Y132: 0 | Z132: 0 | AA132: 0 | AB132: 0 | AC132: 0 | AD132: 0 | AE132: 0 | AF132: 0 | AG132: 0 | AH132: 0 | BR132: =SUM(BR115:BR121) -> 0 | BS132: =SUM(BS115:BS121) -> 0 | BT132: =SUM(BT115:BT121) -> 0 | BU132: =MAX(BU115:BU121) -> 0 | BV132: =MAX(BV115:BV121) -> 0 | CC132: TRUE
D133: Sample 8 | J133: 0 | K133: 0 | L133: 0 | N133: 0 | O133: 0 | P133: 0 | Q133: 0 | R133: 0 | S133: 0 | T133: 0 | U133: 0 | V133: 0 | W133: 0 | X133: 0 | Y133: 0 | Z133: 0 | AA133: 0 | AB133: 0 | AC133: 0 | AD133: 0 | AE133: 0 | AF133: 0 | AG133: 0 | AH133: 0 | AP133: Variations | AQ133: 1 var | AR133: 2 variables | AT133: 3 variables | BM133: Variation Num | BN133: 0 | BO133: 1 | BP133: 2 | BQ133: 3 | BR133: Out of Order? | BS133: Outside Bkt | BT133: Skipped Sample | BU133: no Amount | BV133: no Term | BW133: Checksum of Rows | BZ133: REAL SAMPLES | CC133: TRUE
B134: Num Prices | C134: =COUNTIF(C139:C170,">0") -> 0 | H134: Total Prices-> | I134: =SUM(I115:I122) -> 0 | J134: =IF(MAX(J115:J122)>1,"VARIES",DevOk) ->  | CC134: =$F$666 -> TRUE
B135: =IF(ISNUMBER(F14),IF(F14-MAX(E115:E122)>6,"Note: The max loan term is "&F14&" months. Consider adding samples with longer terms.",DevOk),DevOk) ->  | I135: Min-> | J135: =F23 -> 0 | K135: =MIN(I17:I18) -> 0 | L135: =E27 -> 0 | N135: =$E$31 -> 0 | O135: =$I$31 -> 0 | P135: =$E$33 -> 0 | Q135: =$I$33 -> 0 | R135: =$E$32 -> 0 | S135: =$I$32 -> 0 | T135: =$E$34 -> 0 | U135: =$I$34 -> 0 | V135: =E38 -> 0 | W135: =I38 -> 0 | X135: =E40 -> 0 | Y135: =I40 -> 0 | Z135: =E39 -> 0 | AA135: =I39 -> 0 | AB135: =E41 -> 0 | AC135: =I41 -> 0 | AD135: =E51 -> 0 | AE135: =I51 -> 0 | AF135: =E52 -> 0 | AG135: =I52 -> 0 | AH135: =(E53+F53)/2 -> 0 | CC135: TRUE
A136: Note: You can type over the values of the green and white cells below after column I. | I136: Max-> | J136: =IF(ISBLANK(G23),J135,G23) -> 0 | K136: =MAX(I17:I18) -> 0 | L136: =F27 -> 0 | N136: =$F$31 -> 0 | O136: =$J$31 -> 0 | P136: =$F$33 -> 0 | Q136: =$J$33 -> 0 | R136: =$F$32 -> 0 | S136: =$J$32 -> 0 | T136: =$F$34 -> 0 | U136: =$J$34 -> 0 | V136: =F38 -> 0 | W136: =J38 -> 0 | X136: =F40 -> 0 | Y136: =J40 -> 0 | Z136: =F39 -> 0 | AA136: =J39 -> 0 | AB136: =F41 -> 0 | AC136: =J41 -> 0 | AD136: =F51 -> 0 | AE136: =J51 -> 0 | AF136: =F52 -> 0 | AG136: =J52 -> 0 | AH136: =AH135 -> 0 | AO136: =IF(ISNUMBER(AP136),AP136,IF(ISNUMBER(AP137),AP137,IF(ISNUMBER(AP138),AP138,0))) -> 0 | AP136: =MATCH(2,$AP$139:$AP$170,0) ->  | AQ136: Calculated Prices | CC136: TRUE
A137: Row | B137: 1 | C137: =IF($B$137=0,0,INDEX($C$139:$AJ$170,$BB$115,C114)) -> 0 | D137: 0 | E137: 0 | F137: 0 | G137: 0 | H137: 0 | I137: 0 | J137: 0 | K137: 0 | L137: 0 | N137: 0 | O137: 0 | P137: 0 | Q137: 0 | R137: 0 | S137: 0 | T137: 0 | U137: 0 | V137: 0 | W137: 0 | X137: 0 | Y137: 0 | Z137: 0 | AA137: 0 | AB137: 0 | AC137: 0 | AD137: 0 | AE137: 0 | AF137: 0 | AG137: 0 | AH137: 0 | AP137: =MATCH(3,$AP$139:$AP$170,0) ->  | AQ137: =PriceTable!S6 -> SampClients | AR137: =PriceTable!AD6 -> APR (int) | AS137: =PriceTable!AE6 -> APR (int fee) | AT137: =PriceTable!AF6 -> APR (int fee ins) | AU137: =PriceTable!AG6 -> APR (int fee ins tax) | AV137: FullAPR | AW137: TranspInd2 | AX137: Avg Bal | BC137: =ROW(PriceTable!B6) -> 6 | BE137: if REAL | BF137: =ROW(PriceTable!A187) -> 187 | BZ137: Real Samples | CA137: =COUNTIF(XChkCol,">0") -> 0 | CB137: Row | CC137: TRUE
B138: Sam-Var | C138: LoanAmt | D138: LnTmMon | E138: SampleNum | F138: VarNum | G138: SampClients | H138: =IF(Q1="Cross-check","RealSamp","N/A") -> RealSamp | I138: NumPmts | J138: GraceMon | K138: Frequency | L138: interest | M138: IntMethod | N138: Fee1UpPc | O138: Fee1UpFix | P138: Fee1OnPc | Q138: Fee1OnFix | R138: Fee2UpPc | S138: Fee2UpFix | T138: Fee2OnPerc | U138: Fee2OnFix | V138: Ins1UpPc | W138: Ins1UpFix | X138: Ins1OnPc | Y138: Ins1OnFix | Z138: Ins2UpPc | AA138: Ins2UpFix | AB138: Ins2OnPc | AC138: Ins2OnFix | AD138: SecDepPerc | AE138: SecDepFix | AF138: SecDepOnPerc | AG138: SecDepOnFix | AH138: SecDepInt | AP138: =MATCH(4,$AP$139:$AP$170,0) ->  | AR138: Int | AS138: Fee | AT138: Ins | AU138: Tax | AV138: Dep | AW138: TI2 | AY138: SampNum | BB138: Full Code | BC138: Row in Upper Price | BE138: Row in Price | CC138: TRUE
A139: 1 | B139: =IF(E139>0,E139&"-"&F139,"-") -> - | C139: =IF(E139>0,INDEX($C$115:$C$122,E139),0) -> 0 | D139: =IF(E139>0,INDEX($E$115:$E$122,E139),0) -> 0 | E139: =IF(A139>$I$134,0,AY139) -> 0 | F139: =IF(E139>0,IF(E139=E138,F138+1,IF(H139>0,0,1)),0) -> 0 | G139: =IF(E139>0,INDEX($G$115:$G$122,E139),0) -> 0 | H139: =IF(E139>0,IF(INDEX($H$115:$H$122,E139)>0,IF(E139<>E138,INDEX($H$115:$H$122,E139),0),0),0) -> 0 | I139: =IF(K139=999,1,IF(AND(ISNUMBER(K139),K139<>0),TRUNC((D139-J139)*30/K139,0),0)) -> 0 | J139: =IF(AND(J$123,$B139<>"-"),IF(J$125=2,IF($F139<3,J$136,J$135),IF(MOD($F139,2)=0,J$135,J$136)),0) -> 0 | K139: 0 | L139: 0 | M139: =IF(C139>0,$G$27,"") ->  | N139: =IF(AND(N$123,$B139<>"-"),IF(N$125=2,IF($F139<3,N$136,N$135),IF(MOD($F139,2)=0,N$135,N$136)),0) -> 0 | O139: 0 | P139: 0 | Q139: 0 | R139: 0 | S139: 0 | T139: 0 | U139: 0 | V139: 0 | W139: 0 | X139: 0 | Y139: 0 | Z139: 0 | AA139: 0 | AB139: 0 | AC139: 0 | AD139: =IF(AND(AD$123,$B139<>"-"),IF(AD$125=2,IF($F139<3,AD$136,AD$135),IF(MOD($F139,2)=0,AD$135,AD$136)),0) -> 0 | AE139: 0 | AF139: 0 | AG139: 0 | AH139: 0 | AO139: =(C139*$C$171)+(D139*$D$171)+(H139*$H$171)+(I139*$I$171)+(J139*$J$171)+(K139*$K$171)+(L139*$L$171)+(N139*$N$171)+(O139*$O$171)+(P139*$P$171)+(Q139*$Q$171)+(R139*$R$171)+(S139*$S$171)+(T139*$T$171)+(U139*$U$171)+(V139*$V$171)+(W139*$W$171)+(X139*$X$171)+(Y139*$Y$171)+(Z139*$Z$171)+(AA139*$AA$171)+(AB139*$AB$171)+(AC139*$AC$171)+(AD139*$AD$171)+(AE139*$AE$171)+(AF139*$AF$171)+(AG139*$AG$171)+(AH139*$AH$171) -> 0 | AP139: =IF(B139="-",0,IF(AO139>0,COUNTIF($AO$139:$AO$170,AO139),0)) -> 0 | AQ139: =IF($BC139=999,NA(),INDIRECT(PriceAnalSht&ADDRESS($BC139,AO$114))) ->  | AR139: =IF($BC139=999,NA(),INDIRECT(PriceAnalSht&ADDRESS($BC139,AP$114))) ->  | AS139: =IF($BC139=999,NA(),INDIRECT(PriceAnalSht&ADDRESS($BC139,AQ$114))) ->  | AT139: =IF($BC139=999,NA(),INDIRECT(PriceAnalSht&ADDRESS($BC139,AR$114))) ->  | AU139: =IF($BC139=999,NA(),INDIRECT(PriceAnalSht&ADDRESS($BC139,AS$114))) ->  | AV139: =IF($BC139=999,NA(),INDIRECT(PriceAnalSht&ADDRESS($BC139,AT$114))) ->  | AW139: =IF($BC139=999,NA(),INDIRECT(PriceAnalSht&ADDRESS($BC139,AU$114))) ->  | AX139: =IF($BC139=999,NA(),INDIRECT(PriceAnalSht&ADDRESS($BC139,AV$114))) ->  | AY139: =IF(AND(A139>=$BG$115,A139<=$BH$115),1,IF(AND(A139>=$BG$116,A139<=$BH$116),2,IF(AND(A139>=$BG$117,A139<=$BH$117),3,IF(AND(A139>=$BG$118,A139<=$BH$118),4,IF(AND(A139>=$BG$119,A139<=$BH$119),5,IF(AND(A139>=$BG$120,A139<=$BH$120),6,IF(AND(A139>=$BG$121,A139<=$BH$121),7,IF(AND(A139>=$BG$122,A139<=$BH$122),8,0)))))))) -> 0 | BB139: =SmpProdInput&"-"&Prod1!B139 -> 1-- | BC139: =IF(ISNA(BD139),999,BD139) -> 999 | BD139: =MATCH(BB139,PriceTable!$B$7:$B$181,0)+$BC$137 ->  | BE139: =IF(F139=0,BF139,999) ->  | BF139: =MATCH(BB139,PriceTable!$E$188:$E$362,0) ->  | CC139: TRUE
A140: 2 | B140: =IF(E140>0,E140&"-"&F140,"-") -> - | C140: 0 | D140: 0 | E140: 0 | F140: =IF(E140>0,IF(E140=E139,F139+1,IF(H140>0,0,1)),0) -> 0 | G140: 0 | H140: 0 | I140: =IF(K140=999,1,IF(AND(ISNUMBER(K140),K140<>0),TRUNC((D140-J140)*30/K140,0),0)) -> 0 | J140: 0 | K140: 0 | L140: 0 | N140: 0 | O140: 0 | P140: 0 | Q140: 0 | R140: 0 | S140: 0 | T140: 0 | U140: 0 | V140: 0 | W140: 0 | X140: 0 | Y140: 0 | Z140: 0 | AA140: 0 | AB140: 0 | AC140: 0 | AD140: 0 | AE140: 0 | AF140: 0 | AG140: 0 | AH140: 0 | AO140: 0 | AP140: 0 | AY140: 0 | BB140: =SmpProdInput&"-"&Prod1!B140 -> 1-- | BC140: =IF(ISNA(BD140),999,BD140) -> 999 | BD140: =MATCH(BB140,PriceTable!$B$7:$B$181,0)+$BC$137 ->  | BE140: =IF(G140=0,BF140,999) ->  | BF140: =MATCH(BB140,PriceTable!$E$188:$E$362,0) ->  | CC140: TRUE
A141: 3 | B141: - | C141: 0 | D141: 0 | E141: 0 | F141: 0 | G141: 0 | H141: 0 | I141: 0 | J141: 0 | K141: 0 | L141: 0 | N141: 0 | O141: 0 | P141: 0 | Q141: 0 | R141: 0 | S141: 0 | T141: 0 | U141: 0 | V141: 0 | W141: 0 | X141: 0 | Y141: 0 | Z141: 0 | AA141: 0 | AB141: 0 | AC141: 0 | AD141: 0 | AE141: 0 | AF141: 0 | AG141: 0 | AH141: 0 | AO141: 0 | AP141: 0 | AY141: 0 | BB141: =SmpProdInput&"-"&Prod1!B141 -> 1-- | BC141: =IF(ISNA(BD141),999,BD141) -> 999 | BD141: =MATCH(BB141,PriceTable!$B$7:$B$181,0)+$BC$137 ->  | BF141: =MATCH(BB141,PriceTable!$E$188:$E$362,0) ->  | CC141: TRUE
A142: 4 | B142: - | C142: 0 | D142: 0 | E142: 0 | F142: 0 | G142: 0 | H142: 0 | I142: 0 | J142: 0 | K142: 0 | L142: 0 | N142: 0 | O142: 0 | P142: 0 | Q142: 0 | R142: 0 | S142: 0 | T142: 0 | U142: 0 | V142: 0 | W142: 0 | X142: 0 | Y142: 0 | Z142: 0 | AA142: 0 | AB142: 0 | AC142: 0 | AD142: 0 | AE142: 0 | AF142: 0 | AG142: 0 | AH142: 0 | AO142: 0 | AP142: 0 | AY142: 0 | BB142: =SmpProdInput&"-"&Prod1!B142 -> 1-- | BC142: =IF(ISNA(BD142),999,BD142) -> 999 | BD142: =MATCH(BB142,PriceTable!$B$7:$B$181,0)+$BC$137 ->  | BF142: =MATCH(BB142,PriceTable!$E$188:$E$362,0) ->  | CC142: =IF(B142="-",TRUE,$CC$139) -> TRUE
A143: 5 | B143: - | C143: 0 | D143: 0 | E143: 0 | F143: 0 | G143: 0 | H143: 0 | I143: 0 | J143: 0 | K143: 0 | L143: 0 | N143: 0 | O143: 0 | P143: 0 | Q143: 0 | R143: 0 | S143: 0 | T143: 0 | U143: 0 | V143: 0 | W143: 0 | X143: 0 | Y143: 0 | Z143: 0 | AA143: 0 | AB143: 0 | AC143: 0 | AD143: 0 | AE143: 0 | AF143: 0 | AG143: 0 | AH143: 0 | AO143: 0 | AP143: 0 | AY143: 0 | BB143: =SmpProdInput&"-"&Prod1!B143 -> 1-- | BC143: =IF(ISNA(BD143),999,BD143) -> 999 | BD143: =MATCH(BB143,PriceTable!$B$7:$B$181,0)+$BC$137 ->  | BF143: =MATCH(BB143,PriceTable!$E$188:$E$362,0) ->  | CC143: TRUE
A144: 6 | B144: - | C144: 0 | D144: 0 | E144: 0 | F144: 0 | G144: 0 | H144: 0 | I144: 0 | J144: 0 | K144: 0 | L144: 0 | N144: 0 | O144: 0 | P144: 0 | Q144: 0 | R144: 0 | S144: 0 | T144: 0 | U144: 0 | V144: 0 | W144: 0 | X144: 0 | Y144: 0 | Z144: 0 | AA144: 0 | AB144: 0 | AC144: 0 | AD144: 0 | AE144: 0 | AF144: 0 | AG144: 0 | AH144: 0 | AO144: 0 | AP144: 0 | AY144: 0 | BB144: =SmpProdInput&"-"&Prod1!B144 -> 1-- | BC144: =IF(ISNA(BD144),999,BD144) -> 999 | BD144: =MATCH(BB144,PriceTable!$B$7:$B$181,0)+$BC$137 ->  | BF144: =MATCH(BB144,PriceTable!$E$188:$E$362,0) ->  | CC144: TRUE
A145: 7 | B145: - | C145: 0 | D145: 0 | E145: 0 | F145: 0 | G145: 0 | H145: 0 | I145: 0 | J145: 0 | K145: 0 | L145: 0 | N145: 0 | O145: 0 | P145: 0 | Q145: 0 | R145: 0 | S145: 0 | T145: 0 | U145: 0 | V145: 0 | W145: 0 | X145: 0 | Y145: 0 | Z145: 0 | AA145: 0 | AB145: 0 | AC145: 0 | AD145: 0 | AE145: 0 | AF145: 0 | AG145: 0 | AH145: 0 | AO145: 0 | AP145: 0 | AY145: 0 | BB145: =SmpProdInput&"-"&Prod1!B145 -> 1-- | BC145: 999 | BD145: =MATCH(BB145,PriceTable!$B$7:$B$181,0)+$BC$137 ->  | BF145: =MATCH(BB145,PriceTable!$E$188:$E$362,0) ->  | CC145: TRUE
A146: 8 | B146: - | C146: 0 | D146: 0 | E146: 0 | F146: 0 | G146: 0 | H146: 0 | I146: 0 | J146: 0 | K146: 0 | L146: 0 | N146: 0 | O146: 0 | P146: 0 | Q146: 0 | R146: 0 | S146: 0 | T146: 0 | U146: 0 | V146: 0 | W146: 0 | X146: 0 | Y146: 0 | Z146: 0 | AA146: 0 | AB146: 0 | AC146: 0 | AD146: 0 | AE146: 0 | AF146: 0 | AG146: 0 | AH146: 0 | AO146: 0 | AP146: 0 | AY146: 0 | BB146: =SmpProdInput&"-"&Prod1!B146 -> 1-- | BC146: 999 | BD146: =MATCH(BB146,PriceTable!$B$7:$B$181,0)+$BC$137 ->  | BF146: =MATCH(BB146,PriceTable!$E$188:$E$362,0) ->  | CC146: TRUE
A147: 9 | B147: - | C147: 0 | D147: 0 | E147: 0 | F147: 0 | G147: 0 | H147: 0 | I147: 0 | J147: 0 | K147: 0 | L147: 0 | N147: 0 | O147: 0 | P147: 0 | Q147: 0 | R147: 0 | S147: 0 | T147: 0 | U147: 0 | V147: 0 | W147: 0 | X147: 0 | Y147: 0 | Z147: 0 | AA147: 0 | AB147: 0 | AC147: 0 | AD147: 0 | AE147: 0 | AF147: 0 | AG147: 0 | AH147: 0 | AO147: 0 | AP147: 0 | AY147: 0 | BB147: =SmpProdInput&"-"&Prod1!B147 -> 1-- | BC147: 999 | BD147: =MATCH(BB147,PriceTable!$B$7:$B$181,0)+$BC$137 ->  | BF147: =MATCH(BB147,PriceTable!$E$188:$E$362,0) ->  | CC147: TRUE
A148: 10 | B148: - | C148: 0 | D148: 0 | E148: 0 | F148: 0 | G148: 0 | H148: 0 | I148: 0 | J148: 0 | K148: 0 | L148: 0 | N148: 0 | O148: 0 | P148: 0 | Q148: 0 | R148: 0 | S148: 0 | T148: 0 | U148: 0 | V148: 0 | W148: 0 | X148: 0 | Y148: 0 | Z148: 0 | AA148: 0 | AB148: 0 | AC148: 0 | AD148: 0 | AE148: 0 | AF148: 0 | AG148: 0 | AH148: 0 | AO148: 0 | AP148: 0 | AY148: 0 | BB148: =SmpProdInput&"-"&Prod1!B148 -> 1-- | BC148: 999 | BD148: =MATCH(BB148,PriceTable!$B$7:$B$181,0)+$BC$137 ->  | BF148: =MATCH(BB148,PriceTable!$E$188:$E$362,0) ->  | CC148: TRUE
A149: 11 | B149: - | C149: 0 | D149: 0 | E149: 0 | F149: 0 | G149: 0 | H149: 0 | I149: 0 | J149: 0 | K149: 0 | L149: 0 | N149: 0 | O149: 0 | P149: 0 | Q149: 0 | R149: 0 | S149: 0 | T149: 0 | U149: 0 | V149: 0 | W149: 0 | X149: 0 | Y149: 0 | Z149: 0 | AA149: 0 | AB149: 0 | AC149: 0 | AD149: 0 | AE149: 0 | AF149: 0 | AG149: 0 | AH149: 0 | AO149: 0 | AP149: 0 | AY149: 0 | BB149: =SmpProdInput&"-"&Prod1!B149 -> 1-- | BC149: 999 | BD149: =MATCH(BB149,PriceTable!$B$7:$B$181,0)+$BC$137 ->  | BF149: =MATCH(BB149,PriceTable!$E$188:$E$362,0) ->  | CC149: TRUE
A150: 12 | B150: - | C150: 0 | D150: 0 | E150: 0 | F150: 0 | G150: 0 | H150: 0 | I150: 0 | J150: 0 | K150: 0 | L150: 0 | N150: 0 | O150: 0 | P150: 0 | Q150: 0 | R150: 0 | S150: 0 | T150: 0 | U150: 0 | V150: 0 | W150: 0 | X150: 0 | Y150: 0 | Z150: 0 | AA150: 0 | AB150: 0 | AC150: 0 | AD150: 0 | AE150: 0 | AF150: 0 | AG150: 0 | AH150: 0 | AO150: 0 | AP150: 0 | AY150: 0 | BB150: =SmpProdInput&"-"&Prod1!B150 -> 1-- | BC150: 999 | BD150: =MATCH(BB150,PriceTable!$B$7:$B$181,0)+$BC$137 ->  | BF150: =MATCH(BB150,PriceTable!$E$188:$E$362,0) ->  | CC150: TRUE
A151: 13 | B151: - | C151: 0 | D151: 0 | E151: 0 | F151: 0 | G151: 0 | H151: 0 | I151: 0 | J151: 0 | K151: 0 | L151: 0 | N151: 0 | O151: 0 | P151: 0 | Q151: 0 | R151: 0 | S151: 0 | T151: 0 | U151: 0 | V151: 0 | W151: 0 | X151: 0 | Y151: 0 | Z151: 0 | AA151: 0 | AB151: 0 | AC151: 0 | AD151: 0 | AE151: 0 | AF151: 0 | AG151: 0 | AH151: 0 | AO151: 0 | AP151: 0 | AY151: 0 | BB151: =SmpProdInput&"-"&Prod1!B151 -> 1-- | BC151: 999 | BD151: =MATCH(BB151,PriceTable!$B$7:$B$181,0)+$BC$137 ->  | BF151: =MATCH(BB151,PriceTable!$E$188:$E$362,0) ->  | CC151: TRUE
A152: 14 | B152: - | C152: 0 | D152: 0 | E152: 0 | F152: 0 | G152: 0 | H152: 0 | I152: 0 | J152: 0 | K152: 0 | L152: 0 | N152: 0 | O152: 0 | P152: 0 | Q152: 0 | R152: 0 | S152: 0 | T152: 0 | U152: 0 | V152: 0 | W152: 0 | X152: 0 | Y152: 0 | Z152: 0 | AA152: 0 | AB152: 0 | AC152: 0 | AD152: 0 | AE152: 0 | AF152: 0 | AG152: 0 | AH152: 0 | AO152: 0 | AP152: 0 | AY152: 0 | BB152: =SmpProdInput&"-"&Prod1!B152 -> 1-- | BC152: 999 | BD152: =MATCH(BB152,PriceTable!$B$7:$B$181,0)+$BC$137 ->  | BF152: =MATCH(BB152,PriceTable!$E$188:$E$362,0) ->  | CC152: TRUE
A153: 15 | B153: - | C153: 0 | D153: 0 | E153: 0 | F153: 0 | G153: 0 | H153: 0 | I153: 0 | J153: 0 | K153: 0 | L153: 0 | N153: 0 | O153: 0 | P153: 0 | Q153: 0 | R153: 0 | S153: 0 | T153: 0 | U153: 0 | V153: 0 | W153: 0 | X153: 0 | Y153: 0 | Z153: 0 | AA153: 0 | AB153: 0 | AC153: 0 | AD153: 0 | AE153: 0 | AF153: 0 | AG153: 0 | AH153: 0 | AO153: 0 | AP153: 0 | AY153: 0 | BB153: =SmpProdInput&"-"&Prod1!B153 -> 1-- | BC153: 999 | BD153: =MATCH(BB153,PriceTable!$B$7:$B$181,0)+$BC$137 ->  | BF153: =MATCH(BB153,PriceTable!$E$188:$E$362,0) ->  | CC153: TRUE
A154: 16 | B154: - | C154: 0 | D154: 0 | E154: 0 | F154: 0 | G154: 0 | H154: 0 | I154: 0 | J154: 0 | K154: 0 | L154: 0 | N154: 0 | O154: 0 | P154: 0 | Q154: 0 | R154: 0 | S154: 0 | T154: 0 | U154: 0 | V154: 0 | W154: 0 | X154: 0 | Y154: 0 | Z154: 0 | AA154: 0 | AB154: 0 | AC154: =IF(AND(AC$123,$B154<>"-"),IF(AC$125=2,IF($F154<3,AC$136,AC$135),IF(MOD($F154,2)=0,AC$135,AC$136)),0) -> 0 | AD154: 0 | AE154: 0 | AF154: 0 | AG154: 0 | AH154: 0 | AO154: 0 | AP154: 0 | AY154: 0 | BB154: =SmpProdInput&"-"&Prod1!B154 -> 1-- | BC154: 999 | BD154: =MATCH(BB154,PriceTable!$B$7:$B$181,0)+$BC$137 ->  | BF154: =MATCH(BB154,PriceTable!$E$188:$E$362,0) ->  | CC154: TRUE
A155: 17 | B155: - | C155: 0 | D155: 0 | E155: 0 | F155: 0 | G155: 0 | H155: 0 | I155: 0 | J155: 0 | K155: 0 | L155: 0 | N155: =IF(AND(N$123,$B155<>"-"),IF(N$125=2,IF($F155<3,N$136,N$135),IF(MOD($F155,2)=0,N$135,N$136)),0) -> 0 | O155: 0 | P155: 0 | Q155: 0 | R155: 0 | S155: 0 | T155: 0 | U155: 0 | V155: 0 | W155: 0 | X155: 0 | Y155: 0 | Z155: 0 | AA155: 0 | AB155: 0 | AC155: 0 | AD155: 0 | AE155: 0 | AF155: 0 | AG155: 0 | AH155: 0 | AO155: 0 | AP155: 0 | AY155: 0 | BB155: =SmpProdInput&"-"&Prod1!B155 -> 1-- | BC155: 999 | BD155: =MATCH(BB155,PriceTable!$B$7:$B$181,0)+$BC$137 ->  | BF155: =MATCH(BB155,PriceTable!$E$188:$E$362,0) ->  | CC155: TRUE
A156: 18 | B156: - | C156: 0 | D156: 0 | E156: 0 | F156: 0 | G156: 0 | H156: 0 | I156: 0 | J156: 0 | K156: 0 | L156: 0 | N156: 0 | O156: 0 | P156: 0 | Q156: 0 | R156: 0 | S156: 0 | T156: 0 | U156: 0 | V156: 0 | W156: 0 | X156: 0 | Y156: 0 | Z156: 0 | AA156: 0 | AB156: 0 | AC156: 0 | AD156: 0 | AE156: 0 | AF156: 0 | AG156: 0 | AH156: 0 | AO156: 0 | AP156: 0 | AY156: 0 | BB156: =SmpProdInput&"-"&Prod1!B156 -> 1-- | BC156: 999 | BD156: =MATCH(BB156,PriceTable!$B$7:$B$181,0)+$BC$137 ->  | BF156: =MATCH(BB156,PriceTable!$E$188:$E$362,0) ->  | CC156: TRUE
A157: 19 | B157: - | C157: 0 | D157: 0 | E157: 0 | F157: 0 | G157: 0 | H157: 0 | I157: 0 | J157: 0 | K157: 0 | L157: 0 | N157: 0 | O157: 0 | P157: 0 | Q157: 0 | R157: 0 | S157: 0 | T157: 0 | U157: 0 | V157: 0 | W157: 0 | X157: 0 | Y157: 0 | Z157: 0 | AA157: 0 | AB157: 0 | AC157: 0 | AD157: 0 | AE157: 0 | AF157: 0 | AG157: 0 | AH157: 0 | AO157: 0 | AP157: 0 | AY157: 0 | BB157: =SmpProdInput&"-"&Prod1!B157 -> 1-- | BC157: 999 | BD157: =MATCH(BB157,PriceTable!$B$7:$B$181,0)+$BC$137 ->  | BF157: =MATCH(BB157,PriceTable!$E$188:$E$362,0) ->  | CC157: TRUE
A158: 20 | B158: - | C158: 0 | D158: 0 | E158: 0 | F158: 0 | G158: 0 | H158: 0 | I158: 0 | J158: 0 | K158: 0 | L158: 0 | N158: 0 | O158: 0 | P158: 0 | Q158: 0 | R158: 0 | S158: 0 | T158: 0 | U158: 0 | V158: 0 | W158: 0 | X158: 0 | Y158: 0 | Z158: 0 | AA158: 0 | AB158: 0 | AC158: 0 | AD158: 0 | AE158: 0 | AF158: 0 | AG158: 0 | AH158: 0 | AO158: 0 | AP158: =IF(B158="-",0,IF(AO158>0,COUNTIF($AO$139:$AO$170,AO158),0)) -> 0 | AY158: 0 | BB158: =SmpProdInput&"-"&Prod1!B158 -> 1-- | BC158: 999 | BD158: =MATCH(BB158,PriceTable!$B$7:$B$181,0)+$BC$137 ->  | BF158: =MATCH(BB158,PriceTable!$E$188:$E$362,0) ->  | CC158: TRUE
A159: 21 | B159: - | C159: 0 | D159: 0 | E159: 0 | F159: 0 | G159: 0 | H159: 0 | I159: 0 | J159: 0 | K159: 0 | L159: 0 | N159: 0 | O159: 0 | P159: 0 | Q159: 0 | R159: 0 | S159: 0 | T159: 0 | U159: 0 | V159: 0 | W159: 0 | X159: 0 | Y159: 0 | Z159: 0 | AA159: 0 | AB159: 0 | AC159: 0 | AD159: 0 | AE159: 0 | AF159: 0 | AG159: 0 | AH159: 0 | AO159: 0 | AP159: =IF(B159="-",0,IF(AO159>0,COUNTIF($AO$139:$AO$170,AO159),0)) -> 0 | AY159: 0 | BB159: =SmpProdInput&"-"&Prod1!B159 -> 1-- | BC159: 999 | BD159: =MATCH(BB159,PriceTable!$B$7:$B$181,0)+$BC$137 ->  | BF159: =MATCH(BB159,PriceTable!$E$188:$E$362,0) ->  | CC159: TRUE
A160: 22 | B160: - | C160: 0 | D160: 0 | E160: 0 | F160: 0 | G160: 0 | H160: 0 | I160: 0 | J160: 0 | K160: 0 | L160: 0 | N160: 0 | O160: 0 | P160: 0 | Q160: 0 | R160: 0 | S160: 0 | T160: 0 | U160: 0 | V160: 0 | W160: 0 | X160: 0 | Y160: 0 | Z160: 0 | AA160: 0 | AB160: 0 | AC160: 0 | AD160: 0 | AE160: 0 | AF160: 0 | AG160: 0 | AH160: 0 | AO160: 0 | AP160: 0 | AY160: 0 | BB160: =SmpProdInput&"-"&Prod1!B160 -> 1-- | BC160: 999 | BD160: =MATCH(BB160,PriceTable!$B$7:$B$181,0)+$BC$137 ->  | BF160: =MATCH(BB160,PriceTable!$E$188:$E$362,0) ->  | CC160: TRUE
A161: 23 | B161: - | C161: 0 | D161: 0 | E161: 0 | F161: 0 | G161: 0 | H161: 0 | I161: 0 | J161: 0 | K161: 0 | L161: 0 | N161: 0 | O161: 0 | P161: 0 | Q161: 0 | R161: 0 | S161: 0 | T161: 0 | U161: 0 | V161: 0 | W161: 0 | X161: 0 | Y161: 0 | Z161: 0 | AA161: 0 | AB161: 0 | AC161: 0 | AD161: 0 | AE161: 0 | AF161: 0 | AG161: 0 | AH161: 0 | AO161: 0 | AP161: 0 | AY161: 0 | BB161: =SmpProdInput&"-"&Prod1!B161 -> 1-- | BC161: 999 | BD161: =MATCH(BB161,PriceTable!$B$7:$B$181,0)+$BC$137 ->  | BF161: =MATCH(BB161,PriceTable!$E$188:$E$362,0) ->  | CC161: TRUE
A162: 24 | B162: - | C162: 0 | D162: 0 | E162: 0 | F162: 0 | G162: 0 | H162: 0 | I162: 0 | J162: 0 | K162: 0 | L162: 0 | N162: 0 | O162: 0 | P162: 0 | Q162: 0 | R162: 0 | S162: 0 | T162: 0 | U162: 0 | V162: 0 | W162: 0 | X162: 0 | Y162: 0 | Z162: 0 | AA162: 0 | AB162: 0 | AC162: 0 | AD162: 0 | AE162: 0 | AF162: 0 | AG162: 0 | AH162: 0 | AO162: 0 | AP162: 0 | AY162: 0 | BB162: =SmpProdInput&"-"&Prod1!B162 -> 1-- | BC162: 999 | BD162: =MATCH(BB162,PriceTable!$B$7:$B$181,0)+$BC$137 ->  | BF162: =MATCH(BB162,PriceTable!$E$188:$E$362,0) ->  | CC162: TRUE
A163: 25 | B163: - | C163: 0 | D163: 0 | E163: 0 | F163: 0 | G163: 0 | H163: 0 | I163: 0 | J163: 0 | K163: 0 | L163: 0 | N163: 0 | O163: 0 | P163: 0 | Q163: 0 | R163: 0 | S163: 0 | T163: 0 | U163: 0 | V163: 0 | W163: 0 | X163: 0 | Y163: 0 | Z163: 0 | AA163: 0 | AB163: 0 | AC163: 0 | AD163: 0 | AE163: 0 | AF163: 0 | AG163: 0 | AH163: 0 | AO163: 0 | AP163: 0 | AY163: 0 | BB163: =SmpProdInput&"-"&Prod1!B163 -> 1-- | BC163: 999 | BD163: =MATCH(BB163,PriceTable!$B$7:$B$181,0)+$BC$137 ->  | BF163: =MATCH(BB163,PriceTable!$E$188:$E$362,0) ->  | CC163: TRUE
A164: 26 | B164: - | C164: 0 | D164: 0 | E164: 0 | F164: 0 | G164: 0 | H164: 0 | I164: 0 | J164: 0 | K164: 0 | L164: 0 | N164: 0 | O164: 0 | P164: 0 | Q164: 0 | R164: 0 | S164: 0 | T164: 0 | U164: 0 | V164: 0 | W164: 0 | X164: 0 | Y164: 0 | Z164: 0 | AA164: 0 | AB164: 0 | AC164: 0 | AD164: 0 | AE164: 0 | AF164: 0 | AG164: 0 | AH164: 0 | AO164: 0 | AP164: 0 | AY164: 0 | BB164: =SmpProdInput&"-"&Prod1!B164 -> 1-- | BC164: 999 | BD164: =MATCH(BB164,PriceTable!$B$7:$B$181,0)+$BC$137 ->  | BF164: =MATCH(BB164,PriceTable!$E$188:$E$362,0) ->  | CC164: TRUE
A165: 27 | B165: - | C165: 0 | D165: 0 | E165: 0 | F165: 0 | G165: 0 | H165: 0 | I165: 0 | J165: 0 | K165: 0 | L165: 0 | N165: 0 | O165: 0 | P165: 0 | Q165: 0 | R165: 0 | S165: 0 | T165: 0 | U165: 0 | V165: 0 | W165: 0 | X165: 0 | Y165: 0 | Z165: 0 | AA165: 0 | AB165: 0 | AC165: 0 | AD165: 0 | AE165: 0 | AF165: 0 | AG165: 0 | AH165: 0 | AO165: 0 | AP165: 0 | AY165: 0 | BB165: =SmpProdInput&"-"&Prod1!B165 -> 1-- | BC165: 999 | BD165: =MATCH(BB165,PriceTable!$B$7:$B$181,0)+$BC$137 ->  | BF165: =MATCH(BB165,PriceTable!$E$188:$E$362,0) ->  | CC165: TRUE
A166: 28 | B166: - | C166: 0 | D166: 0 | E166: 0 | F166: 0 | G166: 0 | H166: 0 | I166: 0 | J166: 0 | K166: 0 | L166: 0 | N166: 0 | O166: 0 | P166: 0 | Q166: 0 | R166: 0 | S166: 0 | T166: 0 | U166: 0 | V166: 0 | W166: 0 | X166: 0 | Y166: 0 | Z166: 0 | AA166: 0 | AB166: 0 | AC166: 0 | AD166: 0 | AE166: 0 | AF166: 0 | AG166: 0 | AH166: 0 | AO166: 0 | AP166: 0 | AY166: 0 | BB166: =SmpProdInput&"-"&Prod1!B166 -> 1-- | BC166: 999 | BD166: =MATCH(BB166,PriceTable!$B$7:$B$181,0)+$BC$137 ->  | BF166: =MATCH(BB166,PriceTable!$E$188:$E$362,0) ->  | CC166: TRUE
A167: 29 | B167: - | C167: 0 | D167: 0 | E167: 0 | F167: 0 | G167: 0 | H167: 0 | I167: 0 | J167: 0 | K167: 0 | L167: 0 | N167: 0 | O167: 0 | P167: 0 | Q167: 0 | R167: 0 | S167: 0 | T167: 0 | U167: 0 | V167: 0 | W167: 0 | X167: 0 | Y167: 0 | Z167: 0 | AA167: 0 | AB167: 0 | AC167: 0 | AD167: 0 | AE167: 0 | AF167: 0 | AG167: 0 | AH167: 0 | AO167: 0 | AP167: 0 | AY167: 0 | BB167: =SmpProdInput&"-"&Prod1!B167 -> 1-- | BC167: 999 | BD167: =MATCH(BB167,PriceTable!$B$7:$B$181,0)+$BC$137 ->  | BF167: =MATCH(BB167,PriceTable!$E$188:$E$362,0) ->  | CC167: TRUE
A168: 30 | B168: - | C168: 0 | D168: 0 | E168: 0 | F168: 0 | G168: 0 | H168: 0 | I168: 0 | J168: 0 | K168: 0 | L168: 0 | N168: 0 | O168: 0 | P168: 0 | Q168: 0 | R168: 0 | S168: 0 | T168: 0 | U168: 0 | V168: 0 | W168: 0 | X168: 0 | Y168: 0 | Z168: 0 | AA168: 0 | AB168: 0 | AC168: 0 | AD168: 0 | AE168: 0 | AF168: 0 | AG168: 0 | AH168: 0 | AO168: 0 | AP168: 0 | AY168: 0 | BB168: =SmpProdInput&"-"&Prod1!B168 -> 1-- | BC168: 999 | BD168: =MATCH(BB168,PriceTable!$B$7:$B$181,0)+$BC$137 ->  | BF168: =MATCH(BB168,PriceTable!$E$188:$E$362,0) ->  | CC168: TRUE
A169: 31 | B169: - | C169: 0 | D169: 0 | E169: 0 | F169: 0 | G169: 0 | H169: 0 | I169: 0 | J169: 0 | K169: 0 | L169: 0 | N169: 0 | O169: 0 | P169: 0 | Q169: 0 | R169: 0 | S169: 0 | T169: 0 | U169: 0 | V169: 0 | W169: 0 | X169: 0 | Y169: 0 | Z169: 0 | AA169: 0 | AB169: 0 | AC169: 0 | AD169: 0 | AE169: 0 | AF169: 0 | AG169: 0 | AH169: 0 | AO169: 0 | AP169: 0 | AY169: 0 | BB169: =SmpProdInput&"-"&Prod1!B169 -> 1-- | BC169: 999 | BD169: =MATCH(BB169,PriceTable!$B$7:$B$181,0)+$BC$137 ->  | BF169: =MATCH(BB169,PriceTable!$E$188:$E$362,0) ->  | CC169: TRUE
A170: 32 | B170: - | C170: 0 | D170: 0 | E170: 0 | F170: 0 | G170: 0 | H170: 0 | I170: 0 | J170: 0 | K170: 0 | L170: 0 | N170: 0 | O170: 0 | P170: 0 | Q170: 0 | R170: 0 | S170: 0 | T170: 0 | U170: 0 | V170: 0 | W170: 0 | X170: 0 | Y170: 0 | Z170: 0 | AA170: 0 | AB170: 0 | AC170: 0 | AD170: =IF(AND(AD$123,$B170<>"-"),IF(AD$125=2,IF($F170<3,AD$136,AD$135),IF(MOD($F170,2)=0,AD$135,AD$136)),0) -> 0 | AE170: 0 | AF170: 0 | AG170: 0 | AH170: 0 | AO170: 0 | AP170: 0 | AY170: 0 | BB170: =SmpProdInput&"-"&Prod1!B170 -> 1-- | BC170: 999 | BD170: =MATCH(BB170,PriceTable!$B$7:$B$181,0)+$BC$137 ->  | BF170: =MATCH(BB170,PriceTable!$E$188:$E$362,0) ->  | CC170: TRUE
B171: =MATCH(APRSampVar,B139:B170,0) ->  | C171: 1 | D171: =C171+1 -> 2 | H171: 3 | I171: 4 | J171: =I171+1 -> 5 | K171: =J171+1 -> 6 | L171: =K171+1 -> 7 | N171: =L171+1 -> 8 | O171: =N171+1 -> 9 | P171: =O171+1 -> 10 | Q171: 11 | R171: 12 | S171: 13 | T171: 14 | U171: 15 | V171: 16 | W171: 17 | X171: 18 | Y171: 19 | Z171: 20 | AA171: 21 | AB171: 22 | AC171: 23 | AD171: 24 | AE171: 25 | AF171: 26 | AG171: 27 | AH171: 28 | CC171: =CC84 -> TRUE
CC172: =$F$666 -> TRUE
B173: No | C173: =IF(PStep3Done="Yes","Click in any cell on the worksheet to begin running the routine to calculate prices and open the next section.","Is your review complete? Choose YES to auto-generate all the prices and continue to STEP 4") -> Is your review complete? Choose YES to auto-generate all the prices and continue to STEP 4 | CC173: =$F$666 -> TRUE
B174: No | C174: Select YES to recalculate prices, if you have made any changes to the inputs | CC174: =IF(PStep3Done="No",TRUE,"x") -> TRUE
CC175: x
CC176: x
B177: =IF(Q1="cross-check","Step 4: Compare Real Sample Prices to the Scatterplot Prices","Step 4: This step not in use because this is not a Cross-check product") -> Step 4: Compare Real Sample Prices to the Scatterplot Prices | N177: Click for STEP 4 Video | CC177: x
B178: Some instructions | CC178: =IF(Q1="Cross-check",$F$667,TRUE) -> TRUE
CC179: =CC216 -> TRUE
B180: Real Sample Info | E180: Price Calculated? | BU180: =MAX(H115:H120) -> 0 | BV180: real samples | CC180: =IF($Q$1="cross-check",$F$666,TRUE) -> TRUE
B181: Real Samp | C181: Row Num | D181: Samp Num | E181: Auto-Calc | F181: Real | CC181: =CC180 -> TRUE
B182: First | C182: =IF(ISNUMBER(MATCH(BU182,$H$139:$H$170,0)),MATCH(BU182,$H$139:$H$170,0),"-") -> - | D182: =IF(ISNUMBER(C182),INDEX($E$139:$E$170,C182),"-") -> - | E182: =IF(ISNUMBER(C182),IF(ISNUMBER(INDEX($M$255:$M$286,C182+1)),"Yes","No"),"-") -> - | F182: =IF(ISNUMBER(C182),IF(ISNUMBER(INDEX($M$255:$M$286,C182)),"Yes","No"),"-") -> - | BU182: 1 | CC182: =IF(BU182>$BU$180,TRUE,CC$181) -> TRUE
B183: Second | C183: =IF(ISNUMBER(MATCH(BU183,$H$139:$H$170,0)),MATCH(BU183,$H$139:$H$170,0),"-") -> - | D183: =IF(ISNUMBER(C183),INDEX($E$139:$E$170,C183),"-") -> - | E183: =IF(ISNUMBER(C183),IF(ISNUMBER(INDEX($M$255:$M$286,C183+1)),"Yes","No"),"-") -> - | F183: =IF(ISNUMBER(C183),IF(ISNUMBER(INDEX($M$255:$M$286,C183)),"Yes","No"),"-") -> - | BU183: 2 | CC183: =IF(BU183>$BU$180,TRUE,CC$181) -> TRUE
B184: Third | C184: =IF(ISNUMBER(MATCH(BU184,$H$139:$H$170,0)),MATCH(BU184,$H$139:$H$170,0),"-") -> - | D184: =IF(ISNUMBER(C184),INDEX($E$139:$E$170,C184),"-") -> - | E184: =IF(ISNUMBER(C184),IF(ISNUMBER(INDEX($M$255:$M$286,C184+1)),"Yes","No"),"-") -> - | F184: =IF(ISNUMBER(C184),IF(ISNUMBER(INDEX($M$255:$M$286,C184)),"Yes","No"),"-") -> - | BU184: 3 | CC184: =IF(BU184>$BU$180,TRUE,CC$181) -> TRUE
CC185: =CC223 -> TRUE
H186: Incremental Prices | M186: Full Price | N186: Price Components | AO186: Grading Scale | CC186: =CC178 -> TRUE
A187: Row | B187: Sample | C187: Amount | E187: Months | F187: Num Pmts | G187: Avg Bal | H187: Int | I187: Fee | J187: Ins | K187: Tax | L187: Dep | M187: Full APR | N187: Int | O187: Fee1 | P187: Fee2 | Q187: Ins1 | R187: Ins2 | S187: Taxes | T187: Dep | AO187: 0 | AP187: F | CC187: =CC186 -> TRUE
B188: ="Sample "&D182 -> Sample - | AO188: 0.5 | AP188: D | CC188: TRUE
A189: =IF(ISNUMBER($C$182),$C$182,"-") -> - | B189: Real | C189: =IF(ISNUMBER(A189),INDEX($B$255:$W$286,$A189,C$287),"-") -> - | E189: =IF(ISNUMBER(A189),INDEX($B$255:$W$286,$A189,D$287),"-") -> - | F189: =IF(ISNUMBER(A189),INDEX($B$255:$W$286,$A189,E$287),"-") -> - | G189: =IF(ISNUMBER(A189),INDEX($AX$139:$AX$170,A189),"-") -> - | H189: =IF(ISNUMBER($A189),INDEX($B$255:$W$286,$A189,H$287),"-") -> - | I189: - | J189: - | K189: - | L189: - | M189: - | N189: =IF(ISNUMBER($A189),INDEX($B$255:$W$286,$A189,Q$287),"-") -> - | O189: =IF(ISNUMBER($A189),INDEX($B$255:$W$286,$A189,R$287),"-") -> - | P189: =IF(ISNUMBER($A189),INDEX($B$255:$W$286,$A189,S$287),"-") -> - | Q189: =IF(ISNUMBER($A189),INDEX($B$255:$W$286,$A189,T$287),"-") -> - | R189: =IF(ISNUMBER($A189),INDEX($B$255:$W$286,$A189,U$287),"-") -> - | S189: =IF($AB$109=DevOk,"No","Yes") -> No | T189: =IF(ISNUMBER($A189),INDEX($B$255:$W$286,$A189,W$287),"-") -> - | AO189: =AO188+0.5 -> 1 | AP189: C- | CC189: TRUE
A190: =IF(ISNUMBER(A189),A189+1,"-") -> - | B190: Auto | G190: =IF(ISNUMBER(A190),INDEX($AX$139:$AX$170,A190),"-") -> - | H190: - | I190: - | J190: - | K190: - | L190: - | M190: - | AO190: =AO189+0.5 -> 1.5 | AP190: C | CC190: TRUE
F191: Variance | G191: =IF(AND(ISNUMBER(G189),ISNUMBER(G190)),G189-G190,"-") -> - | H191: =IF(AND(ISNUMBER(H189),ISNUMBER(H190)),H189-H190,"-") -> - | I191: - | J191: - | K191: - | L191: - | M191: - | AO191: 2 | AP191: C+ | CC191: TRUE
F192: Degree of Variance | G192: =IF(AND(ISNUMBER(G189),ISNUMBER(G190)),IF(G189>0,ABS(G191/G189),"-"),"-") -> - | H192: =IF(AND(ISNUMBER(H189),ISNUMBER(H190)),IF(H189>0,ABS(H191/H189),"-"),"-") -> - | I192: - | J192: - | K192: - | L192: - | M192: - | AO192: 2.5 | AP192: B- | CC192: TRUE
B193: Overall Accuracy: | C193: =IF(ISNUMBER(A189),IF(ISNUMBER(G193),G193,5)*$G$219+IF(ISNUMBER(H193),H193,5)*$H$219+IF(ISNUMBER(I193),I193,5)*$I$219+IF(ISNUMBER(J193),J193,5)*$J$219+IF(ISNUMBER(K193),K193,5)*$K$219+IF(ISNUMBER(L193),L193,5)*$L$219+IF(ISNUMBER(M193),M193,5)*$M$219,"N/A") -> N/A | E193: =IF(ISNUMBER(C193),INDEX($AP$187:$AP$197,MATCH(C193,$AO$187:$AO$197,1)),"-") -> - | F193: Accuracy: | G193: =IF(ISNUMBER(G192),IF(5-G192/G$218<0,0,5-G192/G$218),"-") -> - | H193: - | I193: - | J193: - | K193: - | L193: - | M193: - | AO193: 3 | AP193: B- | CC193: =CC192 -> TRUE
AO194: 3.5 | AP194: B+ | CC194: =CC195 -> TRUE
B195: ="Sample "&D183 -> Sample - | AO195: 4 | AP195: A- | CB195: =IF(ISNUMBER(A196),"x",TRUE) -> TRUE | CC195: =IF(Q1="Cross-check",CB195,TRUE) -> TRUE
A196: =IF(ISNUMBER($C$183),$C$183,"-") -> - | B196: Real | C196: =IF(ISNUMBER(A196),INDEX($B$255:$W$286,$A196,C$287),"-") -> - | E196: =IF(ISNUMBER(A196),INDEX($B$255:$W$286,$A196,D$287),"-") -> - | F196: =IF(ISNUMBER(A196),INDEX($B$255:$W$286,$A196,E$287),"-") -> - | G196: =IF(ISNUMBER(A196),INDEX($AX$139:$AX$170,A196),"-") -> - | H196: =IF(ISNUMBER($A196),INDEX($B$255:$W$286,$A196,H$287),"-") -> - | I196: - | J196: - | K196: - | L196: - | M196: - | N196: =IF(ISNUMBER($A196),INDEX($B$255:$W$286,$A196,Q$287),"-") -> - | O196: =IF(ISNUMBER($A196),INDEX($B$255:$W$286,$A196,R$287),"-") -> - | P196: =IF(ISNUMBER($A196),INDEX($B$255:$W$286,$A196,S$287),"-") -> - | Q196: =IF(ISNUMBER($A196),INDEX($B$255:$W$286,$A196,T$287),"-") -> - | R196: =IF(ISNUMBER($A196),INDEX($B$255:$W$286,$A196,U$287),"-") -> - | S196: =IF($AB$109=DevOk,"No","Yes") -> No | T196: =IF(ISNUMBER($A196),INDEX($B$255:$W$286,$A196,W$287),"-") -> - | AO196: 4.5 | AP196: A | CC196: TRUE
A197: =IF(ISNUMBER(A196),A196+1,"-") -> - | B197: Auto | G197: =IF(ISNUMBER(A197),INDEX($AX$139:$AX$170,A197),"-") -> - | H197: - | I197: - | J197: - | K197: - | L197: - | M197: - | AO197: 5 | AP197: A | CC197: TRUE
F198: Variance | G198: =IF(AND(ISNUMBER(G196),ISNUMBER(G197)),G196-G197,"-") -> - | H198: =IF(AND(ISNUMBER(H196),ISNUMBER(H197)),H196-H197,"-") -> - | I198: - | J198: - | K198: - | L198: - | M198: - | CC198: TRUE
F199: Degree of Variance | G199: =IF(AND(ISNUMBER(G196),ISNUMBER(G197)),IF(G196>0,ABS(G198/G196),"-"),"-") -> - | H199: =IF(AND(ISNUMBER(H196),ISNUMBER(H197)),IF(H196>0,ABS(H198/H196),"-"),"-") -> - | I199: - | J199: - | K199: - | L199: - | M199: - | CC199: TRUE
B200: =B193 -> Overall Accuracy: | C200: =IF(ISNUMBER(A196),IF(ISNUMBER(G200),G200,5)*$G$219+IF(ISNUMBER(H200),H200,5)*$H$219+IF(ISNUMBER(I200),I200,5)*$I$219+IF(ISNUMBER(J200),J200,5)*$J$219+IF(ISNUMBER(K200),K200,5)*$K$219+IF(ISNUMBER(L200),L200,5)*$L$219+IF(ISNUMBER(M200),M200,5)*$M$219,"N/A") -> N/A | E200: =IF(ISNUMBER(C200),INDEX($AP$187:$AP$197,MATCH(C200,$AO$187:$AO$197,1)),"-") -> - | F200: =F193 -> Accuracy: | G200: =IF(ISNUMBER(G199),IF(5-G199/G$218<0,0,5-G199/G$218),"-") -> - | H200: - | I200: - | J200: - | K200: - | L200: - | M200: - | CC200: TRUE
CC201: =CC200 -> TRUE
... 471 more rows

Sheet Prod2
A1: Scatterplot Pricing Sheet | H1: Product Number: | I1: 2 | J1: =IF(SmpProdInput>NumProducts,J551,INDEX(ProdTable,$B$503,ProdTable!B4)) -> Not an Active Product Number | P1: Type: | Q1: =INDEX('Setup Page'!I42:I52,SmpProdInput) -> Auto-calc | AO1: =AO287 -> 0 | AP1: TRUE | AQ1: TRUE | AR1: TRUE | AS1: TRUE | AT1: TRUE | AU1: TRUE | AV1: TRUE | AW1: TRUE | AX1: TRUE | AY1: TRUE | AZ1: TRUE | BA1: TRUE | BB1: TRUE | BC1: TRUE | BD1: TRUE | BE1: TRUE | BF1: TRUE | BG1: TRUE | BH1: TRUE | BI1: TRUE | BJ1: TRUE | BK1: TRUE | BL1: TRUE | BM1: TRUE | BN1: TRUE | BO1: TRUE | BP1: TRUE | BQ1: TRUE | BR1: TRUE | BS1: TRUE | BT1: TRUE | CC1: HIDEROWS
B3: Next Step: | C3: =IF(EditShotgun=TRUE,"You are REVIEWING data previously generated. You cannot change data without starting over. To exit REVIEW mode, enter a different Product Number",IF(F552=0,"All Done!",INDEX($E$553:$E$600,MATCH(1,$B$553:$B$600,0)))) -> NOTE! This is not an loan product needing pricing calculation according to the information on the SETUP sheet. Do NOT enter any information on this worksheet. | CC3: =IF(ScatterPrint,TRUE,"x") -> x
CC4: =$CC$3 -> x
B5: Step 1: Input Product Design Information | I5: Click for STEP 1 Video | K5: Erase Sheet? | M5: =IF(EraseSheet="YES Erase Sheet","Click in any cell on the worksheet to begin running the routine to open up the next section","<-Use this cell to ERASE all the data input on this Product Sheet and start over - be careful!") -> <-Use this cell to ERASE all the data input on this Product Sheet and start over - be careful! | CC5: x
CC6: x
D7: Clients | E7: =INDEX('Setup Page'!G42:G51,SmpProdInput) -> 0 | G7: Avg/Clnt | H7: % GNI | K7: Loan Product Currency | L7: =INDEX('Setup Page'!D42:D52,SmpProdInput) -> . | N7: =IF(ISNA(MATCH(L7,'Setup Page'!D128:D130,0)),"ERROR: An incorrect currency was chosen on SETUP for this product. Go correct this.",DevOk) -> ERROR: An incorrect currency was chosen on SETUP for this product. Go correct this. | CC7: x
D8: ="Portfolio ("&L7&")" -> Portfolio (.) | E8: =INDEX('Setup Page'!F42:F51,SmpProdInput) -> . | G8: =IF(AND(ISNUMBER(E$7),E$7<>0),E8/$E$7,".") -> . | H8: =G8/L9 ->  | K8: Exchange Rate to USD | L8: =INDEX('Setup Page'!H20:H22,MATCH(L7,'Setup Page'!D128:D130,0)) ->  | CC8: x
D9: Portfolio (USD) | E9: =IF(ISNUMBER(L8),IF(L8<>0,E8/L8,),".") -> . | G9: =IF(AND(ISNUMBER(E$7),E$7<>0),E9/$E$7,".") -> . | K9: ="GNI/Capita ("&L7&")" -> GNI/Capita (.) | L9: =L8*'Setup Page'!D17 ->  | CC9: x
E10: Min | F10: Max | CC10: x
D11: ="Loan Amount ("&L7&")" -> Loan Amount (.) | G11: =E558 -> Start by entering Min and Max loan amount and loan term in rows 11 and row 14. Use ranges of last year if product does not have defined min/max. | CC11: x
D12: (USD) | E12: =IF($L$8>0,E11/$L$8) ->  | F12: =IF($L$8>0,F11/$L$8) ->  | CC12: x
D13: % GNI/Capita | E13: =E11/L9 ->  | F13: =F11/L9 ->  | CC13: x
D14: Loan Term (months) | CC14: x
CC15: x
D16: Repayment Frequencies | E16: Range | G16: Proposed | H16: Override | I16: Used | J16: =E559 ->  | AO16: Rep Freqs: | AP16: =IF(E17<>"<choose>",1,0)+IF(E18<>"<choose>",1,0) -> 0 | CC16: x
D17: Most Common: | E17: <choose> | G17: =INDEX($D$656:$D$661,MATCH(E17,$E$656:$E$661,0)) -> N/A | I17: =IF(G17="N/A","N/A",IF(H17=0,G17,H17)) -> N/A | J17: =IF(AP18>=1,"Note: Lean toward using at least one loan term longer than monthly",IF(AP17>=1,"Note: Frequencies less than monthly do not have a large impact on price, so running multiple variations isn't as important.",DevOk)) ->  | AO17: Monthly or less: | AP17: =IF(I17<30,1,0)+IF(G18<>"N/A",IF(I18<30,1,0)) -> 0 | CC17: x
D18: Next most common: | E18: <choose> | G18: =INDEX($D$656:$D$661,MATCH(E18,$E$656:$E$661,0)) -> N/A | I18: =IF(G18="N/A","N/A",IF(H18=0,G18,H18)) -> N/A | AO18: > Monthly: | AP18: =COUNTIF(G17:G18,">30") -> 0 | CC18: x
CC19: x
B20: Grace Period Info | H20: =IF(J16=DevOk,IF(E560=DevOk,E561,E560),DevOk) -> Enter GRACE PERIOD info in row 21 of STEP 1. | CC20: =IF(E21=0,TRUE,"x") -> x
B21: % loans with Grace Periods: | E21: <choose> | CC21: =$CC$20 -> x
B22: Avg grace (mon): | E22: Avg | F22: Opt 1 | G22: Opt 2 | AZ22: Grace | CC22: =$CC$20 -> x
D23: Grace period (months) | H23: =IF(I17<30,"Note: when payments are less than a month, grace may be < 1 month, e.g., enter 0.25 for one week of grace",DevOk) ->  | AZ23: =INDEX(D647:D654,MATCH(E21,E647:E654,0)) -> N/A | CC23: x
D24: When grace occurs: | E24: <choose> | CC24: x
E25: =E562 -> Enter pricing information below for every section starting in row 27. For the line marked with question marks -???- In Col A, fill in all necessary white cells, including a Min AND Max value and the Name/Descrip section | AS25: Complete1 | AT25: Complete2 | CC25: x
B26: Pricing Info | D26: Variation | E26: Min | F26: Max | G26: Type | I26: Principal Payments | M26: Interest Payments | Q26: Explanation for Variations | Y26: Pricing Summary | AW26: =COUNTIF(AV31:AV34,"Conditional percent") -> 0 | AX26: =COUNTIF(AV38:AV41,"Conditional percent") -> 0 | AZ26: Variation Analysis | CC26: x
A27: =IF(AS27,IF(SUM(E27:F27)>0,MAX($A$26:A26)+1,0),"???") -> 0 | B27: Annual Interest Rate | D27: =IF(OR(AZ27=0,AZ27=""),"-",IF(AZ27<BB27,"Some","A Lot")) -> - | G27: <choose> | I27: <choose> | M27: <choose> | Y27: =TEXT(E27,"#0.0%")&IF(AND(E27<>F27,F27<>0),"-"&TEXT(F27,"#0.0%"),"")&" annual, "&G27 -> 0.0% annual, <choose> | AS27: =IF(SUM(E27:F27)>0,IF(OR(E27=0,F27=0,G27="<choose>",I27="<choose>",M27="<choose>"),FALSE,TRUE),TRUE) -> TRUE | AZ27: =IF(E27<>F27,IF(E27<>0,F27/E27-1,1),"") ->  | BB27: 0.5 | CC27: x
E28: =IF(AND(E27>0,E27<0.1),"Is that ANNUAL interest rate?",DevOk) ->  | I28: =IF(G27="Flat","NOTE: With flat, generally chose EQUAL IN EACH INSTALLMENT for principal, and PERIOD INSTALLMENTS for Interest",DevOk) ->  | CC28: x
E29: Percent | I29: Fixed | M29: =IF(AW26>0,"Note! There is a fee calculated as a % with a minimum amount. For smaller loans, enter a % that yields the minimum fixed amount.",DevOk) ->  | CC29: x
B30: Fees | D30: Variation | E30: Min | F30: Max | G30: Based On | I30: Min | J30: Max | K30: Based On | M30: Name / Descrip | Q30: Explanation for Variations | Y30: Pricing Summary | AW30: In Use | AX30: Type | CC30: x
A31: =IF(AND(AS31,AT31),IF(SUM(E31:J31)>0,MAX($A$26:A30)+1,0),"???") -> 0 | B31: Disbursement Fee #1 | D31: =IF(BC31<>"-",BC31,IF(BD31<>"-",BD31,"-")) -> - | L31: =IF(AND(A31="???",ISBLANK(M31)),"Remember this!->",DevOk) ->  | Y31: =IF(AW31="x",IF(F31>0,TEXT(E31,"0.00%")&IF(AND(ISNUMBER(F31),F31<>E31),"-"&TEXT(F31,"0.00%"),""),"")&IF(J31>0," "&IF(I31>0,TEXT(I31,"#,##0.00"),"")&IF(AND(ISNUMBER(I31),J31<>I31),"-"&TEXT(J31,"#,##0.00"),""),IF(I31>0,", "&TEXT(I31,"#,##0.00")&" min",""))&IF(SUM(E31,F31,I31,J31)>0," "&AX31,""),"") ->  | AS31: =IF(SUM(E31:F31)>0,IF(OR(ISBLANK(E31),F31=0,ISBLANK(M31)),FALSE,TRUE),TRUE) -> TRUE | AT31: =IF(SUM(I31:J31)>0,IF(OR(I31=0,J31=0,ISBLANK(M31)),FALSE,TRUE),TRUE) -> TRUE | AV31: =IF(E31>F31,"Conditional percent",DevOk) ->  | AW31: =IF(SUM(E31,F31,I31,J31)>0,"x",".") -> . | AX31: Up-Front | AZ31: =IF(E31<>F31,IF(E31<>0,F31/E31-1,1),"") ->  | BA31: =IF(I31<>J31,IF(I31<>0,J31/I31-1,1),"") ->  | BB31: 0.6 | BC31: =IF(OR(AZ31=0,AZ31=""),"-",IF(AZ31<BB31,"Some","A Lot")) -> - | BD31: =IF(OR(BA31=0,BA31=""),"-",IF(BA31<BB31,"Some","A Lot")) -> - | CC31: x
A32: =IF(AND(AS32,AT32),IF(SUM(E32:J32)>0,MAX($A$26:A31)+1,0),"???") -> 0 | B32: Disbursement Fee #2 | D32: =IF(BC32<>"-",BC32,IF(BD32<>"-",BD32,"-")) -> - | L32: =IF(AND(A32="???",ISBLANK(M32)),"Remember this!->",DevOk) ->  | Y32: =IF(AW32="x",IF(F32>0,TEXT(E32,"0.00%")&IF(AND(ISNUMBER(F32),F32<>E32),"-"&TEXT(F32,"0.00%"),""),"")&IF(J32>0," "&IF(I32>0,TEXT(I32,"#,##0.00"),"")&IF(AND(ISNUMBER(I32),J32<>I32),"-"&TEXT(J32,"#,##0.00"),""),IF(I32>0,", "&TEXT(I32,"#,##0.00")&" min",""))&IF(SUM(E32,F32,I32,J32)>0," "&AX32,""),"") ->  | AS32: =IF(SUM(E32:F32)>0,IF(OR(ISBLANK(E32),F32=0,ISBLANK(M32)),FALSE,TRUE),TRUE) -> TRUE | AT32: =IF(SUM(I32:J32)>0,IF(OR(I32=0,J32=0,ISBLANK(M32)),FALSE,TRUE),TRUE) -> TRUE | AV32: =IF(E32>F32,"Conditional percent",DevOk) ->  | AW32: =IF(SUM(E32,F32,I32,J32)>0,"x",".") -> . | AX32: Up-Front | AZ32: =IF(E32<>F32,IF(E32<>0,F32/E32-1,1),"") ->  | BA32: =IF(I32<>J32,IF(I32<>0,J32/I32-1,1),"") ->  | BB32: 0.6 | BC32: =IF(OR(AZ32=0,AZ32=""),"-",IF(AZ32<BB32,"Some","A Lot")) -> - | BD32: =IF(OR(BA32=0,BA32=""),"-",IF(BA32<BB32,"Some","A Lot")) -> - | CC32: x
A33: =IF(AND(AS33,AT33),IF(SUM(E33:J33)>0,MAX($A$26:A32)+1,0),"???") -> 0 | B33: Continuing Fee #1 | D33: =IF(BC33<>"-",BC33,IF(BD33<>"-",BD33,"-")) -> - | G33: <choose> | K33: <choose> | Y33: =IF(AW33="x",IF(F33>0,TEXT(E33,"0.00%")&IF(AND(ISNUMBER(F33),F33<>E33),"-"&TEXT(F33,"0.00%"),""),"")&IF(J33>0," "&IF(I33>0,TEXT(I33,"#,##0.00"),"")&IF(AND(ISNUMBER(I33),J33<>I33),"-"&TEXT(J33,"#,##0.00"),""),IF(I33>0,", "&TEXT(I33,"#,##0.00")&" min",""))&IF(SUM(E33,F33,I33,J33)>0," "&AX33,""),"")&IF(AY33<>"<choose>",", "&AY33,"") ->  | AS33: =IF(SUM(E33:F33)>0,IF(OR(ISBLANK(E33),F33=0,G33="<choose>",ISBLANK(M33)),FALSE,TRUE),TRUE) -> TRUE | AT33: =IF(SUM(I33:J33)>0,IF(OR(I33=0,J33=0,K33="<choose>",ISBLANK(M33)),FALSE,TRUE),TRUE) -> TRUE | AV33: =IF(E33>F33,"Conditional percent",DevOk) ->  | AW33: =IF(SUM(E33,F33,I33,J33)>0,"x",".") -> . | AX33: Ongoing | AY33: =IF(PDrop16<>"<choose>",PDrop16,PDrop5) -> <choose> | AZ33: =IF(E33<>F33,IF(E33<>0,F33/E33-1,1),"") ->  | BB33: 0.6 | BC33: =IF(OR(AZ33=0,AZ33=""),"-",IF(AZ33<BB33,"Some","A Lot")) -> - | BD33: =IF(OR(BA33=0,BA33=""),"-",IF(BA33<BB33,"Some","A Lot")) -> - | CC33: x
A34: =IF(AND(AS34,AT34),IF(SUM(E34:J34)>0,MAX($A$26:A33)+1,0),"???") -> 0 | B34: Continuing Fee #2 | D34: =IF(BC34<>"-",BC34,IF(BD34<>"-",BD34,"-")) -> - | G34: <choose> | K34: <choose> | Y34: =IF(AW34="x",IF(F34>0,TEXT(E34,"0.00%")&IF(AND(ISNUMBER(F34),F34<>E34),"-"&TEXT(F34,"0.00%"),""),"")&IF(J34>0," "&IF(I34>0,TEXT(I34,"#,##0.00"),"")&IF(AND(ISNUMBER(I34),J34<>I34),"-"&TEXT(J34,"#,##0.00"),""),IF(I34>0,", "&TEXT(I34,"#,##0.00")&" min",""))&IF(SUM(E34,F34,I34,J34)>0," "&AX34,""),"")&IF(AY34<>"<choose>",", "&AY34,"") ->  | AS34: =IF(SUM(E34:F34)>0,IF(OR(ISBLANK(E34),F34=0,G34="<choose>",ISBLANK(M34)),FALSE,TRUE),TRUE) -> TRUE | AT34: =IF(SUM(I34:J34)>0,IF(OR(I34=0,J34=0,K34="<choose>",ISBLANK(M34)),FALSE,TRUE),TRUE) -> TRUE | AV34: =IF(E34>F34,"Conditional percent",DevOk) ->  | AW34: =IF(SUM(E34,F34,I34,J34)>0,"x",".") -> . | AX34: Ongoing | AY34: =IF(PDrop2<>"<choose>",PDrop2,PDrop6) -> <choose> | AZ34: =IF(E34<>F34,IF(E34<>0,F34/E34-1,1),"") ->  | BB34: 0.6 | BC34: =IF(OR(AZ34=0,AZ34=""),"-",IF(AZ34<BB34,"Some","A Lot")) -> - | BD34: =IF(OR(BA34=0,BA34=""),"-",IF(BA34<BB34,"Some","A Lot")) -> - | CC34: x
G35: =IF($K$124,IF(OR(ISNUMBER(FIND("pmt",PDrop16)),ISNUMBER(FIND("pmt",PDrop2))),"Be careful - payment frequencies vary for this product, so fees based per payment will have large impact on price",DevOk),DevOk) ->  | CC35: x
E36: Percent | I36: Fixed | M36: =IF(AX26>0,"Note! There is an INSURANCE FEE calculated as a % with minimum fixed amount. For smaller loans, enter a % that yields the minimum fixed amount.",DevOk) ->  | CC36: x
B37: Insurance | D37: Variation | E37: Min | F37: Max | G37: Based On | I37: Min | J37: Max | K37: Based On | M37: Name / Descrip | Q37: Explanation for Variations | Y37: Pricing Summary | CC37: x
A38: =IF(AND(AS38,AT38),IF(SUM(E38:J38)>0,MAX($A$26:A37)+1,0),"???") -> 0 | B38: Disbursement Ins. Fee #1 | D38: =IF(BC38<>"-",BC38,IF(BD38<>"-",BD38,"-")) -> - | L38: =IF(AND(A38="???",ISBLANK(M38)),"Remember this!->",DevOk) ->  | Y38: =IF(AW38="x",IF(F38>0,TEXT(E38,"0.00%")&IF(AND(ISNUMBER(F38),F38<>E38),"-"&TEXT(F38,"0.00%"),""),"")&IF(J38>0," "&IF(I38>0,TEXT(I38,"#,##0.00"),"")&IF(AND(ISNUMBER(I38),J38<>I38),"-"&TEXT(J38,"#,##0.00"),""),IF(I38>0,", "&TEXT(I38,"#,##0.00")&" min",""))&IF(SUM(E38,F38,I38,J38)>0," "&AX38,""),"") ->  | AS38: =IF(SUM(E38:F38)>0,IF(OR(ISBLANK(E38),F38=0,ISBLANK(M38)),FALSE,TRUE),TRUE) -> TRUE | AT38: =IF(SUM(I38:J38)>0,IF(OR(I38=0,J38=0,ISBLANK(M38)),FALSE,TRUE),TRUE) -> TRUE | AV38: =IF(E38>F38,"Conditional percent",DevOk) ->  | AW38: =IF(SUM(E38,F38,I38,J38)>0,"x",".") -> . | AX38: Up-Front | AZ38: =IF(E38<>F38,IF(E38<>0,F38/E38-1,1),"") ->  | BA38: =IF(I38<>J38,IF(I38<>0,J38/I38-1,1),"") ->  | BB38: 0.6 | BC38: =IF(OR(AZ38=0,AZ38=""),"-",IF(AZ38<BB38,"Some","A Lot")) -> - | BD38: =IF(OR(BA38=0,BA38=""),"-",IF(BA38<BB38,"Some","A Lot")) -> - | CC38: x
A39: =IF(AND(AS39,AT39),IF(SUM(E39:J39)>0,MAX($A$26:A38)+1,0),"???") -> 0 | B39: Disbursement Ins. Fee #2 | D39: =IF(BC39<>"-",BC39,IF(BD39<>"-",BD39,"-")) -> - | L39: =IF(AND(A39="???",ISBLANK(M39)),"Remember this!->",DevOk) ->  | Y39: =IF(AW39="x",IF(F39>0,TEXT(E39,"0.00%")&IF(AND(ISNUMBER(F39),F39<>E39),"-"&TEXT(F39,"0.00%"),""),"")&IF(J39>0," "&IF(I39>0,TEXT(I39,"#,##0.00"),"")&IF(AND(ISNUMBER(I39),J39<>I39),"-"&TEXT(J39,"#,##0.00"),""),IF(I39>0,", "&TEXT(I39,"#,##0.00")&" min",""))&IF(SUM(E39,F39,I39,J39)>0," "&AX39,""),"") ->  | AS39: =IF(SUM(E39:F39)>0,IF(OR(ISBLANK(E39),F39=0,ISBLANK(M39)),FALSE,TRUE),TRUE) -> TRUE | AT39: =IF(SUM(I39:J39)>0,IF(OR(I39=0,J39=0,ISBLANK(M39)),FALSE,TRUE),TRUE) -> TRUE | AV39: =IF(E39>F39,"Conditional percent",DevOk) ->  | AW39: =IF(SUM(E39,F39,I39,J39)>0,"x",".") -> . | AX39: Up-Front | AZ39: =IF(E39<>F39,IF(E39<>0,F39/E39-1,1),"") ->  | BB39: 0.6 | BC39: - | BD39: - | CC39: x
A40: =IF(AND(AS40,AT40),IF(SUM(E40:J40)>0,MAX($A$26:A39)+1,0),"???") -> 0 | B40: Continuing Ins. Fee #1 | D40: =IF(BC40<>"-",BC40,IF(BD40<>"-",BD40,"-")) -> - | G40: <choose> | K40: <choose> | Y40: =IF(AW40="x",IF(F40>0,TEXT(E40,"0.00%")&IF(AND(ISNUMBER(F40),F40<>E40),"-"&TEXT(F40,"0.00%"),""),"")&IF(J40>0," "&IF(I40>0,TEXT(I40,"#,##0.00"),"")&IF(AND(ISNUMBER(I40),J40<>I40),"-"&TEXT(J40,"#,##0.00"),""),IF(I40>0,", "&TEXT(I40,"#,##0.00")&" min",""))&IF(SUM(E40,F40,I40,J40)>0," "&AX40,""),"")&IF(AY40<>"<choose>",", "&AY40,"") ->  | AS40: =IF(SUM(E40:F40)>0,IF(OR(ISBLANK(E40),F40=0,G40="<choose>",ISBLANK(M40)),FALSE,TRUE),TRUE) -> TRUE | AT40: =IF(SUM(I40:J40)>0,IF(OR(I40=0,J40=0,K40="<choose>",ISBLANK(M40)),FALSE,TRUE),TRUE) -> TRUE | AV40: =IF(E40>F40,"Conditional percent",DevOk) ->  | AW40: =IF(SUM(E40,F40,I40,J40)>0,"x",".") -> . | AX40: Ongoing | AY40: =IF(PDrop3<>"<choose>",PDrop3,PDrop7) -> <choose> | AZ40: =IF(E40<>F40,IF(E40<>0,F40/E40-1,1),"") ->  | BB40: 0.6 | BC40: - | BD40: - | CC40: x
A41: =IF(AND(AS41,AT41),IF(SUM(E41:J41)>0,MAX($A$26:A40)+1,0),"???") -> 0 | B41: Continuing Ins. Fee #2 | D41: =IF(BC41<>"-",BC41,IF(BD41<>"-",BD41,"-")) -> - | G41: <choose> | K41: <choose> | Y41: =IF(AW41="x",IF(F41>0,TEXT(E41,"0.00%")&IF(AND(ISNUMBER(F41),F41<>E41),"-"&TEXT(F41,"0.00%"),""),"")&IF(J41>0," "&IF(I41>0,TEXT(I41,"#,##0.00"),"")&IF(AND(ISNUMBER(I41),J41<>I41),"-"&TEXT(J41,"#,##0.00"),""),IF(I41>0,", "&TEXT(I41,"#,##0.00")&" min",""))&IF(SUM(E41,F41,I41,J41)>0," "&AX41,""),"")&IF(AY41<>"<choose>",", "&AY41,"") ->  | AS41: =IF(SUM(E41:F41)>0,IF(OR(ISBLANK(E41),F41=0,G41="<choose>",ISBLANK(M41)),FALSE,TRUE),TRUE) -> TRUE | AT41: =IF(SUM(I41:J41)>0,IF(OR(I41=0,J41=0,K41="<choose>",ISBLANK(M41)),FALSE,TRUE),TRUE) -> TRUE | AV41: =IF(E41>F41,"Conditional percent",DevOk) ->  | AW41: =IF(SUM(E41,F41,I41,J41)>0,"x",".") -> . | AX41: Ongoing | AY41: =IF(PDrop4<>"<choose>",PDrop4,PDrop8) -> <choose> | AZ41: =IF(E41<>F41,IF(E41<>0,F41/E41-1,1),"") ->  | BB41: 0.6 | BC41: - | BD41: - | CC41: x
G42: =IF($K$124,IF(OR(ISNUMBER(FIND("pmt",PDrop3)),ISNUMBER(FIND("pmt",PDrop4))),"Be careful - payment frequencies vary for this product, so fees based per payment will have large impact on price",DevOk),DevOk) ->  | CC42: x
B43: Taxes | E43: % Ln Amt | F43: % Fees | I43: Fixed Amt | J43: Note: Only use this section if there financial taxes or VAT taxes that apply to loan products. | Y43: Pricing Summary | AQ43: taxes used? | CC43: x
A44: =IF(AS44,IF(SUM(E44:J44)>0,MAX($A$26:A43)+1,0),"???") -> 0 | B44: Taxes, Upfront | Y44: =IF(PPrice6>0,TEXT(PPrice6*100,"#.00")&"% loan amt upfront ","")&IF(PPrice7>0,TEXT(PPrice7*100,"#.00")&"% fees upfront ","")&IF(PPrice9>0,TEXT(PPrice9,"#.00")&" Fixed Upfront ","")&IF(E47>0,TEXT(E47*100,"#.00")&"% Prin ongoing ","")&IF(F47>0,TEXT(F47*100,"#.00")&"% Interest ongoing ","")&IF(G47>0,TEXT(G47*100,"#.00")&"% Fees ongoing","")&IF(PPrice10>0,TEXT(PPrice10,"#.00")&" Fixed Amount ongoing","") ->  | AQ44: =IF(SUM(PPrice6,PPrice7,E47,F47,G47,PPrice10,PPrice9)>0,TRUE,FALSE) -> FALSE | AS44: =IF(SUM(E44:I44)>0,FALSE,TRUE) -> TRUE | CC44: x
CC45: x
E46: % Prin | F46: % Int | G46: % Fees | I46: Fixed Amt | CC46: x
A47: =IF(SUM(E47:G47)>0,MAX($A$26:A46)+1,0) -> 0 | B47: Taxes, Ongoing | AS47: =IF(SUM(PPrice8,PPrice10)>0,FALSE,TRUE) -> TRUE | CC47: x
CC48: x
E49: Percent | I49: Fixed | CC49: x
B50: Compulsory Deposit | D50: Variation | E50: Min | F50: Max | G50: Based On | I50: Min | J50: Max | K50: Based On | Q50: Explanation for Variations | Y50: Pricing Summary | CC50: x
A51: =IF(AND(AS51,AT51),IF(SUM(E51:J51)>0,MAX($A$26:A50)+1,0),"???") -> 0 | B51: Comp.Dep, Prior | D51: =IF(BC51<>"-",BC51,IF(BD51<>"-",BD51,"-")) -> - | G51: =IF(E51>0,"of loan amount",DevOk) ->  | P51: =IF(D51="-",DevOk,"Explain variance here ->") ->  | Y51: =IF(F51>0,IF(E51=F51,TEXT(F51*100,"#.00")&"% "&G51&AQ51,TEXT(E51*100,"#.00")&"-"&TEXT(F51*100,"#.00")&"% "&G51&AQ51),IF(J51>0,IF(I51=J51,TEXT(J51,"#.00")&AQ51,TEXT(I51,"#.00")&"-"&TEXT(J51,"#.00")&AQ51),IF(J51>0,IF(J51=I51,TEXT(J51*100,"#.00")&" "&AQ51,TEXT(I51*100,"#.00")&"-"&TEXT(J51,"#.00")&AQ51),IF(J51>0,IF(I51=J51,TEXT(J51,"#.00"),TEXT(I51,"#.00")&"-"&TEXT(J51,"#.00")&AQ51),".")))) -> . | AQ51: Upfront | AS51: =IF(SUM(E51:F51)>0,IF(OR(ISBLANK(E51),F51=0),FALSE,TRUE),TRUE) -> TRUE | AT51: =IF(SUM(I51:J51)>0,IF(OR(I51=0,J51=0),FALSE,TRUE),TRUE) -> TRUE | AZ51: =IF(E51<>F51,IF(E51<>0,F51/E51-1,1),"") ->  | BA51: =IF(I51<>J51,IF(I51<>0,J51/I51-1,1),"") ->  | BB51: 0.6 | BC51: =IF(OR(AZ51=0,AZ51=""),"-",IF(AZ51<BB51,"Some","A Lot")) -> - | BD51: =IF(OR(BA51=0,BA51=""),"-",IF(BA51<BB51,"Some","A Lot")) -> - | CC51: x
A52: =IF(AND(AS52,AT52),IF(SUM(E52:J52)>0,MAX($A$26:A51)+1,0),"???") -> 0 | B52: Comp.Dep, During | D52: =IF(BC52<>"-",BC52,IF(BD52<>"-",BD52,"-")) -> - | G52: =IF(E52>0,"of loan amount",DevOk) ->  | K52: =IF(I52>0,"per installment",DevOk) ->  | P52: =IF(D52="-",DevOk,"Explain variance here ->") ->  | Y52: =IF(F52>0,IF(E52=F52,TEXT(F52*100,"#.00")&"% "&G52&AQ52,TEXT(E52*100,"#.00")&"-"&TEXT(F52*100,"#.00")&"% "&G52&AQ52),IF(J52>0,IF(I52=J52,TEXT(J52,"#.00")&AQ52,TEXT(I52,"#.00")&"-"&TEXT(J52,"#.00")&AQ52),IF(J52>0,IF(J52=I52,TEXT(J52*100,"#.00")&" "&AQ52,TEXT(I52*100,"#.00")&"-"&TEXT(J52,"#.00")&AQ52),IF(J52>0,IF(I52=J52,TEXT(J52,"#.00"),TEXT(I52,"#.00")&"-"&TEXT(J52,"#.00")&AQ52),".")))) -> . | AQ52: ongoing | AS52: =IF(SUM(E52:F52)>0,IF(OR(ISBLANK(E52),F52=0),FALSE,TRUE),TRUE) -> TRUE | AT52: =IF(SUM(I52:J52)>0,IF(OR(I52=0,J52=0),FALSE,TRUE),TRUE) -> TRUE | AZ52: =IF(E52<>F52,IF(E52<>0,F52/E52-1,1),"") ->  | BB52: 0.6 | BC52: - | BD52: - | CC52: x
A53: =IF(AS53,0,"???") -> 0 | B53: Annual Int on Comp.Dep | AS53: =IF(SUM(E53:F53)>0,IF(OR(ISBLANK(E53),F53=0),FALSE,TRUE),TRUE) -> TRUE | CC53: x
CC54: x
C55: Components: | D55: =MAX(A27:A53) -> 0 | CC55: x
C56: Ongoing: | D56: =IF(F33>0,1,0)+IF(F34>0,1,0)+IF(F40>0,1,0)+IF(F41>0,1,0)+IF(F52>0,1,0)+IF(J33>0,1,0)+IF(J34>0,1,0)+IF(J40>0,1,0)+IF(J41>0,1,0)+IF(J52>0,1,0) -> 0 | E56: =IF(AND(D56>0,Q70>1),"Note! Ongoing costs based on EACH PAYMENT require careful analysis of repayment frequencies",DevOk) ->  | Y56: =IF(J51>0,IF(J51=I51,TEXT(J51*100,"#.00")&" "&AQ51,TEXT(I51*100,"#.00")&"-"&TEXT(J51,"#.00")&AQ51),IF(J51>0,IF(I51=J51,TEXT(J51,"#.00"),TEXT(I51,"#.00")&"-"&TEXT(J51,"#.00")&" upfront"),".")) -> . | CC56: x
C57: w/Variation: | D57: =COUNT(AZ27:AZ52) -> 0 | E57: =IF(D57>2,"NOTE! This is a very complex product. Take great care in selecting the variations of each sample.",DevOk) ->  | Q57: =IF($H$6*C23<1000,50,IF($H$6*C23<10000,100,1000)) -> 50 | CC57: x
CC58: x
B59: No | C59: =IF(PStep1Done="Yes","Click in any cell on the worksheet to begin running the routine to open up the next section","Is the pricing information complete? Mark YES to continue to STEP 2") -> Is the pricing information complete? Mark YES to continue to STEP 2 | CC59: x
CC60: x
C61: Insurance mandatory? Percent? | I61: things to add: | K61: significant upfront fee/dep? | CC61: =TRUE -> TRUE
C62: Comp Dep - percent | K62: ask if "grace on int charged! | CC62: =TRUE -> TRUE
C63: Comp Dep - who manages? Use this? | CC63: =TRUE -> TRUE
CC64: =CC100 -> TRUE
CC65: x
B66: Step 2: Decide Sampling by Loan Amount and Term | L66: Click for STEP 2 Video | CC66: x
B67: =E591 ->  | AQ67: =IF(ISERROR(AT67),1,AT67) -> 1 | AR67: num samples | AT67: =IF(AND(O69=0,O70=0),0,INDEX(AS73:AV80,IF(O70*O69>8,8,O70*O69),IF(Q69+(IF(Q70>1,1,0))>3,3,Q69+IF(Q70>1,1,0))+1)) ->  | CC67: =$F$665 -> TRUE
F68: Loan Term | N68: =IF(AND(D82=1,L71=1),"Select Samples in the White Cells Below","Complete Percentages before working in this section") -> Complete Percentages before working in this section | AO68: 0 | AQ68: 0.11 | AR68: Bucket Threshold | BN68: Range | BO68: First | BP68: Last | BQ68: Mid | BV68: mid-x | BW68: 5 | BX68: mid-y | BY68: 4 | CC68: TRUE
B69: ="Term Min/Max: "&E14&"-"&F14 -> Term Min/Max: - | F69: <3 | G69: 4-6 | H69: 7-9 | I69: 10-12 | J69: 13-18 | K69: >18 | N69: Loan Amt: | O69: =IF(COUNTIF(D73:D81,">"&AQ68)=0,1,COUNTIF(D73:D81,">"&AQ68)) -> 1 | P69: Var Price | Q69: =D57 -> 0 | AO69: 0.05 | BM69: Amounts | BN69: =COUNTIF(D73:D80,">0") -> 0 | BO69: =MATCH(1,AK73:AK80,0) ->  | BP69: =BO69+BN69-1 ->  | BQ69: =TRUNC(BO69+BP69/2) ->  | BV69: Factor to redistribute across term for loans of a specific amount | CC69: TRUE
B70: ="Amt: "&TEXT(E11,"#,##0")&"-"&TEXT(F11,"#,##0") -> Amt: 0-0 | E70: Value to use | F70: 2 | G70: 6 | H70: 9 | I70: 12 | J70: 18 | K70: 24 | L70: =IF(F14>18,"Note: The longest loan term is "&F14&" months",DevOk) ->  | N70: Term: | O70: =COUNTIF(F71:K71,">"&AQ68) -> 0 | P70: RepFreq: | Q70: =AP16 -> 0 | AO70: 0.1 | BM70: Terms | BN70: =COUNTIF(PPrice14,">0") -> 0 | BO70: =MATCH(1,N87:S87,0) ->  | BP70: =BO70+BN70-1 ->  | BQ70: =TRUNC(BO70+BP70/2) ->  | BU70: 0.2 | BY70: 0.2 | CC70: TRUE
B71: Loan Amount | E71: Dist% | L71: =SUM(F71:K71) -> 0 | N71: =IF(AQ67<3,3,AQ67) -> 3 | O71: <-Optimal number of samples to choose below | AO71: 0.15 | AS71: Components that Vary | BF71: =E11 -> 0 | BG71: =F11 -> 0 | BV71: =BW71+$BY$70 -> 0.6 | BW71: =BX71+$BY$70 -> 0.4 | BX71: =BY71+$BY$70 -> 0.2 | BY71: 0 | BZ71: =BY71+$BY$70 -> 0.2 | CA71: =BZ71+$BY$70 -> 0.4 | CB71: =CA71+$BY$70 -> 0.6 | CC71: TRUE
A72: % GNI | B72: Min | C72: Max | D72: % Loans | E72: Ln Amt | L72: Clients | M72: Amt \ Term | N72: =IF(F71>0,F70,"-") -> - | O72: - | P72: - | Q72: - | R72: - | S72: - | AO72: 0.2 | AR72: Buckets | AS72: 0 | AT72: 1 | AU72: 2 | AV72: 3 | BC72: Gaps? | BD72: =COUNTIF(BD73:BD80,"Missing") -> 0 | BF72: below | BG72: above | BH72: shotgun | BJ72: upper limit | BN72: 1 | BO72: 2 | BP72: 3 | BQ72: 4 | BR72: 5 | BS72: 6 | BU72: =BU73+$BU$70 -> 0.8 | BV72: =BW72+($BU72*BV$71) -> 1.96 | BW72: 1.48 | BX72: 1.16 | BY72: 1 | BZ72: =BY72-($BU72*BZ$71) -> 0.84 | CA72: 0.52 | CB72: 0.04 | CC72: TRUE
A73: 0.05 | C73: =ROUND(AL73/AM73,0)*AM73 ->  | E73: =IF(C73<$E$11,"-",IF(B73>$F$11,"-",IF(AND($F$11>B73,$F$11<C73),$F$11,BH73))) ->  | F73: =IF(AND(COUNTA($D73),COUNTA(F$71)),$D73*F$71*$E$7*BN73,0) -> 0 | G73: 0 | H73: 0 | I73: 0 | J73: 0 | K73: 0 | L73: =D73*$E$7 -> 0 | M73: =IF(D73>0,E73,"-") -> - | AK73: =IF(D73>0,1,0) -> 0 | AL73: =$A73*$L$9 ->  | AM73: =IF(AL73<1000,50,IF(AL73<10000,100,1000)) ->  | AO73: 0.3 | AR73: 1 | AS73: 1 | AT73: 1 | AU73: 1 | AV73: 1 | BC73: =COUNTIF(N73:S73,">0") -> 0 | BD73: =COUNTIF(BE73:BE80,"Missing") -> 0 | BF73: FALSE | BG73: TRUE | BH73: =BJ73 ->  | BJ73: =C73 ->  | BM73: 1 | BN73: =IF(AND($BT73>0,BN$81>0,BN$81<=7,$BT73<=9),INDEX($BV$72:$CB$80,$BT73,BN$81),0) ->  | BT73: =BM73-$BQ$69+$BY$68+1 ->  | BU73: =BU74+$BU$70 -> 0.6 | BV73: 1.72 | BW73: 1.36 | BX73: 1.12 | BY73: 1 | BZ73: 0.88 | CA73: 0.64 | CB73: 0.28 | CC73: TRUE
A74: 0.1 | B74: =IF(C73=0,0,C73+1) ->  | F74: 0 | G74: 0 | H74: 0 | I74: 0 | J74: 0 | K74: 0 | L74: 0 | M74: =IF(D74>0,E74,"-") -> - | AK74: =IF(D74>0,AK73+1,0) -> 0 | AM74: =IF(AL74<1000,50,IF(AL74<10000,100,1000)) ->  | AO74: 0.4 | AQ74: =COUNTIF(E73:E75,">0") -> 0 | AR74: 2 | AS74: 2 | AT74: 2 | AU74: 2 | AV74: 2 | BC74: 0 | BD74: =IF(AND(BC73>0,BC74=0,BC75>0),"Missing",".") -> . | BF74: =IF(E$11<=$BJ74,TRUE,FALSE) ->  | BG74: =IF(F$11>=$BJ74,TRUE,FALSE) ->  | BH74: =ROUNDUP(BK74/BL74,0)*BL74 ->  | BI74: 1 | BK74: =(A74+A73)/2*$L$9 ->  | BL74: =IF(BK74>10000,500,IF(BK74>1000,100,25)) ->  | BM74: 2 | BU74: =BU75+$BU$70 -> 0.4 | BV74: 1.48 | BW74: 1.24 | BX74: 1.08 | BY74: 1 | BZ74: 0.92 | CA74: 0.76 | CB74: 0.52 | CC74: TRUE
A75: 0.25 | B75: =IF(C74=0,0,C74+1) ->  | F75: 0 | G75: 0 | H75: 0 | I75: 0 | J75: 0 | K75: 0 | L75: 0 | M75: - | AK75: 0 | AO75: 0.5 | AQ75: 0.3 | AR75: 3 | AS75: 3 | AT75: 3 | AU75: 3 | AV75: 3 | BC75: 0 | BD75: . | BE75: =IF(AND(BC73>0,BC74=0,BC76>0,BC75=0),"Missing",".") -> . | BI75: 2 | BL75: =IF(BK75>10000,500,IF(BK75>1000,100,25)) ->  | BM75: 3 | BU75: =BU76+$BU$70 -> 0.2 | BV75: 1.24 | BW75: 1.12 | BX75: 1.04 | BY75: 1 | BZ75: 0.96 | CA75: 0.88 | CB75: 0.76 | CC75: TRUE
A76: 0.5 | B76: =C75+1 ->  | F76: 0 | G76: 0 | H76: 0 | I76: 0 | J76: 0 | K76: 0 | L76: 0 | M76: - | AK76: 0 | AO76: 0.6 | AR76: 4 | AS76: 4 | AT76: 4 | AU76: 4 | AV76: 4 | BC76: 0 | BD76: . | BE76: =IF(AND(BC74>0,BC75=0,BC77>0,BC76=0),"Missing",".") -> . | BI76: 3 | BM76: 4 | BU76: 0 | BV76: 1 | BW76: 1 | BX76: 1 | BY76: 1 | BZ76: 1 | CA76: 1 | CB76: 1 | CC76: TRUE
A77: 0.75 | B77: =C76+1 ->  | F77: 0 | G77: 0 | H77: 0 | I77: 0 | J77: 0 | K77: 0 | L77: 0 | M77: - | AK77: 0 | AO77: 0.7 | AR77: 5 | AS77: 5 | AT77: 5 | AU77: 5 | AV77: 4 | BC77: 0 | BD77: . | BE77: =IF(AND(BC75>0,BC76=0,BC78>0,BC77=0),"Missing",".") -> . | BI77: 4 | BM77: 5 | BU77: =BU76+$BU$70 -> 0.2 | BV77: =BW77-($BU77*BV$71) -> 0.76 | BW77: 0.88 | BX77: 0.96 | BY77: 1 | BZ77: =BY77+($BU77*BZ$71) -> 1.04 | CA77: 1.12 | CB77: 1.24 | CC77: TRUE
A78: 1 | B78: =C77+1 ->  | F78: 0 | G78: 0 | H78: 0 | I78: 0 | J78: 0 | K78: 0 | L78: 0 | M78: - | AK78: 0 | AO78: 0.8 | AR78: 6 | AS78: 6 | AT78: 6 | AU78: 6 | AV78: 4 | BC78: 0 | BD78: . | BE78: =IF(AND(BC76>0,BC77=0,BC79>0,BC78=0),"Missing",".") -> . | BI78: 5 | BM78: 6 | BU78: =BU77+$BU$70 -> 0.4 | BV78: 0.52 | BW78: 0.76 | BX78: 0.92 | BY78: 1 | BZ78: 1.08 | CA78: 1.24 | CB78: 1.48 | CC78: TRUE
A79: 2 | B79: =C78+1 ->  | F79: 0 | G79: 0 | H79: 0 | I79: 0 | J79: 0 | K79: 0 | L79: 0 | M79: - | AK79: 0 | AO79: 0.9 | AR79: 7 | AS79: 7 | AT79: 7 | AU79: 6 | AV79: 4 | BC79: 0 | BD79: . | BE79: =IF(AND(BC77>0,BC78=0,BC80>0,BC79=0),"Missing",".") -> . | BI79: 6 | BM79: 7 | BU79: =BU78+$BU$70 -> 0.6 | BV79: 0.28 | BW79: 0.64 | BX79: 0.88 | BY79: 1 | BZ79: 1.12 | CA79: 1.36 | CB79: 1.72 | CC79: TRUE
A80: 5 | B80: =C79+1 ->  | F80: 0 | G80: 0 | H80: 0 | I80: 0 | J80: 0 | K80: 0 | L80: 0 | M80: - | AK80: 0 | AO80: 1 | AR80: 8 | AS80: 8 | AT80: 8 | AU80: 6 | AV80: 4 | BC80: 0 | BI80: 7 | BM80: 8 | BU80: =BU79+$BU$70 -> 0.8 | BV80: 0.04 | BW80: 0.52 | BX80: 0.84 | BY80: 1 | BZ80: 1.16 | CA80: 1.48 | CB80: 1.96 | CC80: TRUE
C81: ="> "&TEXT(C80,"#,##0") ->  | E81: N/A | F81: =IF(AND(COUNTA($D81),COUNTA(F$71)),$D81*F$71*$E$7,0) -> 0 | G81: 0 | H81: 0 | I81: 0 | J81: 0 | K81: 0 | L81: 0 | N81: =IF(F11>C80,"Note: Loan Amounts greater than 500% GNI/Capita are not evaluated in this tool",DevOk) ->  | AR81: variations | AS81: 1 | AT81: 2 | AU81: 4 | AV81: 8 | BI81: 8 | BK81: =C80 ->  | BN81: =BN72-$BQ$70+$BW$68 ->  | CC81: TRUE
C82: Total | D82: =SUM(D73:D81) -> 0 | E82: Clients: | F82: =F71*$E$7 -> 0 | G82: 0 | H82: 0 | I82: 0 | J82: 0 | K82: 0 | L82: =SUM(L73:L81) -> 0 | CC82: TRUE
CC83: TRUE
B84: Grace period sensitivity calculations | F84: =IF(ISNUMBER($E$23),$E$23/F70,"DK") -> DK | G84: DK | H84: DK | I84: DK | J84: DK | K84: DK | L84: 0.07 | M84: <Threshold | CC84: =IF(DevShowRows=TRUE,"x",TRUE) -> TRUE
E85: Cumulative % clients | F85: =IF(ISNUMBER($E$23),IF(F84>$L$84,F71,0),"DK") -> DK | G85: =IF(ISNUMBER($E$23),IF(G84>$L$84,G71)+F85,"DK") -> DK | H85: =IF(ISNUMBER($E$23),IF(H84>$L$84,H71)+G85,"DK") -> DK | I85: =IF(ISNUMBER($E$23),IF(I84>$L$84,I71)+H85,"DK") -> DK | J85: =IF(ISNUMBER($E$23),IF(J84>$L$84,J71)+I85,"DK") -> DK | K85: =IF(ISNUMBER($E$23),IF(K84>$L$84,K71)+J85,"DK") -> DK | L85: =IF(ISNUMBER($E$23),IF(F85=G85,ShotTerm1,IF(G85=H85,ShotTerm2,IF(H85=I85,ShotTerm3,IF(I85=J85,ShotTerm4,IF(J85=K85,ShotTerm5,ShotTerm6))))),"DK") -> DK | M85: loan term under threshold | CC85: =CC84 -> TRUE
E86: min | F86: 0 | G86: =F87+0.001 -> 3.501 | H86: =G87+0.001 -> 6.501 | I86: =H87+0.001 -> 9.501 | J86: =I87+0.001 -> 12.501 | K86: =J87+0.001 -> 18.501 | CC86: TRUE
E87: max | F87: 3.5 | G87: 6.5 | H87: 9.5 | I87: 12.5 | J87: 18.5 | K87: 999 | N87: =IF(F71>0,1,0) -> 0 | O87: =IF(G71>0,1+N87,0) -> 0 | P87: =IF(H71>0,1+O87,0) -> 0 | Q87: =IF(I71>0,1+P87,0) -> 0 | R87: =IF(J71>0,1+Q87,0) -> 0 | S87: =IF(K71>0,1+R87,0) -> 0 | CC87: TRUE
E88: valid value? | F88: =IF(OR(F70<F86,F70>F87),FALSE,TRUE) -> TRUE | G88: TRUE | H88: TRUE | I88: TRUE | J88: TRUE | K88: TRUE | L88: =COUNTIF(F88:K88,FALSE) -> 0 | N88: shading 1 | O88: 0.03 | P88: =O88*L82 -> 0 | CC88: TRUE
E89: Input cell? | F89: =IF(AND($E$14<F87,$F$14>F86),TRUE,FALSE) -> FALSE | G89: FALSE | H89: FALSE | I89: FALSE | J89: FALSE | K89: FALSE | L89: =COUNTIF(F89:K89,FALSE) -> 6 | N89: shading 2 | O89: 0.06 | P89: =O89*L82 -> 0 | CC89: TRUE
E90: Perc outside range? | F90: =IF(F89=FALSE,IF(F71>0,TRUE,FALSE)) -> FALSE | G90: FALSE | H90: FALSE | I90: FALSE | J90: FALSE | K90: FALSE | L90: =COUNTIF(F90:K90,TRUE) -> 0 | CC90: TRUE
C91: =C607 ->  | CC91: =$F$665 -> TRUE
B92: No | C92: =IF(PStep2Done="Yes","Click in any cell on the worksheet to begin running the routine to open up the next section","Is the sampling information complete? Mark YES to "&IF(AZ23>0,"review Grace Period Analysis and then ","")&"continue to STEP 3") -> Is the sampling information complete? Mark YES to review Grace Period Analysis and then continue to STEP 3 | CC92: =$F$665 -> TRUE
B93: Sensitivity Analysis of Grace Period | CC93: =IF(OR(AZ23=0,AZ23=1),TRUE,IF(PStep2Done="No",TRUE,"x")) -> TRUE
D94: Is Flat Interest charged? | E94: =IF(G27="Flat","Yes","No") -> No | F94: =IF(E94="Yes","High","Low") -> Low | G94: =IF(F94="High","As FLAT interest is charged on this product, the impact on price can be significant","Declining Balance interest has little to no variation when there are grace periods") -> Declining Balance interest has little to no variation when there are grace periods | AS94: High | AT94: Med | CC94: =CC93 -> TRUE
D95: grace / shortest term (a) | E95: =IF(ISNUMBER(E23),E23/E14,"DK") -> DK | F95: =IF(E95>AS95,"High",IF(E95>AT95,"Med","Low")) -> High | G95: =IF(F95="High","The grace period is significant at least for the shortest loans",IF(F95="Med","The grace period has only moderate significance, even on the shortest loans","The grace period has modest signifance even on the shortest loans")) -> The grace period is significant at least for the shortest loans | AR95: grace/shortest | AS95: 0.3 | AT95: 0.15 | AV95: Because of declining balance interest, it is likely that this product does not see prices vary significantly due to grace periods. You should include only one or two test variations in order to confirm. | CC95: TRUE
D96: Max term with sensitivity (b) | E96: =IF(E21=0,"N/A",L85&" mon") -> DK mon | G96: This calculation is made by comparing grace to loan terms. Loans UP TO this duration have moderate to high sensitivity to grace | AR96: % clients | AS96: 0.6 | AT96: 0.2 | AV96: This product uses flat interest and has a moderate portion of loans being affected by grace. You should include several variations to test for the impact of grace on price, applying grace to samples with SHORTER loan terms. | CC96: TRUE
D97: ="% loans up to "&E96&" term (c)" -> % loans up to DK mon term (c) | E97: =K85 -> DK | G97: This indicates what percent of the product's loans are shorter than the threshold term indicated in (b). Loan term DISTRIBUTION figures are used for calculation. | AR97: % signif | AS97: 0.4 | AT97: 0.2 | AV97: This product uses flat interest and has a large portion of loans being affected by grace. This is the 'worst case scenario' and you should test for the impact of grace on price, on several of the samples, especially samples with SHORTER loan terms. | CC97: TRUE
D98: % loans with grace (d) | E98: =AZ23 -> N/A | F98: =IF(E98>AS96,"High",IF(E98>AT96,"Med","Low")) -> High | G98: ="This was entered in row "&ROW(D24)&" above. "&IF(F98="High","Grace applies to a large percentage of loans",IF(F98="Med","Grace applies to only a moderate number of loans","Grace applies to a small portion of the loans")) -> This was entered in row 24 above. Grace applies to a large percentage of loans | AV98: Though this product uses flat interest, it looks like only a small number of loans would be affected. You do not need to include more than one sample that has grace as a variation variable. | CC98: TRUE
B99: % loans where grace is significant (e = c x d) | E99: =IF(ISNUMBER(E97),E97*E98,"DK") -> DK | F99: =IF(ISNUMBER(E99),IF(E99>AS97,"High",IF(E99>AT97,"Med","Low")),"Med") -> Med | G99: ="This calculates how many loans have a SIGNIFICANT impact from grace, by multiplying line c times line d. "&IF(ISNUMBER(E23),IF(F99="High","With this product, there are a large number of loans affected",IF(F99="Med","With this product, only a moderate number of loans are affected","With this product, a small number of loans are actually affected")),"As average grace is not known, much of this sensitivity analysis could not be done.") -> This calculates how many loans have a SIGNIFICANT impact from grace, by multiplying line c times line d. As average grace is not known, much of this sensitivity analysis could not be done. | CC99: TRUE
B100: Recommendation: | D100: =IF(CC100=TRUE,"This product has no grace period.",IF(E21=0,"This product has no loans with grace periods",IF(E21=1,"Enter grace period for ALL samples in Step 3. If the length of grace period varies, use Var1 and 2 to test different lengths",IF(F94="Low",AV95,IF(F99="Med",AV96,IF(F99="High",AV97,AV98)))))) -> This product has no grace period. | CC100: TRUE
CC101: x
CC102: x
B103: Step 3: Review the information in the table and generate the Scatterplot | O103: Click for STEP 3 Video | CC103: x
B104: ="Grace period recommendation: "&D100 -> Grace period recommendation: This product has no grace period. | O104: Video Link | CC104: =IF((F23+G23)>0,$F$666,TRUE) -> TRUE
B105: =IF(E24="Scattered","Note: Grace will be placed in the MIDDLE of the loan term. This is suitable for randomly scattered grace. If LUMPY grace, like a livestock loan, price will be less accurate.",DevOk) ->  | M105: RECOMMEND CLIENT NUMBER CHANGES WHEN BIG LOANS ARE BIASED TOWARD SHORT TERM | CC105: =IF(LEFT(E24,4)="Scat",$F$666,TRUE) -> TRUE
B106: =IF(COUNTIF(D27:D53,"A lot")>0,"Note: At least one price component varies A LOT. You should edit the Opt 1 and Opt 2 defaults to use an appropriate range of values",IF(MAX(K135:K136)=999,"Note: 999 means end-term payment frequency.",DevOk)) ->  | CC106: =IF(B106=DevOk,TRUE,$F$666) -> TRUE
B107: =IF(AND(K135<30,K136>=30,M139="Flat"),"Note: Flat interest will have a significant impact on pricing with loan terms ranging from less than a month to a month or more.",DevOk) ->  | CC107: =IF(B107=DevOk,TRUE,$F$666) -> TRUE
B108: =IF(E581=DevOk,E589,E581) -> Review all info in Step 3. You may change the number of variations by typing over the figures in the YELLOW cells. You can type over green and white values starting in row 139. When done, mark completed in row 173. | CC108: =$F$666 -> TRUE
B109: Num Samples: | C109: =COUNTIF(C115:C122,">0") -> 0 | E109: =COUNTIF(XChkCol,">0") -> 0 | F109: <- Real Samples | I109: =IF(MAX(I115:I122)>2,"More than 2 variations needs manual input below",DevOk) ->  | N109: =M29 ->  | V109: =M36 ->  | AB109: =IF(AQ44,"Note: Taxes are entered automatically for each sample. There are not inputs to be made.",DevOk) ->  | CC109: =$F$666 -> TRUE
E110: =IF(ISERROR(SUM(C137:AJ137)),TRUE,FALSE) -> FALSE | F110: <error check - TRUE means errors | M110: In Use? --> | N110: =COUNTIF($N$111:N111,">0") -> 0 | O110: =COUNTIF($N$111:O111,">0") -> 0 | P110: =COUNTIF($N$111:P111,">0") -> 0 | Q110: =COUNTIF($N$111:Q111,">0") -> 0 | R110: =COUNTIF($N$111:R111,">0") -> 0 | S110: =COUNTIF($N$111:S111,">0") -> 0 | T110: =COUNTIF($N$111:T111,">0") -> 0 | U110: =COUNTIF($N$111:U111,">0") -> 0 | V110: =COUNTIF($V$111:V111,">0") -> 0 | W110: =COUNTIF($V$111:W111,">0") -> 0 | X110: =COUNTIF($V$111:X111,">0") -> 0 | Y110: =COUNTIF($V$111:Y111,">0") -> 0 | Z110: =COUNTIF($V$111:Z111,">0") -> 0 | AA110: =COUNTIF($V$111:AA111,">0") -> 0 | AB110: =COUNTIF($V$111:AB111,">0") -> 0 | AC110: =COUNTIF($V$111:AC111,">0") -> 0 | AD110: =COUNTIF($AD$111:AD111,">0") -> 0 | AE110: =COUNTIF($AD$111:AE111,">0") -> 0 | AF110: =COUNTIF($AD$111:AF111,">0") -> 0 | AG110: =COUNTIF($AD$111:AG111,">0") -> 0 | AH110: =COUNTIF($AD$111:AH111,">0") -> 0 | CC110: =IF(HideExtra,TRUE,CC109) -> TRUE
N111: =IF(MAX(N139:N170)>0,N114,0) -> 0 | O111: 0 | P111: 0 | Q111: 0 | R111: 0 | S111: 0 | T111: 0 | U111: 0 | V111: 0 | W111: 0 | X111: 0 | Y111: 0 | Z111: 0 | AA111: 0 | AB111: 0 | AC111: 0 | AD111: 0 | AE111: 0 | AF111: 0 | AG111: 0 | AH111: 0 | CC111: =$CC$110 -> TRUE
B112: Loan Amount | D112: Loan Term | F112: Client Estimate | H112: Real | I112: Number | J112: Grace | K112: Repay | L112: Interest | N112: Fees | V112: Insurance | AD112: Security Deposit | CC112: =$F$666 -> TRUE
B113: Override | C113: Used | D113: =B113 -> Override | E113: =C113 -> Used | F113: =D113 -> Override | G113: =E113 -> Used | H113: Sample? | I113: Variations | J113: Period | K113: Freq | N113: Fee 1 | R113: Fee 2 | V113: Ins 1 | Z113: Ins 2 | AQ113: How to stagger variations - this section not used anywhere | BE113: FORMULAS | CC113: =$F$666 -> TRUE
C114: 1 | D114: =C114+1 -> 2 | E114: 3 | F114: 4 | G114: 5 | H114: 6 | I114: 7 | J114: 8 | K114: 9 | L114: 10 | M114: 11 | N114: 12 | O114: 13 | P114: 14 | Q114: 15 | R114: 16 | S114: 17 | T114: 18 | U114: 19 | V114: 20 | W114: 21 | X114: 22 | Y114: 23 | Z114: 24 | AA114: 25 | AB114: 26 | AC114: 27 | AD114: 28 | AE114: 29 | AF114: 30 | AG114: 31 | AH114: 32 | AO114: =PriceTable!S1 -> 19 | AP114: =PriceTable!AD1 -> 30 | AQ114: =PriceTable!AE1 -> 31 | AR114: =PriceTable!AF1 -> 32 | AS114: =PriceTable!AG1 -> 33 | AT114: =PriceTable!AH1 -> 34 | AU114: =PriceTable!AO1 -> 41 | AV114: =PriceTable!O1 -> 15 | CC114: =$CC$110 -> TRUE
A115: 1 | C115: =IF(B115>0,B115,E522) -> 0 | E115: =IF(D115>0,D115,IF(E512>0,E512,"")) ->  | G115: =IF(F115>0,F115,IF(E532>0,E532,"")) ->  | I115: =IF(H115>0,2,IF(COUNTIF(J115:AH115,3)>0,3,IF(C115>0,2^COUNTIF(J115:AH115,">1"),""))) ->  | J115: =J126 -> 0 | K115: 0 | L115: 0 | N115: =N126 -> 0 | O115: 0 | P115: 0 | Q115: 0 | R115: 0 | S115: 0 | T115: 0 | U115: 0 | V115: 0 | W115: 0 | X115: 0 | Y115: 0 | Z115: 0 | AA115: 0 | AB115: 0 | AC115: 0 | AD115: 0 | AE115: 0 | AF115: 0 | AG115: 0 | AH115: 0 | AP115: 1 | AQ115: 1a | AR115: 1a | AS115: 2a | AT115: 1a | AU115: 2a | AV115: 3a | AZ115: Real Samples | BB115: =IF(ISNUMBER(B137),IF(B137>0,B137,1),1) -> 1 | BC115: <Rownum | BE115: =BE126 -> 0 | BG115: =IF(C115>0,1,99) -> 99 | BH115: =IF(C115>0,BG115+I115-1,0) -> 0 | BM115: 1 | BN115: 0 | BO115: 0 | BP115: 0 | BQ115: 0 | BS115: =IF(AND(C115>0,F115=0),1,0) -> 0 | BT115: =IF(AND(C115=0,C116>0,A115>$G$503),1,0) -> 0 | BU115: =IF(AND(C115=0,E115>0,ISNUMBER(E115)),A115,0) -> 0 | BV115: =IF(AND(C115>0,OR(E115=0,E115=""),ISNUMBER(C115)),A115,0) -> 0 | BW115: =SUM(B115:AH115) -> 0 | BX115: 1 | BZ115: amt | CA115: term | CB115: clients | CC115: =$F$666 -> TRUE
A116: 2 | C116: 0 | I116: =IF(H116>0,2,IF(COUNTIF(J116:AH116,3)>0,3,IF(C116>0,2^COUNTIF(J116:AH116,">1"),""))) ->  | J116: 0 | K116: 0 | L116: 0 | N116: 0 | O116: 0 | P116: 0 | Q116: 0 | R116: 0 | S116: 0 | T116: 0 | U116: 0 | V116: 0 | W116: 0 | X116: 0 | Y116: 0 | Z116: 0 | AA116: 0 | AB116: 0 | AC116: 0 | AD116: 0 | AE116: 0 | AF116: 0 | AG116: 0 | AH116: 0 | AP116: 2 | AQ116: 1b | AR116: 1b | AS116: 2a | AT116: 1a | AU116: 2a | AV116: 3b | BA116: =IF(MAX(AZ117:AZ119)>1,TRUE,FALSE) -> FALSE | BE116: =IF(AND(BE$123,$B116<>"-"),IF(BE$125=2,IF($F116<3,BE$136,BE$135),IF(MOD($F116,2)=0,BE$135,BE$136)),0) -> 0 | BG116: =IF(C116>0,MAX($BH$115:BH115)+1,99) -> 99 | BH116: 0 | BM116: 2 | BN116: 0 | BO116: 1 | BP116: 0 | BQ116: 0 | BR116: =IF(AND(C116>0,C116<C115),1,0) -> 0 | BS116: 0 | BT116: 0 | BU116: 0 | BV116: 0 | BW116: 0 | BX116: =BX115*10 -> 10 | BZ116: =IF(ISNUMBER(#REF!),INDEX(PriceTable!$K$7:$K$181,#REF!),0) -> 0 | CA116: =IF(ISNUMBER(#REF!),IF(ISNUMBER(INDEX(PriceTable!$N$7:$N$181,#REF!)),INDEX(PriceTable!$N$7:$N$181,#REF!),0),0) -> 0 | CB116: =IF(ISNUMBER(#REF!),INDEX(PriceTable!$S$7:$S$181,#REF!),0) -> 0 | CC116: =$F$666 -> TRUE
A117: 3 | C117: 0 | J117: 0 | K117: 0 | L117: 0 | N117: 0 | O117: 0 | P117: 0 | Q117: 0 | R117: 0 | S117: 0 | T117: 0 | U117: 0 | V117: 0 | W117: 0 | X117: 0 | Y117: 0 | Z117: 0 | AA117: 0 | AB117: 0 | AC117: 0 | AD117: 0 | AE117: 0 | AF117: 0 | AG117: 0 | AH117: 0 | AP117: 3 | AR117: 1a | AS117: 2b | AT117: 1a | AU117: 2b | AV117: 3a | AZ117: =COUNTIF($H$115:$H$122,1) -> 0 | BA117: =IF(AZ117<>1,FALSE,TRUE) -> FALSE | BG117: =IF(C117>0,MAX($BH$115:BH116)+1,99) -> 99 | BH117: 0 | BM117: 3 | BN117: 0 | BO117: 0 | BP117: 1 | BQ117: 0 | BR117: 0 | BS117: 0 | BT117: 0 | BU117: 0 | BV117: 0 | BW117: 0 | BX117: 100 | BZ117: =IF(ISNUMBER(#REF!),INDEX(PriceTable!$K$7:$K$181,#REF!),0) -> 0 | CA117: =IF(ISNUMBER(#REF!),IF(ISNUMBER(INDEX(PriceTable!$N$7:$N$181,#REF!)),INDEX(PriceTable!$N$7:$N$181,#REF!),0),0) -> 0 | CB117: =IF(ISNUMBER(#REF!),INDEX(PriceTable!$S$7:$S$181,#REF!),0) -> 0 | CC117: =$F$666 -> TRUE
A118: 4 | C118: 0 | J118: 0 | K118: 0 | L118: 0 | N118: 0 | O118: 0 | P118: 0 | Q118: 0 | R118: 0 | S118: 0 | T118: 0 | U118: 0 | V118: 0 | W118: 0 | X118: 0 | Y118: 0 | Z118: 0 | AA118: 0 | AB118: 0 | AC118: 0 | AD118: 0 | AE118: 0 | AF118: 0 | AG118: 0 | AH118: 0 | AP118: 4 | AR118: 1b | AS118: 2b | AT118: 1a | AU118: 2b | AV118: 3b | AZ118: =COUNTIF($H$115:$H$122,2) -> 0 | BA118: =IF(AZ118>1,FALSE,TRUE) -> TRUE | BG118: =IF(C118>0,MAX($BH$115:BH117)+1,99) -> 99 | BH118: 0 | BM118: 4 | BN118: 0 | BO118: 1 | BP118: 1 | BQ118: 0 | BR118: 0 | BS118: 0 | BT118: 0 | BU118: 0 | BV118: 0 | BW118: 0 | BX118: 1000 | BZ118: =IF(ISNUMBER(#REF!),INDEX(PriceTable!$K$7:$K$181,#REF!),0) -> 0 | CA118: =IF(ISNUMBER(#REF!),IF(ISNUMBER(INDEX(PriceTable!$N$7:$N$181,#REF!)),INDEX(PriceTable!$N$7:$N$181,#REF!),0),0) -> 0 | CB118: =IF(ISNUMBER(#REF!),INDEX(PriceTable!$S$7:$S$181,#REF!),0) -> 0 | CC118: =IF(A118<=$C$109,CC117,TRUE) -> TRUE
A119: 5 | C119: 0 | J119: 0 | K119: 0 | L119: 0 | N119: 0 | O119: 0 | P119: 0 | Q119: 0 | R119: 0 | S119: 0 | T119: 0 | U119: 0 | V119: 0 | W119: 0 | X119: 0 | Y119: 0 | Z119: 0 | AA119: 0 | AB119: 0 | AC119: 0 | AD119: 0 | AE119: 0 | AF119: 0 | AG119: 0 | AH119: 0 | AP119: 5 | AT119: 1b | AU119: 2a | AV119: 3a | AZ119: =COUNTIF($H$115:$H$122,3) -> 0 | BA119: =IF(AZ119>1,FALSE,TRUE) -> TRUE | BG119: =IF(C119>0,MAX($BH$115:BH118)+1,99) -> 99 | BH119: 0 | BM119: 5 | BN119: 0 | BO119: 0 | BP119: 0 | BQ119: 1 | BR119: 0 | BS119: 0 | BT119: 0 | BU119: 0 | BV119: 0 | BW119: 0 | BX119: 10000 | CC119: =IF(A119<=$C$109,CC118,TRUE) -> TRUE
A120: 6 | C120: 0 | J120: 0 | K120: 0 | L120: 0 | N120: 0 | O120: 0 | P120: 0 | Q120: 0 | R120: 0 | S120: 0 | T120: 0 | U120: 0 | V120: 0 | W120: 0 | X120: 0 | Y120: 0 | Z120: 0 | AA120: 0 | AB120: 0 | AC120: 0 | AD120: 0 | AE120: 0 | AF120: 0 | AG120: 0 | AH120: 0 | AP120: 6 | AT120: 1b | AU120: 2a | AV120: 3b | BG120: =IF(C120>0,MAX($BH$115:BH119)+1,99) -> 99 | BH120: 0 | BM120: 6 | BN120: 0 | BO120: 1 | BP120: 0 | BQ120: 1 | BR120: 0 | BS120: 0 | BT120: 0 | BU120: 0 | BV120: 0 | BW120: 0 | BX120: 100000 | CC120: =IF(A120<=$C$109,CC119,TRUE) -> TRUE
A121: 7 | C121: 0 | J121: 0 | K121: 0 | L121: 0 | N121: 0 | O121: 0 | P121: 0 | Q121: 0 | R121: 0 | S121: 0 | T121: 0 | U121: 0 | V121: 0 | W121: 0 | X121: 0 | Y121: 0 | Z121: 0 | AA121: 0 | AB121: 0 | AC121: 0 | AD121: 0 | AE121: 0 | AF121: 0 | AG121: 0 | AH121: 0 | AP121: 7 | AT121: 1b | AU121: 2b | AV121: 3a | BG121: =IF(C121>0,MAX($BH$115:BH120)+1,99) -> 99 | BH121: 0 | BM121: 7 | BN121: 0 | BO121: 0 | BP121: 1 | BQ121: 1 | BR121: 0 | BS121: 0 | BT121: 0 | BU121: 0 | BV121: 0 | BW121: 0 | BX121: 1000000 | CC121: =IF(A121<=$C$109,CC120,TRUE) -> TRUE
A122: 8 | C122: 0 | I122: =IF(H122>0,2,IF(C122>0,2^COUNTIF(J122:AH122,2),"")) ->  | J122: 0 | K122: 0 | L122: 0 | N122: 0 | O122: 0 | P122: 0 | Q122: 0 | R122: 0 | S122: 0 | T122: 0 | U122: 0 | V122: 0 | W122: 0 | X122: 0 | Y122: 0 | Z122: 0 | AA122: 0 | AB122: 0 | AC122: 0 | AD122: 0 | AE122: 0 | AF122: 0 | AG122: 0 | AH122: 0 | AP122: 8 | AT122: 1b | AU122: 2b | AV122: 3b | BG122: =IF(C122>0,MAX($BH$115:BH121)+1,99) -> 99 | BH122: 0 | BM122: 8 | BN122: 0 | BO122: 1 | BP122: 1 | BQ122: 1 | BR122: 0 | BS122: 0 | BT122: =IF(AND(C122=0,C134>0,A122>$G$503),1,0) -> 0 | BU122: 0 | BV122: 0 | BW122: 0 | BX122: 10000000 | CC122: =IF(A122<=$C$109,CC121,TRUE) -> TRUE
I123: Used? | J123: =IF(AND(J135=0,J136=0),FALSE,TRUE) -> FALSE | K123: =IF(AND(K135=0,K136=0),FALSE,TRUE) -> FALSE | L123: =IF(AND(L135=0,L136=0),FALSE,TRUE) -> FALSE | N123: =IF(AND(N135=0,N136=0),FALSE,TRUE) -> FALSE | O123: FALSE | P123: FALSE | Q123: FALSE | R123: FALSE | S123: FALSE | T123: FALSE | U123: FALSE | V123: FALSE | W123: FALSE | X123: FALSE | Y123: FALSE | Z123: FALSE | AA123: FALSE | AB123: FALSE | AC123: FALSE | AD123: FALSE | AE123: FALSE | AF123: FALSE | AG123: FALSE | AH123: FALSE | CC123: =$CC$110 -> TRUE
I124: Varies? | J124: =IF(J123,IF(J136<>J135,TRUE,FALSE)) -> FALSE | K124: =IF(K123,IF(K136<>K135,TRUE,FALSE)) -> FALSE | L124: =IF(L123,IF(L136<>L135,TRUE,FALSE)) -> FALSE | N124: =IF(N123,IF(N136<>N135,TRUE,FALSE)) -> FALSE | O124: FALSE | P124: FALSE | Q124: FALSE | R124: FALSE | S124: FALSE | T124: FALSE | U124: FALSE | V124: FALSE | W124: FALSE | X124: FALSE | Y124: FALSE | Z124: FALSE | AA124: FALSE | AB124: FALSE | AC124: FALSE | AD124: FALSE | AE124: FALSE | AF124: FALSE | AG124: FALSE | AH124: FALSE | CC124: TRUE
D125: Rank of Variation | J125: =IF(J124,I125+1,I125) -> 0 | K125: =IF(K124,J125+1,J125) -> 0 | L125: 0 | M125: 0 | N125: 0 | O125: 0 | P125: 0 | Q125: 0 | R125: 0 | S125: 0 | T125: 0 | U125: 0 | V125: 0 | W125: 0 | X125: 0 | Y125: 0 | Z125: 0 | AA125: 0 | AB125: 0 | AC125: 0 | AD125: 0 | AE125: 0 | AF125: 0 | AG125: 0 | AH125: 0 | CC125: TRUE
D126: Sample 1 | J126: =IF(J$123,IF(J$124,2,1),0) -> 0 | K126: 0 | L126: 0 | N126: =IF(N$123,IF(N$124,2,1),0) -> 0 | O126: 0 | P126: 0 | Q126: 0 | R126: 0 | S126: 0 | T126: 0 | U126: 0 | V126: 0 | W126: 0 | X126: 0 | Y126: 0 | Z126: 0 | AA126: 0 | AB126: 0 | AC126: 0 | AD126: =IF(AD$123,IF(AD$124,2,1),0) -> 0 | AE126: 0 | AF126: 0 | AG126: 0 | AH126: 0 | CC126: TRUE
D127: Sample 2 | J127: 0 | K127: 0 | L127: 0 | N127: 0 | O127: 0 | P127: 0 | Q127: 0 | R127: 0 | S127: 0 | T127: 0 | U127: 0 | V127: 0 | W127: 0 | X127: 0 | Y127: 0 | Z127: 0 | AA127: 0 | AB127: 0 | AC127: 0 | AD127: 0 | AE127: 0 | AF127: 0 | AG127: 0 | AH127: 0 | CC127: TRUE
D128: Sample 3 | J128: 0 | K128: 0 | L128: 0 | N128: 0 | O128: 0 | P128: 0 | Q128: 0 | R128: 0 | S128: 0 | T128: 0 | U128: 0 | V128: 0 | W128: 0 | X128: 0 | Y128: 0 | Z128: 0 | AA128: 0 | AB128: 0 | AC128: 0 | AD128: 0 | AE128: 0 | AF128: 0 | AG128: 0 | AH128: 0 | CC128: TRUE
D129: Sample 4 | J129: 0 | K129: 0 | L129: 0 | N129: 0 | O129: 0 | P129: 0 | Q129: 0 | R129: 0 | S129: 0 | T129: 0 | U129: 0 | V129: 0 | W129: 0 | X129: 0 | Y129: 0 | Z129: 0 | AA129: 0 | AB129: 0 | AC129: 0 | AD129: 0 | AE129: 0 | AF129: 0 | AG129: 0 | AH129: 0 | CC129: TRUE
D130: Sample 5 | J130: 0 | K130: 0 | L130: 0 | N130: 0 | O130: 0 | P130: 0 | Q130: 0 | R130: 0 | S130: 0 | T130: 0 | U130: 0 | V130: 0 | W130: 0 | X130: 0 | Y130: 0 | Z130: 0 | AA130: 0 | AB130: 0 | AC130: 0 | AD130: 0 | AE130: 0 | AF130: 0 | AG130: 0 | AH130: 0 | CC130: TRUE
D131: Sample 6 | J131: 0 | K131: 0 | L131: 0 | N131: 0 | O131: 0 | P131: 0 | Q131: 0 | R131: 0 | S131: 0 | T131: 0 | U131: 0 | V131: 0 | W131: 0 | X131: 0 | Y131: 0 | Z131: 0 | AA131: 0 | AB131: 0 | AC131: 0 | AD131: 0 | AE131: 0 | AF131: 0 | AG131: 0 | AH131: 0 | CC131: TRUE
D132: Sample 7 | J132: 0 | K132: 0 | L132: 0 | N132: 0 | O132: 0 | P132: 0 | Q132: 0 | R132: 0 | S132: 0 | T132: 0 | U132: 0 | V132: 0 | W132: 0 | X132: 0 | Y132: 0 | Z132: 0 | AA132: 0 | AB132: 0 | AC132: 0 | AD132: 0 | AE132: 0 | AF132: 0 | AG132: 0 | AH132: 0 | BR132: =SUM(BR115:BR121) -> 0 | BS132: =SUM(BS115:BS121) -> 0 | BT132: =SUM(BT115:BT121) -> 0 | BU132: =MAX(BU115:BU121) -> 0 | BV132: =MAX(BV115:BV121) -> 0 | CC132: TRUE
D133: Sample 8 | J133: 0 | K133: 0 | L133: 0 | N133: 0 | O133: 0 | P133: 0 | Q133: 0 | R133: 0 | S133: 0 | T133: 0 | U133: 0 | V133: 0 | W133: 0 | X133: 0 | Y133: 0 | Z133: 0 | AA133: 0 | AB133: 0 | AC133: 0 | AD133: 0 | AE133: 0 | AF133: 0 | AG133: 0 | AH133: 0 | AP133: Variations | AQ133: 1 var | AR133: 2 variables | AT133: 3 variables | BM133: Variation Num | BN133: 0 | BO133: 1 | BP133: 2 | BQ133: 3 | BR133: Out of Order? | BS133: Outside Bkt | BT133: Skipped Sample | BU133: no Amount | BV133: no Term | BW133: Checksum of Rows | BZ133: REAL SAMPLES | CC133: TRUE
B134: Num Prices | C134: =COUNTIF(C139:C170,">0") -> 0 | H134: Total Prices-> | I134: =SUM(I115:I122) -> 0 | J134: =IF(MAX(J115:J122)>1,"VARIES",DevOk) ->  | CC134: =$F$666 -> TRUE
B135: =IF(ISNUMBER(F14),IF(F14-MAX(E115:E122)>6,"Note: The max loan term is "&F14&" months. Consider adding samples with longer terms.",DevOk),DevOk) ->  | I135: Min-> | J135: =F23 -> 0 | K135: =MIN(I17:I18) -> 0 | L135: =E27 -> 0 | N135: =$E$31 -> 0 | O135: =$I$31 -> 0 | P135: =$E$33 -> 0 | Q135: =$I$33 -> 0 | R135: =$E$32 -> 0 | S135: =$I$32 -> 0 | T135: =$E$34 -> 0 | U135: =$I$34 -> 0 | V135: =E38 -> 0 | W135: =I38 -> 0 | X135: =E40 -> 0 | Y135: =I40 -> 0 | Z135: =E39 -> 0 | AA135: =I39 -> 0 | AB135: =E41 -> 0 | AC135: =I41 -> 0 | AD135: =E51 -> 0 | AE135: =I51 -> 0 | AF135: =E52 -> 0 | AG135: =I52 -> 0 | AH135: =(E53+F53)/2 -> 0 | CC135: TRUE
A136: Note: You can type over the values of the green and white cells below after column I. | I136: Max-> | J136: =IF(ISBLANK(G23),J135,G23) -> 0 | K136: =MAX(I17:I18) -> 0 | L136: =F27 -> 0 | N136: =$F$31 -> 0 | O136: =$J$31 -> 0 | P136: =$F$33 -> 0 | Q136: =$J$33 -> 0 | R136: =$F$32 -> 0 | S136: =$J$32 -> 0 | T136: =$F$34 -> 0 | U136: =$J$34 -> 0 | V136: =F38 -> 0 | W136: =J38 -> 0 | X136: =F40 -> 0 | Y136: =J40 -> 0 | Z136: =F39 -> 0 | AA136: =J39 -> 0 | AB136: =F41 -> 0 | AC136: =J41 -> 0 | AD136: =F51 -> 0 | AE136: =J51 -> 0 | AF136: =F52 -> 0 | AG136: =J52 -> 0 | AH136: =AH135 -> 0 | AO136: =IF(ISNUMBER(AP136),AP136,IF(ISNUMBER(AP137),AP137,IF(ISNUMBER(AP138),AP138,0))) -> 0 | AP136: =MATCH(2,$AP$139:$AP$170,0) ->  | AQ136: Calculated Prices | CC136: TRUE
A137: Row | B137: 1 | C137: =IF($B$137=0,0,INDEX($C$139:$AJ$170,$BB$115,C114)) -> 0 | D137: 0 | E137: 0 | F137: 0 | G137: 0 | H137: 0 | I137: 0 | J137: 0 | K137: 0 | L137: 0 | N137: 0 | O137: 0 | P137: 0 | Q137: 0 | R137: 0 | S137: 0 | T137: 0 | U137: 0 | V137: 0 | W137: 0 | X137: 0 | Y137: 0 | Z137: 0 | AA137: 0 | AB137: 0 | AC137: 0 | AD137: 0 | AE137: 0 | AF137: 0 | AG137: 0 | AH137: 0 | AP137: =MATCH(3,$AP$139:$AP$170,0) ->  | AQ137: =PriceTable!S6 -> SampClients | AR137: =PriceTable!AD6 -> APR (int) | AS137: =PriceTable!AE6 -> APR (int fee) | AT137: =PriceTable!AF6 -> APR (int fee ins) | AU137: =PriceTable!AG6 -> APR (int fee ins tax) | AV137: FullAPR | AW137: TranspInd2 | AX137: Avg Bal | BC137: =ROW(PriceTable!B6) -> 6 | BE137: if REAL | BF137: =ROW(PriceTable!A187) -> 187 | BZ137: Real Samples | CA137: =COUNTIF(XChkCol,">0") -> 0 | CB137: Row | CC137: TRUE
B138: Sam-Var | C138: LoanAmt | D138: LnTmMon | E138: SampleNum | F138: VarNum | G138: SampClients | H138: =IF(Q1="Cross-check","RealSamp","N/A") -> N/A | I138: NumPmts | J138: GraceMon | K138: Frequency | L138: interest | M138: IntMethod | N138: Fee1UpPc | O138: Fee1UpFix | P138: Fee1OnPc | Q138: Fee1OnFix | R138: Fee2UpPc | S138: Fee2UpFix | T138: Fee2OnPerc | U138: Fee2OnFix | V138: Ins1UpPc | W138: Ins1UpFix | X138: Ins1OnPc | Y138: Ins1OnFix | Z138: Ins2UpPc | AA138: Ins2UpFix | AB138: Ins2OnPc | AC138: Ins2OnFix | AD138: SecDepPerc | AE138: SecDepFix | AF138: SecDepOnPerc | AG138: SecDepOnFix | AH138: SecDepInt | AP138: =MATCH(4,$AP$139:$AP$170,0) ->  | AR138: Int | AS138: Fee | AT138: Ins | AU138: Tax | AV138: Dep | AW138: TI2 | AY138: SampNum | BB138: Full Code | BC138: Row in Upper Price | BE138: Row in Price | CC138: TRUE
A139: 1 | B139: =IF(E139>0,E139&"-"&F139,"-") -> - | C139: =IF(E139>0,INDEX($C$115:$C$122,E139),0) -> 0 | D139: =IF(E139>0,INDEX($E$115:$E$122,E139),0) -> 0 | E139: =IF(A139>$I$134,0,AY139) -> 0 | F139: =IF(E139>0,IF(E139=E138,F138+1,IF(H139>0,0,1)),0) -> 0 | G139: =IF(E139>0,INDEX($G$115:$G$122,E139),0) -> 0 | H139: =IF(E139>0,IF(INDEX($H$115:$H$122,E139)>0,IF(E139<>E138,INDEX($H$115:$H$122,E139),0),0),0) -> 0 | I139: =IF(K139=999,1,IF(AND(ISNUMBER(K139),K139<>0),TRUNC((D139-J139)*30/K139,0),0)) -> 0 | J139: =IF(AND(J$123,$B139<>"-"),IF(J$125=2,IF($F139<3,J$136,J$135),IF(MOD($F139,2)=0,J$135,J$136)),0) -> 0 | K139: 0 | L139: 0 | M139: =IF(C139>0,$G$27,"") ->  | N139: =IF(AND(N$123,$B139<>"-"),IF(N$125=2,IF($F139<3,N$136,N$135),IF(MOD($F139,2)=0,N$135,N$136)),0) -> 0 | O139: 0 | P139: 0 | Q139: 0 | R139: 0 | S139: 0 | T139: 0 | U139: 0 | V139: 0 | W139: 0 | X139: 0 | Y139: 0 | Z139: 0 | AA139: 0 | AB139: 0 | AC139: 0 | AD139: =IF(AND(AD$123,$B139<>"-"),IF(AD$125=2,IF($F139<3,AD$136,AD$135),IF(MOD($F139,2)=0,AD$135,AD$136)),0) -> 0 | AE139: 0 | AF139: 0 | AG139: 0 | AH139: 0 | AO139: =(C139*$C$171)+(D139*$D$171)+(H139*$H$171)+(I139*$I$171)+(J139*$J$171)+(K139*$K$171)+(L139*$L$171)+(N139*$N$171)+(O139*$O$171)+(P139*$P$171)+(Q139*$Q$171)+(R139*$R$171)+(S139*$S$171)+(T139*$T$171)+(U139*$U$171)+(V139*$V$171)+(W139*$W$171)+(X139*$X$171)+(Y139*$Y$171)+(Z139*$Z$171)+(AA139*$AA$171)+(AB139*$AB$171)+(AC139*$AC$171)+(AD139*$AD$171)+(AE139*$AE$171)+(AF139*$AF$171)+(AG139*$AG$171)+(AH139*$AH$171) -> 0 | AP139: =IF(B139="-",0,IF(AO139>0,COUNTIF($AO$139:$AO$170,AO139),0)) -> 0 | AQ139: =IF($BC139=999,NA(),INDIRECT(PriceAnalSht&ADDRESS($BC139,AO$114))) ->  | AY139: =IF(AND(A139>=$BG$115,A139<=$BH$115),1,IF(AND(A139>=$BG$116,A139<=$BH$116),2,IF(AND(A139>=$BG$117,A139<=$BH$117),3,IF(AND(A139>=$BG$118,A139<=$BH$118),4,IF(AND(A139>=$BG$119,A139<=$BH$119),5,IF(AND(A139>=$BG$120,A139<=$BH$120),6,IF(AND(A139>=$BG$121,A139<=$BH$121),7,IF(AND(A139>=$BG$122,A139<=$BH$122),8,0)))))))) -> 0 | BB139: =SmpProdInput&"-"&Prod2!B139 -> 2-- | BC139: =IF(ISNA(BD139),999,BD139) -> 999 | BD139: =MATCH(BB139,PriceTable!$B$7:$B$181,0)+$BC$137 ->  | BE139: =IF(F139=0,BF139,999) ->  | BF139: =MATCH(BB139,PriceTable!$E$188:$E$362,0) ->  | CC139: TRUE
A140: 2 | B140: =IF(E140>0,E140&"-"&F140,"-") -> - | C140: 0 | D140: 0 | E140: 0 | F140: =IF(E140>0,IF(E140=E139,F139+1,IF(H140>0,0,1)),0) -> 0 | G140: 0 | H140: 0 | I140: =IF(K140=999,1,IF(AND(ISNUMBER(K140),K140<>0),TRUNC((D140-J140)*30/K140,0),0)) -> 0 | J140: 0 | K140: 0 | L140: 0 | N140: 0 | O140: 0 | P140: 0 | Q140: 0 | R140: 0 | S140: 0 | T140: 0 | U140: 0 | V140: 0 | W140: 0 | X140: 0 | Y140: 0 | Z140: 0 | AA140: 0 | AB140: 0 | AC140: 0 | AD140: 0 | AE140: 0 | AF140: 0 | AG140: 0 | AH140: 0 | AO140: 0 | AP140: 0 | AY140: 0 | BB140: =SmpProdInput&"-"&Prod2!B140 -> 2-- | BC140: =IF(ISNA(BD140),999,BD140) -> 999 | BD140: =MATCH(BB140,PriceTable!$B$7:$B$181,0)+$BC$137 ->  | BE140: =IF(G140=0,BF140,999) ->  | BF140: =MATCH(BB140,PriceTable!$E$188:$E$362,0) ->  | CC140: TRUE
A141: 3 | B141: - | C141: 0 | D141: 0 | E141: 0 | F141: 0 | G141: 0 | H141: 0 | I141: 0 | J141: 0 | K141: 0 | L141: 0 | N141: 0 | O141: 0 | P141: 0 | Q141: 0 | R141: 0 | S141: 0 | T141: 0 | U141: 0 | V141: 0 | W141: 0 | X141: 0 | Y141: 0 | Z141: 0 | AA141: 0 | AB141: 0 | AC141: 0 | AD141: 0 | AE141: 0 | AF141: 0 | AG141: 0 | AH141: 0 | AO141: 0 | AP141: 0 | AY141: 0 | BB141: =SmpProdInput&"-"&Prod2!B141 -> 2-- | BC141: =IF(ISNA(BD141),999,BD141) -> 999 | BD141: =MATCH(BB141,PriceTable!$B$7:$B$181,0)+$BC$137 ->  | BF141: =MATCH(BB141,PriceTable!$E$188:$E$362,0) ->  | CC141: TRUE
A142: 4 | B142: - | C142: 0 | D142: 0 | E142: 0 | F142: 0 | G142: 0 | H142: 0 | I142: 0 | J142: 0 | K142: 0 | L142: 0 | N142: 0 | O142: 0 | P142: 0 | Q142: 0 | R142: 0 | S142: 0 | T142: 0 | U142: 0 | V142: 0 | W142: 0 | X142: 0 | Y142: 0 | Z142: 0 | AA142: 0 | AB142: 0 | AC142: 0 | AD142: 0 | AE142: 0 | AF142: 0 | AG142: 0 | AH142: 0 | AO142: 0 | AP142: 0 | AY142: 0 | BB142: =SmpProdInput&"-"&Prod2!B142 -> 2-- | BC142: =IF(ISNA(BD142),999,BD142) -> 999 | BD142: =MATCH(BB142,PriceTable!$B$7:$B$181,0)+$BC$137 ->  | BF142: =MATCH(BB142,PriceTable!$E$188:$E$362,0) ->  | CC142: =IF(B142="-",TRUE,$CC$139) -> TRUE
A143: 5 | B143: - | C143: 0 | D143: 0 | E143: 0 | F143: 0 | G143: 0 | H143: 0 | I143: 0 | J143: 0 | K143: 0 | L143: 0 | N143: 0 | O143: 0 | P143: 0 | Q143: 0 | R143: 0 | S143: 0 | T143: 0 | U143: 0 | V143: 0 | W143: 0 | X143: 0 | Y143: 0 | Z143: 0 | AA143: 0 | AB143: 0 | AC143: 0 | AD143: 0 | AE143: 0 | AF143: 0 | AG143: 0 | AH143: 0 | AO143: 0 | AP143: 0 | AY143: 0 | BB143: =SmpProdInput&"-"&Prod2!B143 -> 2-- | BC143: =IF(ISNA(BD143),999,BD143) -> 999 | BD143: =MATCH(BB143,PriceTable!$B$7:$B$181,0)+$BC$137 ->  | BF143: =MATCH(BB143,PriceTable!$E$188:$E$362,0) ->  | CC143: TRUE
A144: 6 | B144: - | C144: 0 | D144: 0 | E144: 0 | F144: 0 | G144: 0 | H144: 0 | I144: 0 | J144: 0 | K144: 0 | L144: 0 | N144: 0 | O144: 0 | P144: 0 | Q144: 0 | R144: 0 | S144: 0 | T144: 0 | U144: 0 | V144: 0 | W144: 0 | X144: 0 | Y144: 0 | Z144: 0 | AA144: 0 | AB144: 0 | AC144: 0 | AD144: 0 | AE144: 0 | AF144: 0 | AG144: 0 | AH144: 0 | AO144: 0 | AP144: 0 | AY144: 0 | BB144: =SmpProdInput&"-"&Prod2!B144 -> 2-- | BC144: =IF(ISNA(BD144),999,BD144) -> 999 | BD144: =MATCH(BB144,PriceTable!$B$7:$B$181,0)+$BC$137 ->  | BF144: =MATCH(BB144,PriceTable!$E$188:$E$362,0) ->  | CC144: TRUE
A145: 7 | B145: - | C145: 0 | D145: 0 | E145: 0 | F145: 0 | G145: 0 | H145: 0 | I145: 0 | J145: 0 | K145: 0 | L145: 0 | N145: 0 | O145: 0 | P145: 0 | Q145: 0 | R145: 0 | S145: 0 | T145: 0 | U145: 0 | V145: 0 | W145: 0 | X145: 0 | Y145: 0 | Z145: 0 | AA145: 0 | AB145: 0 | AC145: 0 | AD145: 0 | AE145: 0 | AF145: 0 | AG145: 0 | AH145: 0 | AO145: 0 | AP145: 0 | AY145: 0 | BB145: =SmpProdInput&"-"&Prod2!B145 -> 2-- | BC145: 999 | BD145: =MATCH(BB145,PriceTable!$B$7:$B$181,0)+$BC$137 ->  | BF145: =MATCH(BB145,PriceTable!$E$188:$E$362,0) ->  | CC145: TRUE
A146: 8 | B146: - | C146: 0 | D146: 0 | E146: 0 | F146: 0 | G146: 0 | H146: 0 | I146: 0 | J146: 0 | K146: 0 | L146: 0 | N146: 0 | O146: 0 | P146: 0 | Q146: 0 | R146: 0 | S146: 0 | T146: 0 | U146: 0 | V146: 0 | W146: 0 | X146: 0 | Y146: 0 | Z146: 0 | AA146: 0 | AB146: 0 | AC146: 0 | AD146: 0 | AE146: 0 | AF146: 0 | AG146: 0 | AH146: 0 | AO146: 0 | AP146: 0 | AY146: 0 | BB146: =SmpProdInput&"-"&Prod2!B146 -> 2-- | BC146: 999 | BD146: =MATCH(BB146,PriceTable!$B$7:$B$181,0)+$BC$137 ->  | BF146: =MATCH(BB146,PriceTable!$E$188:$E$362,0) ->  | CC146: TRUE
A147: 9 | B147: - | C147: 0 | D147: 0 | E147: 0 | F147: 0 | G147: 0 | H147: 0 | I147: 0 | J147: 0 | K147: 0 | L147: 0 | N147: 0 | O147: 0 | P147: 0 | Q147: 0 | R147: 0 | S147: 0 | T147: 0 | U147: 0 | V147: 0 | W147: 0 | X147: 0 | Y147: 0 | Z147: 0 | AA147: 0 | AB147: 0 | AC147: 0 | AD147: 0 | AE147: 0 | AF147: 0 | AG147: 0 | AH147: 0 | AO147: 0 | AP147: 0 | AY147: 0 | BB147: =SmpProdInput&"-"&Prod2!B147 -> 2-- | BC147: 999 | BD147: =MATCH(BB147,PriceTable!$B$7:$B$181,0)+$BC$137 ->  | BF147: =MATCH(BB147,PriceTable!$E$188:$E$362,0) ->  | CC147: TRUE
A148: 10 | B148: - | C148: 0 | D148: 0 | E148: 0 | F148: 0 | G148: 0 | H148: 0 | I148: 0 | J148: 0 | K148: 0 | L148: 0 | N148: 0 | O148: 0 | P148: 0 | Q148: 0 | R148: 0 | S148: 0 | T148: 0 | U148: 0 | V148: 0 | W148: 0 | X148: 0 | Y148: 0 | Z148: 0 | AA148: 0 | AB148: 0 | AC148: 0 | AD148: 0 | AE148: 0 | AF148: 0 | AG148: 0 | AH148: 0 | AO148: 0 | AP148: 0 | AY148: 0 | BB148: =SmpProdInput&"-"&Prod2!B148 -> 2-- | BC148: 999 | BD148: =MATCH(BB148,PriceTable!$B$7:$B$181,0)+$BC$137 ->  | BF148: =MATCH(BB148,PriceTable!$E$188:$E$362,0) ->  | CC148: TRUE
A149: 11 | B149: - | C149: 0 | D149: 0 | E149: 0 | F149: 0 | G149: 0 | H149: 0 | I149: 0 | J149: 0 | K149: 0 | L149: 0 | N149: 0 | O149: 0 | P149: 0 | Q149: 0 | R149: 0 | S149: 0 | T149: 0 | U149: 0 | V149: 0 | W149: 0 | X149: 0 | Y149: 0 | Z149: 0 | AA149: 0 | AB149: 0 | AC149: 0 | AD149: 0 | AE149: 0 | AF149: 0 | AG149: 0 | AH149: 0 | AO149: 0 | AP149: 0 | AY149: 0 | BB149: =SmpProdInput&"-"&Prod2!B149 -> 2-- | BC149: 999 | BD149: =MATCH(BB149,PriceTable!$B$7:$B$181,0)+$BC$137 ->  | BF149: =MATCH(BB149,PriceTable!$E$188:$E$362,0) ->  | CC149: TRUE
A150: 12 | B150: - | C150: 0 | D150: 0 | E150: 0 | F150: 0 | G150: 0 | H150: 0 | I150: 0 | J150: 0 | K150: 0 | L150: 0 | N150: 0 | O150: 0 | P150: 0 | Q150: 0 | R150: 0 | S150: 0 | T150: 0 | U150: 0 | V150: 0 | W150: 0 | X150: 0 | Y150: 0 | Z150: 0 | AA150: 0 | AB150: 0 | AC150: 0 | AD150: 0 | AE150: 0 | AF150: 0 | AG150: 0 | AH150: 0 | AO150: 0 | AP150: 0 | AY150: 0 | BB150: =SmpProdInput&"-"&Prod2!B150 -> 2-- | BC150: 999 | BD150: =MATCH(BB150,PriceTable!$B$7:$B$181,0)+$BC$137 ->  | BF150: =MATCH(BB150,PriceTable!$E$188:$E$362,0) ->  | CC150: TRUE
A151: 13 | B151: - | C151: 0 | D151: 0 | E151: 0 | F151: 0 | G151: 0 | H151: 0 | I151: 0 | J151: 0 | K151: 0 | L151: 0 | N151: 0 | O151: 0 | P151: 0 | Q151: 0 | R151: 0 | S151: 0 | T151: 0 | U151: 0 | V151: 0 | W151: 0 | X151: 0 | Y151: 0 | Z151: 0 | AA151: 0 | AB151: 0 | AC151: 0 | AD151: 0 | AE151: 0 | AF151: 0 | AG151: 0 | AH151: 0 | AO151: 0 | AP151: 0 | AY151: 0 | BB151: =SmpProdInput&"-"&Prod2!B151 -> 2-- | BC151: 999 | BD151: =MATCH(BB151,PriceTable!$B$7:$B$181,0)+$BC$137 ->  | BF151: =MATCH(BB151,PriceTable!$E$188:$E$362,0) ->  | CC151: TRUE
A152: 14 | B152: - | C152: 0 | D152: 0 | E152: 0 | F152: 0 | G152: 0 | H152: 0 | I152: 0 | J152: 0 | K152: 0 | L152: 0 | N152: 0 | O152: 0 | P152: 0 | Q152: 0 | R152: 0 | S152: 0 | T152: 0 | U152: 0 | V152: 0 | W152: 0 | X152: 0 | Y152: 0 | Z152: 0 | AA152: 0 | AB152: 0 | AC152: 0 | AD152: 0 | AE152: 0 | AF152: 0 | AG152: 0 | AH152: 0 | AO152: 0 | AP152: 0 | AY152: 0 | BB152: =SmpProdInput&"-"&Prod2!B152 -> 2-- | BC152: 999 | BD152: =MATCH(BB152,PriceTable!$B$7:$B$181,0)+$BC$137 ->  | BF152: =MATCH(BB152,PriceTable!$E$188:$E$362,0) ->  | CC152: TRUE
A153: 15 | B153: - | C153: 0 | D153: 0 | E153: 0 | F153: 0 | G153: 0 | H153: 0 | I153: 0 | J153: 0 | K153: 0 | L153: 0 | N153: 0 | O153: 0 | P153: 0 | Q153: 0 | R153: 0 | S153: 0 | T153: 0 | U153: 0 | V153: 0 | W153: 0 | X153: 0 | Y153: 0 | Z153: 0 | AA153: 0 | AB153: 0 | AC153: 0 | AD153: 0 | AE153: 0 | AF153: 0 | AG153: 0 | AH153: 0 | AO153: 0 | AP153: 0 | AY153: 0 | BB153: =SmpProdInput&"-"&Prod2!B153 -> 2-- | BC153: 999 | BD153: =MATCH(BB153,PriceTable!$B$7:$B$181,0)+$BC$137 ->  | BF153: =MATCH(BB153,PriceTable!$E$188:$E$362,0) ->  | CC153: TRUE
A154: 16 | B154: - | C154: 0 | D154: 0 | E154: 0 | F154: 0 | G154: 0 | H154: 0 | I154: 0 | J154: 0 | K154: 0 | L154: 0 | N154: 0 | O154: 0 | P154: 0 | Q154: 0 | R154: 0 | S154: 0 | T154: 0 | U154: 0 | V154: 0 | W154: 0 | X154: 0 | Y154: 0 | Z154: 0 | AA154: 0 | AB154: 0 | AC154: =IF(AND(AC$123,$B154<>"-"),IF(AC$125=2,IF($F154<3,AC$136,AC$135),IF(MOD($F154,2)=0,AC$135,AC$136)),0) -> 0 | AD154: 0 | AE154: 0 | AF154: 0 | AG154: 0 | AH154: 0 | AO154: 0 | AP154: 0 | AY154: 0 | BB154: =SmpProdInput&"-"&Prod2!B154 -> 2-- | BC154: 999 | BD154: =MATCH(BB154,PriceTable!$B$7:$B$181,0)+$BC$137 ->  | BF154: =MATCH(BB154,PriceTable!$E$188:$E$362,0) ->  | CC154: TRUE
A155: 17 | B155: - | C155: 0 | D155: 0 | E155: 0 | F155: 0 | G155: 0 | H155: 0 | I155: 0 | J155: 0 | K155: 0 | L155: 0 | N155: =IF(AND(N$123,$B155<>"-"),IF(N$125=2,IF($F155<3,N$136,N$135),IF(MOD($F155,2)=0,N$135,N$136)),0) -> 0 | O155: 0 | P155: 0 | Q155: 0 | R155: 0 | S155: 0 | T155: 0 | U155: 0 | V155: 0 | W155: 0 | X155: 0 | Y155: 0 | Z155: 0 | AA155: 0 | AB155: 0 | AC155: 0 | AD155: 0 | AE155: 0 | AF155: 0 | AG155: 0 | AH155: 0 | AO155: 0 | AP155: 0 | AY155: 0 | BB155: =SmpProdInput&"-"&Prod2!B155 -> 2-- | BC155: 999 | BD155: =MATCH(BB155,PriceTable!$B$7:$B$181,0)+$BC$137 ->  | BF155: =MATCH(BB155,PriceTable!$E$188:$E$362,0) ->  | CC155: TRUE
A156: 18 | B156: - | C156: 0 | D156: 0 | E156: 0 | F156: 0 | G156: 0 | H156: 0 | I156: 0 | J156: 0 | K156: 0 | L156: 0 | N156: 0 | O156: 0 | P156: 0 | Q156: 0 | R156: 0 | S156: 0 | T156: 0 | U156: 0 | V156: 0 | W156: 0 | X156: 0 | Y156: 0 | Z156: 0 | AA156: 0 | AB156: 0 | AC156: 0 | AD156: 0 | AE156: 0 | AF156: 0 | AG156: 0 | AH156: 0 | AO156: 0 | AP156: 0 | AY156: 0 | BB156: =SmpProdInput&"-"&Prod2!B156 -> 2-- | BC156: 999 | BD156: =MATCH(BB156,PriceTable!$B$7:$B$181,0)+$BC$137 ->  | BF156: =MATCH(BB156,PriceTable!$E$188:$E$362,0) ->  | CC156: TRUE
A157: 19 | B157: - | C157: 0 | D157: 0 | E157: 0 | F157: 0 | G157: 0 | H157: 0 | I157: 0 | J157: 0 | K157: 0 | L157: 0 | N157: 0 | O157: 0 | P157: 0 | Q157: 0 | R157: 0 | S157: 0 | T157: 0 | U157: 0 | V157: 0 | W157: 0 | X157: 0 | Y157: 0 | Z157: 0 | AA157: 0 | AB157: 0 | AC157: 0 | AD157: 0 | AE157: 0 | AF157: 0 | AG157: 0 | AH157: 0 | AO157: 0 | AP157: 0 | AY157: 0 | BB157: =SmpProdInput&"-"&Prod2!B157 -> 2-- | BC157: 999 | BD157: =MATCH(BB157,PriceTable!$B$7:$B$181,0)+$BC$137 ->  | BF157: =MATCH(BB157,PriceTable!$E$188:$E$362,0) ->  | CC157: TRUE
A158: 20 | B158: - | C158: 0 | D158: 0 | E158: 0 | F158: 0 | G158: 0 | H158: 0 | I158: 0 | J158: 0 | K158: 0 | L158: 0 | N158: 0 | O158: 0 | P158: 0 | Q158: 0 | R158: 0 | S158: 0 | T158: 0 | U158: 0 | V158: 0 | W158: 0 | X158: 0 | Y158: 0 | Z158: 0 | AA158: 0 | AB158: 0 | AC158: 0 | AD158: 0 | AE158: 0 | AF158: 0 | AG158: 0 | AH158: 0 | AO158: 0 | AP158: =IF(B158="-",0,IF(AO158>0,COUNTIF($AO$139:$AO$170,AO158),0)) -> 0 | AY158: 0 | BB158: =SmpProdInput&"-"&Prod2!B158 -> 2-- | BC158: 999 | BD158: =MATCH(BB158,PriceTable!$B$7:$B$181,0)+$BC$137 ->  | BF158: =MATCH(BB158,PriceTable!$E$188:$E$362,0) ->  | CC158: TRUE
A159: 21 | B159: - | C159: 0 | D159: 0 | E159: 0 | F159: 0 | G159: 0 | H159: 0 | I159: 0 | J159: 0 | K159: 0 | L159: 0 | N159: 0 | O159: 0 | P159: 0 | Q159: 0 | R159: 0 | S159: 0 | T159: 0 | U159: 0 | V159: 0 | W159: 0 | X159: 0 | Y159: 0 | Z159: 0 | AA159: 0 | AB159: 0 | AC159: 0 | AD159: 0 | AE159: 0 | AF159: 0 | AG159: 0 | AH159: 0 | AO159: 0 | AP159: =IF(B159="-",0,IF(AO159>0,COUNTIF($AO$139:$AO$170,AO159),0)) -> 0 | AY159: 0 | BB159: =SmpProdInput&"-"&Prod2!B159 -> 2-- | BC159: 999 | BD159: =MATCH(BB159,PriceTable!$B$7:$B$181,0)+$BC$137 ->  | BF159: =MATCH(BB159,PriceTable!$E$188:$E$362,0) ->  | CC159: TRUE
A160: 22 | B160: - | C160: 0 | D160: 0 | E160: 0 | F160: 0 | G160: 0 | H160: 0 | I160: 0 | J160: 0 | K160: 0 | L160: 0 | N160: 0 | O160: 0 | P160: 0 | Q160: 0 | R160: 0 | S160: 0 | T160: 0 | U160: 0 | V160: 0 | W160: 0 | X160: 0 | Y160: 0 | Z160: 0 | AA160: 0 | AB160: 0 | AC160: 0 | AD160: 0 | AE160: 0 | AF160: 0 | AG160: 0 | AH160: 0 | AO160: 0 | AP160: 0 | AY160: 0 | BB160: =SmpProdInput&"-"&Prod2!B160 -> 2-- | BC160: 999 | BD160: =MATCH(BB160,PriceTable!$B$7:$B$181,0)+$BC$137 ->  | BF160: =MATCH(BB160,PriceTable!$E$188:$E$362,0) ->  | CC160: TRUE
A161: 23 | B161: - | C161: 0 | D161: 0 | E161: 0 | F161: 0 | G161: 0 | H161: 0 | I161: 0 | J161: 0 | K161: 0 | L161: 0 | N161: 0 | O161: 0 | P161: 0 | Q161: 0 | R161: 0 | S161: 0 | T161: 0 | U161: 0 | V161: 0 | W161: 0 | X161: 0 | Y161: 0 | Z161: 0 | AA161: 0 | AB161: 0 | AC161: 0 | AD161: 0 | AE161: 0 | AF161: 0 | AG161: 0 | AH161: 0 | AO161: 0 | AP161: 0 | AY161: 0 | BB161: =SmpProdInput&"-"&Prod2!B161 -> 2-- | BC161: 999 | BD161: =MATCH(BB161,PriceTable!$B$7:$B$181,0)+$BC$137 ->  | BF161: =MATCH(BB161,PriceTable!$E$188:$E$362,0) ->  | CC161: TRUE
A162: 24 | B162: - | C162: 0 | D162: 0 | E162: 0 | F162: 0 | G162: 0 | H162: 0 | I162: 0 | J162: 0 | K162: 0 | L162: 0 | N162: 0 | O162: 0 | P162: 0 | Q162: 0 | R162: 0 | S162: 0 | T162: 0 | U162: 0 | V162: 0 | W162: 0 | X162: 0 | Y162: 0 | Z162: 0 | AA162: 0 | AB162: 0 | AC162: 0 | AD162: 0 | AE162: 0 | AF162: 0 | AG162: 0 | AH162: 0 | AO162: 0 | AP162: 0 | AY162: 0 | BB162: =SmpProdInput&"-"&Prod2!B162 -> 2-- | BC162: 999 | BD162: =MATCH(BB162,PriceTable!$B$7:$B$181,0)+$BC$137 ->  | BF162: =MATCH(BB162,PriceTable!$E$188:$E$362,0) ->  | CC162: TRUE
A163: 25 | B163: - | C163: 0 | D163: 0 | E163: 0 | F163: 0 | G163: 0 | H163: 0 | I163: 0 | J163: 0 | K163: 0 | L163: 0 | N163: 0 | O163: 0 | P163: 0 | Q163: 0 | R163: 0 | S163: 0 | T163: 0 | U163: 0 | V163: 0 | W163: 0 | X163: 0 | Y163: 0 | Z163: 0 | AA163: 0 | AB163: 0 | AC163: 0 | AD163: 0 | AE163: 0 | AF163: 0 | AG163: 0 | AH163: 0 | AO163: 0 | AP163: 0 | AY163: 0 | BB163: =SmpProdInput&"-"&Prod2!B163 -> 2-- | BC163: 999 | BD163: =MATCH(BB163,PriceTable!$B$7:$B$181,0)+$BC$137 ->  | BF163: =MATCH(BB163,PriceTable!$E$188:$E$362,0) ->  | CC163: TRUE
A164: 26 | B164: - | C164: 0 | D164: 0 | E164: 0 | F164: 0 | G164: 0 | H164: 0 | I164: 0 | J164: 0 | K164: 0 | L164: 0 | N164: 0 | O164: 0 | P164: 0 | Q164: 0 | R164: 0 | S164: 0 | T164: 0 | U164: 0 | V164: 0 | W164: 0 | X164: 0 | Y164: 0 | Z164: 0 | AA164: 0 | AB164: 0 | AC164: 0 | AD164: 0 | AE164: 0 | AF164: 0 | AG164: 0 | AH164: 0 | AO164: 0 | AP164: 0 | AY164: 0 | BB164: =SmpProdInput&"-"&Prod2!B164 -> 2-- | BC164: 999 | BD164: =MATCH(BB164,PriceTable!$B$7:$B$181,0)+$BC$137 ->  | BF164: =MATCH(BB164,PriceTable!$E$188:$E$362,0) ->  | CC164: TRUE
A165: 27 | B165: - | C165: 0 | D165: 0 | E165: 0 | F165: 0 | G165: 0 | H165: 0 | I165: 0 | J165: 0 | K165: 0 | L165: 0 | N165: 0 | O165: 0 | P165: 0 | Q165: 0 | R165: 0 | S165: 0 | T165: 0 | U165: 0 | V165: 0 | W165: 0 | X165: 0 | Y165: 0 | Z165: 0 | AA165: 0 | AB165: 0 | AC165: 0 | AD165: 0 | AE165: 0 | AF165: 0 | AG165: 0 | AH165: 0 | AO165: 0 | AP165: 0 | AY165: 0 | BB165: =SmpProdInput&"-"&Prod2!B165 -> 2-- | BC165: 999 | BD165: =MATCH(BB165,PriceTable!$B$7:$B$181,0)+$BC$137 ->  | BF165: =MATCH(BB165,PriceTable!$E$188:$E$362,0) ->  | CC165: TRUE
A166: 28 | B166: - | C166: 0 | D166: 0 | E166: 0 | F166: 0 | G166: 0 | H166: 0 | I166: 0 | J166: 0 | K166: 0 | L166: 0 | N166: 0 | O166: 0 | P166: 0 | Q166: 0 | R166: 0 | S166: 0 | T166: 0 | U166: 0 | V166: 0 | W166: 0 | X166: 0 | Y166: 0 | Z166: 0 | AA166: 0 | AB166: 0 | AC166: 0 | AD166: 0 | AE166: 0 | AF166: 0 | AG166: 0 | AH166: 0 | AO166: 0 | AP166: 0 | AY166: 0 | BB166: =SmpProdInput&"-"&Prod2!B166 -> 2-- | BC166: 999 | BD166: =MATCH(BB166,PriceTable!$B$7:$B$181,0)+$BC$137 ->  | BF166: =MATCH(BB166,PriceTable!$E$188:$E$362,0) ->  | CC166: TRUE
A167: 29 | B167: - | C167: 0 | D167: 0 | E167: 0 | F167: 0 | G167: 0 | H167: 0 | I167: 0 | J167: 0 | K167: 0 | L167: 0 | N167: 0 | O167: 0 | P167: 0 | Q167: 0 | R167: 0 | S167: 0 | T167: 0 | U167: 0 | V167: 0 | W167: 0 | X167: 0 | Y167: 0 | Z167: 0 | AA167: 0 | AB167: 0 | AC167: 0 | AD167: 0 | AE167: 0 | AF167: 0 | AG167: 0 | AH167: 0 | AO167: 0 | AP167: 0 | AY167: 0 | BB167: =SmpProdInput&"-"&Prod2!B167 -> 2-- | BC167: 999 | BD167: =MATCH(BB167,PriceTable!$B$7:$B$181,0)+$BC$137 ->  | BF167: =MATCH(BB167,PriceTable!$E$188:$E$362,0) ->  | CC167: TRUE
A168: 30 | B168: - | C168: 0 | D168: 0 | E168: 0 | F168: 0 | G168: 0 | H168: 0 | I168: 0 | J168: 0 | K168: 0 | L168: 0 | N168: 0 | O168: 0 | P168: 0 | Q168: 0 | R168: 0 | S168: 0 | T168: 0 | U168: 0 | V168: 0 | W168: 0 | X168: 0 | Y168: 0 | Z168: 0 | AA168: 0 | AB168: 0 | AC168: 0 | AD168: 0 | AE168: 0 | AF168: 0 | AG168: 0 | AH168: 0 | AO168: 0 | AP168: 0 | AY168: 0 | BB168: =SmpProdInput&"-"&Prod2!B168 -> 2-- | BC168: 999 | BD168: =MATCH(BB168,PriceTable!$B$7:$B$181,0)+$BC$137 ->  | BF168: =MATCH(BB168,PriceTable!$E$188:$E$362,0) ->  | CC168: TRUE
A169: 31 | B169: - | C169: 0 | D169: 0 | E169: 0 | F169: 0 | G169: 0 | H169: 0 | I169: 0 | J169: 0 | K169: 0 | L169: 0 | N169: 0 | O169: 0 | P169: 0 | Q169: 0 | R169: 0 | S169: 0 | T169: 0 | U169: 0 | V169: 0 | W169: 0 | X169: 0 | Y169: 0 | Z169: 0 | AA169: 0 | AB169: 0 | AC169: 0 | AD169: 0 | AE169: 0 | AF169: 0 | AG169: 0 | AH169: 0 | AO169: 0 | AP169: 0 | AY169: 0 | BB169: =SmpProdInput&"-"&Prod2!B169 -> 2-- | BC169: 999 | BD169: =MATCH(BB169,PriceTable!$B$7:$B$181,0)+$BC$137 ->  | BF169: =MATCH(BB169,PriceTable!$E$188:$E$362,0) ->  | CC169: TRUE
A170: 32 | B170: - | C170: 0 | D170: 0 | E170: 0 | F170: 0 | G170: 0 | H170: 0 | I170: 0 | J170: 0 | K170: 0 | L170: 0 | N170: 0 | O170: 0 | P170: 0 | Q170: 0 | R170: 0 | S170: 0 | T170: 0 | U170: 0 | V170: 0 | W170: 0 | X170: 0 | Y170: 0 | Z170: 0 | AA170: 0 | AB170: 0 | AC170: 0 | AD170: =IF(AND(AD$123,$B170<>"-"),IF(AD$125=2,IF($F170<3,AD$136,AD$135),IF(MOD($F170,2)=0,AD$135,AD$136)),0) -> 0 | AE170: 0 | AF170: 0 | AG170: 0 | AH170: 0 | AO170: 0 | AP170: 0 | AX170: =IF($BC170=999,NA(),INDIRECT(PriceAnalSht&ADDRESS($BC170,AV$114))) ->  | AY170: 0 | BB170: =SmpProdInput&"-"&Prod2!B170 -> 2-- | BC170: 999 | BD170: =MATCH(BB170,PriceTable!$B$7:$B$181,0)+$BC$137 ->  | BF170: =MATCH(BB170,PriceTable!$E$188:$E$362,0) ->  | CC170: TRUE
B171: =MATCH(APRSampVar,B139:B170,0) ->  | C171: 1 | D171: =C171+1 -> 2 | H171: 3 | I171: 4 | J171: =I171+1 -> 5 | K171: =J171+1 -> 6 | L171: =K171+1 -> 7 | N171: =L171+1 -> 8 | O171: =N171+1 -> 9 | P171: =O171+1 -> 10 | Q171: 11 | R171: 12 | S171: 13 | T171: 14 | U171: 15 | V171: 16 | W171: 17 | X171: 18 | Y171: 19 | Z171: 20 | AA171: 21 | AB171: 22 | AC171: 23 | AD171: 24 | AE171: 25 | AF171: 26 | AG171: 27 | AH171: 28 | CC171: =CC84 -> TRUE
CC172: =$F$666 -> TRUE
B173: No | C173: =IF(PStep3Done="Yes","Click in any cell on the worksheet to begin running the routine to calculate prices and open the next section.","Is your review complete? Choose YES to auto-generate all the prices and continue to STEP 4") -> Is your review complete? Choose YES to auto-generate all the prices and continue to STEP 4 | CC173: =$F$666 -> TRUE
B174: No | C174: Select YES to recalculate prices, if you have made any changes to the inputs | CC174: =IF(PStep3Done="No",TRUE,"x") -> TRUE
CC175: x
CC176: x
B177: =IF(Q1="cross-check","Step 4: Compare Real Sample Prices to the Scatterplot Prices","Step 4: This step not in use because this is not a Cross-check product") -> Step 4: This step not in use because this is not a Cross-check product | N177: Click for STEP 4 Video | CC177: x
B178: Some instructions | CC178: =IF(Q1="Cross-check",$F$667,TRUE) -> TRUE
CC179: =CC216 -> TRUE
B180: Real Sample Info | E180: Price Calculated? | BU180: =MAX(H115:H120) -> 0 | BV180: real samples | CC180: =IF($Q$1="cross-check",$F$666,TRUE) -> TRUE
B181: Real Samp | C181: Row Num | D181: Samp Num | E181: Auto-Calc | F181: Real | CC181: =CC180 -> TRUE
B182: First | C182: =IF(ISNUMBER(MATCH(BU182,$H$139:$H$170,0)),MATCH(BU182,$H$139:$H$170,0),"-") -> - | D182: =IF(ISNUMBER(C182),INDEX($E$139:$E$170,C182),"-") -> - | E182: =IF(ISNUMBER(C182),IF(ISNUMBER(INDEX($M$255:$M$286,C182+1)),"Yes","No"),"-") -> - | F182: =IF(ISNUMBER(C182),IF(ISNUMBER(INDEX($M$255:$M$286,C182)),"Yes","No"),"-") -> - | BU182: 1 | CC182: =IF(BU182>$BU$180,TRUE,CC$181) -> TRUE
B183: Second | C183: =IF(ISNUMBER(MATCH(BU183,$H$139:$H$170,0)),MATCH(BU183,$H$139:$H$170,0),"-") -> - | D183: =IF(ISNUMBER(C183),INDEX($E$139:$E$170,C183),"-") -> - | E183: =IF(ISNUMBER(C183),IF(ISNUMBER(INDEX($M$255:$M$286,C183+1)),"Yes","No"),"-") -> - | F183: =IF(ISNUMBER(C183),IF(ISNUMBER(INDEX($M$255:$M$286,C183)),"Yes","No"),"-") -> - | BU183: 2 | CC183: =IF(BU183>$BU$180,TRUE,CC$181) -> TRUE
B184: Third | C184: =IF(ISNUMBER(MATCH(BU184,$H$139:$H$170,0)),MATCH(BU184,$H$139:$H$170,0),"-") -> - | D184: =IF(ISNUMBER(C184),INDEX($E$139:$E$170,C184),"-") -> - | E184: =IF(ISNUMBER(C184),IF(ISNUMBER(INDEX($M$255:$M$286,C184+1)),"Yes","No"),"-") -> - | F184: =IF(ISNUMBER(C184),IF(ISNUMBER(INDEX($M$255:$M$286,C184)),"Yes","No"),"-") -> - | BU184: 3 | CC184: =IF(BU184>$BU$180,TRUE,CC$181) -> TRUE
CC185: =CC223 -> TRUE
H186: Incremental Prices | M186: Full Price | N186: Price Components | AO186: Grading Scale | CC186: =CC178 -> TRUE
A187: Row | B187: Sample | C187: Amount | E187: Months | F187: Num Pmts | G187: Avg Bal | H187: Int | I187: Fee | J187: Ins | K187: Tax | L187: Dep | M187: Full APR | N187: Int | O187: Fee1 | P187: Fee2 | Q187: Ins1 | R187: Ins2 | S187: Taxes | T187: Dep | AO187: 0 | AP187: F | CC187: =CC186 -> TRUE
B188: ="Sample "&D182 -> Sample - | AO188: 0.5 | AP188: D | CC188: TRUE
A189: =IF(ISNUMBER($C$182),$C$182,"-") -> - | B189: Real | C189: =IF(ISNUMBER(A189),INDEX($B$255:$W$286,$A189,C$287),"-") -> - | E189: =IF(ISNUMBER(A189),INDEX($B$255:$W$286,$A189,D$287),"-") -> - | F189: =IF(ISNUMBER(A189),INDEX($B$255:$W$286,$A189,E$287),"-") -> - | G189: =IF(ISNUMBER(A189),INDEX($AX$139:$AX$170,A189),"-") -> - | H189: =IF(ISNUMBER($A189),INDEX($B$255:$W$286,$A189,H$287),"-") -> - | I189: - | J189: - | K189: - | L189: - | M189: - | N189: =IF(ISNUMBER($A189),INDEX($B$255:$W$286,$A189,Q$287),"-") -> - | O189: =IF(ISNUMBER($A189),INDEX($B$255:$W$286,$A189,R$287),"-") -> - | P189: =IF(ISNUMBER($A189),INDEX($B$255:$W$286,$A189,S$287),"-") -> - | Q189: =IF(ISNUMBER($A189),INDEX($B$255:$W$286,$A189,T$287),"-") -> - | R189: =IF(ISNUMBER($A189),INDEX($B$255:$W$286,$A189,U$287),"-") -> - | S189: =IF($AB$109=DevOk,"No","Yes") -> No | T189: =IF(ISNUMBER($A189),INDEX($B$255:$W$286,$A189,W$287),"-") -> - | AO189: =AO188+0.5 -> 1 | AP189: C- | CC189: TRUE
A190: =IF(ISNUMBER(A189),A189+1,"-") -> - | B190: Auto | G190: =IF(ISNUMBER(A190),INDEX($AX$139:$AX$170,A190),"-") -> - | H190: - | I190: - | J190: - | K190: - | L190: - | M190: - | AO190: =AO189+0.5 -> 1.5 | AP190: C | CC190: TRUE
F191: Variance | G191: =IF(AND(ISNUMBER(G189),ISNUMBER(G190)),G189-G190,"-") -> - | H191: =IF(AND(ISNUMBER(H189),ISNUMBER(H190)),H189-H190,"-") -> - | I191: - | J191: - | K191: - | L191: - | M191: - | AO191: 2 | AP191: C+ | CC191: TRUE
F192: Degree of Variance | G192: =IF(AND(ISNUMBER(G189),ISNUMBER(G190)),IF(G189>0,ABS(G191/G189),"-"),"-") -> - | H192: =IF(AND(ISNUMBER(H189),ISNUMBER(H190)),IF(H189>0,ABS(H191/H189),"-"),"-") -> - | I192: - | J192: - | K192: - | L192: - | M192: - | AO192: 2.5 | AP192: B- | CC192: TRUE
B193: Overall Accuracy: | C193: =IF(ISNUMBER(A189),IF(ISNUMBER(G193),G193,5)*$G$219+IF(ISNUMBER(H193),H193,5)*$H$219+IF(ISNUMBER(I193),I193,5)*$I$219+IF(ISNUMBER(J193),J193,5)*$J$219+IF(ISNUMBER(K193),K193,5)*$K$219+IF(ISNUMBER(L193),L193,5)*$L$219+IF(ISNUMBER(M193),M193,5)*$M$219,"N/A") -> N/A | E193: =IF(ISNUMBER(C193),INDEX($AP$187:$AP$197,MATCH(C193,$AO$187:$AO$197,1)),"-") -> - | F193: Accuracy: | G193: =IF(ISNUMBER(G192),IF(5-G192/G$218<0,0,5-G192/G$218),"-") -> - | H193: - | I193: - | J193: - | K193: - | L193: - | M193: - | AO193: 3 | AP193: B- | CC193: =CC192 -> TRUE
AO194: 3.5 | AP194: B+ | CC194: =CC195 -> TRUE
B195: ="Sample "&D183 -> Sample - | AO195: 4 | AP195: A- | CB195: =IF(ISNUMBER(A196),"x",TRUE) -> TRUE | CC195: =IF(Q1="Cross-check",CB195,TRUE) -> TRUE
A196: =IF(ISNUMBER($C$183),$C$183,"-") -> - | B196: Real | C196: =IF(ISNUMBER(A196),INDEX($B$255:$W$286,$A196,C$287),"-") -> - | E196: =IF(ISNUMBER(A196),INDEX($B$255:$W$286,$A196,D$287),"-") -> - | F196: =IF(ISNUMBER(A196),INDEX($B$255:$W$286,$A196,E$287),"-") -> - | G196: =IF(ISNUMBER(A196),INDEX($AX$139:$AX$170,A196),"-") -> - | H196: =IF(ISNUMBER($A196),INDEX($B$255:$W$286,$A196,H$287),"-") -> - | I196: - | J196: - | K196: - | L196: - | M196: - | N196: =IF(ISNUMBER($A196),INDEX($B$255:$W$286,$A196,Q$287),"-") -> - | O196: =IF(ISNUMBER($A196),INDEX($B$255:$W$286,$A196,R$287),"-") -> - | P196: =IF(ISNUMBER($A196),INDEX($B$255:$W$286,$A196,S$287),"-") -> - | Q196: =IF(ISNUMBER($A196),INDEX($B$255:$W$286,$A196,T$287),"-") -> - | R196: =IF(ISNUMBER($A196),INDEX($B$255:$W$286,$A196,U$287),"-") -> - | S196: =IF($AB$109=DevOk,"No","Yes") -> No | T196: =IF(ISNUMBER($A196),INDEX($B$255:$W$286,$A196,W$287),"-") -> - | AO196: 4.5 | AP196: A | CC196: TRUE
A197: =IF(ISNUMBER(A196),A196+1,"-") -> - | B197: Auto | G197: =IF(ISNUMBER(A197),INDEX($AX$139:$AX$170,A197),"-") -> - | H197: - | I197: - | J197: - | K197: - | L197: - | M197: - | AO197: 5 | AP197: A | CC197: TRUE
F198: Variance | G198: =IF(AND(ISNUMBER(G196),ISNUMBER(G197)),G196-G197,"-") -> - | H198: =IF(AND(ISNUMBER(H196),ISNUMBER(H197)),H196-H197,"-") -> - | I198: - | J198: - | K198: - | L198: - | M198: - | CC198: TRUE
F199: Degree of Variance | G199: =IF(AND(ISNUMBER(G196),ISNUMBER(G197)),IF(G196>0,ABS(G198/G196),"-"),"-") -> - | H199: =IF(AND(ISNUMBER(H196),ISNUMBER(H197)),IF(H196>0,ABS(H198/H196),"-"),"-") -> - | I199: - | J199: - | K199: - | L199: - | M199: - | CC199: TRUE
B200: =B193 -> Overall Accuracy: | C200: =IF(ISNUMBER(A196),IF(ISNUMBER(G200),G200,5)*$G$219+IF(ISNUMBER(H200),H200,5)*$H$219+IF(ISNUMBER(I200),I200,5)*$I$219+IF(ISNUMBER(J200),J200,5)*$J$219+IF(ISNUMBER(K200),K200,5)*$K$219+IF(ISNUMBER(L200),L200,5)*$L$219+IF(ISNUMBER(M200),M200,5)*$M$219,"N/A") -> N/A | E200: =IF(ISNUMBER(C200),INDEX($AP$187:$AP$197,MATCH(C200,$AO$187:$AO$197,1)),"-") -> - | F200: =F193 -> Accuracy: | G200: =IF(ISNUMBER(G199),IF(5-G199/G$218<0,0,5-G199/G$218),"-") -> - | H200: - | I200: - | J200: - | K200: - | L200: - | M200: - | CC200: TRUE
CC201: =CC200 -> TRUE
... 471 more rows

Sheet Prod3
A1: Scatterplot Pricing Sheet | H1: Product Number: | I1: 3 | J1: =IF(SmpProdInput>NumProducts,J551,INDEX(ProdTable,$B$503,ProdTable!B4)) -> Not an Active Product Number | P1: Type: | Q1: =INDEX('Setup Page'!I42:I52,SmpProdInput) -> Auto-calc | AO1: =AO287 -> 0 | AP1: TRUE | AQ1: TRUE | AR1: TRUE | AS1: TRUE | AT1: TRUE | AU1: TRUE | AV1: TRUE | AW1: TRUE | AX1: TRUE | AY1: TRUE | AZ1: TRUE | BA1: TRUE | BB1: TRUE | BC1: TRUE | BD1: TRUE | BE1: TRUE | BF1: TRUE | BG1: TRUE | BH1: TRUE | BI1: TRUE | BJ1: TRUE | BK1: TRUE | BL1: TRUE | BM1: TRUE | BN1: TRUE | BO1: TRUE | BP1: TRUE | BQ1: TRUE | BR1: TRUE | BS1: TRUE | BT1: TRUE | CC1: HIDEROWS
B3: Next Step: | C3: =IF(EditShotgun=TRUE,"You are REVIEWING data previously generated. You cannot change data without starting over. To exit REVIEW mode, enter a different Product Number",IF(F552=0,"All Done!",INDEX($E$553:$E$600,MATCH(1,$B$553:$B$600,0)))) -> NOTE! This is not an loan product needing pricing calculation according to the information on the SETUP sheet. Do NOT enter any information on this worksheet. | CC3: =IF(ScatterPrint,TRUE,"x") -> x
CC4: =$CC$3 -> x
B5: Step 1: Input Product Design Information | I5: Click for STEP 1 Video | K5: Erase Sheet? | M5: =IF(EraseSheet="YES Erase Sheet","Click in any cell on the worksheet to begin running the routine to open up the next section","<-Use this cell to ERASE all the data input on this Product Sheet and start over - be careful!") -> <-Use this cell to ERASE all the data input on this Product Sheet and start over - be careful! | CC5: x
CC6: x
D7: Clients | E7: =INDEX('Setup Page'!G42:G51,SmpProdInput) -> 0 | G7: Avg/Clnt | H7: % GNI | K7: Loan Product Currency | L7: =INDEX('Setup Page'!D42:D52,SmpProdInput) -> . | N7: =IF(ISNA(MATCH(L7,'Setup Page'!D128:D130,0)),"ERROR: An incorrect currency was chosen on SETUP for this product. Go correct this.",DevOk) -> ERROR: An incorrect currency was chosen on SETUP for this product. Go correct this. | CC7: x
D8: ="Portfolio ("&L7&")" -> Portfolio (.) | E8: =INDEX('Setup Page'!F42:F51,SmpProdInput) -> . | G8: =IF(AND(ISNUMBER(E$7),E$7<>0),E8/$E$7,".") -> . | H8: =G8/L9 ->  | K8: Exchange Rate to USD | L8: =INDEX('Setup Page'!H20:H22,MATCH(L7,'Setup Page'!D128:D130,0)) ->  | CC8: x
D9: Portfolio (USD) | E9: =IF(ISNUMBER(L8),IF(L8<>0,E8/L8,),".") -> . | G9: =IF(AND(ISNUMBER(E$7),E$7<>0),E9/$E$7,".") -> . | K9: ="GNI/Capita ("&L7&")" -> GNI/Capita (.) | L9: =L8*'Setup Page'!D17 ->  | CC9: x
E10: Min | F10: Max | CC10: x
D11: ="Loan Amount ("&L7&")" -> Loan Amount (.) | G11: =E558 -> Start by entering Min and Max loan amount and loan term in rows 11 and row 14. Use ranges of last year if product does not have defined min/max. | CC11: x
D12: (USD) | E12: =IF($L$8>0,E11/$L$8) ->  | F12: =IF($L$8>0,F11/$L$8) ->  | CC12: x
D13: % GNI/Capita | E13: =E11/L9 ->  | F13: =F11/L9 ->  | CC13: x
D14: Loan Term (months) | CC14: x
CC15: x
D16: Repayment Frequencies | E16: Range | G16: Proposed | H16: Override | I16: Used | J16: =E559 ->  | AO16: Rep Freqs: | AP16: =IF(E17<>"<choose>",1,0)+IF(E18<>"<choose>",1,0) -> 0 | CC16: x
D17: Most Common: | E17: <choose> | G17: =INDEX($D$656:$D$661,MATCH(E17,$E$656:$E$661,0)) -> N/A | I17: =IF(G17="N/A","N/A",IF(H17=0,G17,H17)) -> N/A | J17: =IF(AP18>=1,"Note: Lean toward using at least one loan term longer than monthly",IF(AP17>=1,"Note: Frequencies less than monthly do not have a large impact on price, so running multiple variations isn't as important.",DevOk)) ->  | AO17: Monthly or less: | AP17: =IF(I17<30,1,0)+IF(G18<>"N/A",IF(I18<30,1,0)) -> 0 | CC17: x
D18: Next most common: | E18: <choose> | G18: =INDEX($D$656:$D$661,MATCH(E18,$E$656:$E$661,0)) -> N/A | I18: =IF(G18="N/A","N/A",IF(H18=0,G18,H18)) -> N/A | AO18: > Monthly: | AP18: =COUNTIF(G17:G18,">30") -> 0 | CC18: x
CC19: x
B20: Grace Period Info | H20: =IF(J16=DevOk,IF(E560=DevOk,E561,E560),DevOk) -> Enter GRACE PERIOD info in row 21 of STEP 1. | CC20: =IF(E21=0,TRUE,"x") -> x
B21: % loans with Grace Periods: | E21: <choose> | CC21: =$CC$20 -> x
B22: Avg grace (mon): | E22: Avg | F22: Opt 1 | G22: Opt 2 | AZ22: Grace | CC22: =$CC$20 -> x
D23: Grace period (months) | H23: =IF(I17<30,"Note: when payments are less than a month, grace may be < 1 month, e.g., enter 0.25 for one week of grace",DevOk) ->  | AZ23: =INDEX(D647:D654,MATCH(E21,E647:E654,0)) -> N/A | CC23: x
D24: When grace occurs: | E24: <choose> | CC24: x
E25: =E562 -> Enter pricing information below for every section starting in row 27. For the line marked with question marks -???- In Col A, fill in all necessary white cells, including a Min AND Max value and the Name/Descrip section | AS25: Complete1 | AT25: Complete2 | CC25: x
B26: Pricing Info | D26: Variation | E26: Min | F26: Max | G26: Type | I26: Principal Payments | M26: Interest Payments | Q26: Explanation for Variations | Y26: Pricing Summary | AW26: =COUNTIF(AV31:AV34,"Conditional percent") -> 0 | AX26: =COUNTIF(AV38:AV41,"Conditional percent") -> 0 | AZ26: Variation Analysis | CC26: x
A27: =IF(AS27,IF(SUM(E27:F27)>0,MAX($A$26:A26)+1,0),"???") -> 0 | B27: Annual Interest Rate | D27: =IF(OR(AZ27=0,AZ27=""),"-",IF(AZ27<BB27,"Some","A Lot")) -> - | G27: <choose> | I27: <choose> | M27: <choose> | Y27: =TEXT(E27,"#0.0%")&IF(AND(E27<>F27,F27<>0),"-"&TEXT(F27,"#0.0%"),"")&" annual, "&G27 -> 0.0% annual, <choose> | AS27: =IF(SUM(E27:F27)>0,IF(OR(E27=0,F27=0,G27="<choose>",I27="<choose>",M27="<choose>"),FALSE,TRUE),TRUE) -> TRUE | AZ27: =IF(E27<>F27,IF(E27<>0,F27/E27-1,1),"") ->  | BB27: 0.5 | CC27: x
E28: =IF(AND(E27>0,E27<0.1),"Is that ANNUAL interest rate?",DevOk) ->  | I28: =IF(G27="Flat","NOTE: With flat, generally chose EQUAL IN EACH INSTALLMENT for principal, and PERIOD INSTALLMENTS for Interest",DevOk) ->  | CC28: x
E29: Percent | I29: Fixed | M29: =IF(AW26>0,"Note! There is a fee calculated as a % with a minimum amount. For smaller loans, enter a % that yields the minimum fixed amount.",DevOk) ->  | CC29: x
B30: Fees | D30: Variation | E30: Min | F30: Max | G30: Based On | I30: Min | J30: Max | K30: Based On | M30: Name / Descrip | Q30: Explanation for Variations | Y30: Pricing Summary | AW30: In Use | AX30: Type | CC30: x
A31: =IF(AND(AS31,AT31),IF(SUM(E31:J31)>0,MAX($A$26:A30)+1,0),"???") -> 0 | B31: Disbursement Fee #1 | D31: =IF(BC31<>"-",BC31,IF(BD31<>"-",BD31,"-")) -> - | L31: =IF(AND(A31="???",ISBLANK(M31)),"Remember this!->",DevOk) ->  | Y31: =IF(AW31="x",IF(F31>0,TEXT(E31,"0.00%")&IF(AND(ISNUMBER(F31),F31<>E31),"-"&TEXT(F31,"0.00%"),""),"")&IF(J31>0," "&IF(I31>0,TEXT(I31,"#,##0.00"),"")&IF(AND(ISNUMBER(I31),J31<>I31),"-"&TEXT(J31,"#,##0.00"),""),IF(I31>0,", "&TEXT(I31,"#,##0.00")&" min",""))&IF(SUM(E31,F31,I31,J31)>0," "&AX31,""),"") ->  | AS31: =IF(SUM(E31:F31)>0,IF(OR(ISBLANK(E31),F31=0,ISBLANK(M31)),FALSE,TRUE),TRUE) -> TRUE | AT31: =IF(SUM(I31:J31)>0,IF(OR(I31=0,J31=0,ISBLANK(M31)),FALSE,TRUE),TRUE) -> TRUE | AV31: =IF(E31>F31,"Conditional percent",DevOk) ->  | AW31: =IF(SUM(E31,F31,I31,J31)>0,"x",".") -> . | AX31: Up-Front | AZ31: =IF(E31<>F31,IF(E31<>0,F31/E31-1,1),"") ->  | BA31: =IF(I31<>J31,IF(I31<>0,J31/I31-1,1),"") ->  | BB31: 0.6 | BC31: =IF(OR(AZ31=0,AZ31=""),"-",IF(AZ31<BB31,"Some","A Lot")) -> - | BD31: =IF(OR(BA31=0,BA31=""),"-",IF(BA31<BB31,"Some","A Lot")) -> - | CC31: x
A32: =IF(AND(AS32,AT32),IF(SUM(E32:J32)>0,MAX($A$26:A31)+1,0),"???") -> 0 | B32: Disbursement Fee #2 | D32: =IF(BC32<>"-",BC32,IF(BD32<>"-",BD32,"-")) -> - | L32: =IF(AND(A32="???",ISBLANK(M32)),"Remember this!->",DevOk) ->  | Y32: =IF(AW32="x",IF(F32>0,TEXT(E32,"0.00%")&IF(AND(ISNUMBER(F32),F32<>E32),"-"&TEXT(F32,"0.00%"),""),"")&IF(J32>0," "&IF(I32>0,TEXT(I32,"#,##0.00"),"")&IF(AND(ISNUMBER(I32),J32<>I32),"-"&TEXT(J32,"#,##0.00"),""),IF(I32>0,", "&TEXT(I32,"#,##0.00")&" min",""))&IF(SUM(E32,F32,I32,J32)>0," "&AX32,""),"") ->  | AS32: =IF(SUM(E32:F32)>0,IF(OR(ISBLANK(E32),F32=0,ISBLANK(M32)),FALSE,TRUE),TRUE) -> TRUE | AT32: =IF(SUM(I32:J32)>0,IF(OR(I32=0,J32=0,ISBLANK(M32)),FALSE,TRUE),TRUE) -> TRUE | AV32: =IF(E32>F32,"Conditional percent",DevOk) ->  | AW32: =IF(SUM(E32,F32,I32,J32)>0,"x",".") -> . | AX32: Up-Front | AZ32: =IF(E32<>F32,IF(E32<>0,F32/E32-1,1),"") ->  | BA32: =IF(I32<>J32,IF(I32<>0,J32/I32-1,1),"") ->  | BB32: 0.6 | BC32: =IF(OR(AZ32=0,AZ32=""),"-",IF(AZ32<BB32,"Some","A Lot")) -> - | BD32: =IF(OR(BA32=0,BA32=""),"-",IF(BA32<BB32,"Some","A Lot")) -> - | CC32: x
A33: =IF(AND(AS33,AT33),IF(SUM(E33:J33)>0,MAX($A$26:A32)+1,0),"???") -> 0 | B33: Continuing Fee #1 | D33: =IF(BC33<>"-",BC33,IF(BD33<>"-",BD33,"-")) -> - | G33: <choose> | K33: <choose> | Y33: =IF(AW33="x",IF(F33>0,TEXT(E33,"0.00%")&IF(AND(ISNUMBER(F33),F33<>E33),"-"&TEXT(F33,"0.00%"),""),"")&IF(J33>0," "&IF(I33>0,TEXT(I33,"#,##0.00"),"")&IF(AND(ISNUMBER(I33),J33<>I33),"-"&TEXT(J33,"#,##0.00"),""),IF(I33>0,", "&TEXT(I33,"#,##0.00")&" min",""))&IF(SUM(E33,F33,I33,J33)>0," "&AX33,""),"")&IF(AY33<>"<choose>",", "&AY33,"") ->  | AS33: =IF(SUM(E33:F33)>0,IF(OR(ISBLANK(E33),F33=0,G33="<choose>",ISBLANK(M33)),FALSE,TRUE),TRUE) -> TRUE | AT33: =IF(SUM(I33:J33)>0,IF(OR(I33=0,J33=0,K33="<choose>",ISBLANK(M33)),FALSE,TRUE),TRUE) -> TRUE | AV33: =IF(E33>F33,"Conditional percent",DevOk) ->  | AW33: =IF(SUM(E33,F33,I33,J33)>0,"x",".") -> . | AX33: Ongoing | AY33: =IF(PDrop16<>"<choose>",PDrop16,PDrop5) -> <choose> | AZ33: =IF(E33<>F33,IF(E33<>0,F33/E33-1,1),"") ->  | BB33: 0.6 | BC33: =IF(OR(AZ33=0,AZ33=""),"-",IF(AZ33<BB33,"Some","A Lot")) -> - | BD33: =IF(OR(BA33=0,BA33=""),"-",IF(BA33<BB33,"Some","A Lot")) -> - | CC33: x
A34: =IF(AND(AS34,AT34),IF(SUM(E34:J34)>0,MAX($A$26:A33)+1,0),"???") -> 0 | B34: Continuing Fee #2 | D34: =IF(BC34<>"-",BC34,IF(BD34<>"-",BD34,"-")) -> - | G34: <choose> | K34: <choose> | Y34: =IF(AW34="x",IF(F34>0,TEXT(E34,"0.00%")&IF(AND(ISNUMBER(F34),F34<>E34),"-"&TEXT(F34,"0.00%"),""),"")&IF(J34>0," "&IF(I34>0,TEXT(I34,"#,##0.00"),"")&IF(AND(ISNUMBER(I34),J34<>I34),"-"&TEXT(J34,"#,##0.00"),""),IF(I34>0,", "&TEXT(I34,"#,##0.00")&" min",""))&IF(SUM(E34,F34,I34,J34)>0," "&AX34,""),"")&IF(AY34<>"<choose>",", "&AY34,"") ->  | AS34: =IF(SUM(E34:F34)>0,IF(OR(ISBLANK(E34),F34=0,G34="<choose>",ISBLANK(M34)),FALSE,TRUE),TRUE) -> TRUE | AT34: =IF(SUM(I34:J34)>0,IF(OR(I34=0,J34=0,K34="<choose>",ISBLANK(M34)),FALSE,TRUE),TRUE) -> TRUE | AV34: =IF(E34>F34,"Conditional percent",DevOk) ->  | AW34: =IF(SUM(E34,F34,I34,J34)>0,"x",".") -> . | AX34: Ongoing | AY34: =IF(PDrop2<>"<choose>",PDrop2,PDrop6) -> <choose> | AZ34: =IF(E34<>F34,IF(E34<>0,F34/E34-1,1),"") ->  | BB34: 0.6 | BC34: =IF(OR(AZ34=0,AZ34=""),"-",IF(AZ34<BB34,"Some","A Lot")) -> - | BD34: =IF(OR(BA34=0,BA34=""),"-",IF(BA34<BB34,"Some","A Lot")) -> - | CC34: x
G35: =IF($K$124,IF(OR(ISNUMBER(FIND("pmt",PDrop16)),ISNUMBER(FIND("pmt",PDrop2))),"Be careful - payment frequencies vary for this product, so fees based per payment will have large impact on price",DevOk),DevOk) ->  | CC35: x
E36: Percent | I36: Fixed | M36: =IF(AX26>0,"Note! There is an INSURANCE FEE calculated as a % with minimum fixed amount. For smaller loans, enter a % that yields the minimum fixed amount.",DevOk) ->  | CC36: x
B37: Insurance | D37: Variation | E37: Min | F37: Max | G37: Based On | I37: Min | J37: Max | K37: Based On | M37: Name / Descrip | Q37: Explanation for Variations | Y37: Pricing Summary | CC37: x
A38: =IF(AND(AS38,AT38),IF(SUM(E38:J38)>0,MAX($A$26:A37)+1,0),"???") -> 0 | B38: Disbursement Ins. Fee #1 | D38: =IF(BC38<>"-",BC38,IF(BD38<>"-",BD38,"-")) -> - | L38: =IF(AND(A38="???",ISBLANK(M38)),"Remember this!->",DevOk) ->  | Y38: =IF(AW38="x",IF(F38>0,TEXT(E38,"0.00%")&IF(AND(ISNUMBER(F38),F38<>E38),"-"&TEXT(F38,"0.00%"),""),"")&IF(J38>0," "&IF(I38>0,TEXT(I38,"#,##0.00"),"")&IF(AND(ISNUMBER(I38),J38<>I38),"-"&TEXT(J38,"#,##0.00"),""),IF(I38>0,", "&TEXT(I38,"#,##0.00")&" min",""))&IF(SUM(E38,F38,I38,J38)>0," "&AX38,""),"") ->  | AS38: =IF(SUM(E38:F38)>0,IF(OR(ISBLANK(E38),F38=0,ISBLANK(M38)),FALSE,TRUE),TRUE) -> TRUE | AT38: =IF(SUM(I38:J38)>0,IF(OR(I38=0,J38=0,ISBLANK(M38)),FALSE,TRUE),TRUE) -> TRUE | AV38: =IF(E38>F38,"Conditional percent",DevOk) ->  | AW38: =IF(SUM(E38,F38,I38,J38)>0,"x",".") -> . | AX38: Up-Front | AZ38: =IF(E38<>F38,IF(E38<>0,F38/E38-1,1),"") ->  | BA38: =IF(I38<>J38,IF(I38<>0,J38/I38-1,1),"") ->  | BB38: 0.6 | BC38: =IF(OR(AZ38=0,AZ38=""),"-",IF(AZ38<BB38,"Some","A Lot")) -> - | BD38: =IF(OR(BA38=0,BA38=""),"-",IF(BA38<BB38,"Some","A Lot")) -> - | CC38: x
A39: =IF(AND(AS39,AT39),IF(SUM(E39:J39)>0,MAX($A$26:A38)+1,0),"???") -> 0 | B39: Disbursement Ins. Fee #2 | D39: =IF(BC39<>"-",BC39,IF(BD39<>"-",BD39,"-")) -> - | L39: =IF(AND(A39="???",ISBLANK(M39)),"Remember this!->",DevOk) ->  | Y39: =IF(AW39="x",IF(F39>0,TEXT(E39,"0.00%")&IF(AND(ISNUMBER(F39),F39<>E39),"-"&TEXT(F39,"0.00%"),""),"")&IF(J39>0," "&IF(I39>0,TEXT(I39,"#,##0.00"),"")&IF(AND(ISNUMBER(I39),J39<>I39),"-"&TEXT(J39,"#,##0.00"),""),IF(I39>0,", "&TEXT(I39,"#,##0.00")&" min",""))&IF(SUM(E39,F39,I39,J39)>0," "&AX39,""),"") ->  | AS39: =IF(SUM(E39:F39)>0,IF(OR(ISBLANK(E39),F39=0,ISBLANK(M39)),FALSE,TRUE),TRUE) -> TRUE | AT39: =IF(SUM(I39:J39)>0,IF(OR(I39=0,J39=0,ISBLANK(M39)),FALSE,TRUE),TRUE) -> TRUE | AV39: =IF(E39>F39,"Conditional percent",DevOk) ->  | AW39: =IF(SUM(E39,F39,I39,J39)>0,"x",".") -> . | AX39: Up-Front | AZ39: =IF(E39<>F39,IF(E39<>0,F39/E39-1,1),"") ->  | BB39: 0.6 | BC39: - | BD39: - | CC39: x
A40: =IF(AND(AS40,AT40),IF(SUM(E40:J40)>0,MAX($A$26:A39)+1,0),"???") -> 0 | B40: Continuing Ins. Fee #1 | D40: =IF(BC40<>"-",BC40,IF(BD40<>"-",BD40,"-")) -> - | G40: <choose> | K40: <choose> | Y40: =IF(AW40="x",IF(F40>0,TEXT(E40,"0.00%")&IF(AND(ISNUMBER(F40),F40<>E40),"-"&TEXT(F40,"0.00%"),""),"")&IF(J40>0," "&IF(I40>0,TEXT(I40,"#,##0.00"),"")&IF(AND(ISNUMBER(I40),J40<>I40),"-"&TEXT(J40,"#,##0.00"),""),IF(I40>0,", "&TEXT(I40,"#,##0.00")&" min",""))&IF(SUM(E40,F40,I40,J40)>0," "&AX40,""),"")&IF(AY40<>"<choose>",", "&AY40,"") ->  | AS40: =IF(SUM(E40:F40)>0,IF(OR(ISBLANK(E40),F40=0,G40="<choose>",ISBLANK(M40)),FALSE,TRUE),TRUE) -> TRUE | AT40: =IF(SUM(I40:J40)>0,IF(OR(I40=0,J40=0,K40="<choose>",ISBLANK(M40)),FALSE,TRUE),TRUE) -> TRUE | AV40: =IF(E40>F40,"Conditional percent",DevOk) ->  | AW40: =IF(SUM(E40,F40,I40,J40)>0,"x",".") -> . | AX40: Ongoing | AY40: =IF(PDrop3<>"<choose>",PDrop3,PDrop7) -> <choose> | AZ40: =IF(E40<>F40,IF(E40<>0,F40/E40-1,1),"") ->  | BB40: 0.6 | BC40: - | BD40: - | CC40: x
A41: =IF(AND(AS41,AT41),IF(SUM(E41:J41)>0,MAX($A$26:A40)+1,0),"???") -> 0 | B41: Continuing Ins. Fee #2 | D41: =IF(BC41<>"-",BC41,IF(BD41<>"-",BD41,"-")) -> - | G41: <choose> | K41: <choose> | Y41: =IF(AW41="x",IF(F41>0,TEXT(E41,"0.00%")&IF(AND(ISNUMBER(F41),F41<>E41),"-"&TEXT(F41,"0.00%"),""),"")&IF(J41>0," "&IF(I41>0,TEXT(I41,"#,##0.00"),"")&IF(AND(ISNUMBER(I41),J41<>I41),"-"&TEXT(J41,"#,##0.00"),""),IF(I41>0,", "&TEXT(I41,"#,##0.00")&" min",""))&IF(SUM(E41,F41,I41,J41)>0," "&AX41,""),"")&IF(AY41<>"<choose>",", "&AY41,"") ->  | AS41: =IF(SUM(E41:F41)>0,IF(OR(ISBLANK(E41),F41=0,G41="<choose>",ISBLANK(M41)),FALSE,TRUE),TRUE) -> TRUE | AT41: =IF(SUM(I41:J41)>0,IF(OR(I41=0,J41=0,K41="<choose>",ISBLANK(M41)),FALSE,TRUE),TRUE) -> TRUE | AV41: =IF(E41>F41,"Conditional percent",DevOk) ->  | AW41: =IF(SUM(E41,F41,I41,J41)>0,"x",".") -> . | AX41: Ongoing | AY41: =IF(PDrop4<>"<choose>",PDrop4,PDrop8) -> <choose> | AZ41: =IF(E41<>F41,IF(E41<>0,F41/E41-1,1),"") ->  | BB41: 0.6 | BC41: - | BD41: - | CC41: x
G42: =IF($K$124,IF(OR(ISNUMBER(FIND("pmt",PDrop3)),ISNUMBER(FIND("pmt",PDrop4))),"Be careful - payment frequencies vary for this product, so fees based per payment will have large impact on price",DevOk),DevOk) ->  | CC42: x
B43: Taxes | E43: % Ln Amt | F43: % Fees | I43: Fixed Amt | J43: Note: Only use this section if there financial taxes or VAT taxes that apply to loan products. | Y43: Pricing Summary | AQ43: taxes used? | CC43: x
A44: =IF(AS44,IF(SUM(E44:J44)>0,MAX($A$26:A43)+1,0),"???") -> 0 | B44: Taxes, Upfront | Y44: =IF(PPrice6>0,TEXT(PPrice6*100,"#.00")&"% loan amt upfront ","")&IF(PPrice7>0,TEXT(PPrice7*100,"#.00")&"% fees upfront ","")&IF(PPrice9>0,TEXT(PPrice9,"#.00")&" Fixed Upfront ","")&IF(E47>0,TEXT(E47*100,"#.00")&"% Prin ongoing ","")&IF(F47>0,TEXT(F47*100,"#.00")&"% Interest ongoing ","")&IF(G47>0,TEXT(G47*100,"#.00")&"% Fees ongoing","")&IF(PPrice10>0,TEXT(PPrice10,"#.00")&" Fixed Amount ongoing","") ->  | AQ44: =IF(SUM(PPrice6,PPrice7,E47,F47,G47,PPrice10,PPrice9)>0,TRUE,FALSE) -> FALSE | AS44: =IF(SUM(E44:I44)>0,FALSE,TRUE) -> TRUE | CC44: x
CC45: x
E46: % Prin | F46: % Int | G46: % Fees | I46: Fixed Amt | CC46: x
A47: =IF(SUM(E47:G47)>0,MAX($A$26:A46)+1,0) -> 0 | B47: Taxes, Ongoing | AS47: =IF(SUM(PPrice8,PPrice10)>0,FALSE,TRUE) -> TRUE | CC47: x
CC48: x
E49: Percent | I49: Fixed | CC49: x
B50: Compulsory Deposit | D50: Variation | E50: Min | F50: Max | G50: Based On | I50: Min | J50: Max | K50: Based On | Q50: Explanation for Variations | Y50: Pricing Summary | CC50: x
A51: =IF(AND(AS51,AT51),IF(SUM(E51:J51)>0,MAX($A$26:A50)+1,0),"???") -> 0 | B51: Comp.Dep, Prior | D51: =IF(BC51<>"-",BC51,IF(BD51<>"-",BD51,"-")) -> - | G51: =IF(E51>0,"of loan amount",DevOk) ->  | P51: =IF(D51="-",DevOk,"Explain variance here ->") ->  | Y51: =IF(F51>0,IF(E51=F51,TEXT(F51*100,"#.00")&"% "&G51&AQ51,TEXT(E51*100,"#.00")&"-"&TEXT(F51*100,"#.00")&"% "&G51&AQ51),IF(J51>0,IF(I51=J51,TEXT(J51,"#.00")&AQ51,TEXT(I51,"#.00")&"-"&TEXT(J51,"#.00")&AQ51),IF(J51>0,IF(J51=I51,TEXT(J51*100,"#.00")&" "&AQ51,TEXT(I51*100,"#.00")&"-"&TEXT(J51,"#.00")&AQ51),IF(J51>0,IF(I51=J51,TEXT(J51,"#.00"),TEXT(I51,"#.00")&"-"&TEXT(J51,"#.00")&AQ51),".")))) -> . | AQ51: Upfront | AS51: =IF(SUM(E51:F51)>0,IF(OR(ISBLANK(E51),F51=0),FALSE,TRUE),TRUE) -> TRUE | AT51: =IF(SUM(I51:J51)>0,IF(OR(I51=0,J51=0),FALSE,TRUE),TRUE) -> TRUE | AZ51: =IF(E51<>F51,IF(E51<>0,F51/E51-1,1),"") ->  | BA51: =IF(I51<>J51,IF(I51<>0,J51/I51-1,1),"") ->  | BB51: 0.6 | BC51: =IF(OR(AZ51=0,AZ51=""),"-",IF(AZ51<BB51,"Some","A Lot")) -> - | BD51: =IF(OR(BA51=0,BA51=""),"-",IF(BA51<BB51,"Some","A Lot")) -> - | CC51: x
A52: =IF(AND(AS52,AT52),IF(SUM(E52:J52)>0,MAX($A$26:A51)+1,0),"???") -> 0 | B52: Comp.Dep, During | D52: =IF(BC52<>"-",BC52,IF(BD52<>"-",BD52,"-")) -> - | G52: =IF(E52>0,"of loan amount",DevOk) ->  | K52: =IF(I52>0,"per installment",DevOk) ->  | P52: =IF(D52="-",DevOk,"Explain variance here ->") ->  | Y52: =IF(F52>0,IF(E52=F52,TEXT(F52*100,"#.00")&"% "&G52&AQ52,TEXT(E52*100,"#.00")&"-"&TEXT(F52*100,"#.00")&"% "&G52&AQ52),IF(J52>0,IF(I52=J52,TEXT(J52,"#.00")&AQ52,TEXT(I52,"#.00")&"-"&TEXT(J52,"#.00")&AQ52),IF(J52>0,IF(J52=I52,TEXT(J52*100,"#.00")&" "&AQ52,TEXT(I52*100,"#.00")&"-"&TEXT(J52,"#.00")&AQ52),IF(J52>0,IF(I52=J52,TEXT(J52,"#.00"),TEXT(I52,"#.00")&"-"&TEXT(J52,"#.00")&AQ52),".")))) -> . | AQ52: ongoing | AS52: =IF(SUM(E52:F52)>0,IF(OR(ISBLANK(E52),F52=0),FALSE,TRUE),TRUE) -> TRUE | AT52: =IF(SUM(I52:J52)>0,IF(OR(I52=0,J52=0),FALSE,TRUE),TRUE) -> TRUE | AZ52: =IF(E52<>F52,IF(E52<>0,F52/E52-1,1),"") ->  | BB52: 0.6 | BC52: - | BD52: - | CC52: x
A53: =IF(AS53,0,"???") -> 0 | B53: Annual Int on Comp.Dep | AS53: =IF(SUM(E53:F53)>0,IF(OR(ISBLANK(E53),F53=0),FALSE,TRUE),TRUE) -> TRUE | CC53: x
CC54: x
C55: Components: | D55: =MAX(A27:A53) -> 0 | CC55: x
C56: Ongoing: | D56: =IF(F33>0,1,0)+IF(F34>0,1,0)+IF(F40>0,1,0)+IF(F41>0,1,0)+IF(F52>0,1,0)+IF(J33>0,1,0)+IF(J34>0,1,0)+IF(J40>0,1,0)+IF(J41>0,1,0)+IF(J52>0,1,0) -> 0 | E56: =IF(AND(D56>0,Q70>1),"Note! Ongoing costs based on EACH PAYMENT require careful analysis of repayment frequencies",DevOk) ->  | Y56: =IF(J51>0,IF(J51=I51,TEXT(J51*100,"#.00")&" "&AQ51,TEXT(I51*100,"#.00")&"-"&TEXT(J51,"#.00")&AQ51),IF(J51>0,IF(I51=J51,TEXT(J51,"#.00"),TEXT(I51,"#.00")&"-"&TEXT(J51,"#.00")&" upfront"),".")) -> . | CC56: x
C57: w/Variation: | D57: =COUNT(AZ27:AZ52) -> 0 | E57: =IF(D57>2,"NOTE! This is a very complex product. Take great care in selecting the variations of each sample.",DevOk) ->  | Q57: =IF($H$6*C23<1000,50,IF($H$6*C23<10000,100,1000)) -> 50 | CC57: x
CC58: x
B59: No | C59: =IF(PStep1Done="Yes","Click in any cell on the worksheet to begin running the routine to open up the next section","Is the pricing information complete? Mark YES to continue to STEP 2") -> Is the pricing information complete? Mark YES to continue to STEP 2 | CC59: x
CC60: x
C61: Insurance mandatory? Percent? | I61: things to add: | K61: significant upfront fee/dep? | CC61: =TRUE -> TRUE
C62: Comp Dep - percent | K62: ask if "grace on int charged! | CC62: =TRUE -> TRUE
C63: Comp Dep - who manages? Use this? | CC63: =TRUE -> TRUE
CC64: =CC100 -> TRUE
CC65: x
B66: Step 2: Decide Sampling by Loan Amount and Term | L66: Click for STEP 2 Video | CC66: x
B67: =E591 ->  | AQ67: =IF(ISERROR(AT67),1,AT67) -> 1 | AR67: num samples | AT67: =IF(AND(O69=0,O70=0),0,INDEX(AS73:AV80,IF(O70*O69>8,8,O70*O69),IF(Q69+(IF(Q70>1,1,0))>3,3,Q69+IF(Q70>1,1,0))+1)) ->  | CC67: =$F$665 -> TRUE
F68: Loan Term | N68: =IF(AND(D82=1,L71=1),"Select Samples in the White Cells Below","Complete Percentages before working in this section") -> Complete Percentages before working in this section | AO68: 0 | AQ68: 0.11 | AR68: Bucket Threshold | BN68: Range | BO68: First | BP68: Last | BQ68: Mid | BV68: mid-x | BW68: 5 | BX68: mid-y | BY68: 4 | CC68: TRUE
B69: ="Term Min/Max: "&E14&"-"&F14 -> Term Min/Max: - | F69: <3 | G69: 4-6 | H69: 7-9 | I69: 10-12 | J69: 13-18 | K69: >18 | N69: Loan Amt: | O69: =IF(COUNTIF(D73:D81,">"&AQ68)=0,1,COUNTIF(D73:D81,">"&AQ68)) -> 1 | P69: Var Price | Q69: =D57 -> 0 | AO69: 0.05 | BM69: Amounts | BN69: =COUNTIF(D73:D80,">0") -> 0 | BO69: =MATCH(1,AK73:AK80,0) ->  | BP69: =BO69+BN69-1 ->  | BQ69: =TRUNC(BO69+BP69/2) ->  | BV69: Factor to redistribute across term for loans of a specific amount | CC69: TRUE
B70: ="Amt: "&TEXT(E11,"#,##0")&"-"&TEXT(F11,"#,##0") -> Amt: 0-0 | E70: Value to use | F70: 2 | G70: 6 | H70: 9 | I70: 12 | J70: 18 | K70: 24 | L70: =IF(F14>18,"Note: The longest loan term is "&F14&" months",DevOk) ->  | N70: Term: | O70: =COUNTIF(F71:K71,">"&AQ68) -> 0 | P70: RepFreq: | Q70: =AP16 -> 0 | AO70: 0.1 | BM70: Terms | BN70: =COUNTIF(PPrice14,">0") -> 0 | BO70: =MATCH(1,N87:S87,0) ->  | BP70: =BO70+BN70-1 ->  | BQ70: =TRUNC(BO70+BP70/2) ->  | BU70: 0.2 | BY70: 0.2 | CC70: TRUE
B71: Loan Amount | E71: Dist% | L71: =SUM(F71:K71) -> 0 | N71: =IF(AQ67<3,3,AQ67) -> 3 | O71: <-Optimal number of samples to choose below | AO71: 0.15 | AS71: Components that Vary | BF71: =E11 -> 0 | BG71: =F11 -> 0 | BV71: =BW71+$BY$70 -> 0.6 | BW71: =BX71+$BY$70 -> 0.4 | BX71: =BY71+$BY$70 -> 0.2 | BY71: 0 | BZ71: =BY71+$BY$70 -> 0.2 | CA71: =BZ71+$BY$70 -> 0.4 | CB71: =CA71+$BY$70 -> 0.6 | CC71: TRUE
A72: % GNI | B72: Min | C72: Max | D72: % Loans | E72: Ln Amt | L72: Clients | M72: Amt \ Term | N72: =IF(F71>0,F70,"-") -> - | O72: - | P72: - | Q72: - | R72: - | S72: - | AO72: 0.2 | AR72: Buckets | AS72: 0 | AT72: 1 | AU72: 2 | AV72: 3 | BC72: Gaps? | BD72: =COUNTIF(BD73:BD80,"Missing") -> 0 | BF72: below | BG72: above | BH72: shotgun | BJ72: upper limit | BN72: 1 | BO72: 2 | BP72: 3 | BQ72: 4 | BR72: 5 | BS72: 6 | BU72: =BU73+$BU$70 -> 0.8 | BV72: =BW72+($BU72*BV$71) -> 1.96 | BW72: 1.48 | BX72: 1.16 | BY72: 1 | BZ72: =BY72-($BU72*BZ$71) -> 0.84 | CA72: 0.52 | CB72: 0.04 | CC72: TRUE
A73: 0.05 | C73: =ROUND(AL73/AM73,0)*AM73 ->  | E73: =IF(C73<$E$11,"-",IF(B73>$F$11,"-",IF(AND($F$11>B73,$F$11<C73),$F$11,BH73))) ->  | F73: =IF(AND(COUNTA($D73),COUNTA(F$71)),$D73*F$71*$E$7*BN73,0) -> 0 | G73: 0 | H73: 0 | I73: 0 | J73: 0 | K73: 0 | L73: =D73*$E$7 -> 0 | M73: =IF(D73>0,E73,"-") -> - | AK73: =IF(D73>0,1,0) -> 0 | AL73: =$A73*$L$9 ->  | AM73: =IF(AL73<1000,50,IF(AL73<10000,100,1000)) ->  | AO73: 0.3 | AR73: 1 | AS73: 1 | AT73: 1 | AU73: 1 | AV73: 1 | BC73: =COUNTIF(N73:S73,">0") -> 0 | BD73: =COUNTIF(BE73:BE80,"Missing") -> 0 | BF73: FALSE | BG73: TRUE | BH73: =BJ73 ->  | BJ73: =C73 ->  | BM73: 1 | BN73: =IF(AND($BT73>0,BN$81>0,BN$81<=7,$BT73<=9),INDEX($BV$72:$CB$80,$BT73,BN$81),0) ->  | BT73: =BM73-$BQ$69+$BY$68+1 ->  | BU73: =BU74+$BU$70 -> 0.6 | BV73: 1.72 | BW73: 1.36 | BX73: 1.12 | BY73: 1 | BZ73: 0.88 | CA73: 0.64 | CB73: 0.28 | CC73: TRUE
A74: 0.1 | B74: =IF(C73=0,0,C73+1) ->  | F74: 0 | G74: 0 | H74: 0 | I74: 0 | J74: 0 | K74: 0 | L74: 0 | M74: =IF(D74>0,E74,"-") -> - | AK74: =IF(D74>0,AK73+1,0) -> 0 | AM74: =IF(AL74<1000,50,IF(AL74<10000,100,1000)) ->  | AO74: 0.4 | AQ74: =COUNTIF(E73:E75,">0") -> 0 | AR74: 2 | AS74: 2 | AT74: 2 | AU74: 2 | AV74: 2 | BC74: 0 | BD74: =IF(AND(BC73>0,BC74=0,BC75>0),"Missing",".") -> . | BF74: =IF(E$11<=$BJ74,TRUE,FALSE) ->  | BG74: =IF(F$11>=$BJ74,TRUE,FALSE) ->  | BH74: =ROUNDUP(BK74/BL74,0)*BL74 ->  | BI74: 1 | BK74: =(A74+A73)/2*$L$9 ->  | BL74: =IF(BK74>10000,500,IF(BK74>1000,100,25)) ->  | BM74: 2 | BU74: =BU75+$BU$70 -> 0.4 | BV74: 1.48 | BW74: 1.24 | BX74: 1.08 | BY74: 1 | BZ74: 0.92 | CA74: 0.76 | CB74: 0.52 | CC74: TRUE
A75: 0.25 | B75: =IF(C74=0,0,C74+1) ->  | F75: 0 | G75: 0 | H75: 0 | I75: 0 | J75: 0 | K75: 0 | L75: 0 | M75: - | AK75: 0 | AO75: 0.5 | AQ75: 0.3 | AR75: 3 | AS75: 3 | AT75: 3 | AU75: 3 | AV75: 3 | BC75: 0 | BD75: . | BE75: =IF(AND(BC73>0,BC74=0,BC76>0,BC75=0),"Missing",".") -> . | BI75: 2 | BL75: =IF(BK75>10000,500,IF(BK75>1000,100,25)) ->  | BM75: 3 | BU75: =BU76+$BU$70 -> 0.2 | BV75: 1.24 | BW75: 1.12 | BX75: 1.04 | BY75: 1 | BZ75: 0.96 | CA75: 0.88 | CB75: 0.76 | CC75: TRUE
A76: 0.5 | B76: =C75+1 ->  | F76: 0 | G76: 0 | H76: 0 | I76: 0 | J76: 0 | K76: 0 | L76: 0 | M76: - | AK76: 0 | AO76: 0.6 | AR76: 4 | AS76: 4 | AT76: 4 | AU76: 4 | AV76: 4 | BC76: 0 | BD76: . | BE76: =IF(AND(BC74>0,BC75=0,BC77>0,BC76=0),"Missing",".") -> . | BI76: 3 | BM76: 4 | BU76: 0 | BV76: 1 | BW76: 1 | BX76: 1 | BY76: 1 | BZ76: 1 | CA76: 1 | CB76: 1 | CC76: TRUE
A77: 0.75 | B77: =C76+1 ->  | F77: 0 | G77: 0 | H77: 0 | I77: 0 | J77: 0 | K77: 0 | L77: 0 | M77: - | AK77: 0 | AO77: 0.7 | AR77: 5 | AS77: 5 | AT77: 5 | AU77: 5 | AV77: 4 | BC77: 0 | BD77: . | BE77: =IF(AND(BC75>0,BC76=0,BC78>0,BC77=0),"Missing",".") -> . | BI77: 4 | BM77: 5 | BU77: =BU76+$BU$70 -> 0.2 | BV77: =BW77-($BU77*BV$71) -> 0.76 | BW77: 0.88 | BX77: 0.96 | BY77: 1 | BZ77: =BY77+($BU77*BZ$71) -> 1.04 | CA77: 1.12 | CB77: 1.24 | CC77: TRUE
A78: 1 | B78: =C77+1 ->  | F78: 0 | G78: 0 | H78: 0 | I78: 0 | J78: 0 | K78: 0 | L78: 0 | M78: - | AK78: 0 | AO78: 0.8 | AR78: 6 | AS78: 6 | AT78: 6 | AU78: 6 | AV78: 4 | BC78: 0 | BD78: . | BE78: =IF(AND(BC76>0,BC77=0,BC79>0,BC78=0),"Missing",".") -> . | BI78: 5 | BM78: 6 | BU78: =BU77+$BU$70 -> 0.4 | BV78: 0.52 | BW78: 0.76 | BX78: 0.92 | BY78: 1 | BZ78: 1.08 | CA78: 1.24 | CB78: 1.48 | CC78: TRUE
A79: 2 | B79: =C78+1 ->  | F79: 0 | G79: 0 | H79: 0 | I79: 0 | J79: 0 | K79: 0 | L79: 0 | M79: - | AK79: 0 | AO79: 0.9 | AR79: 7 | AS79: 7 | AT79: 7 | AU79: 6 | AV79: 4 | BC79: 0 | BD79: . | BE79: =IF(AND(BC77>0,BC78=0,BC80>0,BC79=0),"Missing",".") -> . | BI79: 6 | BM79: 7 | BU79: =BU78+$BU$70 -> 0.6 | BV79: 0.28 | BW79: 0.64 | BX79: 0.88 | BY79: 1 | BZ79: 1.12 | CA79: 1.36 | CB79: 1.72 | CC79: TRUE
A80: 5 | B80: =C79+1 ->  | F80: 0 | G80: 0 | H80: 0 | I80: 0 | J80: 0 | K80: 0 | L80: 0 | M80: - | AK80: 0 | AO80: 1 | AR80: 8 | AS80: 8 | AT80: 8 | AU80: 6 | AV80: 4 | BC80: 0 | BI80: 7 | BM80: 8 | BU80: =BU79+$BU$70 -> 0.8 | BV80: 0.04 | BW80: 0.52 | BX80: 0.84 | BY80: 1 | BZ80: 1.16 | CA80: 1.48 | CB80: 1.96 | CC80: TRUE
C81: ="> "&TEXT(C80,"#,##0") ->  | E81: N/A | F81: =IF(AND(COUNTA($D81),COUNTA(F$71)),$D81*F$71*$E$7,0) -> 0 | G81: 0 | H81: 0 | I81: 0 | J81: 0 | K81: 0 | L81: 0 | N81: =IF(F11>C80,"Note: Loan Amounts greater than 500% GNI/Capita are not evaluated in this tool",DevOk) ->  | AR81: variations | AS81: 1 | AT81: 2 | AU81: 4 | AV81: 8 | BI81: 8 | BK81: =C80 ->  | BN81: =BN72-$BQ$70+$BW$68 ->  | CC81: TRUE
C82: Total | D82: =SUM(D73:D81) -> 0 | E82: Clients: | F82: =F71*$E$7 -> 0 | G82: 0 | H82: 0 | I82: 0 | J82: 0 | K82: 0 | L82: =SUM(L73:L81) -> 0 | CC82: TRUE
CC83: TRUE
B84: Grace period sensitivity calculations | F84: =IF(ISNUMBER($E$23),$E$23/F70,"DK") -> DK | G84: DK | H84: DK | I84: DK | J84: DK | K84: DK | L84: 0.07 | M84: <Threshold | CC84: =IF(DevShowRows=TRUE,"x",TRUE) -> TRUE
E85: Cumulative % clients | F85: =IF(ISNUMBER($E$23),IF(F84>$L$84,F71,0),"DK") -> DK | G85: =IF(ISNUMBER($E$23),IF(G84>$L$84,G71)+F85,"DK") -> DK | H85: =IF(ISNUMBER($E$23),IF(H84>$L$84,H71)+G85,"DK") -> DK | I85: =IF(ISNUMBER($E$23),IF(I84>$L$84,I71)+H85,"DK") -> DK | J85: =IF(ISNUMBER($E$23),IF(J84>$L$84,J71)+I85,"DK") -> DK | K85: =IF(ISNUMBER($E$23),IF(K84>$L$84,K71)+J85,"DK") -> DK | L85: =IF(ISNUMBER($E$23),IF(F85=G85,ShotTerm1,IF(G85=H85,ShotTerm2,IF(H85=I85,ShotTerm3,IF(I85=J85,ShotTerm4,IF(J85=K85,ShotTerm5,ShotTerm6))))),"DK") -> DK | M85: loan term under threshold | CC85: =CC84 -> TRUE
E86: min | F86: 0 | G86: =F87+0.001 -> 3.501 | H86: =G87+0.001 -> 6.501 | I86: =H87+0.001 -> 9.501 | J86: =I87+0.001 -> 12.501 | K86: =J87+0.001 -> 18.501 | CC86: TRUE
E87: max | F87: 3.5 | G87: 6.5 | H87: 9.5 | I87: 12.5 | J87: 18.5 | K87: 999 | N87: =IF(F71>0,1,0) -> 0 | O87: =IF(G71>0,1+N87,0) -> 0 | P87: =IF(H71>0,1+O87,0) -> 0 | Q87: =IF(I71>0,1+P87,0) -> 0 | R87: =IF(J71>0,1+Q87,0) -> 0 | S87: =IF(K71>0,1+R87,0) -> 0 | CC87: TRUE
E88: valid value? | F88: =IF(OR(F70<F86,F70>F87),FALSE,TRUE) -> TRUE | G88: TRUE | H88: TRUE | I88: TRUE | J88: TRUE | K88: TRUE | L88: =COUNTIF(F88:K88,FALSE) -> 0 | N88: shading 1 | O88: 0.03 | P88: =O88*L82 -> 0 | CC88: TRUE
E89: Input cell? | F89: =IF(AND($E$14<F87,$F$14>F86),TRUE,FALSE) -> FALSE | G89: FALSE | H89: FALSE | I89: FALSE | J89: FALSE | K89: FALSE | L89: =COUNTIF(F89:K89,FALSE) -> 6 | N89: shading 2 | O89: 0.06 | P89: =O89*L82 -> 0 | CC89: TRUE
E90: Perc outside range? | F90: =IF(F89=FALSE,IF(F71>0,TRUE,FALSE)) -> FALSE | G90: FALSE | H90: FALSE | I90: FALSE | J90: FALSE | K90: FALSE | L90: =COUNTIF(F90:K90,TRUE) -> 0 | CC90: TRUE
C91: =C607 ->  | CC91: =$F$665 -> TRUE
B92: No | C92: =IF(PStep2Done="Yes","Click in any cell on the worksheet to begin running the routine to open up the next section","Is the sampling information complete? Mark YES to "&IF(AZ23>0,"review Grace Period Analysis and then ","")&"continue to STEP 3") -> Is the sampling information complete? Mark YES to review Grace Period Analysis and then continue to STEP 3 | CC92: =$F$665 -> TRUE
B93: Sensitivity Analysis of Grace Period | CC93: =IF(OR(AZ23=0,AZ23=1),TRUE,IF(PStep2Done="No",TRUE,"x")) -> TRUE
D94: Is Flat Interest charged? | E94: =IF(G27="Flat","Yes","No") -> No | F94: =IF(E94="Yes","High","Low") -> Low | G94: =IF(F94="High","As FLAT interest is charged on this product, the impact on price can be significant","Declining Balance interest has little to no variation when there are grace periods") -> Declining Balance interest has little to no variation when there are grace periods | AS94: High | AT94: Med | CC94: =CC93 -> TRUE
D95: grace / shortest term (a) | E95: =IF(ISNUMBER(E23),E23/E14,"DK") -> DK | F95: =IF(E95>AS95,"High",IF(E95>AT95,"Med","Low")) -> High | G95: =IF(F95="High","The grace period is significant at least for the shortest loans",IF(F95="Med","The grace period has only moderate significance, even on the shortest loans","The grace period has modest signifance even on the shortest loans")) -> The grace period is significant at least for the shortest loans | AR95: grace/shortest | AS95: 0.3 | AT95: 0.15 | AV95: Because of declining balance interest, it is likely that this product does not see prices vary significantly due to grace periods. You should include only one or two test variations in order to confirm. | CC95: TRUE
D96: Max term with sensitivity (b) | E96: =IF(E21=0,"N/A",L85&" mon") -> DK mon | G96: This calculation is made by comparing grace to loan terms. Loans UP TO this duration have moderate to high sensitivity to grace | AR96: % clients | AS96: 0.6 | AT96: 0.2 | AV96: This product uses flat interest and has a moderate portion of loans being affected by grace. You should include several variations to test for the impact of grace on price, applying grace to samples with SHORTER loan terms. | CC96: TRUE
D97: ="% loans up to "&E96&" term (c)" -> % loans up to DK mon term (c) | E97: =K85 -> DK | G97: This indicates what percent of the product's loans are shorter than the threshold term indicated in (b). Loan term DISTRIBUTION figures are used for calculation. | AR97: % signif | AS97: 0.4 | AT97: 0.2 | AV97: This product uses flat interest and has a large portion of loans being affected by grace. This is the 'worst case scenario' and you should test for the impact of grace on price, on several of the samples, especially samples with SHORTER loan terms. | CC97: TRUE
D98: % loans with grace (d) | E98: =AZ23 -> N/A | F98: =IF(E98>AS96,"High",IF(E98>AT96,"Med","Low")) -> High | G98: ="This was entered in row "&ROW(D24)&" above. "&IF(F98="High","Grace applies to a large percentage of loans",IF(F98="Med","Grace applies to only a moderate number of loans","Grace applies to a small portion of the loans")) -> This was entered in row 24 above. Grace applies to a large percentage of loans | AV98: Though this product uses flat interest, it looks like only a small number of loans would be affected. You do not need to include more than one sample that has grace as a variation variable. | CC98: TRUE
B99: % loans where grace is significant (e = c x d) | E99: =IF(ISNUMBER(E97),E97*E98,"DK") -> DK | F99: =IF(ISNUMBER(E99),IF(E99>AS97,"High",IF(E99>AT97,"Med","Low")),"Med") -> Med | G99: ="This calculates how many loans have a SIGNIFICANT impact from grace, by multiplying line c times line d. "&IF(ISNUMBER(E23),IF(F99="High","With this product, there are a large number of loans affected",IF(F99="Med","With this product, only a moderate number of loans are affected","With this product, a small number of loans are actually affected")),"As average grace is not known, much of this sensitivity analysis could not be done.") -> This calculates how many loans have a SIGNIFICANT impact from grace, by multiplying line c times line d. As average grace is not known, much of this sensitivity analysis could not be done. | CC99: TRUE
B100: Recommendation: | D100: =IF(CC100=TRUE,"This product has no grace period.",IF(E21=0,"This product has no loans with grace periods",IF(E21=1,"Enter grace period for ALL samples in Step 3. If the length of grace period varies, use Var1 and 2 to test different lengths",IF(F94="Low",AV95,IF(F99="Med",AV96,IF(F99="High",AV97,AV98)))))) -> This product has no grace period. | CC100: TRUE
CC101: x
CC102: x
B103: Step 3: Review the information in the table and generate the Scatterplot | O103: Click for STEP 3 Video | CC103: x
B104: ="Grace period recommendation: "&D100 -> Grace period recommendation: This product has no grace period. | O104: Video Link | CC104: =IF((F23+G23)>0,$F$666,TRUE) -> TRUE
B105: =IF(E24="Scattered","Note: Grace will be placed in the MIDDLE of the loan term. This is suitable for randomly scattered grace. If LUMPY grace, like a livestock loan, price will be less accurate.",DevOk) ->  | M105: RECOMMEND CLIENT NUMBER CHANGES WHEN BIG LOANS ARE BIASED TOWARD SHORT TERM | CC105: =IF(LEFT(E24,4)="Scat",$F$666,TRUE) -> TRUE
B106: =IF(COUNTIF(D27:D53,"A lot")>0,"Note: At least one price component varies A LOT. You should edit the Opt 1 and Opt 2 defaults to use an appropriate range of values",IF(MAX(K135:K136)=999,"Note: 999 means end-term payment frequency.",DevOk)) ->  | CC106: =IF(B106=DevOk,TRUE,$F$666) -> TRUE
B107: =IF(AND(K135<30,K136>=30,M139="Flat"),"Note: Flat interest will have a significant impact on pricing with loan terms ranging from less than a month to a month or more.",DevOk) ->  | CC107: =IF(B107=DevOk,TRUE,$F$666) -> TRUE
B108: =IF(E581=DevOk,E589,E581) -> Review all info in Step 3. You may change the number of variations by typing over the figures in the YELLOW cells. You can type over green and white values starting in row 139. When done, mark completed in row 173. | CC108: =$F$666 -> TRUE
B109: Num Samples: | C109: =COUNTIF(C115:C122,">0") -> 0 | E109: =COUNTIF(XChkCol,">0") -> 0 | F109: <- Real Samples | I109: =IF(MAX(I115:I122)>2,"More than 2 variations needs manual input below",DevOk) ->  | N109: =M29 ->  | V109: =M36 ->  | AB109: =IF(AQ44,"Note: Taxes are entered automatically for each sample. There are not inputs to be made.",DevOk) ->  | CC109: =$F$666 -> TRUE
E110: =IF(ISERROR(SUM(C137:AJ137)),TRUE,FALSE) -> FALSE | F110: <error check - TRUE means errors | M110: In Use? --> | N110: =COUNTIF($N$111:N111,">0") -> 0 | O110: =COUNTIF($N$111:O111,">0") -> 0 | P110: =COUNTIF($N$111:P111,">0") -> 0 | Q110: =COUNTIF($N$111:Q111,">0") -> 0 | R110: =COUNTIF($N$111:R111,">0") -> 0 | S110: =COUNTIF($N$111:S111,">0") -> 0 | T110: =COUNTIF($N$111:T111,">0") -> 0 | U110: =COUNTIF($N$111:U111,">0") -> 0 | V110: =COUNTIF($V$111:V111,">0") -> 0 | W110: =COUNTIF($V$111:W111,">0") -> 0 | X110: =COUNTIF($V$111:X111,">0") -> 0 | Y110: =COUNTIF($V$111:Y111,">0") -> 0 | Z110: =COUNTIF($V$111:Z111,">0") -> 0 | AA110: =COUNTIF($V$111:AA111,">0") -> 0 | AB110: =COUNTIF($V$111:AB111,">0") -> 0 | AC110: =COUNTIF($V$111:AC111,">0") -> 0 | AD110: =COUNTIF($AD$111:AD111,">0") -> 0 | AE110: =COUNTIF($AD$111:AE111,">0") -> 0 | AF110: =COUNTIF($AD$111:AF111,">0") -> 0 | AG110: =COUNTIF($AD$111:AG111,">0") -> 0 | AH110: =COUNTIF($AD$111:AH111,">0") -> 0 | CC110: =IF(HideExtra,TRUE,CC109) -> TRUE
N111: =IF(MAX(N139:N170)>0,N114,0) -> 0 | O111: 0 | P111: 0 | Q111: 0 | R111: 0 | S111: 0 | T111: 0 | U111: 0 | V111: 0 | W111: 0 | X111: 0 | Y111: 0 | Z111: 0 | AA111: 0 | AB111: 0 | AC111: 0 | AD111: 0 | AE111: 0 | AF111: 0 | AG111: 0 | AH111: 0 | CC111: =$CC$110 -> TRUE
B112: Loan Amount | D112: Loan Term | F112: Client Estimate | H112: Real | I112: Number | J112: Grace | K112: Repay | L112: Interest | N112: Fees | V112: Insurance | AD112: Security Deposit | CC112: =$F$666 -> TRUE
B113: Override | C113: Used | D113: =B113 -> Override | E113: =C113 -> Used | F113: =D113 -> Override | G113: =E113 -> Used | H113: Sample? | I113: Variations | J113: Period | K113: Freq | N113: Fee 1 | R113: Fee 2 | V113: Ins 1 | Z113: Ins 2 | AQ113: How to stagger variations - this section not used anywhere | BE113: FORMULAS | CC113: =$F$666 -> TRUE
C114: 1 | D114: =C114+1 -> 2 | E114: 3 | F114: 4 | G114: 5 | H114: 6 | I114: 7 | J114: 8 | K114: 9 | L114: 10 | M114: 11 | N114: 12 | O114: 13 | P114: 14 | Q114: 15 | R114: 16 | S114: 17 | T114: 18 | U114: 19 | V114: 20 | W114: 21 | X114: 22 | Y114: 23 | Z114: 24 | AA114: 25 | AB114: 26 | AC114: 27 | AD114: 28 | AE114: 29 | AF114: 30 | AG114: 31 | AH114: 32 | AO114: =PriceTable!S1 -> 19 | AP114: =PriceTable!AD1 -> 30 | AQ114: =PriceTable!AE1 -> 31 | AR114: =PriceTable!AF1 -> 32 | AS114: =PriceTable!AG1 -> 33 | AT114: =PriceTable!AH1 -> 34 | AU114: =PriceTable!AO1 -> 41 | AV114: =PriceTable!O1 -> 15 | CC114: =$CC$110 -> TRUE
A115: 1 | C115: =IF(B115>0,B115,E522) -> 0 | E115: =IF(D115>0,D115,IF(E512>0,E512,"")) ->  | G115: =IF(F115>0,F115,IF(E532>0,E532,"")) ->  | I115: =IF(H115>0,2,IF(COUNTIF(J115:AH115,3)>0,3,IF(C115>0,2^COUNTIF(J115:AH115,">1"),""))) ->  | J115: =J126 -> 0 | K115: 0 | L115: 0 | N115: =N126 -> 0 | O115: 0 | P115: 0 | Q115: 0 | R115: 0 | S115: 0 | T115: 0 | U115: 0 | V115: 0 | W115: 0 | X115: 0 | Y115: 0 | Z115: 0 | AA115: 0 | AB115: 0 | AC115: 0 | AD115: 0 | AE115: 0 | AF115: 0 | AG115: 0 | AH115: 0 | AP115: 1 | AQ115: 1a | AR115: 1a | AS115: 2a | AT115: 1a | AU115: 2a | AV115: 3a | AZ115: Real Samples | BB115: =IF(ISNUMBER(B137),IF(B137>0,B137,1),1) -> 1 | BC115: <Rownum | BE115: =BE126 -> 0 | BG115: =IF(C115>0,1,99) -> 99 | BH115: =IF(C115>0,BG115+I115-1,0) -> 0 | BM115: 1 | BN115: 0 | BO115: 0 | BP115: 0 | BQ115: 0 | BS115: =IF(AND(C115>0,F115=0),1,0) -> 0 | BT115: =IF(AND(C115=0,C116>0,A115>$G$503),1,0) -> 0 | BU115: =IF(AND(C115=0,E115>0,ISNUMBER(E115)),A115,0) -> 0 | BV115: =IF(AND(C115>0,OR(E115=0,E115=""),ISNUMBER(C115)),A115,0) -> 0 | BW115: =SUM(B115:AH115) -> 0 | BX115: 1 | BZ115: amt | CA115: term | CB115: clients | CC115: =$F$666 -> TRUE
A116: 2 | C116: 0 | I116: =IF(H116>0,2,IF(COUNTIF(J116:AH116,3)>0,3,IF(C116>0,2^COUNTIF(J116:AH116,">1"),""))) ->  | J116: 0 | K116: 0 | L116: 0 | N116: 0 | O116: 0 | P116: 0 | Q116: 0 | R116: 0 | S116: 0 | T116: 0 | U116: 0 | V116: 0 | W116: 0 | X116: 0 | Y116: 0 | Z116: 0 | AA116: 0 | AB116: 0 | AC116: 0 | AD116: 0 | AE116: 0 | AF116: 0 | AG116: 0 | AH116: 0 | AP116: 2 | AQ116: 1b | AR116: 1b | AS116: 2a | AT116: 1a | AU116: 2a | AV116: 3b | BA116: =IF(MAX(AZ117:AZ119)>1,TRUE,FALSE) -> FALSE | BE116: =IF(AND(BE$123,$B116<>"-"),IF(BE$125=2,IF($F116<3,BE$136,BE$135),IF(MOD($F116,2)=0,BE$135,BE$136)),0) -> 0 | BG116: =IF(C116>0,MAX($BH$115:BH115)+1,99) -> 99 | BH116: 0 | BM116: 2 | BN116: 0 | BO116: 1 | BP116: 0 | BQ116: 0 | BR116: =IF(AND(C116>0,C116<C115),1,0) -> 0 | BS116: 0 | BT116: 0 | BU116: 0 | BV116: 0 | BW116: 0 | BX116: =BX115*10 -> 10 | BZ116: =IF(ISNUMBER(#REF!),INDEX(PriceTable!$K$7:$K$181,#REF!),0) -> 0 | CA116: =IF(ISNUMBER(#REF!),IF(ISNUMBER(INDEX(PriceTable!$N$7:$N$181,#REF!)),INDEX(PriceTable!$N$7:$N$181,#REF!),0),0) -> 0 | CB116: =IF(ISNUMBER(#REF!),INDEX(PriceTable!$S$7:$S$181,#REF!),0) -> 0 | CC116: =$F$666 -> TRUE
A117: 3 | C117: 0 | J117: 0 | K117: 0 | L117: 0 | N117: 0 | O117: 0 | P117: 0 | Q117: 0 | R117: 0 | S117: 0 | T117: 0 | U117: 0 | V117: 0 | W117: 0 | X117: 0 | Y117: 0 | Z117: 0 | AA117: 0 | AB117: 0 | AC117: 0 | AD117: 0 | AE117: 0 | AF117: 0 | AG117: 0 | AH117: 0 | AP117: 3 | AR117: 1a | AS117: 2b | AT117: 1a | AU117: 2b | AV117: 3a | AZ117: =COUNTIF($H$115:$H$122,1) -> 0 | BA117: =IF(AZ117<>1,FALSE,TRUE) -> FALSE | BG117: =IF(C117>0,MAX($BH$115:BH116)+1,99) -> 99 | BH117: 0 | BM117: 3 | BN117: 0 | BO117: 0 | BP117: 1 | BQ117: 0 | BR117: 0 | BS117: 0 | BT117: 0 | BU117: 0 | BV117: 0 | BW117: 0 | BX117: 100 | BZ117: =IF(ISNUMBER(#REF!),INDEX(PriceTable!$K$7:$K$181,#REF!),0) -> 0 | CA117: =IF(ISNUMBER(#REF!),IF(ISNUMBER(INDEX(PriceTable!$N$7:$N$181,#REF!)),INDEX(PriceTable!$N$7:$N$181,#REF!),0),0) -> 0 | CB117: =IF(ISNUMBER(#REF!),INDEX(PriceTable!$S$7:$S$181,#REF!),0) -> 0 | CC117: =$F$666 -> TRUE
A118: 4 | C118: 0 | J118: 0 | K118: 0 | L118: 0 | N118: 0 | O118: 0 | P118: 0 | Q118: 0 | R118: 0 | S118: 0 | T118: 0 | U118: 0 | V118: 0 | W118: 0 | X118: 0 | Y118: 0 | Z118: 0 | AA118: 0 | AB118: 0 | AC118: 0 | AD118: 0 | AE118: 0 | AF118: 0 | AG118: 0 | AH118: 0 | AP118: 4 | AR118: 1b | AS118: 2b | AT118: 1a | AU118: 2b | AV118: 3b | AZ118: =COUNTIF($H$115:$H$122,2) -> 0 | BA118: =IF(AZ118>1,FALSE,TRUE) -> TRUE | BG118: =IF(C118>0,MAX($BH$115:BH117)+1,99) -> 99 | BH118: 0 | BM118: 4 | BN118: 0 | BO118: 1 | BP118: 1 | BQ118: 0 | BR118: 0 | BS118: 0 | BT118: 0 | BU118: 0 | BV118: 0 | BW118: 0 | BX118: 1000 | BZ118: =IF(ISNUMBER(#REF!),INDEX(PriceTable!$K$7:$K$181,#REF!),0) -> 0 | CA118: =IF(ISNUMBER(#REF!),IF(ISNUMBER(INDEX(PriceTable!$N$7:$N$181,#REF!)),INDEX(PriceTable!$N$7:$N$181,#REF!),0),0) -> 0 | CB118: =IF(ISNUMBER(#REF!),INDEX(PriceTable!$S$7:$S$181,#REF!),0) -> 0 | CC118: =IF(A118<=$C$109,CC117,TRUE) -> TRUE
A119: 5 | C119: 0 | J119: 0 | K119: 0 | L119: 0 | N119: 0 | O119: 0 | P119: 0 | Q119: 0 | R119: 0 | S119: 0 | T119: 0 | U119: 0 | V119: 0 | W119: 0 | X119: 0 | Y119: 0 | Z119: 0 | AA119: 0 | AB119: 0 | AC119: 0 | AD119: 0 | AE119: 0 | AF119: 0 | AG119: 0 | AH119: 0 | AP119: 5 | AT119: 1b | AU119: 2a | AV119: 3a | AZ119: =COUNTIF($H$115:$H$122,3) -> 0 | BA119: =IF(AZ119>1,FALSE,TRUE) -> TRUE | BG119: =IF(C119>0,MAX($BH$115:BH118)+1,99) -> 99 | BH119: 0 | BM119: 5 | BN119: 0 | BO119: 0 | BP119: 0 | BQ119: 1 | BR119: 0 | BS119: 0 | BT119: 0 | BU119: 0 | BV119: 0 | BW119: 0 | BX119: 10000 | CC119: =IF(A119<=$C$109,CC118,TRUE) -> TRUE
A120: 6 | C120: 0 | J120: 0 | K120: 0 | L120: 0 | N120: 0 | O120: 0 | P120: 0 | Q120: 0 | R120: 0 | S120: 0 | T120: 0 | U120: 0 | V120: 0 | W120: 0 | X120: 0 | Y120: 0 | Z120: 0 | AA120: 0 | AB120: 0 | AC120: 0 | AD120: 0 | AE120: 0 | AF120: 0 | AG120: 0 | AH120: 0 | AP120: 6 | AT120: 1b | AU120: 2a | AV120: 3b | BG120: =IF(C120>0,MAX($BH$115:BH119)+1,99) -> 99 | BH120: 0 | BM120: 6 | BN120: 0 | BO120: 1 | BP120: 0 | BQ120: 1 | BR120: 0 | BS120: 0 | BT120: 0 | BU120: 0 | BV120: 0 | BW120: 0 | BX120: 100000 | CC120: =IF(A120<=$C$109,CC119,TRUE) -> TRUE
A121: 7 | C121: 0 | J121: 0 | K121: 0 | L121: 0 | N121: 0 | O121: 0 | P121: 0 | Q121: 0 | R121: 0 | S121: 0 | T121: 0 | U121: 0 | V121: 0 | W121: 0 | X121: 0 | Y121: 0 | Z121: 0 | AA121: 0 | AB121: 0 | AC121: 0 | AD121: 0 | AE121: 0 | AF121: 0 | AG121: 0 | AH121: 0 | AP121: 7 | AT121: 1b | AU121: 2b | AV121: 3a | BG121: =IF(C121>0,MAX($BH$115:BH120)+1,99) -> 99 | BH121: 0 | BM121: 7 | BN121: 0 | BO121: 0 | BP121: 1 | BQ121: 1 | BR121: 0 | BS121: 0 | BT121: 0 | BU121: 0 | BV121: 0 | BW121: 0 | BX121: 1000000 | CC121: =IF(A121<=$C$109,CC120,TRUE) -> TRUE
A122: 8 | C122: 0 | I122: =IF(H122>0,2,IF(C122>0,2^COUNTIF(J122:AH122,2),"")) ->  | J122: 0 | K122: 0 | L122: 0 | N122: 0 | O122: 0 | P122: 0 | Q122: 0 | R122: 0 | S122: 0 | T122: 0 | U122: 0 | V122: 0 | W122: 0 | X122: 0 | Y122: 0 | Z122: 0 | AA122: 0 | AB122: 0 | AC122: 0 | AD122: 0 | AE122: 0 | AF122: 0 | AG122: 0 | AH122: 0 | AP122: 8 | AT122: 1b | AU122: 2b | AV122: 3b | BG122: =IF(C122>0,MAX($BH$115:BH121)+1,99) -> 99 | BH122: 0 | BM122: 8 | BN122: 0 | BO122: 1 | BP122: 1 | BQ122: 1 | BR122: 0 | BS122: 0 | BT122: =IF(AND(C122=0,C134>0,A122>$G$503),1,0) -> 0 | BU122: 0 | BV122: 0 | BW122: 0 | BX122: 10000000 | CC122: =IF(A122<=$C$109,CC121,TRUE) -> TRUE
I123: Used? | J123: =IF(AND(J135=0,J136=0),FALSE,TRUE) -> FALSE | K123: =IF(AND(K135=0,K136=0),FALSE,TRUE) -> FALSE | L123: =IF(AND(L135=0,L136=0),FALSE,TRUE) -> FALSE | N123: =IF(AND(N135=0,N136=0),FALSE,TRUE) -> FALSE | O123: FALSE | P123: FALSE | Q123: FALSE | R123: FALSE | S123: FALSE | T123: FALSE | U123: FALSE | V123: FALSE | W123: FALSE | X123: FALSE | Y123: FALSE | Z123: FALSE | AA123: FALSE | AB123: FALSE | AC123: FALSE | AD123: FALSE | AE123: FALSE | AF123: FALSE | AG123: FALSE | AH123: FALSE | CC123: =$CC$110 -> TRUE
I124: Varies? | J124: =IF(J123,IF(J136<>J135,TRUE,FALSE)) -> FALSE | K124: =IF(K123,IF(K136<>K135,TRUE,FALSE)) -> FALSE | L124: =IF(L123,IF(L136<>L135,TRUE,FALSE)) -> FALSE | N124: =IF(N123,IF(N136<>N135,TRUE,FALSE)) -> FALSE | O124: FALSE | P124: FALSE | Q124: FALSE | R124: FALSE | S124: FALSE | T124: FALSE | U124: FALSE | V124: FALSE | W124: FALSE | X124: FALSE | Y124: FALSE | Z124: FALSE | AA124: FALSE | AB124: FALSE | AC124: FALSE | AD124: FALSE | AE124: FALSE | AF124: FALSE | AG124: FALSE | AH124: FALSE | CC124: TRUE
D125: Rank of Variation | J125: =IF(J124,I125+1,I125) -> 0 | K125: =IF(K124,J125+1,J125) -> 0 | L125: 0 | M125: 0 | N125: 0 | O125: 0 | P125: 0 | Q125: 0 | R125: 0 | S125: 0 | T125: 0 | U125: 0 | V125: 0 | W125: 0 | X125: 0 | Y125: 0 | Z125: 0 | AA125: 0 | AB125: 0 | AC125: 0 | AD125: 0 | AE125: 0 | AF125: 0 | AG125: 0 | AH125: 0 | CC125: TRUE
D126: Sample 1 | J126: =IF(J$123,IF(J$124,2,1),0) -> 0 | K126: 0 | L126: 0 | N126: =IF(N$123,IF(N$124,2,1),0) -> 0 | O126: 0 | P126: 0 | Q126: 0 | R126: 0 | S126: 0 | T126: 0 | U126: 0 | V126: 0 | W126: 0 | X126: 0 | Y126: 0 | Z126: 0 | AA126: 0 | AB126: 0 | AC126: 0 | AD126: =IF(AD$123,IF(AD$124,2,1),0) -> 0 | AE126: 0 | AF126: 0 | AG126: 0 | AH126: 0 | CC126: TRUE
D127: Sample 2 | J127: 0 | K127: 0 | L127: 0 | N127: 0 | O127: 0 | P127: 0 | Q127: 0 | R127: 0 | S127: 0 | T127: 0 | U127: 0 | V127: 0 | W127: 0 | X127: 0 | Y127: 0 | Z127: 0 | AA127: 0 | AB127: 0 | AC127: 0 | AD127: 0 | AE127: 0 | AF127: 0 | AG127: 0 | AH127: 0 | CC127: TRUE
D128: Sample 3 | J128: 0 | K128: 0 | L128: 0 | N128: 0 | O128: 0 | P128: 0 | Q128: 0 | R128: 0 | S128: 0 | T128: 0 | U128: 0 | V128: 0 | W128: 0 | X128: 0 | Y128: 0 | Z128: 0 | AA128: 0 | AB128: 0 | AC128: 0 | AD128: 0 | AE128: 0 | AF128: 0 | AG128: 0 | AH128: 0 | CC128: TRUE
D129: Sample 4 | J129: 0 | K129: 0 | L129: 0 | N129: 0 | O129: 0 | P129: 0 | Q129: 0 | R129: 0 | S129: 0 | T129: 0 | U129: 0 | V129: 0 | W129: 0 | X129: 0 | Y129: 0 | Z129: 0 | AA129: 0 | AB129: 0 | AC129: 0 | AD129: 0 | AE129: 0 | AF129: 0 | AG129: 0 | AH129: 0 | CC129: TRUE
D130: Sample 5 | J130: 0 | K130: 0 | L130: 0 | N130: 0 | O130: 0 | P130: 0 | Q130: 0 | R130: 0 | S130: 0 | T130: 0 | U130: 0 | V130: 0 | W130: 0 | X130: 0 | Y130: 0 | Z130: 0 | AA130: 0 | AB130: 0 | AC130: 0 | AD130: 0 | AE130: 0 | AF130: 0 | AG130: 0 | AH130: 0 | CC130: TRUE
D131: Sample 6 | J131: 0 | K131: 0 | L131: 0 | N131: 0 | O131: 0 | P131: 0 | Q131: 0 | R131: 0 | S131: 0 | T131: 0 | U131: 0 | V131: 0 | W131: 0 | X131: 0 | Y131: 0 | Z131: 0 | AA131: 0 | AB131: 0 | AC131: 0 | AD131: 0 | AE131: 0 | AF131: 0 | AG131: 0 | AH131: 0 | CC131: TRUE
D132: Sample 7 | J132: 0 | K132: 0 | L132: 0 | N132: 0 | O132: 0 | P132: 0 | Q132: 0 | R132: 0 | S132: 0 | T132: 0 | U132: 0 | V132: 0 | W132: 0 | X132: 0 | Y132: 0 | Z132: 0 | AA132: 0 | AB132: 0 | AC132: 0 | AD132: 0 | AE132: 0 | AF132: 0 | AG132: 0 | AH132: 0 | BR132: =SUM(BR115:BR121) -> 0 | BS132: =SUM(BS115:BS121) -> 0 | BT132: =SUM(BT115:BT121) -> 0 | BU132: =MAX(BU115:BU121) -> 0 | BV132: =MAX(BV115:BV121) -> 0 | CC132: TRUE
D133: Sample 8 | J133: 0 | K133: 0 | L133: 0 | N133: 0 | O133: 0 | P133: 0 | Q133: 0 | R133: 0 | S133: 0 | T133: 0 | U133: 0 | V133: 0 | W133: 0 | X133: 0 | Y133: 0 | Z133: 0 | AA133: 0 | AB133: 0 | AC133: 0 | AD133: 0 | AE133: 0 | AF133: 0 | AG133: 0 | AH133: 0 | AP133: Variations | AQ133: 1 var | AR133: 2 variables | AT133: 3 variables | BM133: Variation Num | BN133: 0 | BO133: 1 | BP133: 2 | BQ133: 3 | BR133: Out of Order? | BS133: Outside Bkt | BT133: Skipped Sample | BU133: no Amount | BV133: no Term | BW133: Checksum of Rows | BZ133: REAL SAMPLES | CC133: TRUE
B134: Num Prices | C134: =COUNTIF(C139:C170,">0") -> 0 | H134: Total Prices-> | I134: =SUM(I115:I122) -> 0 | J134: =IF(MAX(J115:J122)>1,"VARIES",DevOk) ->  | CC134: =$F$666 -> TRUE
B135: =IF(ISNUMBER(F14),IF(F14-MAX(E115:E122)>6,"Note: The max loan term is "&F14&" months. Consider adding samples with longer terms.",DevOk),DevOk) ->  | I135: Min-> | J135: =F23 -> 0 | K135: =MIN(I17:I18) -> 0 | L135: =E27 -> 0 | N135: =$E$31 -> 0 | O135: =$I$31 -> 0 | P135: =$E$33 -> 0 | Q135: =$I$33 -> 0 | R135: =$E$32 -> 0 | S135: =$I$32 -> 0 | T135: =$E$34 -> 0 | U135: =$I$34 -> 0 | V135: =E38 -> 0 | W135: =I38 -> 0 | X135: =E40 -> 0 | Y135: =I40 -> 0 | Z135: =E39 -> 0 | AA135: =I39 -> 0 | AB135: =E41 -> 0 | AC135: =I41 -> 0 | AD135: =E51 -> 0 | AE135: =I51 -> 0 | AF135: =E52 -> 0 | AG135: =I52 -> 0 | AH135: =(E53+F53)/2 -> 0 | CC135: TRUE
A136: Note: You can type over the values of the green and white cells below after column I. | I136: Max-> | J136: =IF(ISBLANK(G23),J135,G23) -> 0 | K136: =MAX(I17:I18) -> 0 | L136: =F27 -> 0 | N136: =$F$31 -> 0 | O136: =$J$31 -> 0 | P136: =$F$33 -> 0 | Q136: =$J$33 -> 0 | R136: =$F$32 -> 0 | S136: =$J$32 -> 0 | T136: =$F$34 -> 0 | U136: =$J$34 -> 0 | V136: =F38 -> 0 | W136: =J38 -> 0 | X136: =F40 -> 0 | Y136: =J40 -> 0 | Z136: =F39 -> 0 | AA136: =J39 -> 0 | AB136: =F41 -> 0 | AC136: =J41 -> 0 | AD136: =F51 -> 0 | AE136: =J51 -> 0 | AF136: =F52 -> 0 | AG136: =J52 -> 0 | AH136: =AH135 -> 0 | AO136: =IF(ISNUMBER(AP136),AP136,IF(ISNUMBER(AP137),AP137,IF(ISNUMBER(AP138),AP138,0))) -> 0 | AP136: =MATCH(2,$AP$139:$AP$170,0) ->  | AQ136: Calculated Prices | CC136: TRUE
A137: Row | B137: 1 | C137: =IF($B$137=0,0,INDEX($C$139:$AJ$170,$BB$115,C114)) -> 0 | D137: 0 | E137: 0 | F137: 0 | G137: 0 | H137: 0 | I137: 0 | J137: 0 | K137: 0 | L137: 0 | N137: 0 | O137: 0 | P137: 0 | Q137: 0 | R137: 0 | S137: 0 | T137: 0 | U137: 0 | V137: 0 | W137: 0 | X137: 0 | Y137: 0 | Z137: 0 | AA137: 0 | AB137: 0 | AC137: 0 | AD137: 0 | AE137: 0 | AF137: 0 | AG137: 0 | AH137: 0 | AP137: =MATCH(3,$AP$139:$AP$170,0) ->  | AQ137: =PriceTable!S6 -> SampClients | AR137: =PriceTable!AD6 -> APR (int) | AS137: =PriceTable!AE6 -> APR (int fee) | AT137: =PriceTable!AF6 -> APR (int fee ins) | AU137: =PriceTable!AG6 -> APR (int fee ins tax) | AV137: FullAPR | AW137: TranspInd2 | AX137: Avg Bal | BC137: =ROW(PriceTable!B6) -> 6 | BE137: if REAL | BF137: =ROW(PriceTable!A187) -> 187 | BZ137: Real Samples | CA137: =COUNTIF(XChkCol,">0") -> 0 | CB137: Row | CC137: TRUE
B138: Sam-Var | C138: LoanAmt | D138: LnTmMon | E138: SampleNum | F138: VarNum | G138: SampClients | H138: =IF(Q1="Cross-check","RealSamp","N/A") -> N/A | I138: NumPmts | J138: GraceMon | K138: Frequency | L138: interest | M138: IntMethod | N138: Fee1UpPc | O138: Fee1UpFix | P138: Fee1OnPc | Q138: Fee1OnFix | R138: Fee2UpPc | S138: Fee2UpFix | T138: Fee2OnPerc | U138: Fee2OnFix | V138: Ins1UpPc | W138: Ins1UpFix | X138: Ins1OnPc | Y138: Ins1OnFix | Z138: Ins2UpPc | AA138: Ins2UpFix | AB138: Ins2OnPc | AC138: Ins2OnFix | AD138: SecDepPerc | AE138: SecDepFix | AF138: SecDepOnPerc | AG138: SecDepOnFix | AH138: SecDepInt | AP138: =MATCH(4,$AP$139:$AP$170,0) ->  | AR138: Int | AS138: Fee | AT138: Ins | AU138: Tax | AV138: Dep | AW138: TI2 | AY138: SampNum | BB138: Full Code | BC138: Row in Upper Price | BE138: Row in Price | CC138: TRUE
A139: 1 | B139: =IF(E139>0,E139&"-"&F139,"-") -> - | C139: =IF(E139>0,INDEX($C$115:$C$122,E139),0) -> 0 | D139: =IF(E139>0,INDEX($E$115:$E$122,E139),0) -> 0 | E139: =IF(A139>$I$134,0,AY139) -> 0 | F139: =IF(E139>0,IF(E139=E138,F138+1,IF(H139>0,0,1)),0) -> 0 | G139: =IF(E139>0,INDEX($G$115:$G$122,E139),0) -> 0 | H139: =IF(E139>0,IF(INDEX($H$115:$H$122,E139)>0,IF(E139<>E138,INDEX($H$115:$H$122,E139),0),0),0) -> 0 | I139: =IF(K139=999,1,IF(AND(ISNUMBER(K139),K139<>0),TRUNC((D139-J139)*30/K139,0),0)) -> 0 | J139: =IF(AND(J$123,$B139<>"-"),IF(J$125=2,IF($F139<3,J$136,J$135),IF(MOD($F139,2)=0,J$135,J$136)),0) -> 0 | K139: 0 | L139: 0 | M139: =IF(C139>0,$G$27,"") ->  | N139: =IF(AND(N$123,$B139<>"-"),IF(N$125=2,IF($F139<3,N$136,N$135),IF(MOD($F139,2)=0,N$135,N$136)),0) -> 0 | O139: 0 | P139: 0 | Q139: 0 | R139: 0 | S139: 0 | T139: 0 | U139: 0 | V139: 0 | W139: 0 | X139: 0 | Y139: 0 | Z139: 0 | AA139: 0 | AB139: 0 | AC139: 0 | AD139: =IF(AND(AD$123,$B139<>"-"),IF(AD$125=2,IF($F139<3,AD$136,AD$135),IF(MOD($F139,2)=0,AD$135,AD$136)),0) -> 0 | AE139: 0 | AF139: 0 | AG139: 0 | AH139: 0 | AO139: =(C139*$C$171)+(D139*$D$171)+(H139*$H$171)+(I139*$I$171)+(J139*$J$171)+(K139*$K$171)+(L139*$L$171)+(N139*$N$171)+(O139*$O$171)+(P139*$P$171)+(Q139*$Q$171)+(R139*$R$171)+(S139*$S$171)+(T139*$T$171)+(U139*$U$171)+(V139*$V$171)+(W139*$W$171)+(X139*$X$171)+(Y139*$Y$171)+(Z139*$Z$171)+(AA139*$AA$171)+(AB139*$AB$171)+(AC139*$AC$171)+(AD139*$AD$171)+(AE139*$AE$171)+(AF139*$AF$171)+(AG139*$AG$171)+(AH139*$AH$171) -> 0 | AP139: =IF(B139="-",0,IF(AO139>0,COUNTIF($AO$139:$AO$170,AO139),0)) -> 0 | AQ139: =IF($BC139=999,NA(),INDIRECT(PriceAnalSht&ADDRESS($BC139,AO$114))) ->  | AY139: =IF(AND(A139>=$BG$115,A139<=$BH$115),1,IF(AND(A139>=$BG$116,A139<=$BH$116),2,IF(AND(A139>=$BG$117,A139<=$BH$117),3,IF(AND(A139>=$BG$118,A139<=$BH$118),4,IF(AND(A139>=$BG$119,A139<=$BH$119),5,IF(AND(A139>=$BG$120,A139<=$BH$120),6,IF(AND(A139>=$BG$121,A139<=$BH$121),7,IF(AND(A139>=$BG$122,A139<=$BH$122),8,0)))))))) -> 0 | BB139: =SmpProdInput&"-"&Prod3!B139 -> 3-- | BC139: =IF(ISNA(BD139),999,BD139) -> 999 | BD139: =MATCH(BB139,PriceTable!$B$7:$B$181,0)+$BC$137 ->  | BE139: =IF(F139=0,BF139,999) ->  | BF139: =MATCH(BB139,PriceTable!$E$188:$E$362,0) ->  | CC139: TRUE
A140: 2 | B140: =IF(E140>0,E140&"-"&F140,"-") -> - | C140: 0 | D140: 0 | E140: 0 | F140: =IF(E140>0,IF(E140=E139,F139+1,IF(H140>0,0,1)),0) -> 0 | G140: 0 | H140: 0 | I140: =IF(K140=999,1,IF(AND(ISNUMBER(K140),K140<>0),TRUNC((D140-J140)*30/K140,0),0)) -> 0 | J140: 0 | K140: 0 | L140: 0 | N140: 0 | O140: 0 | P140: 0 | Q140: 0 | R140: 0 | S140: 0 | T140: 0 | U140: 0 | V140: 0 | W140: 0 | X140: 0 | Y140: 0 | Z140: 0 | AA140: 0 | AB140: 0 | AC140: 0 | AD140: 0 | AE140: 0 | AF140: 0 | AG140: 0 | AH140: 0 | AO140: 0 | AP140: 0 | AY140: 0 | BB140: =SmpProdInput&"-"&Prod3!B140 -> 3-- | BC140: =IF(ISNA(BD140),999,BD140) -> 999 | BD140: =MATCH(BB140,PriceTable!$B$7:$B$181,0)+$BC$137 ->  | BE140: =IF(G140=0,BF140,999) ->  | BF140: =MATCH(BB140,PriceTable!$E$188:$E$362,0) ->  | CC140: TRUE
A141: 3 | B141: - | C141: 0 | D141: 0 | E141: 0 | F141: 0 | G141: 0 | H141: 0 | I141: 0 | J141: 0 | K141: 0 | L141: 0 | N141: 0 | O141: 0 | P141: 0 | Q141: 0 | R141: 0 | S141: 0 | T141: 0 | U141: 0 | V141: 0 | W141: 0 | X141: 0 | Y141: 0 | Z141: 0 | AA141: 0 | AB141: 0 | AC141: 0 | AD141: 0 | AE141: 0 | AF141: 0 | AG141: 0 | AH141: 0 | AO141: 0 | AP141: 0 | AY141: 0 | BB141: =SmpProdInput&"-"&Prod3!B141 -> 3-- | BC141: =IF(ISNA(BD141),999,BD141) -> 999 | BD141: =MATCH(BB141,PriceTable!$B$7:$B$181,0)+$BC$137 ->  | BF141: =MATCH(BB141,PriceTable!$E$188:$E$362,0) ->  | CC141: TRUE
A142: 4 | B142: - | C142: 0 | D142: 0 | E142: 0 | F142: 0 | G142: 0 | H142: 0 | I142: 0 | J142: 0 | K142: 0 | L142: 0 | N142: 0 | O142: 0 | P142: 0 | Q142: 0 | R142: 0 | S142: 0 | T142: 0 | U142: 0 | V142: 0 | W142: 0 | X142: 0 | Y142: 0 | Z142: 0 | AA142: 0 | AB142: 0 | AC142: 0 | AD142: 0 | AE142: 0 | AF142: 0 | AG142: 0 | AH142: 0 | AO142: 0 | AP142: 0 | AY142: 0 | BB142: =SmpProdInput&"-"&Prod3!B142 -> 3-- | BC142: =IF(ISNA(BD142),999,BD142) -> 999 | BD142: =MATCH(BB142,PriceTable!$B$7:$B$181,0)+$BC$137 ->  | BF142: =MATCH(BB142,PriceTable!$E$188:$E$362,0) ->  | CC142: =IF(B142="-",TRUE,$CC$139) -> TRUE
A143: 5 | B143: - | C143: 0 | D143: 0 | E143: 0 | F143: 0 | G143: 0 | H143: 0 | I143: 0 | J143: 0 | K143: 0 | L143: 0 | N143: 0 | O143: 0 | P143: 0 | Q143: 0 | R143: 0 | S143: 0 | T143: 0 | U143: 0 | V143: 0 | W143: 0 | X143: 0 | Y143: 0 | Z143: 0 | AA143: 0 | AB143: 0 | AC143: 0 | AD143: 0 | AE143: 0 | AF143: 0 | AG143: 0 | AH143: 0 | AO143: 0 | AP143: 0 | AY143: 0 | BB143: =SmpProdInput&"-"&Prod3!B143 -> 3-- | BC143: =IF(ISNA(BD143),999,BD143) -> 999 | BD143: =MATCH(BB143,PriceTable!$B$7:$B$181,0)+$BC$137 ->  | BF143: =MATCH(BB143,PriceTable!$E$188:$E$362,0) ->  | CC143: TRUE
A144: 6 | B144: - | C144: 0 | D144: 0 | E144: 0 | F144: 0 | G144: 0 | H144: 0 | I144: 0 | J144: 0 | K144: 0 | L144: 0 | N144: 0 | O144: 0 | P144: 0 | Q144: 0 | R144: 0 | S144: 0 | T144: 0 | U144: 0 | V144: 0 | W144: 0 | X144: 0 | Y144: 0 | Z144: 0 | AA144: 0 | AB144: 0 | AC144: 0 | AD144: 0 | AE144: 0 | AF144: 0 | AG144: 0 | AH144: 0 | AO144: 0 | AP144: 0 | AY144: 0 | BB144: =SmpProdInput&"-"&Prod3!B144 -> 3-- | BC144: =IF(ISNA(BD144),999,BD144) -> 999 | BD144: =MATCH(BB144,PriceTable!$B$7:$B$181,0)+$BC$137 ->  | BF144: =MATCH(BB144,PriceTable!$E$188:$E$362,0) ->  | CC144: TRUE
A145: 7 | B145: - | C145: 0 | D145: 0 | E145: 0 | F145: 0 | G145: 0 | H145: 0 | I145: 0 | J145: 0 | K145: 0 | L145: 0 | N145: 0 | O145: 0 | P145: 0 | Q145: 0 | R145: 0 | S145: 0 | T145: 0 | U145: 0 | V145: 0 | W145: 0 | X145: 0 | Y145: 0 | Z145: 0 | AA145: 0 | AB145: 0 | AC145: 0 | AD145: 0 | AE145: 0 | AF145: 0 | AG145: 0 | AH145: 0 | AO145: 0 | AP145: 0 | AY145: 0 | BB145: =SmpProdInput&"-"&Prod3!B145 -> 3-- | BC145: 999 | BD145: =MATCH(BB145,PriceTable!$B$7:$B$181,0)+$BC$137 ->  | BF145: =MATCH(BB145,PriceTable!$E$188:$E$362,0) ->  | CC145: TRUE
A146: 8 | B146: - | C146: 0 | D146: 0 | E146: 0 | F146: 0 | G146: 0 | H146: 0 | I146: 0 | J146: 0 | K146: 0 | L146: 0 | N146: 0 | O146: 0 | P146: 0 | Q146: 0 | R146: 0 | S146: 0 | T146: 0 | U146: 0 | V146: 0 | W146: 0 | X146: 0 | Y146: 0 | Z146: 0 | AA146: 0 | AB146: 0 | AC146: 0 | AD146: 0 | AE146: 0 | AF146: 0 | AG146: 0 | AH146: 0 | AO146: 0 | AP146: 0 | AY146: 0 | BB146: =SmpProdInput&"-"&Prod3!B146 -> 3-- | BC146: 999 | BD146: =MATCH(BB146,PriceTable!$B$7:$B$181,0)+$BC$137 ->  | BF146: =MATCH(BB146,PriceTable!$E$188:$E$362,0) ->  | CC146: TRUE
A147: 9 | B147: - | C147: 0 | D147: 0 | E147: 0 | F147: 0 | G147: 0 | H147: 0 | I147: 0 | J147: 0 | K147: 0 | L147: 0 | N147: 0 | O147: 0 | P147: 0 | Q147: 0 | R147: 0 | S147: 0 | T147: 0 | U147: 0 | V147: 0 | W147: 0 | X147: 0 | Y147: 0 | Z147: 0 | AA147: 0 | AB147: 0 | AC147: 0 | AD147: 0 | AE147: 0 | AF147: 0 | AG147: 0 | AH147: 0 | AO147: 0 | AP147: 0 | AY147: 0 | BB147: =SmpProdInput&"-"&Prod3!B147 -> 3-- | BC147: 999 | BD147: =MATCH(BB147,PriceTable!$B$7:$B$181,0)+$BC$137 ->  | BF147: =MATCH(BB147,PriceTable!$E$188:$E$362,0) ->  | CC147: TRUE
A148: 10 | B148: - | C148: 0 | D148: 0 | E148: 0 | F148: 0 | G148: 0 | H148: 0 | I148: 0 | J148: 0 | K148: 0 | L148: 0 | N148: 0 | O148: 0 | P148: 0 | Q148: 0 | R148: 0 | S148: 0 | T148: 0 | U148: 0 | V148: 0 | W148: 0 | X148: 0 | Y148: 0 | Z148: 0 | AA148: 0 | AB148: 0 | AC148: 0 | AD148: 0 | AE148: 0 | AF148: 0 | AG148: 0 | AH148: 0 | AO148: 0 | AP148: 0 | AY148: 0 | BB148: =SmpProdInput&"-"&Prod3!B148 -> 3-- | BC148: 999 | BD148: =MATCH(BB148,PriceTable!$B$7:$B$181,0)+$BC$137 ->  | BF148: =MATCH(BB148,PriceTable!$E$188:$E$362,0) ->  | CC148: TRUE
A149: 11 | B149: - | C149: 0 | D149: 0 | E149: 0 | F149: 0 | G149: 0 | H149: 0 | I149: 0 | J149: 0 | K149: 0 | L149: 0 | N149: 0 | O149: 0 | P149: 0 | Q149: 0 | R149: 0 | S149: 0 | T149: 0 | U149: 0 | V149: 0 | W149: 0 | X149: 0 | Y149: 0 | Z149: 0 | AA149: 0 | AB149: 0 | AC149: 0 | AD149: 0 | AE149: 0 | AF149: 0 | AG149: 0 | AH149: 0 | AO149: 0 | AP149: 0 | AY149: 0 | BB149: =SmpProdInput&"-"&Prod3!B149 -> 3-- | BC149: 999 | BD149: =MATCH(BB149,PriceTable!$B$7:$B$181,0)+$BC$137 ->  | BF149: =MATCH(BB149,PriceTable!$E$188:$E$362,0) ->  | CC149: TRUE
A150: 12 | B150: - | C150: 0 | D150: 0 | E150: 0 | F150: 0 | G150: 0 | H150: 0 | I150: 0 | J150: 0 | K150: 0 | L150: 0 | N150: 0 | O150: 0 | P150: 0 | Q150: 0 | R150: 0 | S150: 0 | T150: 0 | U150: 0 | V150: 0 | W150: 0 | X150: 0 | Y150: 0 | Z150: 0 | AA150: 0 | AB150: 0 | AC150: 0 | AD150: 0 | AE150: 0 | AF150: 0 | AG150: 0 | AH150: 0 | AO150: 0 | AP150: 0 | AY150: 0 | BB150: =SmpProdInput&"-"&Prod3!B150 -> 3-- | BC150: 999 | BD150: =MATCH(BB150,PriceTable!$B$7:$B$181,0)+$BC$137 ->  | BF150: =MATCH(BB150,PriceTable!$E$188:$E$362,0) ->  | CC150: TRUE
A151: 13 | B151: - | C151: 0 | D151: 0 | E151: 0 | F151: 0 | G151: 0 | H151: 0 | I151: 0 | J151: 0 | K151: 0 | L151: 0 | N151: 0 | O151: 0 | P151: 0 | Q151: 0 | R151: 0 | S151: 0 | T151: 0 | U151: 0 | V151: 0 | W151: 0 | X151: 0 | Y151: 0 | Z151: 0 | AA151: 0 | AB151: 0 | AC151: 0 | AD151: 0 | AE151: 0 | AF151: 0 | AG151: 0 | AH151: 0 | AO151: 0 | AP151: 0 | AY151: 0 | BB151: =SmpProdInput&"-"&Prod3!B151 -> 3-- | BC151: 999 | BD151: =MATCH(BB151,PriceTable!$B$7:$B$181,0)+$BC$137 ->  | BF151: =MATCH(BB151,PriceTable!$E$188:$E$362,0) ->  | CC151: TRUE
A152: 14 | B152: - | C152: 0 | D152: 0 | E152: 0 | F152: 0 | G152: 0 | H152: 0 | I152: 0 | J152: 0 | K152: 0 | L152: 0 | N152: 0 | O152: 0 | P152: 0 | Q152: 0 | R152: 0 | S152: 0 | T152: 0 | U152: 0 | V152: 0 | W152: 0 | X152: 0 | Y152: 0 | Z152: 0 | AA152: 0 | AB152: 0 | AC152: 0 | AD152: 0 | AE152: 0 | AF152: 0 | AG152: 0 | AH152: 0 | AO152: 0 | AP152: 0 | AY152: 0 | BB152: =SmpProdInput&"-"&Prod3!B152 -> 3-- | BC152: 999 | BD152: =MATCH(BB152,PriceTable!$B$7:$B$181,0)+$BC$137 ->  | BF152: =MATCH(BB152,PriceTable!$E$188:$E$362,0) ->  | CC152: TRUE
A153: 15 | B153: - | C153: 0 | D153: 0 | E153: 0 | F153: 0 | G153: 0 | H153: 0 | I153: 0 | J153: 0 | K153: 0 | L153: 0 | N153: 0 | O153: 0 | P153: 0 | Q153: 0 | R153: 0 | S153: 0 | T153: 0 | U153: 0 | V153: 0 | W153: 0 | X153: 0 | Y153: 0 | Z153: 0 | AA153: 0 | AB153: 0 | AC153: 0 | AD153: 0 | AE153: 0 | AF153: 0 | AG153: 0 | AH153: 0 | AO153: 0 | AP153: 0 | AY153: 0 | BB153: =SmpProdInput&"-"&Prod3!B153 -> 3-- | BC153: 999 | BD153: =MATCH(BB153,PriceTable!$B$7:$B$181,0)+$BC$137 ->  | BF153: =MATCH(BB153,PriceTable!$E$188:$E$362,0) ->  | CC153: TRUE
A154: 16 | B154: - | C154: 0 | D154: 0 | E154: 0 | F154: 0 | G154: 0 | H154: 0 | I154: 0 | J154: 0 | K154: 0 | L154: 0 | N154: 0 | O154: 0 | P154: 0 | Q154: 0 | R154: 0 | S154: 0 | T154: 0 | U154: 0 | V154: 0 | W154: 0 | X154: 0 | Y154: 0 | Z154: 0 | AA154: 0 | AB154: 0 | AC154: =IF(AND(AC$123,$B154<>"-"),IF(AC$125=2,IF($F154<3,AC$136,AC$135),IF(MOD($F154,2)=0,AC$135,AC$136)),0) -> 0 | AD154: 0 | AE154: 0 | AF154: 0 | AG154: 0 | AH154: 0 | AO154: 0 | AP154: 0 | AY154: 0 | BB154: =SmpProdInput&"-"&Prod3!B154 -> 3-- | BC154: 999 | BD154: =MATCH(BB154,PriceTable!$B$7:$B$181,0)+$BC$137 ->  | BF154: =MATCH(BB154,PriceTable!$E$188:$E$362,0) ->  | CC154: TRUE
A155: 17 | B155: - | C155: 0 | D155: 0 | E155: 0 | F155: 0 | G155: 0 | H155: 0 | I155: 0 | J155: 0 | K155: 0 | L155: 0 | N155: =IF(AND(N$123,$B155<>"-"),IF(N$125=2,IF($F155<3,N$136,N$135),IF(MOD($F155,2)=0,N$135,N$136)),0) -> 0 | O155: 0 | P155: 0 | Q155: 0 | R155: 0 | S155: 0 | T155: 0 | U155: 0 | V155: 0 | W155: 0 | X155: 0 | Y155: 0 | Z155: 0 | AA155: 0 | AB155: 0 | AC155: 0 | AD155: 0 | AE155: 0 | AF155: 0 | AG155: 0 | AH155: 0 | AO155: 0 | AP155: 0 | AY155: 0 | BB155: =SmpProdInput&"-"&Prod3!B155 -> 3-- | BC155: 999 | BD155: =MATCH(BB155,PriceTable!$B$7:$B$181,0)+$BC$137 ->  | BF155: =MATCH(BB155,PriceTable!$E$188:$E$362,0) ->  | CC155: TRUE
A156: 18 | B156: - | C156: 0 | D156: 0 | E156: 0 | F156: 0 | G156: 0 | H156: 0 | I156: 0 | J156: 0 | K156: 0 | L156: 0 | N156: 0 | O156: 0 | P156: 0 | Q156: 0 | R156: 0 | S156: 0 | T156: 0 | U156: 0 | V156: 0 | W156: 0 | X156: 0 | Y156: 0 | Z156: 0 | AA156: 0 | AB156: 0 | AC156: 0 | AD156: 0 | AE156: 0 | AF156: 0 | AG156: 0 | AH156: 0 | AO156: 0 | AP156: 0 | AY156: 0 | BB156: =SmpProdInput&"-"&Prod3!B156 -> 3-- | BC156: 999 | BD156: =MATCH(BB156,PriceTable!$B$7:$B$181,0)+$BC$137 ->  | BF156: =MATCH(BB156,PriceTable!$E$188:$E$362,0) ->  | CC156: TRUE
A157: 19 | B157: - | C157: 0 | D157: 0 | E157: 0 | F157: 0 | G157: 0 | H157: 0 | I157: 0 | J157: 0 | K157: 0 | L157: 0 | N157: 0 | O157: 0 | P157: 0 | Q157: 0 | R157: 0 | S157: 0 | T157: 0 | U157: 0 | V157: 0 | W157: 0 | X157: 0 | Y157: 0 | Z157: 0 | AA157: 0 | AB157: 0 | AC157: 0 | AD157: 0 | AE157: 0 | AF157: 0 | AG157: 0 | AH157: 0 | AO157: 0 | AP157: 0 | AY157: 0 | BB157: =SmpProdInput&"-"&Prod3!B157 -> 3-- | BC157: 999 | BD157: =MATCH(BB157,PriceTable!$B$7:$B$181,0)+$BC$137 ->  | BF157: =MATCH(BB157,PriceTable!$E$188:$E$362,0) ->  | CC157: TRUE
A158: 20 | B158: - | C158: 0 | D158: 0 | E158: 0 | F158: 0 | G158: 0 | H158: 0 | I158: 0 | J158: 0 | K158: 0 | L158: 0 | N158: 0 | O158: 0 | P158: 0 | Q158: 0 | R158: 0 | S158: 0 | T158: 0 | U158: 0 | V158: 0 | W158: 0 | X158: 0 | Y158: 0 | Z158: 0 | AA158: 0 | AB158: 0 | AC158: 0 | AD158: 0 | AE158: 0 | AF158: 0 | AG158: 0 | AH158: 0 | AO158: 0 | AP158: =IF(B158="-",0,IF(AO158>0,COUNTIF($AO$139:$AO$170,AO158),0)) -> 0 | AY158: 0 | BB158: =SmpProdInput&"-"&Prod3!B158 -> 3-- | BC158: 999 | BD158: =MATCH(BB158,PriceTable!$B$7:$B$181,0)+$BC$137 ->  | BF158: =MATCH(BB158,PriceTable!$E$188:$E$362,0) ->  | CC158: TRUE
A159: 21 | B159: - | C159: 0 | D159: 0 | E159: 0 | F159: 0 | G159: 0 | H159: 0 | I159: 0 | J159: 0 | K159: 0 | L159: 0 | N159: 0 | O159: 0 | P159: 0 | Q159: 0 | R159: 0 | S159: 0 | T159: 0 | U159: 0 | V159: 0 | W159: 0 | X159: 0 | Y159: 0 | Z159: 0 | AA159: 0 | AB159: 0 | AC159: 0 | AD159: 0 | AE159: 0 | AF159: 0 | AG159: 0 | AH159: 0 | AO159: 0 | AP159: =IF(B159="-",0,IF(AO159>0,COUNTIF($AO$139:$AO$170,AO159),0)) -> 0 | AY159: 0 | BB159: =SmpProdInput&"-"&Prod3!B159 -> 3-- | BC159: 999 | BD159: =MATCH(BB159,PriceTable!$B$7:$B$181,0)+$BC$137 ->  | BF159: =MATCH(BB159,PriceTable!$E$188:$E$362,0) ->  | CC159: TRUE
A160: 22 | B160: - | C160: 0 | D160: 0 | E160: 0 | F160: 0 | G160: 0 | H160: 0 | I160: 0 | J160: 0 | K160: 0 | L160: 0 | N160: 0 | O160: 0 | P160: 0 | Q160: 0 | R160: 0 | S160: 0 | T160: 0 | U160: 0 | V160: 0 | W160: 0 | X160: 0 | Y160: 0 | Z160: 0 | AA160: 0 | AB160: 0 | AC160: 0 | AD160: 0 | AE160: 0 | AF160: 0 | AG160: 0 | AH160: 0 | AO160: 0 | AP160: 0 | AY160: 0 | BB160: =SmpProdInput&"-"&Prod3!B160 -> 3-- | BC160: 999 | BD160: =MATCH(BB160,PriceTable!$B$7:$B$181,0)+$BC$137 ->  | BF160: =MATCH(BB160,PriceTable!$E$188:$E$362,0) ->  | CC160: TRUE
A161: 23 | B161: - | C161: 0 | D161: 0 | E161: 0 | F161: 0 | G161: 0 | H161: 0 | I161: 0 | J161: 0 | K161: 0 | L161: 0 | N161: 0 | O161: 0 | P161: 0 | Q161: 0 | R161: 0 | S161: 0 | T161: 0 | U161: 0 | V161: 0 | W161: 0 | X161: 0 | Y161: 0 | Z161: 0 | AA161: 0 | AB161: 0 | AC161: 0 | AD161: 0 | AE161: 0 | AF161: 0 | AG161: 0 | AH161: 0 | AO161: 0 | AP161: 0 | AY161: 0 | BB161: =SmpProdInput&"-"&Prod3!B161 -> 3-- | BC161: 999 | BD161: =MATCH(BB161,PriceTable!$B$7:$B$181,0)+$BC$137 ->  | BF161: =MATCH(BB161,PriceTable!$E$188:$E$362,0) ->  | CC161: TRUE
A162: 24 | B162: - | C162: 0 | D162: 0 | E162: 0 | F162: 0 | G162: 0 | H162: 0 | I162: 0 | J162: 0 | K162: 0 | L162: 0 | N162: 0 | O162: 0 | P162: 0 | Q162: 0 | R162: 0 | S162: 0 | T162: 0 | U162: 0 | V162: 0 | W162: 0 | X162: 0 | Y162: 0 | Z162: 0 | AA162: 0 | AB162: 0 | AC162: 0 | AD162: 0 | AE162: 0 | AF162: 0 | AG162: 0 | AH162: 0 | AO162: 0 | AP162: 0 | AY162: 0 | BB162: =SmpProdInput&"-"&Prod3!B162 -> 3-- | BC162: 999 | BD162: =MATCH(BB162,PriceTable!$B$7:$B$181,0)+$BC$137 ->  | BF162: =MATCH(BB162,PriceTable!$E$188:$E$362,0) ->  | CC162: TRUE
A163: 25 | B163: - | C163: 0 | D163: 0 | E163: 0 | F163: 0 | G163: 0 | H163: 0 | I163: 0 | J163: 0 | K163: 0 | L163: 0 | N163: 0 | O163: 0 | P163: 0 | Q163: 0 | R163: 0 | S163: 0 | T163: 0 | U163: 0 | V163: 0 | W163: 0 | X163: 0 | Y163: 0 | Z163: 0 | AA163: 0 | AB163: 0 | AC163: 0 | AD163: 0 | AE163: 0 | AF163: 0 | AG163: 0 | AH163: 0 | AO163: 0 | AP163: 0 | AY163: 0 | BB163: =SmpProdInput&"-"&Prod3!B163 -> 3-- | BC163: 999 | BD163: =MATCH(BB163,PriceTable!$B$7:$B$181,0)+$BC$137 ->  | BF163: =MATCH(BB163,PriceTable!$E$188:$E$362,0) ->  | CC163: TRUE
A164: 26 | B164: - | C164: 0 | D164: 0 | E164: 0 | F164: 0 | G164: 0 | H164: 0 | I164: 0 | J164: 0 | K164: 0 | L164: 0 | N164: 0 | O164: 0 | P164: 0 | Q164: 0 | R164: 0 | S164: 0 | T164: 0 | U164: 0 | V164: 0 | W164: 0 | X164: 0 | Y164: 0 | Z164: 0 | AA164: 0 | AB164: 0 | AC164: 0 | AD164: 0 | AE164: 0 | AF164: 0 | AG164: 0 | AH164: 0 | AO164: 0 | AP164: 0 | AY164: 0 | BB164: =SmpProdInput&"-"&Prod3!B164 -> 3-- | BC164: 999 | BD164: =MATCH(BB164,PriceTable!$B$7:$B$181,0)+$BC$137 ->  | BF164: =MATCH(BB164,PriceTable!$E$188:$E$362,0) ->  | CC164: TRUE
A165: 27 | B165: - | C165: 0 | D165: 0 | E165: 0 | F165: 0 | G165: 0 | H165: 0 | I165: 0 | J165: 0 | K165: 0 | L165: 0 | N165: 0 | O165: 0 | P165: 0 | Q165: 0 | R165: 0 | S165: 0 | T165: 0 | U165: 0 | V165: 0 | W165: 0 | X165: 0 | Y165: 0 | Z165: 0 | AA165: 0 | AB165: 0 | AC165: 0 | AD165: 0 | AE165: 0 | AF165: 0 | AG165: 0 | AH165: 0 | AO165: 0 | AP165: 0 | AY165: 0 | BB165: =SmpProdInput&"-"&Prod3!B165 -> 3-- | BC165: 999 | BD165: =MATCH(BB165,PriceTable!$B$7:$B$181,0)+$BC$137 ->  | BF165: =MATCH(BB165,PriceTable!$E$188:$E$362,0) ->  | CC165: TRUE
A166: 28 | B166: - | C166: 0 | D166: 0 | E166: 0 | F166: 0 | G166: 0 | H166: 0 | I166: 0 | J166: 0 | K166: 0 | L166: 0 | N166: 0 | O166: 0 | P166: 0 | Q166: 0 | R166: 0 | S166: 0 | T166: 0 | U166: 0 | V166: 0 | W166: 0 | X166: 0 | Y166: 0 | Z166: 0 | AA166: 0 | AB166: 0 | AC166: 0 | AD166: 0 | AE166: 0 | AF166: 0 | AG166: 0 | AH166: 0 | AO166: 0 | AP166: 0 | AY166: 0 | BB166: =SmpProdInput&"-"&Prod3!B166 -> 3-- | BC166: 999 | BD166: =MATCH(BB166,PriceTable!$B$7:$B$181,0)+$BC$137 ->  | BF166: =MATCH(BB166,PriceTable!$E$188:$E$362,0) ->  | CC166: TRUE
A167: 29 | B167: - | C167: 0 | D167: 0 | E167: 0 | F167: 0 | G167: 0 | H167: 0 | I167: 0 | J167: 0 | K167: 0 | L167: 0 | N167: 0 | O167: 0 | P167: 0 | Q167: 0 | R167: 0 | S167: 0 | T167: 0 | U167: 0 | V167: 0 | W167: 0 | X167: 0 | Y167: 0 | Z167: 0 | AA167: 0 | AB167: 0 | AC167: 0 | AD167: 0 | AE167: 0 | AF167: 0 | AG167: 0 | AH167: 0 | AO167: 0 | AP167: 0 | AY167: 0 | BB167: =SmpProdInput&"-"&Prod3!B167 -> 3-- | BC167: 999 | BD167: =MATCH(BB167,PriceTable!$B$7:$B$181,0)+$BC$137 ->  | BF167: =MATCH(BB167,PriceTable!$E$188:$E$362,0) ->  | CC167: TRUE
A168: 30 | B168: - | C168: 0 | D168: 0 | E168: 0 | F168: 0 | G168: 0 | H168: 0 | I168: 0 | J168: 0 | K168: 0 | L168: 0 | N168: 0 | O168: 0 | P168: 0 | Q168: 0 | R168: 0 | S168: 0 | T168: 0 | U168: 0 | V168: 0 | W168: 0 | X168: 0 | Y168: 0 | Z168: 0 | AA168: 0 | AB168: 0 | AC168: 0 | AD168: 0 | AE168: 0 | AF168: 0 | AG168: 0 | AH168: 0 | AO168: 0 | AP168: 0 | AY168: 0 | BB168: =SmpProdInput&"-"&Prod3!B168 -> 3-- | BC168: 999 | BD168: =MATCH(BB168,PriceTable!$B$7:$B$181,0)+$BC$137 ->  | BF168: =MATCH(BB168,PriceTable!$E$188:$E$362,0) ->  | CC168: TRUE
A169: 31 | B169: - | C169: 0 | D169: 0 | E169: 0 | F169: 0 | G169: 0 | H169: 0 | I169: 0 | J169: 0 | K169: 0 | L169: 0 | N169: 0 | O169: 0 | P169: 0 | Q169: 0 | R169: 0 | S169: 0 | T169: 0 | U169: 0 | V169: 0 | W169: 0 | X169: 0 | Y169: 0 | Z169: 0 | AA169: 0 | AB169: 0 | AC169: 0 | AD169: 0 | AE169: 0 | AF169: 0 | AG169: 0 | AH169: 0 | AO169: 0 | AP169: 0 | AY169: 0 | BB169: =SmpProdInput&"-"&Prod3!B169 -> 3-- | BC169: 999 | BD169: =MATCH(BB169,PriceTable!$B$7:$B$181,0)+$BC$137 ->  | BF169: =MATCH(BB169,PriceTable!$E$188:$E$362,0) ->  | CC169: TRUE
A170: 32 | B170: - | C170: 0 | D170: 0 | E170: 0 | F170: 0 | G170: 0 | H170: 0 | I170: 0 | J170: 0 | K170: 0 | L170: 0 | N170: 0 | O170: 0 | P170: 0 | Q170: 0 | R170: 0 | S170: 0 | T170: 0 | U170: 0 | V170: 0 | W170: 0 | X170: 0 | Y170: 0 | Z170: 0 | AA170: 0 | AB170: 0 | AC170: 0 | AD170: =IF(AND(AD$123,$B170<>"-"),IF(AD$125=2,IF($F170<3,AD$136,AD$135),IF(MOD($F170,2)=0,AD$135,AD$136)),0) -> 0 | AE170: 0 | AF170: 0 | AG170: 0 | AH170: 0 | AO170: 0 | AP170: 0 | AX170: =IF($BC170=999,NA(),INDIRECT(PriceAnalSht&ADDRESS($BC170,AV$114))) ->  | AY170: 0 | BB170: =SmpProdInput&"-"&Prod3!B170 -> 3-- | BC170: 999 | BD170: =MATCH(BB170,PriceTable!$B$7:$B$181,0)+$BC$137 ->  | BF170: =MATCH(BB170,PriceTable!$E$188:$E$362,0) ->  | CC170: TRUE
B171: =MATCH(APRSampVar,B139:B170,0) ->  | C171: 1 | D171: =C171+1 -> 2 | H171: 3 | I171: 4 | J171: =I171+1 -> 5 | K171: =J171+1 -> 6 | L171: =K171+1 -> 7 | N171: =L171+1 -> 8 | O171: =N171+1 -> 9 | P171: =O171+1 -> 10 | Q171: 11 | R171: 12 | S171: 13 | T171: 14 | U171: 15 | V171: 16 | W171: 17 | X171: 18 | Y171: 19 | Z171: 20 | AA171: 21 | AB171: 22 | AC171: 23 | AD171: 24 | AE171: 25 | AF171: 26 | AG171: 27 | AH171: 28 | CC171: =CC84 -> TRUE
CC172: =$F$666 -> TRUE
B173: No | C173: =IF(PStep3Done="Yes","Click in any cell on the worksheet to begin running the routine to calculate prices and open the next section.","Is your review complete? Choose YES to auto-generate all the prices and continue to STEP 4") -> Is your review complete? Choose YES to auto-generate all the prices and continue to STEP 4 | CC173: =$F$666 -> TRUE
B174: No | C174: Select YES to recalculate prices, if you have made any changes to the inputs | CC174: =IF(PStep3Done="No",TRUE,"x") -> TRUE
CC175: x
CC176: x
B177: =IF(Q1="cross-check","Step 4: Compare Real Sample Prices to the Scatterplot Prices","Step 4: This step not in use because this is not a Cross-check product") -> Step 4: This step not in use because this is not a Cross-check product | N177: Click for STEP 4 Video | CC177: x
B178: Some instructions | CC178: =IF(Q1="Cross-check",$F$667,TRUE) -> TRUE
CC179: =CC216 -> TRUE
B180: Real Sample Info | E180: Price Calculated? | BU180: =MAX(H115:H120) -> 0 | BV180: real samples | CC180: =IF($Q$1="cross-check",$F$666,TRUE) -> TRUE
B181: Real Samp | C181: Row Num | D181: Samp Num | E181: Auto-Calc | F181: Real | CC181: =CC180 -> TRUE
B182: First | C182: =IF(ISNUMBER(MATCH(BU182,$H$139:$H$170,0)),MATCH(BU182,$H$139:$H$170,0),"-") -> - | D182: =IF(ISNUMBER(C182),INDEX($E$139:$E$170,C182),"-") -> - | E182: =IF(ISNUMBER(C182),IF(ISNUMBER(INDEX($M$255:$M$286,C182+1)),"Yes","No"),"-") -> - | F182: =IF(ISNUMBER(C182),IF(ISNUMBER(INDEX($M$255:$M$286,C182)),"Yes","No"),"-") -> - | BU182: 1 | CC182: =IF(BU182>$BU$180,TRUE,CC$181) -> TRUE
B183: Second | C183: =IF(ISNUMBER(MATCH(BU183,$H$139:$H$170,0)),MATCH(BU183,$H$139:$H$170,0),"-") -> - | D183: =IF(ISNUMBER(C183),INDEX($E$139:$E$170,C183),"-") -> - | E183: =IF(ISNUMBER(C183),IF(ISNUMBER(INDEX($M$255:$M$286,C183+1)),"Yes","No"),"-") -> - | F183: =IF(ISNUMBER(C183),IF(ISNUMBER(INDEX($M$255:$M$286,C183)),"Yes","No"),"-") -> - | BU183: 2 | CC183: =IF(BU183>$BU$180,TRUE,CC$181) -> TRUE
B184: Third | C184: =IF(ISNUMBER(MATCH(BU184,$H$139:$H$170,0)),MATCH(BU184,$H$139:$H$170,0),"-") -> - | D184: =IF(ISNUMBER(C184),INDEX($E$139:$E$170,C184),"-") -> - | E184: =IF(ISNUMBER(C184),IF(ISNUMBER(INDEX($M$255:$M$286,C184+1)),"Yes","No"),"-") -> - | F184: =IF(ISNUMBER(C184),IF(ISNUMBER(INDEX($M$255:$M$286,C184)),"Yes","No"),"-") -> - | BU184: 3 | CC184: =IF(BU184>$BU$180,TRUE,CC$181) -> TRUE
CC185: =CC223 -> TRUE
H186: Incremental Prices | M186: Full Price | N186: Price Components | AO186: Grading Scale | CC186: =CC178 -> TRUE
A187: Row | B187: Sample | C187: Amount | E187: Months | F187: Num Pmts | G187: Avg Bal | H187: Int | I187: Fee | J187: Ins | K187: Tax | L187: Dep | M187: Full APR | N187: Int | O187: Fee1 | P187: Fee2 | Q187: Ins1 | R187: Ins2 | S187: Taxes | T187: Dep | AO187: 0 | AP187: F | CC187: =CC186 -> TRUE
B188: ="Sample "&D182 -> Sample - | AO188: 0.5 | AP188: D | CC188: TRUE
A189: =IF(ISNUMBER($C$182),$C$182,"-") -> - | B189: Real | C189: =IF(ISNUMBER(A189),INDEX($B$255:$W$286,$A189,C$287),"-") -> - | E189: =IF(ISNUMBER(A189),INDEX($B$255:$W$286,$A189,D$287),"-") -> - | F189: =IF(ISNUMBER(A189),INDEX($B$255:$W$286,$A189,E$287),"-") -> - | G189: =IF(ISNUMBER(A189),INDEX($AX$139:$AX$170,A189),"-") -> - | H189: =IF(ISNUMBER($A189),INDEX($B$255:$W$286,$A189,H$287),"-") -> - | I189: - | J189: - | K189: - | L189: - | M189: - | N189: =IF(ISNUMBER($A189),INDEX($B$255:$W$286,$A189,Q$287),"-") -> - | O189: =IF(ISNUMBER($A189),INDEX($B$255:$W$286,$A189,R$287),"-") -> - | P189: =IF(ISNUMBER($A189),INDEX($B$255:$W$286,$A189,S$287),"-") -> - | Q189: =IF(ISNUMBER($A189),INDEX($B$255:$W$286,$A189,T$287),"-") -> - | R189: =IF(ISNUMBER($A189),INDEX($B$255:$W$286,$A189,U$287),"-") -> - | S189: =IF($AB$109=DevOk,"No","Yes") -> No | T189: =IF(ISNUMBER($A189),INDEX($B$255:$W$286,$A189,W$287),"-") -> - | AO189: =AO188+0.5 -> 1 | AP189: C- | CC189: TRUE
A190: =IF(ISNUMBER(A189),A189+1,"-") -> - | B190: Auto | G190: =IF(ISNUMBER(A190),INDEX($AX$139:$AX$170,A190),"-") -> - | H190: - | I190: - | J190: - | K190: - | L190: - | M190: - | AO190: =AO189+0.5 -> 1.5 | AP190: C | CC190: TRUE
F191: Variance | G191: =IF(AND(ISNUMBER(G189),ISNUMBER(G190)),G189-G190,"-") -> - | H191: =IF(AND(ISNUMBER(H189),ISNUMBER(H190)),H189-H190,"-") -> - | I191: - | J191: - | K191: - | L191: - | M191: - | AO191: 2 | AP191: C+ | CC191: TRUE
F192: Degree of Variance | G192: =IF(AND(ISNUMBER(G189),ISNUMBER(G190)),IF(G189>0,ABS(G191/G189),"-"),"-") -> - | H192: =IF(AND(ISNUMBER(H189),ISNUMBER(H190)),IF(H189>0,ABS(H191/H189),"-"),"-") -> - | I192: - | J192: - | K192: - | L192: - | M192: - | AO192: 2.5 | AP192: B- | CC192: TRUE
B193: Overall Accuracy: | C193: =IF(ISNUMBER(A189),IF(ISNUMBER(G193),G193,5)*$G$219+IF(ISNUMBER(H193),H193,5)*$H$219+IF(ISNUMBER(I193),I193,5)*$I$219+IF(ISNUMBER(J193),J193,5)*$J$219+IF(ISNUMBER(K193),K193,5)*$K$219+IF(ISNUMBER(L193),L193,5)*$L$219+IF(ISNUMBER(M193),M193,5)*$M$219,"N/A") -> N/A | E193: =IF(ISNUMBER(C193),INDEX($AP$187:$AP$197,MATCH(C193,$AO$187:$AO$197,1)),"-") -> - | F193: Accuracy: | G193: =IF(ISNUMBER(G192),IF(5-G192/G$218<0,0,5-G192/G$218),"-") -> - | H193: - | I193: - | J193: - | K193: - | L193: - | M193: - | AO193: 3 | AP193: B- | CC193: =CC192 -> TRUE
AO194: 3.5 | AP194: B+ | CC194: =CC195 -> TRUE
B195: ="Sample "&D183 -> Sample - | AO195: 4 | AP195: A- | CB195: =IF(ISNUMBER(A196),"x",TRUE) -> TRUE | CC195: =IF(Q1="Cross-check",CB195,TRUE) -> TRUE
A196: =IF(ISNUMBER($C$183),$C$183,"-") -> - | B196: Real | C196: =IF(ISNUMBER(A196),INDEX($B$255:$W$286,$A196,C$287),"-") -> - | E196: =IF(ISNUMBER(A196),INDEX($B$255:$W$286,$A196,D$287),"-") -> - | F196: =IF(ISNUMBER(A196),INDEX($B$255:$W$286,$A196,E$287),"-") -> - | G196: =IF(ISNUMBER(A196),INDEX($AX$139:$AX$170,A196),"-") -> - | H196: =IF(ISNUMBER($A196),INDEX($B$255:$W$286,$A196,H$287),"-") -> - | I196: - | J196: - | K196: - | L196: - | M196: - | N196: =IF(ISNUMBER($A196),INDEX($B$255:$W$286,$A196,Q$287),"-") -> - | O196: =IF(ISNUMBER($A196),INDEX($B$255:$W$286,$A196,R$287),"-") -> - | P196: =IF(ISNUMBER($A196),INDEX($B$255:$W$286,$A196,S$287),"-") -> - | Q196: =IF(ISNUMBER($A196),INDEX($B$255:$W$286,$A196,T$287),"-") -> - | R196: =IF(ISNUMBER($A196),INDEX($B$255:$W$286,$A196,U$287),"-") -> - | S196: =IF($AB$109=DevOk,"No","Yes") -> No | T196: =IF(ISNUMBER($A196),INDEX($B$255:$W$286,$A196,W$287),"-") -> - | AO196: 4.5 | AP196: A | CC196: TRUE
A197: =IF(ISNUMBER(A196),A196+1,"-") -> - | B197: Auto | G197: =IF(ISNUMBER(A197),INDEX($AX$139:$AX$170,A197),"-") -> - | H197: - | I197: - | J197: - | K197: - | L197: - | M197: - | AO197: 5 | AP197: A | CC197: TRUE
F198: Variance | G198: =IF(AND(ISNUMBER(G196),ISNUMBER(G197)),G196-G197,"-") -> - | H198: =IF(AND(ISNUMBER(H196),ISNUMBER(H197)),H196-H197,"-") -> - | I198: - | J198: - | K198: - | L198: - | M198: - | CC198: TRUE
F199: Degree of Variance | G199: =IF(AND(ISNUMBER(G196),ISNUMBER(G197)),IF(G196>0,ABS(G198/G196),"-"),"-") -> - | H199: =IF(AND(ISNUMBER(H196),ISNUMBER(H197)),IF(H196>0,ABS(H198/H196),"-"),"-") -> - | I199: - | J199: - | K199: - | L199: - | M199: - | CC199: TRUE
B200: =B193 -> Overall Accuracy: | C200: =IF(ISNUMBER(A196),IF(ISNUMBER(G200),G200,5)*$G$219+IF(ISNUMBER(H200),H200,5)*$H$219+IF(ISNUMBER(I200),I200,5)*$I$219+IF(ISNUMBER(J200),J200,5)*$J$219+IF(ISNUMBER(K200),K200,5)*$K$219+IF(ISNUMBER(L200),L200,5)*$L$219+IF(ISNUMBER(M200),M200,5)*$M$219,"N/A") -> N/A | E200: =IF(ISNUMBER(C200),INDEX($AP$187:$AP$197,MATCH(C200,$AO$187:$AO$197,1)),"-") -> - | F200: =F193 -> Accuracy: | G200: =IF(ISNUMBER(G199),IF(5-G199/G$218<0,0,5-G199/G$218),"-") -> - | H200: - | I200: - | J200: - | K200: - | L200: - | M200: - | CC200: TRUE
CC201: =CC200 -> TRUE
... 471 more rows

Sheet Prod4
A1: Scatterplot Pricing Sheet | H1: Product Number: | I1: 4 | J1: =IF(SmpProdInput>NumProducts,J551,INDEX(ProdTable,$B$503,ProdTable!B4)) -> Not an Active Product Number | P1: Type: | Q1: =INDEX('Setup Page'!I42:I52,SmpProdInput) -> Auto-calc | AO1: =AO287 -> 0 | AP1: TRUE | AQ1: TRUE | AR1: TRUE | AS1: TRUE | AT1: TRUE | AU1: TRUE | AV1: TRUE | AW1: TRUE | AX1: TRUE | AY1: TRUE | AZ1: TRUE | BA1: TRUE | BB1: TRUE | BC1: TRUE | BD1: TRUE | BE1: TRUE | BF1: TRUE | BG1: TRUE | BH1: TRUE | BI1: TRUE | BJ1: TRUE | BK1: TRUE | BL1: TRUE | BM1: TRUE | BN1: TRUE | BO1: TRUE | BP1: TRUE | BQ1: TRUE | BR1: TRUE | BS1: TRUE | BT1: TRUE | CC1: HIDEROWS
B3: Next Step: | C3: =IF(EditShotgun=TRUE,"You are REVIEWING data previously generated. You cannot change data without starting over. To exit REVIEW mode, enter a different Product Number",IF(F552=0,"All Done!",INDEX($E$553:$E$600,MATCH(1,$B$553:$B$600,0)))) -> NOTE! This is not an loan product needing pricing calculation according to the information on the SETUP sheet. Do NOT enter any information on this worksheet. | CC3: =IF(ScatterPrint,TRUE,"x") -> x
CC4: =$CC$3 -> x
B5: Step 1: Input Product Design Information | I5: Click for STEP 1 Video | K5: Erase Sheet? | M5: =IF(EraseSheet="YES Erase Sheet","Click in any cell on the worksheet to begin running the routine to open up the next section","<-Use this cell to ERASE all the data input on this Product Sheet and start over - be careful!") -> <-Use this cell to ERASE all the data input on this Product Sheet and start over - be careful! | CC5: x
CC6: x
D7: Clients | E7: =INDEX('Setup Page'!G42:G51,SmpProdInput) -> 0 | G7: Avg/Clnt | H7: % GNI | K7: Loan Product Currency | L7: =INDEX('Setup Page'!D42:D52,SmpProdInput) -> . | N7: =IF(ISNA(MATCH(L7,'Setup Page'!D128:D130,0)),"ERROR: An incorrect currency was chosen on SETUP for this product. Go correct this.",DevOk) -> ERROR: An incorrect currency was chosen on SETUP for this product. Go correct this. | CC7: x
D8: ="Portfolio ("&L7&")" -> Portfolio (.) | E8: =INDEX('Setup Page'!F42:F51,SmpProdInput) -> . | G8: =IF(AND(ISNUMBER(E$7),E$7<>0),E8/$E$7,".") -> . | H8: =G8/L9 ->  | K8: Exchange Rate to USD | L8: =INDEX('Setup Page'!H20:H22,MATCH(L7,'Setup Page'!D128:D130,0)) ->  | CC8: x
D9: Portfolio (USD) | E9: =IF(ISNUMBER(L8),IF(L8<>0,E8/L8,),".") -> . | G9: =IF(AND(ISNUMBER(E$7),E$7<>0),E9/$E$7,".") -> . | K9: ="GNI/Capita ("&L7&")" -> GNI/Capita (.) | L9: =L8*'Setup Page'!D17 ->  | CC9: x
E10: Min | F10: Max | CC10: x
D11: ="Loan Amount ("&L7&")" -> Loan Amount (.) | G11: =E558 -> Start by entering Min and Max loan amount and loan term in rows 11 and row 14. Use ranges of last year if product does not have defined min/max. | CC11: x
D12: (USD) | E12: =IF($L$8>0,E11/$L$8) ->  | F12: =IF($L$8>0,F11/$L$8) ->  | CC12: x
D13: % GNI/Capita | E13: =E11/L9 ->  | F13: =F11/L9 ->  | CC13: x
D14: Loan Term (months) | CC14: x
CC15: x
D16: Repayment Frequencies | E16: Range | G16: Proposed | H16: Override | I16: Used | J16: =E559 ->  | AO16: Rep Freqs: | AP16: =IF(E17<>"<choose>",1,0)+IF(E18<>"<choose>",1,0) -> 0 | CC16: x
D17: Most Common: | E17: <choose> | G17: =INDEX($D$656:$D$661,MATCH(E17,$E$656:$E$661,0)) -> N/A | I17: =IF(G17="N/A","N/A",IF(H17=0,G17,H17)) -> N/A | J17: =IF(AP18>=1,"Note: Lean toward using at least one loan term longer than monthly",IF(AP17>=1,"Note: Frequencies less than monthly do not have a large impact on price, so running multiple variations isn't as important.",DevOk)) ->  | AO17: Monthly or less: | AP17: =IF(I17<30,1,0)+IF(G18<>"N/A",IF(I18<30,1,0)) -> 0 | CC17: x
D18: Next most common: | E18: <choose> | G18: =INDEX($D$656:$D$661,MATCH(E18,$E$656:$E$661,0)) -> N/A | I18: =IF(G18="N/A","N/A",IF(H18=0,G18,H18)) -> N/A | AO18: > Monthly: | AP18: =COUNTIF(G17:G18,">30") -> 0 | CC18: x
CC19: x
B20: Grace Period Info | H20: =IF(J16=DevOk,IF(E560=DevOk,E561,E560),DevOk) -> Enter GRACE PERIOD info in row 21 of STEP 1. | CC20: =IF(E21=0,TRUE,"x") -> x
B21: % loans with Grace Periods: | E21: <choose> | CC21: =$CC$20 -> x
B22: Avg grace (mon): | E22: Avg | F22: Opt 1 | G22: Opt 2 | AZ22: Grace | CC22: =$CC$20 -> x
D23: Grace period (months) | H23: =IF(I17<30,"Note: when payments are less than a month, grace may be < 1 month, e.g., enter 0.25 for one week of grace",DevOk) ->  | AZ23: =INDEX(D647:D654,MATCH(E21,E647:E654,0)) -> N/A | CC23: x
D24: When grace occurs: | E24: <choose> | CC24: x
E25: =E562 -> Enter pricing information below for every section starting in row 27. For the line marked with question marks -???- In Col A, fill in all necessary white cells, including a Min AND Max value and the Name/Descrip section | AS25: Complete1 | AT25: Complete2 | CC25: x
B26: Pricing Info | D26: Variation | E26: Min | F26: Max | G26: Type | I26: Principal Payments | M26: Interest Payments | Q26: Explanation for Variations | Y26: Pricing Summary | AW26: =COUNTIF(AV31:AV34,"Conditional percent") -> 0 | AX26: =COUNTIF(AV38:AV41,"Conditional percent") -> 0 | AZ26: Variation Analysis | CC26: x
A27: =IF(AS27,IF(SUM(E27:F27)>0,MAX($A$26:A26)+1,0),"???") -> 0 | B27: Annual Interest Rate | D27: =IF(OR(AZ27=0,AZ27=""),"-",IF(AZ27<BB27,"Some","A Lot")) -> - | G27: <choose> | I27: <choose> | M27: <choose> | Y27: =TEXT(E27,"#0.0%")&IF(AND(E27<>F27,F27<>0),"-"&TEXT(F27,"#0.0%"),"")&" annual, "&G27 -> 0.0% annual, <choose> | AS27: =IF(SUM(E27:F27)>0,IF(OR(E27=0,F27=0,G27="<choose>",I27="<choose>",M27="<choose>"),FALSE,TRUE),TRUE) -> TRUE | AZ27: =IF(E27<>F27,IF(E27<>0,F27/E27-1,1),"") ->  | BB27: 0.5 | CC27: x
E28: =IF(AND(E27>0,E27<0.1),"Is that ANNUAL interest rate?",DevOk) ->  | I28: =IF(G27="Flat","NOTE: With flat, generally chose EQUAL IN EACH INSTALLMENT for principal, and PERIOD INSTALLMENTS for Interest",DevOk) ->  | CC28: x
E29: Percent | I29: Fixed | M29: =IF(AW26>0,"Note! There is a fee calculated as a % with a minimum amount. For smaller loans, enter a % that yields the minimum fixed amount.",DevOk) ->  | CC29: x
B30: Fees | D30: Variation | E30: Min | F30: Max | G30: Based On | I30: Min | J30: Max | K30: Based On | M30: Name / Descrip | Q30: Explanation for Variations | Y30: Pricing Summary | AW30: In Use | AX30: Type | CC30: x
A31: =IF(AND(AS31,AT31),IF(SUM(E31:J31)>0,MAX($A$26:A30)+1,0),"???") -> 0 | B31: Disbursement Fee #1 | D31: =IF(BC31<>"-",BC31,IF(BD31<>"-",BD31,"-")) -> - | L31: =IF(AND(A31="???",ISBLANK(M31)),"Remember this!->",DevOk) ->  | Y31: =IF(AW31="x",IF(F31>0,TEXT(E31,"0.00%")&IF(AND(ISNUMBER(F31),F31<>E31),"-"&TEXT(F31,"0.00%"),""),"")&IF(J31>0," "&IF(I31>0,TEXT(I31,"#,##0.00"),"")&IF(AND(ISNUMBER(I31),J31<>I31),"-"&TEXT(J31,"#,##0.00"),""),IF(I31>0,", "&TEXT(I31,"#,##0.00")&" min",""))&IF(SUM(E31,F31,I31,J31)>0," "&AX31,""),"") ->  | AS31: =IF(SUM(E31:F31)>0,IF(OR(ISBLANK(E31),F31=0,ISBLANK(M31)),FALSE,TRUE),TRUE) -> TRUE | AT31: =IF(SUM(I31:J31)>0,IF(OR(I31=0,J31=0,ISBLANK(M31)),FALSE,TRUE),TRUE) -> TRUE | AV31: =IF(E31>F31,"Conditional percent",DevOk) ->  | AW31: =IF(SUM(E31,F31,I31,J31)>0,"x",".") -> . | AX31: Up-Front | AZ31: =IF(E31<>F31,IF(E31<>0,F31/E31-1,1),"") ->  | BA31: =IF(I31<>J31,IF(I31<>0,J31/I31-1,1),"") ->  | BB31: 0.6 | BC31: =IF(OR(AZ31=0,AZ31=""),"-",IF(AZ31<BB31,"Some","A Lot")) -> - | BD31: =IF(OR(BA31=0,BA31=""),"-",IF(BA31<BB31,"Some","A Lot")) -> - | CC31: x
A32: =IF(AND(AS32,AT32),IF(SUM(E32:J32)>0,MAX($A$26:A31)+1,0),"???") -> 0 | B32: Disbursement Fee #2 | D32: =IF(BC32<>"-",BC32,IF(BD32<>"-",BD32,"-")) -> - | L32: =IF(AND(A32="???",ISBLANK(M32)),"Remember this!->",DevOk) ->  | Y32: =IF(AW32="x",IF(F32>0,TEXT(E32,"0.00%")&IF(AND(ISNUMBER(F32),F32<>E32),"-"&TEXT(F32,"0.00%"),""),"")&IF(J32>0," "&IF(I32>0,TEXT(I32,"#,##0.00"),"")&IF(AND(ISNUMBER(I32),J32<>I32),"-"&TEXT(J32,"#,##0.00"),""),IF(I32>0,", "&TEXT(I32,"#,##0.00")&" min",""))&IF(SUM(E32,F32,I32,J32)>0," "&AX32,""),"") ->  | AS32: =IF(SUM(E32:F32)>0,IF(OR(ISBLANK(E32),F32=0,ISBLANK(M32)),FALSE,TRUE),TRUE) -> TRUE | AT32: =IF(SUM(I32:J32)>0,IF(OR(I32=0,J32=0,ISBLANK(M32)),FALSE,TRUE),TRUE) -> TRUE | AV32: =IF(E32>F32,"Conditional percent",DevOk) ->  | AW32: =IF(SUM(E32,F32,I32,J32)>0,"x",".") -> . | AX32: Up-Front | AZ32: =IF(E32<>F32,IF(E32<>0,F32/E32-1,1),"") ->  | BA32: =IF(I32<>J32,IF(I32<>0,J32/I32-1,1),"") ->  | BB32: 0.6 | BC32: =IF(OR(AZ32=0,AZ32=""),"-",IF(AZ32<BB32,"Some","A Lot")) -> - | BD32: =IF(OR(BA32=0,BA32=""),"-",IF(BA32<BB32,"Some","A Lot")) -> - | CC32: x
A33: =IF(AND(AS33,AT33),IF(SUM(E33:J33)>0,MAX($A$26:A32)+1,0),"???") -> 0 | B33: Continuing Fee #1 | D33: =IF(BC33<>"-",BC33,IF(BD33<>"-",BD33,"-")) -> - | G33: <choose> | K33: <choose> | Y33: =IF(AW33="x",IF(F33>0,TEXT(E33,"0.00%")&IF(AND(ISNUMBER(F33),F33<>E33),"-"&TEXT(F33,"0.00%"),""),"")&IF(J33>0," "&IF(I33>0,TEXT(I33,"#,##0.00"),"")&IF(AND(ISNUMBER(I33),J33<>I33),"-"&TEXT(J33,"#,##0.00"),""),IF(I33>0,", "&TEXT(I33,"#,##0.00")&" min",""))&IF(SUM(E33,F33,I33,J33)>0," "&AX33,""),"")&IF(AY33<>"<choose>",", "&AY33,"") ->  | AS33: =IF(SUM(E33:F33)>0,IF(OR(ISBLANK(E33),F33=0,G33="<choose>",ISBLANK(M33)),FALSE,TRUE),TRUE) -> TRUE | AT33: =IF(SUM(I33:J33)>0,IF(OR(I33=0,J33=0,K33="<choose>",ISBLANK(M33)),FALSE,TRUE),TRUE) -> TRUE | AV33: =IF(E33>F33,"Conditional percent",DevOk) ->  | AW33: =IF(SUM(E33,F33,I33,J33)>0,"x",".") -> . | AX33: Ongoing | AY33: =IF(PDrop16<>"<choose>",PDrop16,PDrop5) -> <choose> | AZ33: =IF(E33<>F33,IF(E33<>0,F33/E33-1,1),"") ->  | BB33: 0.6 | BC33: =IF(OR(AZ33=0,AZ33=""),"-",IF(AZ33<BB33,"Some","A Lot")) -> - | BD33: =IF(OR(BA33=0,BA33=""),"-",IF(BA33<BB33,"Some","A Lot")) -> - | CC33: x
A34: =IF(AND(AS34,AT34),IF(SUM(E34:J34)>0,MAX($A$26:A33)+1,0),"???") -> 0 | B34: Continuing Fee #2 | D34: =IF(BC34<>"-",BC34,IF(BD34<>"-",BD34,"-")) -> - | G34: <choose> | K34: <choose> | Y34: =IF(AW34="x",IF(F34>0,TEXT(E34,"0.00%")&IF(AND(ISNUMBER(F34),F34<>E34),"-"&TEXT(F34,"0.00%"),""),"")&IF(J34>0," "&IF(I34>0,TEXT(I34,"#,##0.00"),"")&IF(AND(ISNUMBER(I34),J34<>I34),"-"&TEXT(J34,"#,##0.00"),""),IF(I34>0,", "&TEXT(I34,"#,##0.00")&" min",""))&IF(SUM(E34,F34,I34,J34)>0," "&AX34,""),"")&IF(AY34<>"<choose>",", "&AY34,"") ->  | AS34: =IF(SUM(E34:F34)>0,IF(OR(ISBLANK(E34),F34=0,G34="<choose>",ISBLANK(M34)),FALSE,TRUE),TRUE) -> TRUE | AT34: =IF(SUM(I34:J34)>0,IF(OR(I34=0,J34=0,K34="<choose>",ISBLANK(M34)),FALSE,TRUE),TRUE) -> TRUE | AV34: =IF(E34>F34,"Conditional percent",DevOk) ->  | AW34: =IF(SUM(E34,F34,I34,J34)>0,"x",".") -> . | AX34: Ongoing | AY34: =IF(PDrop2<>"<choose>",PDrop2,PDrop6) -> <choose> | AZ34: =IF(E34<>F34,IF(E34<>0,F34/E34-1,1),"") ->  | BB34: 0.6 | BC34: =IF(OR(AZ34=0,AZ34=""),"-",IF(AZ34<BB34,"Some","A Lot")) -> - | BD34: =IF(OR(BA34=0,BA34=""),"-",IF(BA34<BB34,"Some","A Lot")) -> - | CC34: x
G35: =IF($K$124,IF(OR(ISNUMBER(FIND("pmt",PDrop16)),ISNUMBER(FIND("pmt",PDrop2))),"Be careful - payment frequencies vary for this product, so fees based per payment will have large impact on price",DevOk),DevOk) ->  | CC35: x
E36: Percent | I36: Fixed | M36: =IF(AX26>0,"Note! There is an INSURANCE FEE calculated as a % with minimum fixed amount. For smaller loans, enter a % that yields the minimum fixed amount.",DevOk) ->  | CC36: x
B37: Insurance | D37: Variation | E37: Min | F37: Max | G37: Based On | I37: Min | J37: Max | K37: Based On | M37: Name / Descrip | Q37: Explanation for Variations | Y37: Pricing Summary | CC37: x
A38: =IF(AND(AS38,AT38),IF(SUM(E38:J38)>0,MAX($A$26:A37)+1,0),"???") -> 0 | B38: Disbursement Ins. Fee #1 | D38: =IF(BC38<>"-",BC38,IF(BD38<>"-",BD38,"-")) -> - | L38: =IF(AND(A38="???",ISBLANK(M38)),"Remember this!->",DevOk) ->  | Y38: =IF(AW38="x",IF(F38>0,TEXT(E38,"0.00%")&IF(AND(ISNUMBER(F38),F38<>E38),"-"&TEXT(F38,"0.00%"),""),"")&IF(J38>0," "&IF(I38>0,TEXT(I38,"#,##0.00"),"")&IF(AND(ISNUMBER(I38),J38<>I38),"-"&TEXT(J38,"#,##0.00"),""),IF(I38>0,", "&TEXT(I38,"#,##0.00")&" min",""))&IF(SUM(E38,F38,I38,J38)>0," "&AX38,""),"") ->  | AS38: =IF(SUM(E38:F38)>0,IF(OR(ISBLANK(E38),F38=0,ISBLANK(M38)),FALSE,TRUE),TRUE) -> TRUE | AT38: =IF(SUM(I38:J38)>0,IF(OR(I38=0,J38=0,ISBLANK(M38)),FALSE,TRUE),TRUE) -> TRUE | AV38: =IF(E38>F38,"Conditional percent",DevOk) ->  | AW38: =IF(SUM(E38,F38,I38,J38)>0,"x",".") -> . | AX38: Up-Front | AZ38: =IF(E38<>F38,IF(E38<>0,F38/E38-1,1),"") ->  | BA38: =IF(I38<>J38,IF(I38<>0,J38/I38-1,1),"") ->  | BB38: 0.6 | BC38: =IF(OR(AZ38=0,AZ38=""),"-",IF(AZ38<BB38,"Some","A Lot")) -> - | BD38: =IF(OR(BA38=0,BA38=""),"-",IF(BA38<BB38,"Some","A Lot")) -> - | CC38: x
A39: =IF(AND(AS39,AT39),IF(SUM(E39:J39)>0,MAX($A$26:A38)+1,0),"???") -> 0 | B39: Disbursement Ins. Fee #2 | D39: =IF(BC39<>"-",BC39,IF(BD39<>"-",BD39,"-")) -> - | L39: =IF(AND(A39="???",ISBLANK(M39)),"Remember this!->",DevOk) ->  | Y39: =IF(AW39="x",IF(F39>0,TEXT(E39,"0.00%")&IF(AND(ISNUMBER(F39),F39<>E39),"-"&TEXT(F39,"0.00%"),""),"")&IF(J39>0," "&IF(I39>0,TEXT(I39,"#,##0.00"),"")&IF(AND(ISNUMBER(I39),J39<>I39),"-"&TEXT(J39,"#,##0.00"),""),IF(I39>0,", "&TEXT(I39,"#,##0.00")&" min",""))&IF(SUM(E39,F39,I39,J39)>0," "&AX39,""),"") ->  | AS39: =IF(SUM(E39:F39)>0,IF(OR(ISBLANK(E39),F39=0,ISBLANK(M39)),FALSE,TRUE),TRUE) -> TRUE | AT39: =IF(SUM(I39:J39)>0,IF(OR(I39=0,J39=0,ISBLANK(M39)),FALSE,TRUE),TRUE) -> TRUE | AV39: =IF(E39>F39,"Conditional percent",DevOk) ->  | AW39: =IF(SUM(E39,F39,I39,J39)>0,"x",".") -> . | AX39: Up-Front | AZ39: =IF(E39<>F39,IF(E39<>0,F39/E39-1,1),"") ->  | BB39: 0.6 | BC39: - | BD39: - | CC39: x
A40: =IF(AND(AS40,AT40),IF(SUM(E40:J40)>0,MAX($A$26:A39)+1,0),"???") -> 0 | B40: Continuing Ins. Fee #1 | D40: =IF(BC40<>"-",BC40,IF(BD40<>"-",BD40,"-")) -> - | G40: <choose> | K40: <choose> | Y40: =IF(AW40="x",IF(F40>0,TEXT(E40,"0.00%")&IF(AND(ISNUMBER(F40),F40<>E40),"-"&TEXT(F40,"0.00%"),""),"")&IF(J40>0," "&IF(I40>0,TEXT(I40,"#,##0.00"),"")&IF(AND(ISNUMBER(I40),J40<>I40),"-"&TEXT(J40,"#,##0.00"),""),IF(I40>0,", "&TEXT(I40,"#,##0.00")&" min",""))&IF(SUM(E40,F40,I40,J40)>0," "&AX40,""),"")&IF(AY40<>"<choose>",", "&AY40,"") ->  | AS40: =IF(SUM(E40:F40)>0,IF(OR(ISBLANK(E40),F40=0,G40="<choose>",ISBLANK(M40)),FALSE,TRUE),TRUE) -> TRUE | AT40: =IF(SUM(I40:J40)>0,IF(OR(I40=0,J40=0,K40="<choose>",ISBLANK(M40)),FALSE,TRUE),TRUE) -> TRUE | AV40: =IF(E40>F40,"Conditional percent",DevOk) ->  | AW40: =IF(SUM(E40,F40,I40,J40)>0,"x",".") -> . | AX40: Ongoing | AY40: =IF(PDrop3<>"<choose>",PDrop3,PDrop7) -> <choose> | AZ40: =IF(E40<>F40,IF(E40<>0,F40/E40-1,1),"") ->  | BB40: 0.6 | BC40: - | BD40: - | CC40: x
A41: =IF(AND(AS41,AT41),IF(SUM(E41:J41)>0,MAX($A$26:A40)+1,0),"???") -> 0 | B41: Continuing Ins. Fee #2 | D41: =IF(BC41<>"-",BC41,IF(BD41<>"-",BD41,"-")) -> - | G41: <choose> | K41: <choose> | Y41: =IF(AW41="x",IF(F41>0,TEXT(E41,"0.00%")&IF(AND(ISNUMBER(F41),F41<>E41),"-"&TEXT(F41,"0.00%"),""),"")&IF(J41>0," "&IF(I41>0,TEXT(I41,"#,##0.00"),"")&IF(AND(ISNUMBER(I41),J41<>I41),"-"&TEXT(J41,"#,##0.00"),""),IF(I41>0,", "&TEXT(I41,"#,##0.00")&" min",""))&IF(SUM(E41,F41,I41,J41)>0," "&AX41,""),"")&IF(AY41<>"<choose>",", "&AY41,"") ->  | AS41: =IF(SUM(E41:F41)>0,IF(OR(ISBLANK(E41),F41=0,G41="<choose>",ISBLANK(M41)),FALSE,TRUE),TRUE) -> TRUE | AT41: =IF(SUM(I41:J41)>0,IF(OR(I41=0,J41=0,K41="<choose>",ISBLANK(M41)),FALSE,TRUE),TRUE) -> TRUE | AV41: =IF(E41>F41,"Conditional percent",DevOk) ->  | AW41: =IF(SUM(E41,F41,I41,J41)>0,"x",".") -> . | AX41: Ongoing | AY41: =IF(PDrop4<>"<choose>",PDrop4,PDrop8) -> <choose> | AZ41: =IF(E41<>F41,IF(E41<>0,F41/E41-1,1),"") ->  | BB41: 0.6 | BC41: - | BD41: - | CC41: x
G42: =IF($K$124,IF(OR(ISNUMBER(FIND("pmt",PDrop3)),ISNUMBER(FIND("pmt",PDrop4))),"Be careful - payment frequencies vary for this product, so fees based per payment will have large impact on price",DevOk),DevOk) ->  | CC42: x
B43: Taxes | E43: % Ln Amt | F43: % Fees | I43: Fixed Amt | J43: Note: Only use this section if there financial taxes or VAT taxes that apply to loan products. | Y43: Pricing Summary | AQ43: taxes used? | CC43: x
A44: =IF(AS44,IF(SUM(E44:J44)>0,MAX($A$26:A43)+1,0),"???") -> 0 | B44: Taxes, Upfront | Y44: =IF(PPrice6>0,TEXT(PPrice6*100,"#.00")&"% loan amt upfront ","")&IF(PPrice7>0,TEXT(PPrice7*100,"#.00")&"% fees upfront ","")&IF(PPrice9>0,TEXT(PPrice9,"#.00")&" Fixed Upfront ","")&IF(E47>0,TEXT(E47*100,"#.00")&"% Prin ongoing ","")&IF(F47>0,TEXT(F47*100,"#.00")&"% Interest ongoing ","")&IF(G47>0,TEXT(G47*100,"#.00")&"% Fees ongoing","")&IF(PPrice10>0,TEXT(PPrice10,"#.00")&" Fixed Amount ongoing","") ->  | AQ44: =IF(SUM(PPrice6,PPrice7,E47,F47,G47,PPrice10,PPrice9)>0,TRUE,FALSE) -> FALSE | AS44: =IF(SUM(E44:I44)>0,FALSE,TRUE) -> TRUE | CC44: x
CC45: x
E46: % Prin | F46: % Int | G46: % Fees | I46: Fixed Amt | CC46: x
A47: =IF(SUM(E47:G47)>0,MAX($A$26:A46)+1,0) -> 0 | B47: Taxes, Ongoing | AS47: =IF(SUM(PPrice8,PPrice10)>0,FALSE,TRUE) -> TRUE | CC47: x
CC48: x
E49: Percent | I49: Fixed | CC49: x
B50: Compulsory Deposit | D50: Variation | E50: Min | F50: Max | G50: Based On | I50: Min | J50: Max | K50: Based On | Q50: Explanation for Variations | Y50: Pricing Summary | CC50: x
A51: =IF(AND(AS51,AT51),IF(SUM(E51:J51)>0,MAX($A$26:A50)+1,0),"???") -> 0 | B51: Comp.Dep, Prior | D51: =IF(BC51<>"-",BC51,IF(BD51<>"-",BD51,"-")) -> - | G51: =IF(E51>0,"of loan amount",DevOk) ->  | P51: =IF(D51="-",DevOk,"Explain variance here ->") ->  | Y51: =IF(F51>0,IF(E51=F51,TEXT(F51*100,"#.00")&"% "&G51&AQ51,TEXT(E51*100,"#.00")&"-"&TEXT(F51*100,"#.00")&"% "&G51&AQ51),IF(J51>0,IF(I51=J51,TEXT(J51,"#.00")&AQ51,TEXT(I51,"#.00")&"-"&TEXT(J51,"#.00")&AQ51),IF(J51>0,IF(J51=I51,TEXT(J51*100,"#.00")&" "&AQ51,TEXT(I51*100,"#.00")&"-"&TEXT(J51,"#.00")&AQ51),IF(J51>0,IF(I51=J51,TEXT(J51,"#.00"),TEXT(I51,"#.00")&"-"&TEXT(J51,"#.00")&AQ51),".")))) -> . | AQ51: Upfront | AS51: =IF(SUM(E51:F51)>0,IF(OR(ISBLANK(E51),F51=0),FALSE,TRUE),TRUE) -> TRUE | AT51: =IF(SUM(I51:J51)>0,IF(OR(I51=0,J51=0),FALSE,TRUE),TRUE) -> TRUE | AZ51: =IF(E51<>F51,IF(E51<>0,F51/E51-1,1),"") ->  | BA51: =IF(I51<>J51,IF(I51<>0,J51/I51-1,1),"") ->  | BB51: 0.6 | BC51: =IF(OR(AZ51=0,AZ51=""),"-",IF(AZ51<BB51,"Some","A Lot")) -> - | BD51: =IF(OR(BA51=0,BA51=""),"-",IF(BA51<BB51,"Some","A Lot")) -> - | CC51: x
A52: =IF(AND(AS52,AT52),IF(SUM(E52:J52)>0,MAX($A$26:A51)+1,0),"???") -> 0 | B52: Comp.Dep, During | D52: =IF(BC52<>"-",BC52,IF(BD52<>"-",BD52,"-")) -> - | G52: =IF(E52>0,"of loan amount",DevOk) ->  | K52: =IF(I52>0,"per installment",DevOk) ->  | P52: =IF(D52="-",DevOk,"Explain variance here ->") ->  | Y52: =IF(F52>0,IF(E52=F52,TEXT(F52*100,"#.00")&"% "&G52&AQ52,TEXT(E52*100,"#.00")&"-"&TEXT(F52*100,"#.00")&"% "&G52&AQ52),IF(J52>0,IF(I52=J52,TEXT(J52,"#.00")&AQ52,TEXT(I52,"#.00")&"-"&TEXT(J52,"#.00")&AQ52),IF(J52>0,IF(J52=I52,TEXT(J52*100,"#.00")&" "&AQ52,TEXT(I52*100,"#.00")&"-"&TEXT(J52,"#.00")&AQ52),IF(J52>0,IF(I52=J52,TEXT(J52,"#.00"),TEXT(I52,"#.00")&"-"&TEXT(J52,"#.00")&AQ52),".")))) -> . | AQ52: ongoing | AS52: =IF(SUM(E52:F52)>0,IF(OR(ISBLANK(E52),F52=0),FALSE,TRUE),TRUE) -> TRUE | AT52: =IF(SUM(I52:J52)>0,IF(OR(I52=0,J52=0),FALSE,TRUE),TRUE) -> TRUE | AZ52: =IF(E52<>F52,IF(E52<>0,F52/E52-1,1),"") ->  | BB52: 0.6 | BC52: - | BD52: - | CC52: x
A53: =IF(AS53,0,"???") -> 0 | B53: Annual Int on Comp.Dep | AS53: =IF(SUM(E53:F53)>0,IF(OR(ISBLANK(E53),F53=0),FALSE,TRUE),TRUE) -> TRUE | CC53: x
CC54: x
C55: Components: | D55: =MAX(A27:A53) -> 0 | CC55: x
C56: Ongoing: | D56: =IF(F33>0,1,0)+IF(F34>0,1,0)+IF(F40>0,1,0)+IF(F41>0,1,0)+IF(F52>0,1,0)+IF(J33>0,1,0)+IF(J34>0,1,0)+IF(J40>0,1,0)+IF(J41>0,1,0)+IF(J52>0,1,0) -> 0 | E56: =IF(AND(D56>0,Q70>1),"Note! Ongoing costs based on EACH PAYMENT require careful analysis of repayment frequencies",DevOk) ->  | Y56: =IF(J51>0,IF(J51=I51,TEXT(J51*100,"#.00")&" "&AQ51,TEXT(I51*100,"#.00")&"-"&TEXT(J51,"#.00")&AQ51),IF(J51>0,IF(I51=J51,TEXT(J51,"#.00"),TEXT(I51,"#.00")&"-"&TEXT(J51,"#.00")&" upfront"),".")) -> . | CC56: x
C57: w/Variation: | D57: =COUNT(AZ27:AZ52) -> 0 | E57: =IF(D57>2,"NOTE! This is a very complex product. Take great care in selecting the variations of each sample.",DevOk) ->  | Q57: =IF($H$6*C23<1000,50,IF($H$6*C23<10000,100,1000)) -> 50 | CC57: x
CC58: x
B59: No | C59: =IF(PStep1Done="Yes","Click in any cell on the worksheet to begin running the routine to open up the next section","Is the pricing information complete? Mark YES to continue to STEP 2") -> Is the pricing information complete? Mark YES to continue to STEP 2 | CC59: x
CC60: x
C61: Insurance mandatory? Percent? | I61: things to add: | K61: significant upfront fee/dep? | CC61: =TRUE -> TRUE
C62: Comp Dep - percent | K62: ask if "grace on int charged! | CC62: =TRUE -> TRUE
C63: Comp Dep - who manages? Use this? | CC63: =TRUE -> TRUE
CC64: =CC100 -> TRUE
CC65: x
B66: Step 2: Decide Sampling by Loan Amount and Term | L66: Click for STEP 2 Video | CC66: x
B67: =E591 ->  | AQ67: =IF(ISERROR(AT67),1,AT67) -> 1 | AR67: num samples | AT67: =IF(AND(O69=0,O70=0),0,INDEX(AS73:AV80,IF(O70*O69>8,8,O70*O69),IF(Q69+(IF(Q70>1,1,0))>3,3,Q69+IF(Q70>1,1,0))+1)) ->  | CC67: =$F$665 -> TRUE
F68: Loan Term | N68: =IF(AND(D82=1,L71=1),"Select Samples in the White Cells Below","Complete Percentages before working in this section") -> Complete Percentages before working in this section | AO68: 0 | AQ68: 0.11 | AR68: Bucket Threshold | BN68: Range | BO68: First | BP68: Last | BQ68: Mid | BV68: mid-x | BW68: 5 | BX68: mid-y | BY68: 4 | CC68: TRUE
B69: ="Term Min/Max: "&E14&"-"&F14 -> Term Min/Max: - | F69: <3 | G69: 4-6 | H69: 7-9 | I69: 10-12 | J69: 13-18 | K69: >18 | N69: Loan Amt: | O69: =IF(COUNTIF(D73:D81,">"&AQ68)=0,1,COUNTIF(D73:D81,">"&AQ68)) -> 1 | P69: Var Price | Q69: =D57 -> 0 | AO69: 0.05 | BM69: Amounts | BN69: =COUNTIF(D73:D80,">0") -> 0 | BO69: =MATCH(1,AK73:AK80,0) ->  | BP69: =BO69+BN69-1 ->  | BQ69: =TRUNC(BO69+BP69/2) ->  | BV69: Factor to redistribute across term for loans of a specific amount | CC69: TRUE
B70: ="Amt: "&TEXT(E11,"#,##0")&"-"&TEXT(F11,"#,##0") -> Amt: 0-0 | E70: Value to use | F70: 2 | G70: 6 | H70: 9 | I70: 12 | J70: 18 | K70: 24 | L70: =IF(F14>18,"Note: The longest loan term is "&F14&" months",DevOk) ->  | N70: Term: | O70: =COUNTIF(F71:K71,">"&AQ68) -> 0 | P70: RepFreq: | Q70: =AP16 -> 0 | AO70: 0.1 | BM70: Terms | BN70: =COUNTIF(PPrice14,">0") -> 0 | BO70: =MATCH(1,N87:S87,0) ->  | BP70: =BO70+BN70-1 ->  | BQ70: =TRUNC(BO70+BP70/2) ->  | BU70: 0.2 | BY70: 0.2 | CC70: TRUE
B71: Loan Amount | E71: Dist% | L71: =SUM(F71:K71) -> 0 | N71: =IF(AQ67<3,3,AQ67) -> 3 | O71: <-Optimal number of samples to choose below | AO71: 0.15 | AS71: Components that Vary | BF71: =E11 -> 0 | BG71: =F11 -> 0 | BV71: =BW71+$BY$70 -> 0.6 | BW71: =BX71+$BY$70 -> 0.4 | BX71: =BY71+$BY$70 -> 0.2 | BY71: 0 | BZ71: =BY71+$BY$70 -> 0.2 | CA71: =BZ71+$BY$70 -> 0.4 | CB71: =CA71+$BY$70 -> 0.6 | CC71: TRUE
A72: % GNI | B72: Min | C72: Max | D72: % Loans | E72: Ln Amt | L72: Clients | M72: Amt \ Term | N72: =IF(F71>0,F70,"-") -> - | O72: - | P72: - | Q72: - | R72: - | S72: - | AO72: 0.2 | AR72: Buckets | AS72: 0 | AT72: 1 | AU72: 2 | AV72: 3 | BC72: Gaps? | BD72: =COUNTIF(BD73:BD80,"Missing") -> 0 | BF72: below | BG72: above | BH72: shotgun | BJ72: upper limit | BN72: 1 | BO72: 2 | BP72: 3 | BQ72: 4 | BR72: 5 | BS72: 6 | BU72: =BU73+$BU$70 -> 0.8 | BV72: =BW72+($BU72*BV$71) -> 1.96 | BW72: 1.48 | BX72: 1.16 | BY72: 1 | BZ72: =BY72-($BU72*BZ$71) -> 0.84 | CA72: 0.52 | CB72: 0.04 | CC72: TRUE
A73: 0.05 | C73: =ROUND(AL73/AM73,0)*AM73 ->  | E73: =IF(C73<$E$11,"-",IF(B73>$F$11,"-",IF(AND($F$11>B73,$F$11<C73),$F$11,BH73))) ->  | F73: =IF(AND(COUNTA($D73),COUNTA(F$71)),$D73*F$71*$E$7*BN73,0) -> 0 | G73: 0 | H73: 0 | I73: 0 | J73: 0 | K73: 0 | L73: =D73*$E$7 -> 0 | M73: =IF(D73>0,E73,"-") -> - | AK73: =IF(D73>0,1,0) -> 0 | AL73: =$A73*$L$9 ->  | AM73: =IF(AL73<1000,50,IF(AL73<10000,100,1000)) ->  | AO73: 0.3 | AR73: 1 | AS73: 1 | AT73: 1 | AU73: 1 | AV73: 1 | BC73: =COUNTIF(N73:S73,">0") -> 0 | BD73: =COUNTIF(BE73:BE80,"Missing") -> 0 | BF73: FALSE | BG73: TRUE | BH73: =BJ73 ->  | BJ73: =C73 ->  | BM73: 1 | BN73: =IF(AND($BT73>0,BN$81>0,BN$81<=7,$BT73<=9),INDEX($BV$72:$CB$80,$BT73,BN$81),0) ->  | BT73: =BM73-$BQ$69+$BY$68+1 ->  | BU73: =BU74+$BU$70 -> 0.6 | BV73: 1.72 | BW73: 1.36 | BX73: 1.12 | BY73: 1 | BZ73: 0.88 | CA73: 0.64 | CB73: 0.28 | CC73: TRUE
A74: 0.1 | B74: =IF(C73=0,0,C73+1) ->  | F74: 0 | G74: 0 | H74: 0 | I74: 0 | J74: 0 | K74: 0 | L74: 0 | M74: =IF(D74>0,E74,"-") -> - | AK74: =IF(D74>0,AK73+1,0) -> 0 | AM74: =IF(AL74<1000,50,IF(AL74<10000,100,1000)) ->  | AO74: 0.4 | AQ74: =COUNTIF(E73:E75,">0") -> 0 | AR74: 2 | AS74: 2 | AT74: 2 | AU74: 2 | AV74: 2 | BC74: 0 | BD74: =IF(AND(BC73>0,BC74=0,BC75>0),"Missing",".") -> . | BF74: =IF(E$11<=$BJ74,TRUE,FALSE) ->  | BG74: =IF(F$11>=$BJ74,TRUE,FALSE) ->  | BH74: =ROUNDUP(BK74/BL74,0)*BL74 ->  | BI74: 1 | BK74: =(A74+A73)/2*$L$9 ->  | BL74: =IF(BK74>10000,500,IF(BK74>1000,100,25)) ->  | BM74: 2 | BU74: =BU75+$BU$70 -> 0.4 | BV74: 1.48 | BW74: 1.24 | BX74: 1.08 | BY74: 1 | BZ74: 0.92 | CA74: 0.76 | CB74: 0.52 | CC74: TRUE
A75: 0.25 | B75: =IF(C74=0,0,C74+1) ->  | F75: 0 | G75: 0 | H75: 0 | I75: 0 | J75: 0 | K75: 0 | L75: 0 | M75: - | AK75: 0 | AO75: 0.5 | AQ75: 0.3 | AR75: 3 | AS75: 3 | AT75: 3 | AU75: 3 | AV75: 3 | BC75: 0 | BD75: . | BE75: =IF(AND(BC73>0,BC74=0,BC76>0,BC75=0),"Missing",".") -> . | BI75: 2 | BL75: =IF(BK75>10000,500,IF(BK75>1000,100,25)) ->  | BM75: 3 | BU75: =BU76+$BU$70 -> 0.2 | BV75: 1.24 | BW75: 1.12 | BX75: 1.04 | BY75: 1 | BZ75: 0.96 | CA75: 0.88 | CB75: 0.76 | CC75: TRUE
A76: 0.5 | B76: =C75+1 ->  | F76: 0 | G76: 0 | H76: 0 | I76: 0 | J76: 0 | K76: 0 | L76: 0 | M76: - | AK76: 0 | AO76: 0.6 | AR76: 4 | AS76: 4 | AT76: 4 | AU76: 4 | AV76: 4 | BC76: 0 | BD76: . | BE76: =IF(AND(BC74>0,BC75=0,BC77>0,BC76=0),"Missing",".") -> . | BI76: 3 | BM76: 4 | BU76: 0 | BV76: 1 | BW76: 1 | BX76: 1 | BY76: 1 | BZ76: 1 | CA76: 1 | CB76: 1 | CC76: TRUE
A77: 0.75 | B77: =C76+1 ->  | F77: 0 | G77: 0 | H77: 0 | I77: 0 | J77: 0 | K77: 0 | L77: 0 | M77: - | AK77: 0 | AO77: 0.7 | AR77: 5 | AS77: 5 | AT77: 5 | AU77: 5 | AV77: 4 | BC77: 0 | BD77: . | BE77: =IF(AND(BC75>0,BC76=0,BC78>0,BC77=0),"Missing",".") -> . | BI77: 4 | BM77: 5 | BU77: =BU76+$BU$70 -> 0.2 | BV77: =BW77-($BU77*BV$71) -> 0.76 | BW77: 0.88 | BX77: 0.96 | BY77: 1 | BZ77: =BY77+($BU77*BZ$71) -> 1.04 | CA77: 1.12 | CB77: 1.24 | CC77: TRUE
A78: 1 | B78: =C77+1 ->  | F78: 0 | G78: 0 | H78: 0 | I78: 0 | J78: 0 | K78: 0 | L78: 0 | M78: - | AK78: 0 | AO78: 0.8 | AR78: 6 | AS78: 6 | AT78: 6 | AU78: 6 | AV78: 4 | BC78: 0 | BD78: . | BE78: =IF(AND(BC76>0,BC77=0,BC79>0,BC78=0),"Missing",".") -> . | BI78: 5 | BM78: 6 | BU78: =BU77+$BU$70 -> 0.4 | BV78: 0.52 | BW78: 0.76 | BX78: 0.92 | BY78: 1 | BZ78: 1.08 | CA78: 1.24 | CB78: 1.48 | CC78: TRUE
A79: 2 | B79: =C78+1 ->  | F79: 0 | G79: 0 | H79: 0 | I79: 0 | J79: 0 | K79: 0 | L79: 0 | M79: - | AK79: 0 | AO79: 0.9 | AR79: 7 | AS79: 7 | AT79: 7 | AU79: 6 | AV79: 4 | BC79: 0 | BD79: . | BE79: =IF(AND(BC77>0,BC78=0,BC80>0,BC79=0),"Missing",".") -> . | BI79: 6 | BM79: 7 | BU79: =BU78+$BU$70 -> 0.6 | BV79: 0.28 | BW79: 0.64 | BX79: 0.88 | BY79: 1 | BZ79: 1.12 | CA79: 1.36 | CB79: 1.72 | CC79: TRUE
A80: 5 | B80: =C79+1 ->  | F80: 0 | G80: 0 | H80: 0 | I80: 0 | J80: 0 | K80: 0 | L80: 0 | M80: - | AK80: 0 | AO80: 1 | AR80: 8 | AS80: 8 | AT80: 8 | AU80: 6 | AV80: 4 | BC80: 0 | BI80: 7 | BM80: 8 | BU80: =BU79+$BU$70 -> 0.8 | BV80: 0.04 | BW80: 0.52 | BX80: 0.84 | BY80: 1 | BZ80: 1.16 | CA80: 1.48 | CB80: 1.96 | CC80: TRUE
C81: ="> "&TEXT(C80,"#,##0") ->  | E81: N/A | F81: =IF(AND(COUNTA($D81),COUNTA(F$71)),$D81*F$71*$E$7,0) -> 0 | G81: 0 | H81: 0 | I81: 0 | J81: 0 | K81: 0 | L81: 0 | N81: =IF(F11>C80,"Note: Loan Amounts greater than 500% GNI/Capita are not evaluated in this tool",DevOk) ->  | AR81: variations | AS81: 1 | AT81: 2 | AU81: 4 | AV81: 8 | BI81: 8 | BK81: =C80 ->  | BN81: =BN72-$BQ$70+$BW$68 ->  | CC81: TRUE
C82: Total | D82: =SUM(D73:D81) -> 0 | E82: Clients: | F82: =F71*$E$7 -> 0 | G82: 0 | H82: 0 | I82: 0 | J82: 0 | K82: 0 | L82: =SUM(L73:L81) -> 0 | CC82: TRUE
CC83: TRUE
B84: Grace period sensitivity calculations | F84: =IF(ISNUMBER($E$23),$E$23/F70,"DK") -> DK | G84: DK | H84: DK | I84: DK | J84: DK | K84: DK | L84: 0.07 | M84: <Threshold | CC84: =IF(DevShowRows=TRUE,"x",TRUE) -> TRUE
E85: Cumulative % clients | F85: =IF(ISNUMBER($E$23),IF(F84>$L$84,F71,0),"DK") -> DK | G85: =IF(ISNUMBER($E$23),IF(G84>$L$84,G71)+F85,"DK") -> DK | H85: =IF(ISNUMBER($E$23),IF(H84>$L$84,H71)+G85,"DK") -> DK | I85: =IF(ISNUMBER($E$23),IF(I84>$L$84,I71)+H85,"DK") -> DK | J85: =IF(ISNUMBER($E$23),IF(J84>$L$84,J71)+I85,"DK") -> DK | K85: =IF(ISNUMBER($E$23),IF(K84>$L$84,K71)+J85,"DK") -> DK | L85: =IF(ISNUMBER($E$23),IF(F85=G85,ShotTerm1,IF(G85=H85,ShotTerm2,IF(H85=I85,ShotTerm3,IF(I85=J85,ShotTerm4,IF(J85=K85,ShotTerm5,ShotTerm6))))),"DK") -> DK | M85: loan term under threshold | CC85: =CC84 -> TRUE
E86: min | F86: 0 | G86: =F87+0.001 -> 3.501 | H86: =G87+0.001 -> 6.501 | I86: =H87+0.001 -> 9.501 | J86: =I87+0.001 -> 12.501 | K86: =J87+0.001 -> 18.501 | CC86: TRUE
E87: max | F87: 3.5 | G87: 6.5 | H87: 9.5 | I87: 12.5 | J87: 18.5 | K87: 999 | N87: =IF(F71>0,1,0) -> 0 | O87: =IF(G71>0,1+N87,0) -> 0 | P87: =IF(H71>0,1+O87,0) -> 0 | Q87: =IF(I71>0,1+P87,0) -> 0 | R87: =IF(J71>0,1+Q87,0) -> 0 | S87: =IF(K71>0,1+R87,0) -> 0 | CC87: TRUE
E88: valid value? | F88: =IF(OR(F70<F86,F70>F87),FALSE,TRUE) -> TRUE | G88: TRUE | H88: TRUE | I88: TRUE | J88: TRUE | K88: TRUE | L88: =COUNTIF(F88:K88,FALSE) -> 0 | N88: shading 1 | O88: 0.03 | P88: =O88*L82 -> 0 | CC88: TRUE
E89: Input cell? | F89: =IF(AND($E$14<F87,$F$14>F86),TRUE,FALSE) -> FALSE | G89: FALSE | H89: FALSE | I89: FALSE | J89: FALSE | K89: FALSE | L89: =COUNTIF(F89:K89,FALSE) -> 6 | N89: shading 2 | O89: 0.06 | P89: =O89*L82 -> 0 | CC89: TRUE
E90: Perc outside range? | F90: =IF(F89=FALSE,IF(F71>0,TRUE,FALSE)) -> FALSE | G90: FALSE | H90: FALSE | I90: FALSE | J90: FALSE | K90: FALSE | L90: =COUNTIF(F90:K90,TRUE) -> 0 | CC90: TRUE
C91: =C607 ->  | CC91: =$F$665 -> TRUE
B92: No | C92: =IF(PStep2Done="Yes","Click in any cell on the worksheet to begin running the routine to open up the next section","Is the sampling information complete? Mark YES to "&IF(AZ23>0,"review Grace Period Analysis and then ","")&"continue to STEP 3") -> Is the sampling information complete? Mark YES to review Grace Period Analysis and then continue to STEP 3 | CC92: =$F$665 -> TRUE
B93: Sensitivity Analysis of Grace Period | CC93: =IF(OR(AZ23=0,AZ23=1),TRUE,IF(PStep2Done="No",TRUE,"x")) -> TRUE
D94: Is Flat Interest charged? | E94: =IF(G27="Flat","Yes","No") -> No | F94: =IF(E94="Yes","High","Low") -> Low | G94: =IF(F94="High","As FLAT interest is charged on this product, the impact on price can be significant","Declining Balance interest has little to no variation when there are grace periods") -> Declining Balance interest has little to no variation when there are grace periods | AS94: High | AT94: Med | CC94: =CC93 -> TRUE
D95: grace / shortest term (a) | E95: =IF(ISNUMBER(E23),E23/E14,"DK") -> DK | F95: =IF(E95>AS95,"High",IF(E95>AT95,"Med","Low")) -> High | G95: =IF(F95="High","The grace period is significant at least for the shortest loans",IF(F95="Med","The grace period has only moderate significance, even on the shortest loans","The grace period has modest signifance even on the shortest loans")) -> The grace period is significant at least for the shortest loans | AR95: grace/shortest | AS95: 0.3 | AT95: 0.15 | AV95: Because of declining balance interest, it is likely that this product does not see prices vary significantly due to grace periods. You should include only one or two test variations in order to confirm. | CC95: TRUE
D96: Max term with sensitivity (b) | E96: =IF(E21=0,"N/A",L85&" mon") -> DK mon | G96: This calculation is made by comparing grace to loan terms. Loans UP TO this duration have moderate to high sensitivity to grace | AR96: % clients | AS96: 0.6 | AT96: 0.2 | AV96: This product uses flat interest and has a moderate portion of loans being affected by grace. You should include several variations to test for the impact of grace on price, applying grace to samples with SHORTER loan terms. | CC96: TRUE
D97: ="% loans up to "&E96&" term (c)" -> % loans up to DK mon term (c) | E97: =K85 -> DK | G97: This indicates what percent of the product's loans are shorter than the threshold term indicated in (b). Loan term DISTRIBUTION figures are used for calculation. | AR97: % signif | AS97: 0.4 | AT97: 0.2 | AV97: This product uses flat interest and has a large portion of loans being affected by grace. This is the 'worst case scenario' and you should test for the impact of grace on price, on several of the samples, especially samples with SHORTER loan terms. | CC97: TRUE
D98: % loans with grace (d) | E98: =AZ23 -> N/A | F98: =IF(E98>AS96,"High",IF(E98>AT96,"Med","Low")) -> High | G98: ="This was entered in row "&ROW(D24)&" above. "&IF(F98="High","Grace applies to a large percentage of loans",IF(F98="Med","Grace applies to only a moderate number of loans","Grace applies to a small portion of the loans")) -> This was entered in row 24 above. Grace applies to a large percentage of loans | AV98: Though this product uses flat interest, it looks like only a small number of loans would be affected. You do not need to include more than one sample that has grace as a variation variable. | CC98: TRUE
B99: % loans where grace is significant (e = c x d) | E99: =IF(ISNUMBER(E97),E97*E98,"DK") -> DK | F99: =IF(ISNUMBER(E99),IF(E99>AS97,"High",IF(E99>AT97,"Med","Low")),"Med") -> Med | G99: ="This calculates how many loans have a SIGNIFICANT impact from grace, by multiplying line c times line d. "&IF(ISNUMBER(E23),IF(F99="High","With this product, there are a large number of loans affected",IF(F99="Med","With this product, only a moderate number of loans are affected","With this product, a small number of loans are actually affected")),"As average grace is not known, much of this sensitivity analysis could not be done.") -> This calculates how many loans have a SIGNIFICANT impact from grace, by multiplying line c times line d. As average grace is not known, much of this sensitivity analysis could not be done. | CC99: TRUE
B100: Recommendation: | D100: =IF(CC100=TRUE,"This product has no grace period.",IF(E21=0,"This product has no loans with grace periods",IF(E21=1,"Enter grace period for ALL samples in Step 3. If the length of grace period varies, use Var1 and 2 to test different lengths",IF(F94="Low",AV95,IF(F99="Med",AV96,IF(F99="High",AV97,AV98)))))) -> This product has no grace period. | CC100: TRUE
CC101: x
CC102: x
B103: Step 3: Review the information in the table and generate the Scatterplot | O103: Click for STEP 3 Video | CC103: x
B104: ="Grace period recommendation: "&D100 -> Grace period recommendation: This product has no grace period. | O104: Video Link | CC104: =IF((F23+G23)>0,$F$666,TRUE) -> TRUE
B105: =IF(E24="Scattered","Note: Grace will be placed in the MIDDLE of the loan term. This is suitable for randomly scattered grace. If LUMPY grace, like a livestock loan, price will be less accurate.",DevOk) ->  | M105: RECOMMEND CLIENT NUMBER CHANGES WHEN BIG LOANS ARE BIASED TOWARD SHORT TERM | CC105: =IF(LEFT(E24,4)="Scat",$F$666,TRUE) -> TRUE
B106: =IF(COUNTIF(D27:D53,"A lot")>0,"Note: At least one price component varies A LOT. You should edit the Opt 1 and Opt 2 defaults to use an appropriate range of values",IF(MAX(K135:K136)=999,"Note: 999 means end-term payment frequency.",DevOk)) ->  | CC106: =IF(B106=DevOk,TRUE,$F$666) -> TRUE
B107: =IF(AND(K135<30,K136>=30,M139="Flat"),"Note: Flat interest will have a significant impact on pricing with loan terms ranging from less than a month to a month or more.",DevOk) ->  | CC107: =IF(B107=DevOk,TRUE,$F$666) -> TRUE
B108: =IF(E581=DevOk,E589,E581) -> Review all info in Step 3. You may change the number of variations by typing over the figures in the YELLOW cells. You can type over green and white values starting in row 139. When done, mark completed in row 173. | CC108: =$F$666 -> TRUE
B109: Num Samples: | C109: =COUNTIF(C115:C122,">0") -> 0 | E109: =COUNTIF(XChkCol,">0") -> 0 | F109: <- Real Samples | I109: =IF(MAX(I115:I122)>2,"More than 2 variations needs manual input below",DevOk) ->  | N109: =M29 ->  | V109: =M36 ->  | AB109: =IF(AQ44,"Note: Taxes are entered automatically for each sample. There are not inputs to be made.",DevOk) ->  | CC109: =$F$666 -> TRUE
E110: =IF(ISERROR(SUM(C137:AJ137)),TRUE,FALSE) -> FALSE | F110: <error check - TRUE means errors | M110: In Use? --> | N110: =COUNTIF($N$111:N111,">0") -> 0 | O110: =COUNTIF($N$111:O111,">0") -> 0 | P110: =COUNTIF($N$111:P111,">0") -> 0 | Q110: =COUNTIF($N$111:Q111,">0") -> 0 | R110: =COUNTIF($N$111:R111,">0") -> 0 | S110: =COUNTIF($N$111:S111,">0") -> 0 | T110: =COUNTIF($N$111:T111,">0") -> 0 | U110: =COUNTIF($N$111:U111,">0") -> 0 | V110: =COUNTIF($V$111:V111,">0") -> 0 | W110: =COUNTIF($V$111:W111,">0") -> 0 | X110: =COUNTIF($V$111:X111,">0") -> 0 | Y110: =COUNTIF($V$111:Y111,">0") -> 0 | Z110: =COUNTIF($V$111:Z111,">0") -> 0 | AA110: =COUNTIF($V$111:AA111,">0") -> 0 | AB110: =COUNTIF($V$111:AB111,">0") -> 0 | AC110: =COUNTIF($V$111:AC111,">0") -> 0 | AD110: =COUNTIF($AD$111:AD111,">0") -> 0 | AE110: =COUNTIF($AD$111:AE111,">0") -> 0 | AF110: =COUNTIF($AD$111:AF111,">0") -> 0 | AG110: =COUNTIF($AD$111:AG111,">0") -> 0 | AH110: =COUNTIF($AD$111:AH111,">0") -> 0 | CC110: =IF(HideExtra,TRUE,CC109) -> TRUE
N111: =IF(MAX(N139:N170)>0,N114,0) -> 0 | O111: 0 | P111: 0 | Q111: 0 | R111: 0 | S111: 0 | T111: 0 | U111: 0 | V111: 0 | W111: 0 | X111: 0 | Y111: 0 | Z111: 0 | AA111: 0 | AB111: 0 | AC111: 0 | AD111: 0 | AE111: 0 | AF111: 0 | AG111: 0 | AH111: 0 | CC111: =$CC$110 -> TRUE
B112: Loan Amount | D112: Loan Term | F112: Client Estimate | H112: Real | I112: Number | J112: Grace | K112: Repay | L112: Interest | N112: Fees | V112: Insurance | AD112: Security Deposit | CC112: =$F$666 -> TRUE
B113: Override | C113: Used | D113: =B113 -> Override | E113: =C113 -> Used | F113: =D113 -> Override | G113: =E113 -> Used | H113: Sample? | I113: Variations | J113: Period | K113: Freq | N113: Fee 1 | R113: Fee 2 | V113: Ins 1 | Z113: Ins 2 | AQ113: How to stagger variations - this section not used anywhere | BE113: FORMULAS | CC113: =$F$666 -> TRUE
C114: 1 | D114: =C114+1 -> 2 | E114: 3 | F114: 4 | G114: 5 | H114: 6 | I114: 7 | J114: 8 | K114: 9 | L114: 10 | M114: 11 | N114: 12 | O114: 13 | P114: 14 | Q114: 15 | R114: 16 | S114: 17 | T114: 18 | U114: 19 | V114: 20 | W114: 21 | X114: 22 | Y114: 23 | Z114: 24 | AA114: 25 | AB114: 26 | AC114: 27 | AD114: 28 | AE114: 29 | AF114: 30 | AG114: 31 | AH114: 32 | AO114: =PriceTable!S1 -> 19 | AP114: =PriceTable!AD1 -> 30 | AQ114: =PriceTable!AE1 -> 31 | AR114: =PriceTable!AF1 -> 32 | AS114: =PriceTable!AG1 -> 33 | AT114: =PriceTable!AH1 -> 34 | AU114: =PriceTable!AO1 -> 41 | AV114: =PriceTable!O1 -> 15 | CC114: =$CC$110 -> TRUE
A115: 1 | C115: =IF(B115>0,B115,E522) -> 0 | E115: =IF(D115>0,D115,IF(E512>0,E512,"")) ->  | G115: =IF(F115>0,F115,IF(E532>0,E532,"")) ->  | I115: =IF(H115>0,2,IF(COUNTIF(J115:AH115,3)>0,3,IF(C115>0,2^COUNTIF(J115:AH115,">1"),""))) ->  | J115: =J126 -> 0 | K115: 0 | L115: 0 | N115: =N126 -> 0 | O115: 0 | P115: 0 | Q115: 0 | R115: 0 | S115: 0 | T115: 0 | U115: 0 | V115: 0 | W115: 0 | X115: 0 | Y115: 0 | Z115: 0 | AA115: 0 | AB115: 0 | AC115: 0 | AD115: 0 | AE115: 0 | AF115: 0 | AG115: 0 | AH115: 0 | AP115: 1 | AQ115: 1a | AR115: 1a | AS115: 2a | AT115: 1a | AU115: 2a | AV115: 3a | AZ115: Real Samples | BB115: =IF(ISNUMBER(B137),IF(B137>0,B137,1),1) -> 1 | BC115: <Rownum | BE115: =BE126 -> 0 | BG115: =IF(C115>0,1,99) -> 99 | BH115: =IF(C115>0,BG115+I115-1,0) -> 0 | BM115: 1 | BN115: 0 | BO115: 0 | BP115: 0 | BQ115: 0 | BS115: =IF(AND(C115>0,F115=0),1,0) -> 0 | BT115: =IF(AND(C115=0,C116>0,A115>$G$503),1,0) -> 0 | BU115: =IF(AND(C115=0,E115>0,ISNUMBER(E115)),A115,0) -> 0 | BV115: =IF(AND(C115>0,OR(E115=0,E115=""),ISNUMBER(C115)),A115,0) -> 0 | BW115: =SUM(B115:AH115) -> 0 | BX115: 1 | BZ115: amt | CA115: term | CB115: clients | CC115: =$F$666 -> TRUE
A116: 2 | C116: 0 | I116: =IF(H116>0,2,IF(COUNTIF(J116:AH116,3)>0,3,IF(C116>0,2^COUNTIF(J116:AH116,">1"),""))) ->  | J116: 0 | K116: 0 | L116: 0 | N116: 0 | O116: 0 | P116: 0 | Q116: 0 | R116: 0 | S116: 0 | T116: 0 | U116: 0 | V116: 0 | W116: 0 | X116: 0 | Y116: 0 | Z116: 0 | AA116: 0 | AB116: 0 | AC116: 0 | AD116: 0 | AE116: 0 | AF116: 0 | AG116: 0 | AH116: 0 | AP116: 2 | AQ116: 1b | AR116: 1b | AS116: 2a | AT116: 1a | AU116: 2a | AV116: 3b | BA116: =IF(MAX(AZ117:AZ119)>1,TRUE,FALSE) -> FALSE | BE116: =IF(AND(BE$123,$B116<>"-"),IF(BE$125=2,IF($F116<3,BE$136,BE$135),IF(MOD($F116,2)=0,BE$135,BE$136)),0) -> 0 | BG116: =IF(C116>0,MAX($BH$115:BH115)+1,99) -> 99 | BH116: 0 | BM116: 2 | BN116: 0 | BO116: 1 | BP116: 0 | BQ116: 0 | BR116: =IF(AND(C116>0,C116<C115),1,0) -> 0 | BS116: 0 | BT116: 0 | BU116: 0 | BV116: 0 | BW116: 0 | BX116: =BX115*10 -> 10 | BZ116: =IF(ISNUMBER(#REF!),INDEX(PriceTable!$K$7:$K$181,#REF!),0) -> 0 | CA116: =IF(ISNUMBER(#REF!),IF(ISNUMBER(INDEX(PriceTable!$N$7:$N$181,#REF!)),INDEX(PriceTable!$N$7:$N$181,#REF!),0),0) -> 0 | CB116: =IF(ISNUMBER(#REF!),INDEX(PriceTable!$S$7:$S$181,#REF!),0) -> 0 | CC116: =$F$666 -> TRUE
A117: 3 | C117: 0 | J117: 0 | K117: 0 | L117: 0 | N117: 0 | O117: 0 | P117: 0 | Q117: 0 | R117: 0 | S117: 0 | T117: 0 | U117: 0 | V117: 0 | W117: 0 | X117: 0 | Y117: 0 | Z117: 0 | AA117: 0 | AB117: 0 | AC117: 0 | AD117: 0 | AE117: 0 | AF117: 0 | AG117: 0 | AH117: 0 | AP117: 3 | AR117: 1a | AS117: 2b | AT117: 1a | AU117: 2b | AV117: 3a | AZ117: =COUNTIF($H$115:$H$122,1) -> 0 | BA117: =IF(AZ117<>1,FALSE,TRUE) -> FALSE | BG117: =IF(C117>0,MAX($BH$115:BH116)+1,99) -> 99 | BH117: 0 | BM117: 3 | BN117: 0 | BO117: 0 | BP117: 1 | BQ117: 0 | BR117: 0 | BS117: 0 | BT117: 0 | BU117: 0 | BV117: 0 | BW117: 0 | BX117: 100 | BZ117: =IF(ISNUMBER(#REF!),INDEX(PriceTable!$K$7:$K$181,#REF!),0) -> 0 | CA117: =IF(ISNUMBER(#REF!),IF(ISNUMBER(INDEX(PriceTable!$N$7:$N$181,#REF!)),INDEX(PriceTable!$N$7:$N$181,#REF!),0),0) -> 0 | CB117: =IF(ISNUMBER(#REF!),INDEX(PriceTable!$S$7:$S$181,#REF!),0) -> 0 | CC117: =$F$666 -> TRUE
A118: 4 | C118: 0 | J118: 0 | K118: 0 | L118: 0 | N118: 0 | O118: 0 | P118: 0 | Q118: 0 | R118: 0 | S118: 0 | T118: 0 | U118: 0 | V118: 0 | W118: 0 | X118: 0 | Y118: 0 | Z118: 0 | AA118: 0 | AB118: 0 | AC118: 0 | AD118: 0 | AE118: 0 | AF118: 0 | AG118: 0 | AH118: 0 | AP118: 4 | AR118: 1b | AS118: 2b | AT118: 1a | AU118: 2b | AV118: 3b | AZ118: =COUNTIF($H$115:$H$122,2) -> 0 | BA118: =IF(AZ118>1,FALSE,TRUE) -> TRUE | BG118: =IF(C118>0,MAX($BH$115:BH117)+1,99) -> 99 | BH118: 0 | BM118: 4 | BN118: 0 | BO118: 1 | BP118: 1 | BQ118: 0 | BR118: 0 | BS118: 0 | BT118: 0 | BU118: 0 | BV118: 0 | BW118: 0 | BX118: 1000 | BZ118: =IF(ISNUMBER(#REF!),INDEX(PriceTable!$K$7:$K$181,#REF!),0) -> 0 | CA118: =IF(ISNUMBER(#REF!),IF(ISNUMBER(INDEX(PriceTable!$N$7:$N$181,#REF!)),INDEX(PriceTable!$N$7:$N$181,#REF!),0),0) -> 0 | CB118: =IF(ISNUMBER(#REF!),INDEX(PriceTable!$S$7:$S$181,#REF!),0) -> 0 | CC118: =IF(A118<=$C$109,CC117,TRUE) -> TRUE
A119: 5 | C119: 0 | J119: 0 | K119: 0 | L119: 0 | N119: 0 | O119: 0 | P119: 0 | Q119: 0 | R119: 0 | S119: 0 | T119: 0 | U119: 0 | V119: 0 | W119: 0 | X119: 0 | Y119: 0 | Z119: 0 | AA119: 0 | AB119: 0 | AC119: 0 | AD119: 0 | AE119: 0 | AF119: 0 | AG119: 0 | AH119: 0 | AP119: 5 | AT119: 1b | AU119: 2a | AV119: 3a | AZ119: =COUNTIF($H$115:$H$122,3) -> 0 | BA119: =IF(AZ119>1,FALSE,TRUE) -> TRUE | BG119: =IF(C119>0,MAX($BH$115:BH118)+1,99) -> 99 | BH119: 0 | BM119: 5 | BN119: 0 | BO119: 0 | BP119: 0 | BQ119: 1 | BR119: 0 | BS119: 0 | BT119: 0 | BU119: 0 | BV119: 0 | BW119: 0 | BX119: 10000 | CC119: =IF(A119<=$C$109,CC118,TRUE) -> TRUE
A120: 6 | C120: 0 | J120: 0 | K120: 0 | L120: 0 | N120: 0 | O120: 0 | P120: 0 | Q120: 0 | R120: 0 | S120: 0 | T120: 0 | U120: 0 | V120: 0 | W120: 0 | X120: 0 | Y120: 0 | Z120: 0 | AA120: 0 | AB120: 0 | AC120: 0 | AD120: 0 | AE120: 0 | AF120: 0 | AG120: 0 | AH120: 0 | AP120: 6 | AT120: 1b | AU120: 2a | AV120: 3b | BG120: =IF(C120>0,MAX($BH$115:BH119)+1,99) -> 99 | BH120: 0 | BM120: 6 | BN120: 0 | BO120: 1 | BP120: 0 | BQ120: 1 | BR120: 0 | BS120: 0 | BT120: 0 | BU120: 0 | BV120: 0 | BW120: 0 | BX120: 100000 | CC120: =IF(A120<=$C$109,CC119,TRUE) -> TRUE
A121: 7 | C121: 0 | J121: 0 | K121: 0 | L121: 0 | N121: 0 | O121: 0 | P121: 0 | Q121: 0 | R121: 0 | S121: 0 | T121: 0 | U121: 0 | V121: 0 | W121: 0 | X121: 0 | Y121: 0 | Z121: 0 | AA121: 0 | AB121: 0 | AC121: 0 | AD121: 0 | AE121: 0 | AF121: 0 | AG121: 0 | AH121: 0 | AP121: 7 | AT121: 1b | AU121: 2b | AV121: 3a | BG121: =IF(C121>0,MAX($BH$115:BH120)+1,99) -> 99 | BH121: 0 | BM121: 7 | BN121: 0 | BO121: 0 | BP121: 1 | BQ121: 1 | BR121: 0 | BS121: 0 | BT121: 0 | BU121: 0 | BV121: 0 | BW121: 0 | BX121: 1000000 | CC121: =IF(A121<=$C$109,CC120,TRUE) -> TRUE
A122: 8 | C122: 0 | I122: =IF(H122>0,2,IF(C122>0,2^COUNTIF(J122:AH122,2),"")) ->  | J122: 0 | K122: 0 | L122: 0 | N122: 0 | O122: 0 | P122: 0 | Q122: 0 | R122: 0 | S122: 0 | T122: 0 | U122: 0 | V122: 0 | W122: 0 | X122: 0 | Y122: 0 | Z122: 0 | AA122: 0 | AB122: 0 | AC122: 0 | AD122: 0 | AE122: 0 | AF122: 0 | AG122: 0 | AH122: 0 | AP122: 8 | AT122: 1b | AU122: 2b | AV122: 3b | BG122: =IF(C122>0,MAX($BH$115:BH121)+1,99) -> 99 | BH122: 0 | BM122: 8 | BN122: 0 | BO122: 1 | BP122: 1 | BQ122: 1 | BR122: 0 | BS122: 0 | BT122: =IF(AND(C122=0,C134>0,A122>$G$503),1,0) -> 0 | BU122: 0 | BV122: 0 | BW122: 0 | BX122: 10000000 | CC122: =IF(A122<=$C$109,CC121,TRUE) -> TRUE
I123: Used? | J123: =IF(AND(J135=0,J136=0),FALSE,TRUE) -> FALSE | K123: =IF(AND(K135=0,K136=0),FALSE,TRUE) -> FALSE | L123: =IF(AND(L135=0,L136=0),FALSE,TRUE) -> FALSE | N123: =IF(AND(N135=0,N136=0),FALSE,TRUE) -> FALSE | O123: FALSE | P123: FALSE | Q123: FALSE | R123: FALSE | S123: FALSE | T123: FALSE | U123: FALSE | V123: FALSE | W123: FALSE | X123: FALSE | Y123: FALSE | Z123: FALSE | AA123: FALSE | AB123: FALSE | AC123: FALSE | AD123: FALSE | AE123: FALSE | AF123: FALSE | AG123: FALSE | AH123: FALSE | CC123: =$CC$110 -> TRUE
I124: Varies? | J124: =IF(J123,IF(J136<>J135,TRUE,FALSE)) -> FALSE | K124: =IF(K123,IF(K136<>K135,TRUE,FALSE)) -> FALSE | L124: =IF(L123,IF(L136<>L135,TRUE,FALSE)) -> FALSE | N124: =IF(N123,IF(N136<>N135,TRUE,FALSE)) -> FALSE | O124: FALSE | P124: FALSE | Q124: FALSE | R124: FALSE | S124: FALSE | T124: FALSE | U124: FALSE | V124: FALSE | W124: FALSE | X124: FALSE | Y124: FALSE | Z124: FALSE | AA124: FALSE | AB124: FALSE | AC124: FALSE | AD124: FALSE | AE124: FALSE | AF124: FALSE | AG124: FALSE | AH124: FALSE | CC124: TRUE
D125: Rank of Variation | J125: =IF(J124,I125+1,I125) -> 0 | K125: =IF(K124,J125+1,J125) -> 0 | L125: 0 | M125: 0 | N125: 0 | O125: 0 | P125: 0 | Q125: 0 | R125: 0 | S125: 0 | T125: 0 | U125: 0 | V125: 0 | W125: 0 | X125: 0 | Y125: 0 | Z125: 0 | AA125: 0 | AB125: 0 | AC125: 0 | AD125: 0 | AE125: 0 | AF125: 0 | AG125: 0 | AH125: 0 | CC125: TRUE
D126: Sample 1 | J126: =IF(J$123,IF(J$124,2,1),0) -> 0 | K126: 0 | L126: 0 | N126: =IF(N$123,IF(N$124,2,1),0) -> 0 | O126: 0 | P126: 0 | Q126: 0 | R126: 0 | S126: 0 | T126: 0 | U126: 0 | V126: 0 | W126: 0 | X126: 0 | Y126: 0 | Z126: 0 | AA126: 0 | AB126: 0 | AC126: 0 | AD126: =IF(AD$123,IF(AD$124,2,1),0) -> 0 | AE126: 0 | AF126: 0 | AG126: 0 | AH126: 0 | CC126: TRUE
D127: Sample 2 | J127: 0 | K127: 0 | L127: 0 | N127: 0 | O127: 0 | P127: 0 | Q127: 0 | R127: 0 | S127: 0 | T127: 0 | U127: 0 | V127: 0 | W127: 0 | X127: 0 | Y127: 0 | Z127: 0 | AA127: 0 | AB127: 0 | AC127: 0 | AD127: 0 | AE127: 0 | AF127: 0 | AG127: 0 | AH127: 0 | CC127: TRUE
